{"text_format":"1","workbook":"xlsx","n_sheets":8,"sheets":["Accueil","DGRFM COF","Feuil1","Utilitaire","Validation","détail des projets","indicateurs quantitatifs","Commentaires"],"not_rendered":{"charts":0,"images":14,"macros":1,"external_links":0,"defined_names":934,"comments":5,"pivot_tables":0},"unopened":[],"bounds":{"document_bytes":16777216,"sheet_cells":100000,"rows_first":2000,"rows_last":500,"rows_between":2000,"halvings":0,"cell_chars":16384,"cell_head_chars":4096},"cells_cut":0,"cells_raw":0,"read":"whole","date_system":"1900"}

{"sheet":"Accueil","index":0,"n_rows":74,"n_cols":13,"rows_kept":74,"cut":false,"hidden":false,"merged":[[1,5,3,10],[4,5,5,10],[55,3,55,11],[12,1,12,7],[52,4,52,13],[51,4,51,13],[53,4,53,13],[51,1,51,2],[52,1,52,2],[53,1,53,2],[15,1,15,13],[21,1,21,13],[22,1,22,13],[23,1,23,13],[14,1,14,13],[26,1,26,13],[72,12,72,13],[67,1,67,2],[67,3,67,4],[67,5,67,6],[67,7,67,8],[67,12,67,13],[66,10,66,11],[66,12,66,13],[62,1,62,2],[66,3,66,4],[66,7,66,8],[65,12,65,13],[65,3,65,4],[65,5,65,6],[65,7,65,8],[66,5,66,6],[73,1,73,2],[73,3,73,4],[54,1,54,2],[56,1,56,2],[56,3,56,11],[57,1,57,2],[55,1,55,2],[67,10,67,11],[72,1,72,3],[72,4,72,8],[72,9,72,11],[65,10,65,11],[62,3,62,4],[62,10,62,11],[66,1,66,2],[65,1,65,2],[58,1,58,2],[58,3,58,11],[18,1,18,3],[24,1,24,13],[16,1,16,13],[17,1,17,13],[19,1,19,13],[20,1,20,13],[57,3,57,11],[54,4,54,13],[25,1,25,13]]}
[]
[null,null,null,null,null,"EXERCICES DE SUIVI DU PACC 2013-2020"]
[]
[]
[null,null,null,null,null,"2018-06-01"]
[]
[]
[]
[]
[null,"Bienvenue dans votre fiche de suivi du Plan d'action 2013-2020 sur les changements climatiques!"]
[]
[]
[null,"Indications spécifiques à l'exercice de juin 2018"]
[null,"Date limite :","2018-06-22"]
[null,"→ Les informations financières doivent être en date du 2018-03-31"]
[null,"→ Veuillez utiliser l'outil de validation sur votre fiche avant de la retourner. Un bouton à cet effet a été ajouté dans les différents onglets."]
[null,"→ Veuillez garder la fiche en format xlsm afin de pouvoir profiter des nouveaux outils conviviaux."]
[null,"→ Besoin d'assistance? Veuillez écrire à l'adresse suivante en spécifiant votre question et vos coordonnées :"]
[null,"direction.executive@cgfv.gouv.qc.ca"]
[null,"→ Avant de débuter l'exercice, veuillez vérifier et compléter au besoin l'information contenue dans la page d'accueil."]
[null,"→ Toute information confidentielle, en vertu d'un contrat ou d'une entente, doit être saisie en bleu."]
[null,"→ La fiche de suivi en format Word doit également être mise à jour. Si aucune modification n'est requise, il est néanmoins nécessaire de mettre à jour les sections Date de mise à jour de la fiche se situant au haut et au bas de la fiche."]
[null,"→ De nouvelles informations sont à saisir à l'onglet Indicateurs quantitatifs, suite aux ajustements apportés à celui-ci."]
[null,"→ Veuillez préciser à la page d'accueil le programme rattaché à l'action, lorsqu'applicable. Le cas échéant, veuillez transmettre le cadre normatif officiel du programme au moment de la retransmission de la fiche de suivi."]
[null,"→ ATTENTION! Copier-coller des informations à partir d'un document Word verrouille les cellules concernées. Pour pouvoir à nouveau écrire et modifier le format de ces cellules, veuillez fermer et ouvrir à nouveau la fiche."]
[null,"→ ATTENTION! Les cellules contenant du texte sont limitées à 250 caractères. Les textes trop longs de votre ancienne fiche sont écrits en rouge puisqu'ils ont été tronqués. Veuillez reformuler ces instances."]
[null,"à ATTENTION! Il est important de remplir la colonne Coût/tonne estimé de l'onglet Détail des projets lorsqu'applicable"]
[]
[]
[]
[]
[]
[]
[]
[]
[]
[]
[]
[]
[]
[]
[]
[]
[]
[]
[]
[]
[]
[]
[null,"Avant de commencer, veuillez vérifier et corriger au besoin les informations indiquées dans l'encadré ci-dessous:"]
[]
[null,"Priorité :",null,20,"Favoriser les énergies renouvelables et l'efficacité énergétique dans les bâtiments résidentiels, commerciaux et institutionnels"]
[null,"Action :",null,"20.1","Conversion et efficacité énergétique dans les bâtiments commerciaux et institutionnels"]
[null,"Sous-action :"]
[null,"Libellé usuel :",null,"20.1","Conversion et efficacité énergétique dans les bâtiments commerciaux et institutionnels (Écoperformance)"]
[null,"Programme :",null,"Écoperformance"]
[null,"Nom du programme :"]
[null,"Statut de l'action :",null,"en cours"]
[null,"Raison du statut de l'action :"]
[]
[]
[]
[null,"Mise à jour de la fiche le :",null,"2018-07-30"]
[]
[]
[null,"Ministère porteur :",null,"TEQ",null,"Chargé de projet :",null,"Nadia Lalancette",null,null,"Part de financement par le PACC :",null,"Variable"]
[null,"Responsable ministériel :",null,"Dominique Deschênes",null,null,null,null,null,null,"Date de lancement de l'action :",null,"2013-10-28"]
[null,"Direction responsable :",null,"DG opérations et innovation",null,"Budget 2013-2020 (M$) :",null,67,null,null,"Date de fin de l'action :",null,"2017-12-31"]
[]
[]
[]
[]
[null,"Personne ressource pour leCGFV :",null,null,"Nadia Lalancette",null,null,null,null,"Tél. :",null,null,"418-627-6379 (8014)"]
[null,"Fiche validée au CGFV le:",null,"2018-09-21"]

{"sheet":"DGRFM COF","index":1,"n_rows":45,"n_cols":25,"rows_kept":45,"cut":false,"hidden":false,"merged":[[6,7,6,8],[3,1,3,2],[4,1,4,2],[5,1,5,2],[6,1,6,2],[6,5,6,6],[7,1,7,2],[7,3,7,4],[7,5,7,6],[7,16,7,17],[7,18,7,19],[8,24,8,25],[6,9,6,10],[6,11,6,12],[6,16,6,17],[6,18,6,19],[8,1,8,2],[8,3,8,4],[8,16,8,17],[8,18,8,19],[8,21,8,22],[9,1,9,2],[9,3,9,4],[9,5,9,6],[9,15,9,16],[9,18,9,19],[10,21,10,22],[10,24,10,25],[11,1,11,2],[12,5,12,15],[12,16,12,17],[12,18,12,19],[10,1,10,2],[10,3,10,4],[10,5,10,6],[10,15,10,16],[10,18,10,19],[43,1,43,13],[44,1,44,20],[21,1,22,6],[21,7,22,13],[32,1,32,6],[39,1,39,20],[41,1,41,19],[42,1,42,13]]}
[]
[null,null,null,null,null,null,"Bienvenue dans votre fiche de suivi du PACC 2013-2020!"]
[null,null,null,null,null,null,null,null,null,null,null,null,null,null,null,"Juillet 2018"]
[null,"Priorité :",null,20]
[null,"Action:",null,"20.1","20.1 Conversion et efficacité énergétique dans les bâtiments commerciaux et institutionnels"]
[null,"Sous-action:",null,"20.1"]
[null,"Numéro de programme",null,"16225","52187","PSA",null,{"$f":"P7","v":0},null,"Projet"]
[null,"Mise à jour de la fiche le:",null,"2018-07-20"]
[null,"Ministère porteur:",null,"MERN"]
[null,"Responsable ministériel:",null,"Dominique Deschenes",null,null,null,null,null,null,null,null,null,null,null,null,null,"Date de lancement:","2013-10-23"]
[null,"Chargé de projet:",null,"Nadia Lalancette",null,"Budget 2013-2020:",null,null,null,null,null,null,null,null,null,67000000,null,"Date de fin:","2020-12-31"]
[null,"Unité Administrative (UA)",null,1810000,"Unité administrative générique"]
[null,"Personne ressource pour la DGRFM:",null,"Marie-Hélène Pelletier"]
[]
[]
[]
[]
[]
[]
[]
[]
[null,"SECTION 1 - SOMMAIRE - CONSOLIDATION DES ORGANISMES ET DES FONDS (COF)",null,null,null,null,null,"Combinaison comptable budget",null,null,null,null,null,null,"2013-2014","2014-2015","2015-2016","2016-2017","2017-2018","2018-2019","2019-2020","2020-2021","2021-2022","2022-2023","TOTAL"]
[null,null,null,null,null,null,null,null,null,null,null,null,null,null,"Réel","Réel","Réel","Réel","Réel","Prévu","Prévu","Prévu","Prévu","Prévu"]
[null,"Dépenses"]
[null,"1.1 Rémunération",null,null,null,null,null,{"$f":"IF($D$4=\"Fonds de protection de l'environnement et des milieux hydriques\",784,836)","v":836},{"$f":"IF(B25=\"1.2 Contribution de l'employeur\",\"1810010\",$D$12)","v":1810000},{"$f":"500012","v":500012},{"$f":"IF($B$24=\"Revenu\",0,900)","v":900},{"$f":"IF(OR(B25=\"1.1 Rémunération\",B25=\"1.2 Contribution de l'employeur\",B25=\"1.3 Immobilisations\",B25=\"1.4 Fonctionnement\",B25=\"1.6 Amortissement\"),$D$7,$E$7)","v":"16225"},{"$f":"IF($P$7=\"\",1000000,$P$7)","v":1000000},{"$f":"IF($L$7=\"\",100000000,$L$7)","v":100000000},164586,125525.57,176492.73,126953.94,423290.79,{"$f":"470914+458242","v":929156},{"$f":"475624+462824","v":938448},{"$f":"484660+471618","v":956278},478692,0,{"$f":"SUM(O25:X25)","v":4319423.03}]
[null,"1.2 Contribution de l'employeur",null,null,null,null,null,{"$f":"IF($D$4=\"Fonds de protection de l'environnement et des milieux hydriques\",784,836)","v":836},{"$f":"IF(B26=\"1.2 Contribution de l'employeur\",\"1810010\",$D$12)","v":"1810010"},501002,{"$f":"IF($B$24=\"Revenu\",0,900)","v":900},{"$f":"IF(OR(B26=\"1.1 Rémunération\",B26=\"1.2 Contribution de l'employeur\",B26=\"1.3 Immobilisations\",B26=\"1.4 Fonctionnement\",B26=\"1.6 Amortissement\"),$D$7,$E$7)","v":"16225"},1000000,{"$f":"IF($L$7=\"\",100000000,$L$7)","v":100000000},0,32829.14,20455.009999999998,14720.88,36587.120000000003,{"$f":"84764+82484","v":167248},{"$f":"85612+83308","v":168920},{"$f":"87238+84892","v":172130},86164,0,699054.15]
[null,"1.3 Immobilisations",null,null,null,null,null,836,1810000,180710,900,"16225",1000000,100000000,0,0,0,0,0,0,0,0,0,0,0]
[null,"1.4 Fonctionnement",null,null,null,null,null,836,1810000,510012,900,"16225",1000000,100000000,0,176.19,35.97,1578.15,null,100000,100000,38150,0,0,239940.31]
[null,"1.5 Subventions et autres transferts de fonds",null,null,null,null,null,836,1810000,0,900,"52187",1000000,100000000,{"$f":"O30+O31","v":0},{"$f":"P30+P31","v":3720090.15},{"$f":"Q30+Q31","v":7068520.7699999996},8432198.6799999997,8848754.5,19648224,18728732,18654415,10987469,0,96088404.099999994]
[null,"1.5.1 - Inclus au périmètre comptable (apparentés)",null,null,null,null,null,836,1810000,"624002a",900,"52187",1000000,100000000,0,0,0,0,0,0,0,0,0,0,0]
[null,"1.5.2 - Hors périmètre comptable (non apparentés)",null,null,null,null,null,836,1810000,"624002na",900,"52187",1000000,100000000,0,3720090.15,7068520.7699999996,8432198.6799999997,8848754.5,19648224,18728732,18654415,10987469,0,96088404.099999994]
[null,"TOTAL",null,null,null,null,null,null,null,null,null,null,null,null,{"$f":"O25+O26+O27+O28+O29","v":164586},{"$f":"P25+P26+P27+P28+P29","v":3878621.05},{"$f":"Q25+Q26+Q27+Q28+Q29","v":7265504.4799999995},{"$f":"R25+R26+R27+R28+R29","v":8575451.6500000004},{"$f":"S25+S26+S27+S28+S29","v":9308632.4100000001},20844628,{"$f":"U25+U26+U27+U28+U29","v":19936100},19820973,11552325,{"$f":"X25+X26+X27+X28+X29","v":0},101346821.59]
[null,"Réservé au MDDELCC- DGRFM: "]
[null,"1.6 Amortissement",null,null,null,null,null,836,1810000,612200,900,"16225",{"$f":"IF($P$7=\"\",1000000,$P$7)","v":1000000},100000000,null,null,null,0,null,null,null,null,null,null,{"$f":"SUM(P34:X34)","v":0}]
[]
[]
[null,null,null,null,null,null,null,null,null,null,null,null,null,null,null,null,null,"2016-2017","2017-2018","2018-2019","2019-2020","2020-2021","2021-2022"]
[null,"Taux annuel de contribution de l'employeur (%)",null,null,null,null,null,null,null,null,null,null,null,null,null,null,null,0.123,0.123]
[]
[null," Instructions spécifiques à l'exercice de juillet 2018 "]
[null,"Date limite:"," 2018-07-20 "]
[null,"- Les prévisions doivent tenir compte de votre capacité réelle de mise en œuvre des actions"]
[null,"- Veuillez réviser et compléter les cases jaunes"]
[null,"- Gardez la fiche en format excel"]
[null,"- Pour toutes questions en cours d'exercice, veuillez écrire un courriel à l'adresse suivante: pierre-michel.brassard-lapointe@mddelcc.gouv.qc.ca spécifiant la question et le numéro de téléphone auquel nous pouvons vous rejoindre pour y répondre"]

{"sheet":"Feuil1","index":2,"n_rows":0,"n_cols":0,"rows_kept":0,"cut":false,"hidden":true,"merged":[]}

{"sheet":"Utilitaire","index":3,"n_rows":49,"n_cols":11,"rows_kept":49,"cut":false,"hidden":true,"merged":[[15,1,15,5],[15,8,15,9]]}
[]
[]
[null,"Mot de passe:","!1320PACC","Fiche verrouillée:","Oui - diffusion en ligne"]
[null,"Fiche validée:","Non"]
[null,"GES attendu:","Oui"]
[null,"Feuille accueil complètement remplie:","Non","Exercice de suivi:","2017-12-01"]
[null,"Statut action:",{"$f":"Accueil!D58","v":"en cours"}]
[null,"Feuille Utilitaire visible:","Non","Titre des Onglets:","PLAN D'ACTION 2013-2020 SUR LES CHANGEMENTS CLIMATIQUES"]
[null,"Dernière ligne de la zone de défilement de l'onglet détail des projets:",682]
[null,"nombre d'indicateurs approuvés:","6"]
[null,"Secteur:","PACC 2013-2020"]
[null,"Numéro de séquence de l'action:",20.010000000000002]
[]
[]
[null,"Listes Déroulantes"]
[null,"détail des projets",null,null,null,null,"indicateurs quantitatifs","DRFM COF","Accueil"]
[null,"Région Administrative","Statut","Classification","Type d'émissions","Info GES","Type d'indicateur","Exercice de suivi","Statut de l'action","Programmes","Fiche verrouillée"]
[null,"99-toutes les régions","AC-Actif","SU-Subvention","QC-Québec","Oui","minimum à atteindre","2013-2014-1","non démarrée","Non applicable","Oui - partenaire"]
[null,"01-Bas-Saint-Laurent","TE-Terminé","CF-Contrat fonctionnement","HQ-Hors-Québec","Non","maximum à ne pas dépasser","2013-2014-2","en élaboration","Autre programme","Oui - diffusion en ligne"]
[null,"02-Saguenay- Lac-Saint-Jean","AT-En attente","CI-Contrat immobilisation","ND-Non distingué",null,"binaire","2014-2015-1","en cours","Action-Climat Québec ","Non - BGFV"]
[null,"03-Capitale-Nationale","SU-Suspendu","CP-Contrat service professionnel",null,null,null,"2014-2015-2","terminée","Biomasse forestière résiduelle"]
[null,"04-Mauricie ","AN-Annulé","CT-Contrat service technique",null,null,null,"2015-2016-1","en suspens","Branché au travail"]
[null,"05-Estrie","AB-Abandonné","PI-Projet à l'interne",null,null,null,"2015-2016-2","abandonnée","Climat-municipalités"]
[null,"06-Montréal",null,"AU-Autre",null,null,null,"2016-2017-1",null,"ClimatSol-Plus"]
[null,"07-Outaouais",null,null,null,null,null,"2016-2017-2",null,"Écocamionnage"]
[null,"08-Abitibi-Témiscamingue",null,null,null,null,null,"2017-2018-1",null,"Écoperformance"]
[null,"09-Côte-Nord",null,null,null,null,null,"2017-2018-2",null,"PADTC - Programme d'aide au développement du transport collectif"]
[null,"10-Nord-du-Québec",null,null,null,null,null,"2018-2019-1",null,"PAGASTC - Programme d’aide gouvernementale à l’amélioration des services de transport en commun"]
[null,"11-Gaspésie-Iles-de-la-Madeleine",null,null,null,null,null,"2018-2019-2","Part de financement par le PACC","PAGTCP - Programme d’aide gouvernementale au transport collectif des personnes"]
[null,"12-Chaudières-Appalaches",null,null,null,null,null,"2019-2020-1","Variable","PAGTCR - Programme d'aide gouvernementale au transport collectif régional"]
[null,"13-Laval",null,null,null,null,null,"2019-2020-2",{"$f":"10 & \" %\"","v":"10 %"},"PETMAF - Programme d'aide à l'amélioration de l'efficacité du transport maritime, aérien et ferroviaire en matière de réduction des émissions de GES"]
[null,"14-Lanaudière",null,null,null,null,null,"2020-2021-1",{"$f":"20 & \" %\"","v":"20 %"},"PREGTI - Programme visant la réduction des émissions de GES par le développement du transport intermodal"]
[null,"15-Laurentides",null,null,null,null,null,"2020-2021-2",{"$f":"30 & \" %\"","v":"30 %"},"Prime-Vert"]
[null,"16-Montérégie",null,null,null,null,null,"2021-2022-1",{"$f":"40 & \" %\"","v":"40 %"},"Programme d’aide gouvernementale transitoire en matière de transport routier des personnes"]
[null,"17-Centre-du-Québec",null,null,null,null,null,"2021-2022-2",{"$f":"50 & \" %\"","v":"50 %"},"Programme de compostage pour petites municipalités"]
[null,null,null,null,null,null,null,"2022-2023-1",{"$f":"60 & \" %\"","v":"60 %"},"Programme de coopération climatique internationale"]
[null,null,null,null,null,null,null,"2022-2023-2",{"$f":"70 & \" %\"","v":"70 %"},"Programme de soutien à des projets de démonstration en transport collectif électrique"]
[null,null,null,null,null,null,null,"2023-2024-1",{"$f":"80 & \" %\"","v":"80 %"},"Programme de soutien à l'intégration de l'adaptation aux changements climatiques à la planification municipale"]
[null,null,null,null,null,null,null,"2023-2024-2",{"$f":"90 & \" %\"","v":"90 %"},"Programme de soutien aux municipalités dans la mise en place d'infrastructures de gestion durable des eaux de pluie à la source"]
[null,null,null,null,null,null,null,null,{"$f":"100 & \" %\"","v":"100 %"},"Programme de subventions à l’adaptation des taxis et des autocars interurbains pour le transport des personnes se déplaçant en fauteuil roulant"]
[null,null,null,null,null,null,null,null,null,"Programme de vitrine technologique pour les bâtiments et les solutions innovantes en bois"]
[null,null,null,null,null,null,null,null,null,"Projets de démonstration de taxis électriques"]
[null,null,null,null,null,null,null,null,null,"Promotion de l'électrification des transports"]
[null,null,null,null,null,null,null,null,null,"PTMOBC - Programme de traitement des matières organiques par biométhanisation et compostage"]
[null,null,null,null,null,null,null,null,null,"Rénoclimat-volet Chauffez vert"]
[null,null,null,null,null,null,null,null,null,"Roulez électrique"]
[null,null,null,null,null,null,null,null,null,"Soutien aux essais de fertilisation"]
[null,null,null,null,null,null,null,null,null,"Technoclimat"]
[null,null,null,null,null,null,null,null,null,"Véloce II"]

{"sheet":"Validation","index":4,"n_rows":9,"n_cols":6,"rows_kept":9,"cut":false,"hidden":true,"merged":[[2,1,2,3],[4,1,4,3],[3,2,3,5],[5,1,5,5],[1,1,1,4],[4,4,4,5]]}
[]
[null,{"$f":"Utilitaire!E8","v":"PLAN D'ACTION 2013-2020 SUR LES CHANGEMENTS CLIMATIQUES"}]
[null,{"$f":"\"Action \" & Accueil!D58","v":"Action en cours"}]
[null,{"$f":"Accueil!D55","v":"20.1"},{"$f":"Accueil!E55","v":"Conversion et efficacité énergétique dans les bâtiments commerciaux et institutionnels (Écoperformance)"}]
[null,"Ministère porteur:",null,null,{"$f":"Accueil!$D$66","v":"TEQ"}]
[null,"Rapport de validation de la fiche de suivi"]
[]
[]
["Code de couleur","Feuille concernée","no ligne","Description de la problématique","No d'erreur","Commentaires"]

{"sheet":"détail des projets","index":5,"n_rows":676,"n_cols":58,"rows_kept":676,"cut":false,"hidden":false,"merged":[[13,7,13,8],[15,7,15,8],[14,9,14,10],[14,7,14,8],[16,7,16,8],[22,56,23,56],[22,57,23,57],[13,9,13,10],[15,9,15,10],[16,9,16,10],[22,27,23,27],[22,28,23,28],[22,30,22,31],[22,25,23,25],[22,32,22,33],[22,10,23,10],[21,13,21,23],[21,27,21,56],[8,7,8,8],[6,7,6,8],[1,1,1,3],[7,7,7,8],[6,9,6,10],[7,9,7,10],[8,9,8,10],[3,2,3,5],[2,1,2,2],[4,1,4,2],[5,1,5,5],[672,27,672,33],[22,6,23,6],[22,12,23,12],[22,24,23,24],[22,8,23,8],[22,11,23,11],[22,7,23,7],[22,29,23,29],[674,1,674,3],[675,1,675,3],[672,1,672,3],[14,1,14,3],[22,1,23,1],[22,3,23,3],[22,5,23,5],[21,1,21,5],[22,2,23,2],[22,4,23,4],[673,1,673,3]]}
[]
[null,"PLAN D'ACTION 2013-2020 SUR LES CHANGEMENTS CLIMATIQUES"]
[null,{"$f":"\"Action \" & Accueil!D58","v":"Action en cours"}]
[null,{"$f":"Accueil!D55","v":"20.1"},{"$f":"Accueil!E55","v":"Conversion et efficacité énergétique dans les bâtiments commerciaux et institutionnels (Écoperformance)"}]
[null,"Ministère porteur:",null,{"$f":"Accueil!$D$66","v":"TEQ"}]
[null,"Détails et prévisions des dépenses par projet"]
[]
[]
[]
[]
[]
[]
[]
[]
[]
[]
[]
[]
[]
[null,null,null,null,null,null,null,null,null,null,null,null,null,null,null,null,null,null,null,null,null,null,null,null,null,null,null,null,null,null,null,null,null,null,{"$f":"IF(AND(MID(#REF!,1,9)=AI23,AI24=\"Non Vérifié\"),1,0)","v":{"$error":"#REF!"}},{"$f":"IF(AND(MID(#REF!,1,9)=AJ23,AJ24=\"Non Vérifié\"),1,0)","v":{"$error":"#REF!"}},{"$f":"IF(AND(MID(#REF!,1,9)=AK23,AK24=\"Non Vérifié\"),1,0)","v":{"$error":"#REF!"}},{"$f":"IF(AND(MID(#REF!,1,9)=AL23,AL24=\"Non Vérifié\"),1,0)","v":{"$error":"#REF!"}},{"$f":"IF(AND(MID(#REF!,1,9)=AM23,AM24=\"Non Vérifié\"),1,0)","v":{"$error":"#REF!"}},{"$f":"IF(AND(MID(#REF!,1,9)=AN23,AN24=\"Non Vérifié\"),1,0)","v":{"$error":"#REF!"}},{"$f":"IF(AND(MID(#REF!,1,9)=AO23,AO24=\"Non Vérifié\"),1,0)","v":{"$error":"#REF!"}},{"$f":"IF(AND(MID(#REF!,1,9)=AP23,AP24=\"Non Vérifié\"),1,0)","v":{"$error":"#REF!"}},{"$f":"IF(AND(MID(#REF!,1,9)=AQ23,AQ24=\"Non Vérifié\"),1,0)","v":{"$error":"#REF!"}},{"$f":"IF(AND(MID(#REF!,1,9)=AR23,AR24=\"Non Vérifié\"),1,0)","v":{"$error":"#REF!"}},{"$f":"IF(AND(MID(#REF!,1,9)=AS23,AS24=\"Non Vérifié\"),1,0)","v":{"$error":"#REF!"}},{"$f":"IF(AND(MID(#REF!,1,9)=AT23,AT24=\"Non Vérifié\"),1,0)","v":{"$error":"#REF!"}},{"$f":"IF(AND(MID(#REF!,1,9)=AU23,AU24=\"Non Vérifié\"),1,0)","v":{"$error":"#REF!"}},{"$f":"IF(AND(MID(#REF!,1,9)=AV23,AV24=\"Non Vérifié\"),1,0)","v":{"$error":"#REF!"}},{"$f":"IF(AND(MID(#REF!,1,9)=AW23,AW24=\"Non Vérifié\"),1,0)","v":{"$error":"#REF!"}},{"$f":"IF(AND(MID(#REF!,1,9)=AX23,AX24=\"Non Vérifié\"),1,0)","v":{"$error":"#REF!"}},{"$f":"IF(AND(MID(#REF!,1,9)=AY23,AY24=\"Non Vérifié\"),1,0)","v":{"$error":"#REF!"}},{"$f":"IF(AND(MID(#REF!,1,9)=AZ23,AZ24=\"Non Vérifié\"),1,0)","v":{"$error":"#REF!"}},{"$f":"IF(AND(MID(#REF!,1,9)=BA23,BA24=\"Non Vérifié\"),1,0)","v":{"$error":"#REF!"}},{"$f":"IF(AND(MID(#REF!,1,9)=BB23,BB24=\"Non Vérifié\"),1,0)","v":{"$error":"#REF!"}},{"$f":"IF(AND(MID(#REF!,1,9)=BC23,BC24=\"Non Vérifié\"),1,0)","v":{"$error":"#REF!"}},{"$f":"IF(AND(MID(#REF!,1,9)=BD23,BD24=\"Non Vérifié\"),1,0)","v":{"$error":"#REF!"}}]
[null,null,null,null,null,null,null,null,null,null,null,null,null,null,null,null,null,null,null,null,null,null,null,null,null,null,null,null,null,null,null,null,null,null,{"$f":"IF(AND(MID(#REF!,1,9)=AI23,AI24=\"Vérifié\"),1,0)","v":{"$error":"#REF!"}},{"$f":"IF(AND(MID(#REF!,1,9)=AJ23,AJ24=\"Vérifié\"),1,0)","v":{"$error":"#REF!"}},{"$f":"IF(AND(MID(#REF!,1,9)=AK23,AK24=\"Vérifié\"),1,0)","v":{"$error":"#REF!"}},{"$f":"IF(AND(MID(#REF!,1,9)=AL23,AL24=\"Vérifié\"),1,0)","v":{"$error":"#REF!"}},{"$f":"IF(AND(MID(#REF!,1,9)=AM23,AM24=\"Vérifié\"),1,0)","v":{"$error":"#REF!"}},{"$f":"IF(AND(MID(#REF!,1,9)=AN23,AN24=\"Vérifié\"),1,0)","v":{"$error":"#REF!"}},{"$f":"IF(AND(MID(#REF!,1,9)=AO23,AO24=\"Vérifié\"),1,0)","v":{"$error":"#REF!"}},{"$f":"IF(AND(MID(#REF!,1,9)=AP23,AP24=\"Vérifié\"),1,0)","v":{"$error":"#REF!"}},{"$f":"IF(AND(MID(#REF!,1,9)=AQ23,AQ24=\"Vérifié\"),1,0)","v":{"$error":"#REF!"}},{"$f":"IF(AND(MID(#REF!,1,9)=AR23,AR24=\"Vérifié\"),1,0)","v":{"$error":"#REF!"}},{"$f":"IF(AND(MID(#REF!,1,9)=AS23,AS24=\"Vérifié\"),1,0)","v":{"$error":"#REF!"}},{"$f":"IF(AND(MID(#REF!,1,9)=AT23,AT24=\"Vérifié\"),1,0)","v":{"$error":"#REF!"}},{"$f":"IF(AND(MID(#REF!,1,9)=AU23,AU24=\"Vérifié\"),1,0)","v":{"$error":"#REF!"}},{"$f":"IF(AND(MID(#REF!,1,9)=AV23,AV24=\"Vérifié\"),1,0)","v":{"$error":"#REF!"}},{"$f":"IF(AND(MID(#REF!,1,9)=AW23,AW24=\"Vérifié\"),1,0)","v":{"$error":"#REF!"}},{"$f":"IF(AND(MID(#REF!,1,9)=AX23,AX24=\"Vérifié\"),1,0)","v":{"$error":"#REF!"}},{"$f":"IF(AND(MID(#REF!,1,9)=AY23,AY24=\"Vérifié\"),1,0)","v":{"$error":"#REF!"}},{"$f":"IF(AND(MID(#REF!,1,9)=AZ23,AZ24=\"Vérifié\"),1,0)","v":{"$error":"#REF!"}},{"$f":"IF(AND(MID(#REF!,1,9)=BA23,BA24=\"Vérifié\"),1,0)","v":{"$error":"#REF!"}},{"$f":"IF(AND(MID(#REF!,1,9)=BB23,BB24=\"Vérifié\"),1,0)","v":{"$error":"#REF!"}},{"$f":"IF(AND(MID(#REF!,1,9)=BC23,BC24=\"Vérifié\"),1,0)","v":{"$error":"#REF!"}},{"$f":"IF(AND(MID(#REF!,1,9)=BD23,BD24=\"Vérifié\"),1,0)","v":{"$error":"#REF!"}}]
[null,"DÉTAILS DES PROJETS AUTORISÉS",null,null,null,null,null,null,null,null,null,null,null,"MONTANTS PROVENANT DU PACC 2013-2020 ($)",null,null,null,null,null,null,null,null,null,null,{"$f":"MONTH(#REF!)","v":{"$error":"#REF!"}},null,null,"DÉTAIL DES ÉMISSIONS DE GES RÉDUITES OU ÉVITÉES  (en tonnes CO2 éq.)"]
["No","VOLET OU THÉMATIQUE","NOM DU REQUÉRANT","NOM DU PROJET","NOMBRE DE PROJETS","RÉGION ADMINISTRATIVE","MUNICIPALITÉ","STATUT","CLASSIFICATION DU PROJET","MONTANT ENGAGÉ ($)","DATE DE L'ENGAGEMENT","DATE DU DERNIER VERSEMENT (prévu ou réalisé)","BUDGET TOTAL DU PROJET ($)","2013-2014","2014-2015","2015-2016","2016-2017","2017-2018","2018-2019","2019-2020","2020-2021","2021-2022","2022-2023","2023-2024","MONTANT DES DÉPENSES RÉELLES ($)","TOTAL DES DÉPENSES RÉELLES ET PRÉVUES ($)",null,"Type d'émission","émissions rapportées dans l'inventaire","Durée du projet (exemple: durée de vie de l'équipement)","Émissions",null,"Vérifiées",null,"2013-2014","2013-2014","2014-2015","2014-2015","2015-2016","2015-2016","2016-2017","2016-2017","2017-2018","2017-2018","2018-2019","2018-2019","2019-2020","2019-2020","2020-2021","2020-2021","2021-2022","2021-2022","2022-2023","2022-2023","2023-2024","2023-2024","Coût/tonne estimé","Coût/tonne estimé de la dernière année vérifiée"]
[null,null,null,null,null,null,null,null,null,"(convention signée, contrat, lettre de confirmation du ministre ou de son représentant ou lettre d'octroi)",null,null,null,"Réel","Réel","Réel","Réel","Réel","Prévu","Prévu","Prévu","Prévu","Prévu","Prévu",null,null,null,null,null,null,"Réduites","Évitées","Tierce partie","M/O","Vérifié","Non vérifié","Vérifié","Non vérifié","Vérifié","Non vérifié","Vérifié","Non vérifié","Vérifié","Non vérifié","Vérifié","Non vérifié","Vérifié","Non vérifié","Vérifié","Non vérifié","Vérifié","Non vérifié","Vérifié","Non vérifié","Vérifié","Non vérifié"]
[1,"Implantation","Collège Servite","Implantation de diverses mesures d'efficacité énergétique au Collège Servite (D-686).",1,"05-Estrie","Ayer's Cliff","TE","SU",87905.46,"2014-02-21","2014-04-01",300163.03999999998,null,87905.46,null,null,null,null,null,null,null,null,null,87905.46,87905.46,null,"QC-Québec","Oui",39.327476500000003,117.884034,0,"Non","Oui",4.1871378200000002,null,117.239859,null,117.561947,null,117.239859,null,117.239859,null,null,null,null,null,null,null,null,null,null,null,null,null,null,{"$f":"IF(SUM(AI25:BD25)=0,0,(Y25/SUMIF($AI$20:$BD$20,\"1\",AI25:BD25)))","v":{"$error":"#DIV/0!"}}]
[2,"Analyse","Ville de Montréal","Ville de Montréal lot 12",1,"06-Montréal","Montréal","TE","SU",45000,"2014-02-21","2015-03-19",2348336.7000000002,null,39138.94,null,null,null,null,null,null,null,null,null,39138.94,39138.94,null,"QC-Québec","Oui",15.0060778,0,0,"Non","Oui",null,null,null,null,null,null,null,null,null,null,null,null,null,null,null,null,null,null,null,null,null,null,null,0]
[3,"Implantation","Municipalité de Crabtree","Remplacement de la surfaceuse au propane par un équipement électrique.",1,"14-Lanaudière","Crabtree","AN","SU","                     -    $",null,"2017-03-23",163000,null,null,null,null,null,null,null,null,null,null,null,null,"                                                              -    $",null,"QC-Québec","Oui",20,0,5.9895730499999997,"Non","Oui",null,null,null,null,null,null,null,null,null,null,null,null,null,null,null,null,null,null,null,null,null,null,null,0]
[4,"Implantation","Ville de Montréal","Efficacité énergétique au Centre Étienne-Desmarteau",1,"06-Montréal","Montréal","AC","SU",243775.92,"2017-06-08","2019-08-14",604616.66,null,null,null,null,121917.96,60943.98,60943.98,null,null,null,null,60943.98,243775.92,null,"QC-Québec","Oui",22.462993600000001,404.11384600000002,0,"Non","Oui",0,null,0,null,0,null,0,null,0,null,null,null,null,null,null,null,null,null,null,null,null,null,null,0]
[5,"Analyse","Ville de Montréal","Analyse des mesures d'économies d'énergie au Centre du Plateau",1,"06-Montréal","Montréal","AN","SU","                     -    $","2014-04-03","2015-05-29",8171,null,null,null,null,null,null,null,null,null,null,null,null,"                                                              -    $",null,"QC-Québec","Oui",0,0,0,"Non","Oui",null,null,null,null,null,null,null,null,null,null,null,null,null,null,null,null,null,null,null,null,null,null,null,0]
[6,"Implantation","CCUM, s.e.c.","Système de récupération d'énergie des gaz de combustion",1,"06-Montréal","Montréal","TE","SU",1207275.48,"2014-05-23","2015-04-01",2405313.37,null,301818.87,905456.61,null,null,null,null,null,null,null,null,1207275.48,1207275.48,null,"QC-Québec","Oui",25,2414.55096,0,"Non","Oui",0,null,138.53980899999999,null,2407.9538299999999,null,2401.3566900000001,null,2401.3566900000001,null,null,null,null,null,null,null,null,null,null,null,null,null,null,{"$error":"#DIV/0!"}]
[7,"Analyse","CCUM, s.e.c.","Récupération des gaz de combustion par refroidissement mécanique",1,"06-Montréal","Montréal","AC","SU",5500,"2018-06-19","2018-09-14",22000,null,null,null,null,null,5500,null,null,null,null,null,null,5500,null,"QC-Québec","Oui",null,0,0,"Non","Oui",null,null,null,null,null,null,null,null,null,null,null,null,null,null,null,null,null,null,null,null,null,null,null,0]
[8,"Implantation","Métro Richelieu inc.","Metro Vaudreuil-Dorion",1,"16-Montérégie","Vaudreuil-Dorion","TE","SU",81291.199999999997,"2014-06-09","2015-03-30",85831.51,null,52123.71,null,null,null,null,null,null,null,null,null,52123.71,52123.71,null,"QC-Québec","Oui",15,90.487092099999998,0,"Non","Oui",0,null,82.822884799999997,null,90.239859600000003,null,89.992627100000007,null,89.992627100000007,null,null,null,null,null,null,null,null,null,null,null,null,null,null,{"$error":"#DIV/0!"}]
[9,"Implantation","Syndicat des copropriétaires d'administration 30 Berlioz enr.","Projet de services éconergétiques",1,"06-Montréal","Montréal","AN","SU","                     -    $",null,"2016-10-15",860100,null,null,null,null,null,null,null,null,null,null,null,null,"                                                              -    $",null,"QC-Québec","Oui",17.0305939,431.59741700000001,0,"Non","Oui",null,null,null,null,null,null,null,null,null,null,null,null,null,null,null,null,null,null,null,null,null,null,null,0]
[10,"Analyse","Ville de Montréal","Analyse des mesures d'économies d'énergie au Centre Côte-des-Neiges",1,"06-Montréal","Montréal","AN","SU","                     -    $","2014-06-03","2015-05-29",4204,null,null,null,null,null,null,null,null,null,null,null,null,"                                                              -    $",null,"QC-Québec","Oui",0,0,0,"Non","Oui",null,null,null,null,null,null,null,null,null,null,null,null,null,null,null,null,null,null,null,null,null,null,null,0]
[11,"Analyse","Ville de Montréal","Analyse des mesures d'économies d'énergie au Centre de formation des pompiers",1,"06-Montréal","Montréal","AN","SU","                     -    $","2014-06-03","2015-05-29",4381,null,null,null,null,null,null,null,null,null,null,null,null,"                                                              -    $",null,"QC-Québec","Oui",0,0,0,"Non","Oui",null,null,null,null,null,null,null,null,null,null,null,null,null,null,null,null,null,null,null,null,null,null,null,0]
[12,"Analyse","Ville de Montréal","Analyse des mesures d'économies d'énergie au Centre opérationnel de l'Est",1,"06-Montréal","Montréal","AN","SU","                     -    $","2014-06-03","2015-05-29",1339,null,null,null,null,null,null,null,null,null,null,null,null,"                                                              -    $",null,"QC-Québec","Oui",0,0,0,"Non","Oui",null,null,null,null,null,null,null,null,null,null,null,null,null,null,null,null,null,null,null,null,null,null,null,0]
[13,"Analyse","Ville de Montréal","Analyse des mesures d'économies d'énergie au Centre Roussin",1,"06-Montréal","Montréal","AN","SU","                     -    $","2014-06-03","2015-05-29",6001,null,null,null,null,null,null,null,null,null,null,null,null,"                                                              -    $",null,"QC-Québec","Oui",0,0,0,"Non","Oui",null,null,null,null,null,null,null,null,null,null,null,null,null,null,null,null,null,null,null,null,null,null,null,{"$f":"IF(SUM(AI37:BD37)=0,0,(Y37/SUMIF($AI$20:$BD$20,\"1\",AI37:BD37)))","v":0}]
[14,"Analyse","Ville de Montréal","Analyse des mesures d'économies d'énergie au Centre sportif Pierre-Charbonneau",1,"06-Montréal","Montréal","AN","SU","                     -    $","2014-06-05","2015-05-29",14089,null,null,null,null,null,null,null,null,null,null,null,null,"                                                              -    $",null,"QC-Québec","Oui",0,0,0,"Non","Oui",null,null,null,null,null,null,null,null,null,null,null,null,null,null,null,null,null,null,null,null,null,null,null,{"$f":"IF(SUM(AI38:BD38)=0,0,(Y38/SUMIF($AI$20:$BD$20,\"1\",AI38:BD38)))","v":0}]
[15,"Analyse","Ville de Montréal","Analyse des mesures d'économies d'énergie à la Maison de la culture Frontenac",1,"06-Montréal","Montréal","AN","SU","                     -    $","2014-06-03","2015-05-29",977,null,null,null,null,null,null,null,null,null,null,null,null,"                                                              -    $",null,"QC-Québec","Oui",0,0,0,"Non","Oui",null,null,null,null,null,null,null,null,null,null,null,null,null,null,null,null,null,null,null,null,null,null,null,{"$f":"IF(SUM(AI39:BD39)=0,0,(Y39/SUMIF($AI$20:$BD$20,\"1\",AI39:BD39)))","v":0}]
[16,"Analyse","CSSS de Memphrémagog","Étude énergétique de système de production de vapeur et des systèmes thermiques de l'établissement",1,"05-Estrie","Magog","TE","SU",10000,"2014-06-05","2014-12-04",135000,null,10000,null,null,null,null,null,null,null,null,null,10000,10000,null,"QC-Québec","Oui",24.044343900000001,0,0,"Non","Oui",null,null,null,null,null,null,null,null,null,null,null,null,null,null,null,null,null,null,null,null,null,null,null,{"$f":"IF(SUM(AI40:BD40)=0,0,(Y40/SUMIF($AI$20:$BD$20,\"1\",AI40:BD40)))","v":0}]
[17,"Implantation","CSSS de Memphrémagog","Mesures d’efficacité énergétique du système de production de vapeur de l’établissement",1,"05-Estrie","Magog","AN","SU","                     -    $",null,"2015-12-08",85000,null,null,null,null,null,null,null,null,null,null,null,null,"                                                              -    $",null,"QC-Québec","Oui",25,0,0,"Non","Oui",null,null,null,null,null,null,null,null,null,null,null,null,null,null,null,null,null,null,null,null,null,null,null,{"$f":"IF(SUM(AI41:BD41)=0,0,(Y41/SUMIF($AI$20:$BD$20,\"1\",AI41:BD41)))","v":0}]
[18,"Implantation","Métro Richelieu inc.","Super-C Sainte-Catherine",1,"03-Capitale-Nationale","Québec","RF","SU","                     -    $","2014-06-09","2017-01-04",81240.92,null,43977.61,null,-58636.81,null,null,null,null,null,null,null,null,"                                                              -    $",null,"QC-Québec","Oui",15,0.64392192000000004,0,"Non","Oui",null,null,null,null,null,null,null,null,null,null,null,null,null,null,null,null,null,null,null,null,null,null,null,{"$f":"IF(SUM(AI42:BD42)=0,0,(Y42/SUMIF($AI$20:$BD$20,\"1\",AI42:BD42)))","v":0}]
[19,"Implantation","Métro Richelieu inc.","Super C Canon (Saint-Canut)",1,"15-Laurentides","Mirabel","TE","SU",47643.26,"2014-07-02","2014-04-01",130603,null,47643.26,null,null,null,null,null,null,null,null,null,47643.26,47643.26,null,"QC-Québec","Oui",15,62.054715399999999,0,"Non","Oui",0,null,11.6988398,null,61.885167000000003,null,61.715618599999999,null,61.715618599999999,null,null,null,null,null,null,null,null,null,null,null,null,null,null,{"$f":"IF(SUM(AI43:BD43)=0,0,(Y43/SUMIF($AI$20:$BD$20,\"1\",AI43:BD43)))","v":{"$error":"#DIV/0!"}}]
[20,"Analyse","Entreprise Agostino inc.","Changement des chaudières au 2055 Saint-Mathieu à Montréal",1,"06-Montréal","Montréal","TE","SU",9250,"2014-07-07","2014-10-16",37000,null,9250,null,null,null,null,null,null,null,null,null,9250,9250,null,"QC-Québec","Oui",25,0,0,"Non","Oui",null,null,null,null,null,null,null,null,null,null,null,null,null,null,null,null,null,null,null,null,null,null,null,{"$f":"IF(SUM(AI44:BD44)=0,0,(Y44/SUMIF($AI$20:$BD$20,\"1\",AI44:BD44)))","v":0}]
[21,"Implantation","Entreprise Agostino inc.","Changement des chaudières à l'immeuble 2055 Saint-Mathieu",1,"06-Montréal","Montréal","TE","SU",247068.74,"2016-03-23","2016-04-01",490000,null,null,null,247068.74,null,null,null,null,null,null,null,247068.74,247068.74,null,"QC-Québec","Oui",25,197.65499,0,"Non","Oui",0,null,0,null,0,null,81.546184600000004,null,196.57490899999999,null,null,null,null,null,null,null,null,null,null,null,null,null,null,{"$f":"IF(SUM(AI45:BD45)=0,0,(Y45/SUMIF($AI$20:$BD$20,\"1\",AI45:BD45)))","v":{"$error":"#DIV/0!"}}]
[22,"Analyse","Commission scolaire des Hautes-Rivières","Analyse énergétique à l'École des Prés-Verts",1,"16-Montérégie","Saint-Jean-sur-Richelieu","TE","SU",6150,"2014-07-09","2014-09-23",24600,null,6150,null,null,null,null,null,null,null,null,null,6150,6150,null,"QC-Québec","Oui",19.397670699999999,0,0,"Non","Oui",null,null,null,null,null,null,null,null,null,null,null,null,null,null,null,null,null,null,null,null,null,null,null,{"$f":"IF(SUM(AI46:BD46)=0,0,(Y46/SUMIF($AI$20:$BD$20,\"1\",AI46:BD46)))","v":0}]
[23,"Analyse","Commission scolaire des Hautes-Rivières","Analyse énergétique à l'École des Prés-Verts",1,"16-Montérégie","Saint-Jean-sur-Richelieu","TE","SU",6150,"2014-07-09","2014-09-23",24600,null,6150,null,null,null,null,null,null,null,null,null,6150,6150,null,"QC-Québec","Oui",19.397670699999999,0,0,"Non","Oui",null,null,null,null,null,null,null,null,null,null,null,null,null,null,null,null,null,null,null,null,null,null,null,{"$f":"IF(SUM(AI47:BD47)=0,0,(Y47/SUMIF($AI$20:$BD$20,\"1\",AI47:BD47)))","v":0}]
[24,"Analyse","Commission scolaire des Hautes-Rivières","Analyse énergétique à l'École Aux-Quatre-Vents",1,"16-Montérégie","Saint-Jean-sur-Richelieu","TE","SU",5950,"2014-07-09","2014-09-23",23800,null,5950,null,null,null,null,null,null,null,null,null,5950,5950,null,"QC-Québec","Oui",15,0,0,"Non","Oui",null,null,null,null,null,null,null,null,null,null,null,null,null,null,null,null,null,null,null,null,null,null,null,{"$f":"IF(SUM(AI48:BD48)=0,0,(Y48/SUMIF($AI$20:$BD$20,\"1\",AI48:BD48)))","v":0}]
[25,"Analyse","Commission scolaire des Hautes-Rivières","Analyse énergétique à l'École Aux-Quatre-Vents",1,"16-Montérégie","Saint-Jean-sur-Richelieu","TE","SU",5950,"2014-07-09","2014-09-23",23800,null,5950,null,null,null,null,null,null,null,null,null,5950,5950,null,"QC-Québec","Oui",15,0,0,"Non","Oui",null,null,null,null,null,null,null,null,null,null,null,null,null,null,null,null,null,null,null,null,null,null,null,{"$f":"IF(SUM(AI49:BD49)=0,0,(Y49/SUMIF($AI$20:$BD$20,\"1\",AI49:BD49)))","v":0}]
[26,"Analyse","Commission scolaire de Saint-Hyacinthe","Modernisation de la chaufferie",1,"16-Montérégie","Saint-Marcel-de-Richelieu","TE","SU",2500,"2014-07-09","2014-10-02",5000,null,2500,null,null,null,null,null,null,null,null,null,2500,2500,null,"QC-Québec","Oui",25,41.202881900000001,0,"Non","Oui",null,null,null,null,null,null,null,null,null,null,null,null,null,null,null,null,null,null,null,null,null,null,null,{"$f":"IF(SUM(AI50:BD50)=0,0,(Y50/SUMIF($AI$20:$BD$20,\"1\",AI50:BD50)))","v":0}]
[27,"Implantation","Commission scolaire des Appalaches","École Savio - Conversion du mazout vers l'électricité",1,"05-Estrie","Stratford","TE","SU",33831.550000000003,"2014-07-18","2014-04-01",94721.32,null,33831.56,null,null,null,null,null,null,null,null,null,33831.56,33831.550000000003,null,"QC-Québec","Oui",25,0,27.065239099999999,"Non","Oui",0,null,12.3494397,null,26.9912904,null,26.9173416,null,26.9173416,null,null,null,null,null,null,null,null,null,null,null,null,null,null,{"$f":"IF(SUM(AI51:BD51)=0,0,(Y51/SUMIF($AI$20:$BD$20,\"1\",AI51:BD51)))","v":{"$error":"#DIV/0!"}}]
[28,"Analyse","Commission scolaire des Hautes-Rivières","École Marguerite-Bourgeoys - Étude de faisabilité détaillée pour l'implantation de mesures d'efficacité énergétique",1,"16-Montérégie","Saint-Jean-sur-Richelieu","TE","SU",4750,"2014-07-18","2014-11-28",67519.11,null,4447.87,null,null,null,null,null,null,null,null,null,4447.87,4447.87,null,"QC-Québec","Oui",15.0117502,74.260457799999998,0,"Non","Oui",null,null,null,null,0.24460343000000001,null,4.3461173899999999,null,4.3461173899999999,null,null,null,null,null,null,null,null,null,null,null,null,null,null,{"$f":"IF(SUM(AI52:BD52)=0,0,(Y52/SUMIF($AI$20:$BD$20,\"1\",AI52:BD52)))","v":{"$error":"#DIV/0!"}}]
[29,"Analyse","Commission scolaire des Hautes-Rivières","École Marguerite-Bourgeoys - Étude de faisabilité détaillée pour l'implantation de mesures d'efficacité énergétique",1,"16-Montérégie","Saint-Jean-sur-Richelieu","TE","SU",4750,"2014-07-18","2014-11-28",67519.11,null,4447.87,null,null,null,null,null,null,null,null,null,4447.87,4447.87,null,"QC-Québec","Oui",15.0117502,4.3699971599999996,0,"Non","Oui",null,null,null,null,0.24460343000000001,null,4.3461173899999999,null,4.3461173899999999,null,null,null,null,null,null,null,null,null,null,null,null,null,null,{"$f":"IF(SUM(AI53:BD53)=0,0,(Y53/SUMIF($AI$20:$BD$20,\"1\",AI53:BD53)))","v":{"$error":"#DIV/0!"}}]
[30,"Implantation","Pourvoirie Mirage inc.","Conversion des équipements à l'électricité et installation des équipements requis",1,"08-Abitibi-Témiscamingue","Poularies","TE","SU",1051941.06,"2015-10-02","2017-05-08",1945000.04,null,null,262985.26,525970.52,262985.28000000003,null,null,null,null,null,null,1051941.06,1051941.06,null,"QC-Québec","Oui",50,0,956.18363199999999,"Non","Oui",0,null,0,null,0,null,201.16431600000001,null,950.95858499999997,null,null,null,null,null,null,null,null,null,null,null,null,null,null,{"$f":"IF(SUM(AI54:BD54)=0,0,(Y54/SUMIF($AI$20:$BD$20,\"1\",AI54:BD54)))","v":{"$error":"#DIV/0!"}}]
[31,"Analyse","Commission scolaire des Hautes-Rivières","Centre St-Edmond - Étude de faisabilité détaillée pour l'implantation de mesures d'efficacité énergétique",1,"16-Montérégie","Saint-Jean-sur-Richelieu","TE","SU",5100,"2014-07-07","2014-12-05",316500,null,5034.54,null,null,null,null,null,null,null,null,null,5034.54,5034.54,null,"QC-Québec","Oui",20,10.870322,0,"Non","Oui",null,null,null,null,5.4054606700000001,null,10.8109213,null,10.8109213,null,null,null,null,null,null,null,null,null,null,null,null,null,null,{"$f":"IF(SUM(AI55:BD55)=0,0,(Y55/SUMIF($AI$20:$BD$20,\"1\",AI55:BD55)))","v":{"$error":"#DIV/0!"}}]
[32,"Analyse","8697841 Canada inc.","Édifice Wellington-Eddy - Étude visant à identifier des mesures d'efficacité énergétique possibles et à évaluer leur faisabilité technique et économique",1,"07-Outaouais","Gatineau","TE","SU",6650,"2014-07-02","2015-02-24",53200,null,6650,null,null,null,null,null,null,null,null,null,6650,6650,null,"QC-Québec","Oui",0,0,0,"Non","Oui",null,null,null,null,null,null,null,null,null,null,null,null,null,null,null,null,null,null,null,null,null,null,null,{"$f":"IF(SUM(AI56:BD56)=0,0,(Y56/SUMIF($AI$20:$BD$20,\"1\",AI56:BD56)))","v":0}]
[33,"Implantation","8697841 Canada inc.","Édifice Wellington-Eddy -  Implantation de mesures d'efficacité énergétique",1,"07-Outaouais","Gatineau","TE","SU",227209.59,"2015-06-09","2015-05-05",975000,null,null,227209.59,null,null,null,null,null,null,null,null,227209.59,227209.59,null,"QC-Québec","Oui",30,401.05031000000002,0,"Non","Oui",0,null,0,null,282.70759600000002,null,398.85877799999997,null,398.85877799999997,null,null,null,null,null,null,null,null,null,null,null,null,null,null,{"$f":"IF(SUM(AI57:BD57)=0,0,(Y57/SUMIF($AI$20:$BD$20,\"1\",AI57:BD57)))","v":{"$error":"#DIV/0!"}}]
[34,"Analyse","Centre de santé et de services sociaux de Témiscouata","Hôpital de Notre-Dame-du-Lac",1,"01-Bas-Saint-Laurent","Témiscouata-sur-le-Lac","TE","SU",25000,"2014-07-09","2015-03-30",207492,null,25000,null,null,null,null,null,null,null,null,null,25000,25000,null,"QC-Québec","Oui",39.952156100000003,0,0,"Non","Oui",null,null,null,null,null,null,null,null,null,null,null,null,null,null,null,null,null,null,null,null,null,null,null,{"$f":"IF(SUM(AI58:BD58)=0,0,(Y58/SUMIF($AI$20:$BD$20,\"1\",AI58:BD58)))","v":0}]
[35,"Implantation","CISSS du Bas-Saint-Laurent","Projet d'implantation de mesures d'efficacité énergétique",1,"01-Bas-Saint-Laurent","Témiscouata-sur-le-Lac","AC","SU",48869.14,"2016-06-20","2019-05-15",1510605,null,null,null,12217.28,12217.28,12217.28,12217.3,null,null,null,null,36651.839999999997,48869.14,null,"QC-Québec","Oui",39.988464399999998,39.095314899999998,0,"Non","Oui",0,null,0,null,0,null,0,null,0,null,null,null,null,null,null,null,null,null,null,null,null,null,null,{"$f":"IF(SUM(AI59:BD59)=0,0,(Y59/SUMIF($AI$20:$BD$20,\"1\",AI59:BD59)))","v":0}]
[36,"Implantation","Pourvoirie Domaine Lounan","Conversion des équipements à l'électricité et installation des équipements requis",1,"15-Laurentides","Mont-Saint-Michel","TE","SU",323369.56,"2015-09-18","2017-03-06",523838.57,null,null,161684.78,122340.13,null,null,null,null,null,null,null,284024.90999999997,284024.90999999997,null,"QC-Québec","Oui",50,0,227.21993000000001,"Non","Oui",0,null,0,null,0,null,187.48748399999999,null,225.97829100000001,null,null,null,null,null,null,null,null,null,null,null,null,null,null,{"$f":"IF(SUM(AI60:BD60)=0,0,(Y60/SUMIF($AI$20:$BD$20,\"1\",AI60:BD60)))","v":{"$error":"#DIV/0!"}}]
[37,"Implantation","Corporation du service de recherche et d'expertise en transformation des produits forestiers de l'Est du Québec (SEREX)","Remplacement d'une chaudière mazout léger par une chaudière électrique.",1,"01-Bas-Saint-Laurent","Amqui","TE","SU",17001.89,"2014-07-08","2014-04-01",23150,null,16761.89,null,null,null,null,null,null,null,null,null,16761.89,16761.89,null,"QC-Québec","Oui",30,0,19.769778800000001,"Non","Oui",0,null,14.044105200000001,null,19.7157631,null,19.661747299999998,null,19.661747299999998,null,null,null,null,null,null,null,null,null,null,null,null,null,null,{"$f":"IF(SUM(AI61:BD61)=0,0,(Y61/SUMIF($AI$20:$BD$20,\"1\",AI61:BD61)))","v":{"$error":"#DIV/0!"}}]
[38,"Implantation","Commission scolaire Marguerite-Bourgeoys","Agrandissement École Saint-Laurent",1,"06-Montréal","Montréal","TE","SU",48664.54,"2014-07-02","2016-03-31",132379.62,null,36498.42,10504.12,null,null,null,null,null,null,null,null,47002.54,34836.42,null,"QC-Québec","Oui",29.798704099999998,27.8691326,0,"Non","Oui",0,null,5.1017264600000001,null,27.792987400000001,null,27.7168423,null,27.7168423,null,null,null,null,null,null,null,null,null,null,null,null,null,null,{"$f":"IF(SUM(AI62:BD62)=0,0,(Y62/SUMIF($AI$20:$BD$20,\"1\",AI62:BD62)))","v":{"$error":"#DIV/0!"}}]
[39,"Implantation","Université de Sherbrooke","Pavillons C1 et C2 - Implantation de mesures en efficacité énergétique",1,"05-Estrie","Sherbrooke","TE","SU",360615.44,"2015-02-18","2016-05-30",663695.94999999995,null,270461.58,null,-10097.17,null,null,null,null,null,null,null,270461.58,260364.41,null,"QC-Québec","Oui",25,819.87127199999998,0,"Non","Oui",0,null,336.01281599999999,null,817.63118599999996,null,815.39110100000005,null,815.39110100000005,null,null,null,null,null,null,null,null,null,null,null,null,null,null,{"$f":"IF(SUM(AI63:BD63)=0,0,(Y63/SUMIF($AI$20:$BD$20,\"1\",AI63:BD63)))","v":{"$error":"#DIV/0!"}}]
[40,"Implantation","Université de Sherbrooke","Projet d'efficacité énergétique et intégration d'une boucle géothermique - Pavillon C3",1,"05-Estrie","Sherbrooke","AC","SU",176272.48,"2018-04-27","2019-04-05",440000,null,null,null,null,null,132204.35999999999,44068.12,null,null,null,null,132204.35999999999,176272.48,null,"QC-Québec","Oui",20,52.900959999999998,299.644004,"Non","Oui",0,null,0,null,0,null,0,null,0,null,null,null,null,null,null,null,null,null,null,null,null,null,null,{"$f":"IF(SUM(AI64:BD64)=0,0,(Y64/SUMIF($AI$20:$BD$20,\"1\",AI64:BD64)))","v":0}]
[41,"Implantation","Université de Sherbrooke","Projet de récupération de chaleur aux Pavillons D1 et D2",1,"05-Estrie","Sherbrooke","AC","SU",446762.98,"2018-07-03","2019-08-01",1894729,null,null,null,null,null,335072.21999999997,111690.76,null,null,null,null,null,446762.98,null,"QC-Québec","Oui",20,893.52595299999996,0,"Non","Oui",0,null,0,null,0,null,0,null,0,null,null,null,null,null,null,null,null,null,null,null,null,null,null,{"$f":"IF(SUM(AI65:BD65)=0,0,(Y65/SUMIF($AI$20:$BD$20,\"1\",AI65:BD65)))","v":0}]
[42,"Implantation","9147-4882 Québec inc. (Auberge du 31)","Conversion des équipements à l'électricité",1,"02-Saguenay─Lac-Saint-Jean","Saguenay","AC","SU",265421.65999999997,"2015-09-18","2015-04-01",668000,null,null,265421.67,null,null,null,null,null,null,null,null,265421.67,25211.25,null,"QC-Québec","Oui",40,0,188.73881,"Non","Oui",0,null,0,null,0,null,0,null,0,null,null,null,null,null,null,null,null,null,null,null,null,null,null,{"$f":"IF(SUM(AI66:BD66)=0,0,(Y66/SUMIF($AI$20:$BD$20,\"1\",AI66:BD66)))","v":0}]
[43,"Implantation","Centre de santé et de services sociaux de la Vallée-de-la-Gatineau","Projet d'efficacité énergétique - Centre d'hébergement de Gracefield",1,"07-Outaouais","Gracefield","TE","SU",149393.17000000001,"2014-07-09","2015-04-01",595602,null,37348.29,112044.88,null,null,null,null,null,null,null,null,149393.17000000001,149393.17000000001,null,"QC-Québec","Oui",34.839473699999999,0,117.023205,"Non","Oui",0,null,0,null,90.485155599999999,null,116.383734,null,116.383734,null,null,null,null,null,null,null,null,null,null,null,null,null,null,{"$f":"IF(SUM(AI67:BD67)=0,0,(Y67/SUMIF($AI$20:$BD$20,\"1\",AI67:BD67)))","v":{"$error":"#DIV/0!"}}]
[44,"Analyse","Cégep du Vieux Montréal","Analyse des mesures d'économies d'énergie",1,"06-Montréal","Montréal","TE","SU",25000,"2014-09-16","2015-03-24",345156,null,25000,null,null,null,null,null,null,null,null,null,25000,25000,null,"QC-Québec","Oui",29.027853,393.07228400000002,0,"Non","Oui",null,null,null,null,null,null,null,null,null,null,null,null,null,null,null,null,null,null,null,null,null,null,null,{"$f":"IF(SUM(AI68:BD68)=0,0,(Y68/SUMIF($AI$20:$BD$20,\"1\",AI68:BD68)))","v":0}]
[45,"Implantation","Cégep du Vieux Montréal","Implantation de mesures d'efficacité énergétique au Cégep du Vieux Montréal",1,"06-Montréal","Montréal","AC","SU",535986.36,"2016-07-25","2018-10-31",1305984.05,null,null,null,133996.59,267993.18,133996.59,null,null,null,null,null,401989.77,535986.36,null,"QC-Québec","Oui",28.291385699999999,430.16147799999999,0,"Non","Oui",0,null,0,null,0,null,0,null,0,null,null,null,null,null,null,null,null,null,null,null,null,null,null,{"$f":"IF(SUM(AI69:BD69)=0,0,(Y69/SUMIF($AI$20:$BD$20,\"1\",AI69:BD69)))","v":0}]
[46,"Analyse","CHU de Québec","Analyse des mesures d'économies d'énergie à l’hôpital Saint-François d’Assise",1,"03-Capitale-Nationale","Québec","TE","SU",25000,"2014-07-15","2015-02-25",779667,null,25000,null,null,null,null,null,null,null,null,null,25000,25000,null,"QC-Québec","Oui",26.3551292,0,0,"Non","Oui",null,null,null,null,null,null,null,null,null,null,null,null,null,null,null,null,null,null,null,null,null,null,null,{"$f":"IF(SUM(AI70:BD70)=0,0,(Y70/SUMIF($AI$20:$BD$20,\"1\",AI70:BD70)))","v":0}]
[47,"Implantation","CHU de Québec - Université Laval","Projet d'implantation de mesures d'efficacité énergétique à l'Hôpital Saint-François d'Assise",1,"03-Capitale-Nationale","Québec","AC","SU",2032576.27,"2016-01-11","2018-08-30",5543173.1100000003,null,null,508144.07,508144.07,508144.07,508144.06,null,null,null,null,null,1524432.21,2032576.27,null,"QC-Québec","Oui",26.4805679,4065.15254,0,"Non","Oui",0,null,0,null,0,null,0,null,0,null,null,null,null,null,null,null,null,null,null,null,null,null,null,{"$f":"IF(SUM(AI71:BD71)=0,0,(Y71/SUMIF($AI$20:$BD$20,\"1\",AI71:BD71)))","v":0}]
[48,"Analyse","Commission scolaire du Val-des-Cerfs","Analyse énergétique chez CFP Brome - Boucherie",1,"16-Montérégie","Cowansville","TE","SU",5006,"2014-07-14","2015-03-30",30036,null,5006,null,null,null,null,null,null,null,null,null,5006,5006,null,"QC-Québec","Oui",20.352769899999998,0,0,"Non","Oui",null,null,null,null,null,null,null,null,null,null,null,null,null,null,null,null,null,null,null,null,null,null,null,{"$f":"IF(SUM(AI72:BD72)=0,0,(Y72/SUMIF($AI$20:$BD$20,\"1\",AI72:BD72)))","v":0}]
[49,"Analyse","Propriétés DCV s.e.c.","Projet d'efficacité énergétique et de modernisation des équipements électro-mécaniques",1,"06-Montréal","Montréal","TE","SU",24600,"2014-07-29","2014-11-12",250000,null,24600,null,null,null,null,null,null,null,null,null,24600,24600,null,"QC-Québec","Oui",22.553840600000001,4590.6369800000002,0,"Non","Oui",null,null,null,null,null,null,null,null,null,null,null,null,null,null,null,null,null,null,null,null,null,null,null,{"$f":"IF(SUM(AI73:BD73)=0,0,(Y73/SUMIF($AI$20:$BD$20,\"1\",AI73:BD73)))","v":0}]
[50,"Implantation","Immeuble De Liège Esplanade inc.","Remplacement des fenêtres par des fenêtres à haut rendement énergétique.",1,"06-Montréal","Montréal","RF","SU","                     -    $",null,"2014-12-31",1198000,null,null,null,null,null,null,null,null,null,null,null,null,"                                                              -    $",null,"QC-Québec","Oui",30,404.32366000000002,0,"Non","Oui",null,null,null,null,null,null,null,null,null,null,null,null,null,null,null,null,null,null,null,null,null,null,null,{"$f":"IF(SUM(AI74:BD74)=0,0,(Y74/SUMIF($AI$20:$BD$20,\"1\",AI74:BD74)))","v":0}]
[51,"Implantation","Ville de Montréal","Centre Saint-Charles - Récupération chaleur sur système ammoniac",1,"06-Montréal","Montréal","AC","SU",192885.25,"2014-12-10","2015-04-01",538993.71,null,48221.31,144663.93,null,null,null,null,null,null,null,null,192885.24,192885.25,null,"QC-Québec","Oui",30,189.10380699999999,0,"Non","Oui",0,null,0,null,0,null,0,null,0,null,null,null,null,null,null,null,null,null,null,null,null,null,null,{"$f":"IF(SUM(AI75:BD75)=0,0,(Y75/SUMIF($AI$20:$BD$20,\"1\",AI75:BD75)))","v":0}]
[52,"Implantation","CSSS Domaine-du-Roy","Projet d’efficacité énergétique à l'Hôtel-Dieu de Roberval",1,"02-Saguenay─Lac-Saint-Jean","Roberval","TE","SU",1513883.57,"2015-01-14","2015-04-01",6669947,null,756941.78,756941.79,null,null,null,null,null,null,null,null,1513883.57,1513883.57,null,"QC-Québec","Oui",30,3669.7098799999999,0,"Non","Oui",0,null,0,null,2125.6242999999999,null,3649.6568200000002,null,3649.6568200000002,null,null,null,null,null,null,null,null,null,null,null,null,null,null,{"$f":"IF(SUM(AI76:BD76)=0,0,(Y76/SUMIF($AI$20:$BD$20,\"1\",AI76:BD76)))","v":{"$error":"#DIV/0!"}}]
[53,"Implantation","Ville de Montréal","Conversion du mazout à la Cavalerie du SPVM",1,"06-Montréal","Montréal","AN","SU","                     -    $",null,"2014-10-15",147000,null,null,null,null,null,null,null,null,null,null,null,null,"                                                              -    $",null,"QC-Québec","Oui",19.497795100000001,4.6121322600000001,41.306702000000001,"Non","Oui",null,null,null,null,null,null,null,null,null,null,null,null,null,null,null,null,null,null,null,null,null,null,null,{"$f":"IF(SUM(AI77:BD77)=0,0,(Y77/SUMIF($AI$20:$BD$20,\"1\",AI77:BD77)))","v":0}]
[54,"Implantation","Ville de Montréal","Conversion du mazout vers l'électricité",1,"06-Montréal","Montréal","AN","SU",48375,"2016-01-06","2017-10-31",64500,null,null,null,null,null,null,null,null,null,null,null,"                                              -    $","                                                              -    $",null,"QC-Québec","Oui",20,0,47.8528868,"Non","Oui",null,null,null,null,null,null,null,null,null,null,null,null,null,null,null,null,null,null,null,null,null,null,null,{"$f":"IF(SUM(AI78:BD78)=0,0,(Y78/SUMIF($AI$20:$BD$20,\"1\",AI78:BD78)))","v":0}]
[55,"Implantation","Ville de Montréal","Conversion du mazout au Chalet du Parc du Mont-Royal",1,"06-Montréal","Montréal","RF","SU","                     -    $",null,"2015-08-31",263400,null,null,null,null,null,null,null,null,null,null,null,null,"                                                              -    $",null,"QC-Québec","Oui",20,0,129.35782800000001,"Non","Oui",null,null,null,null,null,null,null,null,null,null,null,null,null,null,null,null,null,null,null,null,null,null,null,{"$f":"IF(SUM(AI79:BD79)=0,0,(Y79/SUMIF($AI$20:$BD$20,\"1\",AI79:BD79)))","v":0}]
[56,"Implantation","Ville de Montréal","Conversion du mazout au Garage du Parc du Mont-Royal",1,"06-Montréal","Montréal","RF","SU","                     -    $",null,"2014-10-15",238230,null,null,null,null,null,null,null,null,null,null,null,null,"                                                              -    $",null,"QC-Québec","Oui",20,0,87.485021900000007,"Non","Oui",null,null,null,null,null,null,null,null,null,null,null,null,null,null,null,null,null,null,null,null,null,null,null,{"$f":"IF(SUM(AI80:BD80)=0,0,(Y80/SUMIF($AI$20:$BD$20,\"1\",AI80:BD80)))","v":0}]
[57,"Implantation","Ville de Montréal","Conversion du système de chauffage à la biénergie.",1,"06-Montréal","Montréal","AC","SU",26972.99,"2016-10-27","2018-04-02",58443,null,null,null,6743.25,13486.5,6743.24,null,null,null,null,null,20229.75,26972.99,null,"QC-Québec","Oui",25,0,73.935208299999999,"Non","Oui",0,null,0,null,0,null,0,null,0,null,null,null,null,null,null,null,null,null,null,null,null,null,null,{"$f":"IF(SUM(AI81:BD81)=0,0,(Y81/SUMIF($AI$20:$BD$20,\"1\",AI81:BD81)))","v":0}]
[58,"Implantation","Collège Sainte-Anne de Lachine","Conversion du système de chauffage au gaz naturel vers l'aérothermie",1,"06-Montréal","Montréal","TE","SU",458179,"2014-11-12","2014-04-01",855700,null,458179,null,null,null,null,null,null,null,null,null,458179,458179,null,"QC-Québec","Oui",20,366.54319700000002,0,"Non","Oui",0,null,28.041556,null,365.54171300000002,null,364.54022800000001,null,364.54022800000001,null,null,null,null,null,null,null,null,null,null,null,null,null,null,{"$f":"IF(SUM(AI82:BD82)=0,0,(Y82/SUMIF($AI$20:$BD$20,\"1\",AI82:BD82)))","v":{"$error":"#DIV/0!"}}]
[59,"Implantation","Pourvoirie du Lac Beauregard","Construction d'une ligne électrique",1,"15-Laurentides","Mont-Laurier","TE","SU",256696.38,"2015-09-23","2017-05-23",562193,null,null,192522.3,null,35621.339999999997,null,null,null,null,null,null,228143.64,228143.64,null,"QC-Québec","Oui",50,0,182.514916,"Non","Oui",0,null,0,null,27.925779500000001,null,181.51756700000001,null,181.51756700000001,null,null,null,null,null,null,null,null,null,null,null,null,null,null,{"$f":"IF(SUM(AI83:BD83)=0,0,(Y83/SUMIF($AI$20:$BD$20,\"1\",AI83:BD83)))","v":{"$error":"#DIV/0!"}}]
[60,"Implantation","Ville de Montréal","Rénovation et mise aux normes de l'aréna Roberto-Luongo",1,"06-Montréal","Montréal","AC","SU",159808.35,"2015-02-24","2015-04-01",300780.75,null,null,199760.44,null,null,null,null,null,null,null,null,199760.44,159808.35,null,"QC-Québec","Oui",15,173.27021999999999,0,"Non","Oui",0,null,0,null,0,null,0,null,0,null,null,null,null,null,null,null,null,null,null,null,null,null,null,{"$f":"IF(SUM(AI84:BD84)=0,0,(Y84/SUMIF($AI$20:$BD$20,\"1\",AI84:BD84)))","v":0}]
[61,"Implantation","Collège d'enseignement général et professionel de Trois-Rivières","Projet d'efficacité énergétique - Pavillon des Sciences",1,"04-Mauricie","Trois-Rivières","TE","SU",611075.68999999994,"2015-03-11","2015-04-01",1733511.9,null,305537.84999999998,305537.84000000003,null,null,null,null,null,null,null,null,611075.68999999994,611075.68999999994,null,"QC-Québec","Oui",29.894018200000001,504.480841,0,"Non","Oui",0,null,164.025192,null,503.10247800000002,null,501.72411499999998,null,501.72411499999998,null,null,null,null,null,null,null,null,null,null,null,null,null,null,{"$f":"IF(SUM(AI85:BD85)=0,0,(Y85/SUMIF($AI$20:$BD$20,\"1\",AI85:BD85)))","v":{"$error":"#DIV/0!"}}]
[62,"Analyse","Soltron Realty LP","Analyse de mesures d'efficacité énergétique",1,"06-Montréal","Montréal","TE","SU",19000,"2014-09-16","2014-12-08",133800,null,19000,null,null,null,null,null,null,null,null,null,19000,19000,null,"QC-Québec","Oui",30.822223699999999,76.586123299999997,0,"Non","Oui",null,null,null,null,null,null,57.334966600000001,null,76.167619900000005,null,null,null,null,null,null,null,null,null,null,null,null,null,null,{"$f":"IF(SUM(AI86:BD86)=0,0,(Y86/SUMIF($AI$20:$BD$20,\"1\",AI86:BD86)))","v":{"$error":"#DIV/0!"}}]
[63,"Implantation","CSSS Vallée-de-la-Gatineau","Projet d'efficacité énergétique - Hôpital de Maniwaki",1,"07-Outaouais","Maniwaki","TE","SU",465421.59,"2014-12-10","2015-04-01",2384417.98,null,349066.19,116355.4,null,null,null,null,null,null,null,null,465421.59,465421.59,null,"QC-Québec","Oui",35,516.86136299999998,0,"Non","Oui",0,null,0,null,515.44917399999997,null,514.03698399999996,null,514.03698399999996,null,null,null,null,null,null,null,null,null,null,null,null,null,null,{"$f":"IF(SUM(AI87:BD87)=0,0,(Y87/SUMIF($AI$20:$BD$20,\"1\",AI87:BD87)))","v":{"$error":"#DIV/0!"}}]
[64,"Analyse","Ville de Saint-Jean-sur-Richelieu","Étude spécifique - Nouveau système de ventilation et de récupération d'énergie",1,"16-Montérégie","Saint-Jean-sur-Richelieu","TE","SU",7200,"2015-01-08","2015-03-16",58871.26,null,6435.63,null,null,null,null,null,null,null,null,null,6435.63,6435.63,null,"QC-Québec","Oui",20,31.0396383,0,"Non","Oui",null,null,null,null,null,null,null,null,20.898553700000001,null,null,null,null,null,null,null,null,null,null,null,null,null,null,{"$f":"IF(SUM(AI88:BD88)=0,0,(Y88/SUMIF($AI$20:$BD$20,\"1\",AI88:BD88)))","v":{"$error":"#DIV/0!"}}]
[65,"Analyse","Commission scolaire des Hautes-Rivières","Analyse de mesures d'efficacité énergétique",1,"16-Montérégie","Lacolle","TE","SU",6600,"2014-12-22","2015-03-26",88788,null,5447,null,null,null,null,null,null,null,null,null,5447,5447,null,"QC-Québec","Oui",25,24.360230600000001,0,"Non","Oui",null,null,null,null,5.9902206299999996,null,24.227114499999999,null,24.227114499999999,null,null,null,null,null,null,null,null,null,null,null,null,null,null,{"$f":"IF(SUM(AI89:BD89)=0,0,(Y89/SUMIF($AI$20:$BD$20,\"1\",AI89:BD89)))","v":{"$error":"#DIV/0!"}}]
[66,"Implantation","Centre intégré de santé et de services sociaux de la Montérégie-Centre","Projet d'efficacité énergétique de l'agrandissement de l'Hôpital du Haut-Richelieu–Rouville",1,"16-Montérégie","Saint-Jean-sur-Richelieu","AC","SU",371038.83,"2014-09-24","2018-06-29",1096610.75,null,92759.71,92759.71,null,null,177390.38,null,null,null,null,null,185519.42,270150.09000000003,null,"QC-Québec","Oui",30,541.43482200000005,0,"Non","Oui",0,null,0,null,0,null,0,null,0,null,null,null,null,null,null,null,null,null,null,null,null,null,null,{"$f":"IF(SUM(AI90:BD90)=0,0,(Y90/SUMIF($AI$20:$BD$20,\"1\",AI90:BD90)))","v":0}]
[67,"Analyse","Commission scolaire English-Montréal","Étude d'efficacité énergétique pour 17 bâtiments",1,"06-Montréal","Montréal","TE","SU",149396.5,"2015-02-24","2015-03-31",11680258,null,149396.5,null,null,null,null,null,null,null,null,null,149396.5,149396.5,null,"QC-Québec","Oui",38.450714099999999,0,0,"Non","Oui",null,null,null,null,null,null,null,null,null,null,null,null,null,null,null,null,null,null,null,null,null,null,null,{"$f":"IF(SUM(AI91:BD91)=0,0,(Y91/SUMIF($AI$20:$BD$20,\"1\",AI91:BD91)))","v":0}]
[68,"Analyse","Commission scolaire English-Montréal","Étude d'efficacité énergétique pour 17 bâtiments",1,"06-Montréal","Montréal","TE","SU",149396.5,"2015-02-24","2015-03-31",11680258,null,149396.5,null,null,null,null,null,null,null,null,null,149396.5,149396.5,null,"QC-Québec","Oui",38.450714099999999,0,0,"Non","Oui",null,null,null,null,null,null,null,null,null,null,null,null,null,null,null,null,null,null,null,null,null,null,null,{"$f":"IF(SUM(AI92:BD92)=0,0,(Y92/SUMIF($AI$20:$BD$20,\"1\",AI92:BD92)))","v":0}]
[69,"Implantation","Les Constructions Robin inc.","Projet d'efficacité énergétique au nouvel hôtel Holiday Inn à Vaudreuil",1,"16-Montérégie","Vaudreuil-Dorion","TE","SU",33523.230000000003,"2015-01-08","2015-04-01",502219.25,null,8380.81,24703.46,null,null,null,null,null,null,null,null,33084.269999999997,33084.269999999997,null,"QC-Québec","Oui",19.7833519,53.416397400000001,11.627394000000001,"Non","Oui",0,null,0,null,45.850541499999999,null,64.688360900000006,null,64.688360900000006,null,null,null,null,null,null,null,null,null,null,null,null,null,null,{"$f":"IF(SUM(AI93:BD93)=0,0,(Y93/SUMIF($AI$20:$BD$20,\"1\",AI93:BD93)))","v":{"$error":"#DIV/0!"}}]
[70,"Implantation","Ville de Montréal","Récupération de chaleur sur système réfrigération et efficacité énergétique",1,"06-Montréal","Montréal","AC","SU",140141.29999999999,"2016-02-10","2015-04-01",475933.63,null,null,140141.29999999999,null,null,null,null,null,null,null,null,140141.29999999999,140141.29999999999,null,"QC-Québec","Oui",21.839149500000001,148.452088,0,"Non","Oui",0,null,0,null,0,null,0,null,0,null,null,null,null,null,null,null,null,null,null,null,null,null,null,{"$f":"IF(SUM(AI94:BD94)=0,0,(Y94/SUMIF($AI$20:$BD$20,\"1\",AI94:BD94)))","v":0}]
[71,"Analyse","Buanderie Laser inc.","Étude de faisabilité - Efficacité énergétique dans une buanderie industrielle",1,"06-Montréal","Montréal","TE","SU",7500,"2014-12-16","2015-03-12",60000,null,7500,null,null,null,null,null,null,null,null,null,7500,7500,null,"QC-Québec","Oui",0,0,0,"Non","Oui",null,null,null,null,null,null,null,null,null,null,null,null,null,null,null,null,null,null,null,null,null,null,null,{"$f":"IF(SUM(AI95:BD95)=0,0,(Y95/SUMIF($AI$20:$BD$20,\"1\",AI95:BD95)))","v":0}]
[72,"Implantation","Groupe Accueil International Ltée","Optimisation de la chaufferie du bâtiment Gregor House",1,"06-Montréal","Montréal","TE","SU",144315.71,"2015-03-20","2015-04-01",382000,null,36078.93,108236.78,null,null,null,null,null,null,null,null,144315.71,144315.71,null,"QC-Québec","Oui",35,118.035267,0,"Non","Oui",0,null,48.375109399999999,null,117.712766,null,117.390266,null,117.390266,null,null,null,null,null,null,null,null,null,null,null,null,null,null,{"$f":"IF(SUM(AI96:BD96)=0,0,(Y96/SUMIF($AI$20:$BD$20,\"1\",AI96:BD96)))","v":{"$error":"#DIV/0!"}}]
[73,"Implantation","La fabrique de la paroisse de Saint-Charles-de-Grondines","Remplacement des chaudières au mazout léger par des systèmes électriques zonés",1,"03-Capitale-Nationale","Deschambault-Grondines","TE","SU",59713.2,"2015-02-05","2014-04-01",85972.79,null,59713.2,null,null,null,null,null,null,null,null,null,59713.2,59713.2,null,"QC-Québec","Oui",40,0,47.770563799999998,"Non","Oui",0,null,19.7086206,null,47.6400431,null,47.509522500000003,null,47.509522500000003,null,null,null,null,null,null,null,null,null,null,null,null,null,null,{"$f":"IF(SUM(AI97:BD97)=0,0,(Y97/SUMIF($AI$20:$BD$20,\"1\",AI97:BD97)))","v":{"$error":"#DIV/0!"}}]
[74,"Implantation","Le Syndicat des copropriétaires du Laurier de l'Île Paton","Gestion efficace de l'ensemble de la consommation d’énergie et de l’appel de puissance électrique",1,"13-Laval","Laval","TE","SU",86022.58,"2015-10-29","2015-04-01",123622.44,null,null,86022.58,null,null,null,null,null,null,null,null,86022.58,86022.58,null,"QC-Québec","Oui",25,0,73.104810799999996,"Non","Oui",0,null,39.947984099999999,null,72.905070899999998,null,72.705331000000001,null,72.705331000000001,null,null,null,null,null,null,null,null,null,null,null,null,null,null,{"$f":"IF(SUM(AI98:BD98)=0,0,(Y98/SUMIF($AI$20:$BD$20,\"1\",AI98:BD98)))","v":{"$error":"#DIV/0!"}}]
[75,"Implantation","Complexe sportif scientifique et éducatif Montcalm inc.","Réfrigération à l'ammoniac avec récupération de chaleur",1,"14-Lanaudière","Saint-Roch-de-l'Achigan","TE","SU",284234.28000000003,"2016-01-12","2015-04-01",733454.71,null,null,284234.28000000003,null,null,null,null,null,null,null,null,284234.28000000003,284234.28000000003,null,"QC-Québec","Oui",25,237.467726,32.313448000000001,"Non","Oui",0,null,0,null,22.113211,null,268.30696,null,268.30696,null,null,null,null,null,null,null,null,null,null,null,null,null,null,{"$f":"IF(SUM(AI99:BD99)=0,0,(Y99/SUMIF($AI$20:$BD$20,\"1\",AI99:BD99)))","v":{"$error":"#DIV/0!"}}]
[76,"Implantation","Complexe sportif scientifique et éducatif Montcalm inc.","Réfrigération à l'ammoniac avec récupération de chaleur",1,"14-Lanaudière","Saint-Roch-de-l'Achigan","AN","SU","                     -    $",null,"2017-08-31",294783,null,null,null,null,null,null,null,null,null,null,null,null,"                                                              -    $",null,"QC-Québec","Oui",25,201.85117,0,"Non","Oui",null,null,null,null,null,null,null,null,null,null,null,null,null,null,null,null,null,null,null,null,null,null,null,{"$f":"IF(SUM(AI100:BD100)=0,0,(Y100/SUMIF($AI$20:$BD$20,\"1\",AI100:BD100)))","v":0}]
[77,"Implantation","Rébec inc.","Projet hydroélectrique de 400 kW sur la rivière Brooch",1,"09-Côte-Nord","Sept-Îles","AC","SU",1254152.54,"2015-02-18","2018-07-31",1860846,null,null,313538.14,null,313538.14,627076.27,null,null,null,null,null,627076.28,1254152.54,null,"QC-Québec","Oui",30,0,1114.1737800000001,"Non","Oui",0,null,0,null,0,null,0,null,0,null,null,null,null,null,null,null,null,null,null,null,null,null,null,{"$f":"IF(SUM(AI101:BD101)=0,0,(Y101/SUMIF($AI$20:$BD$20,\"1\",AI101:BD101)))","v":0}]
[78,"Implantation","Centre intégré de santé et de services sociaux de Chaudière-Appalaches","D654J – Projet en efficacité énergétique au Centre d'hébergement de Sainte-Claire",1,"12-Chaudière-Appalaches","Sainte-Claire","TE","SU",46321.47,"2015-10-26","2015-04-01",66821.48,null,null,47895.32,null,null,null,null,null,null,null,null,47895.32,36314.949999999997,null,"QC-Québec","Oui",25,0,38.976156000000003,"Non","Oui",0,null,0,null,6.2830415500000001,null,38.7631716,null,38.7631716,null,null,null,null,null,null,null,null,null,null,null,null,null,null,{"$f":"IF(SUM(AI102:BD102)=0,0,(Y102/SUMIF($AI$20:$BD$20,\"1\",AI102:BD102)))","v":{"$error":"#DIV/0!"}}]
[79,"Implantation","Centre intégré universitaire de santé et services sociaux de l'Est-de-l'iÎe-de-Montréal (CIUSSS de l'Est-de-l'Île-de-Montréal )","Projet d'efficacité énergétique - Centre d'hébergement des Quatre-Temps",1,"06-Montréal","Montréal","TE","SU",79372.69,"2016-02-24","2016-04-01",209739,null,null,null,79372.69,null,null,null,null,null,null,null,79372.69,79372.69,null,"QC-Québec","Oui",30,63.4981559,0,"Non","Oui",0,null,0,null,0,null,37.994798199999998,null,63.151171400000003,null,null,null,null,null,null,null,null,null,null,null,null,null,null,{"$f":"IF(SUM(AI103:BD103)=0,0,(Y103/SUMIF($AI$20:$BD$20,\"1\",AI103:BD103)))","v":{"$error":"#DIV/0!"}}]
[80,"Implantation","Office municipal d'habitation de Montréal","Habitation 340 Plamondon - Projet d'efficacité énergétique",1,"06-Montréal","Montréal","AC","SU",232561.02,"2015-12-10","2016-04-01",683107,null,null,58140.25,116280.51,null,58140.26,null,null,null,null,null,174420.76,232561.02,null,"QC-Québec","Oui",24.22015,138.689751,60.102760000000004,"Non","Oui",0,null,0,null,0,null,0,null,0,null,null,null,null,null,null,null,null,null,null,null,null,null,null,{"$f":"IF(SUM(AI104:BD104)=0,0,(Y104/SUMIF($AI$20:$BD$20,\"1\",AI104:BD104)))","v":0}]
[81,"Implantation","Office municipal d'habitation de Montréal","Habitation 533 André-Grasset - Projet d'efficacité énergétique",1,"06-Montréal","Montréal","AC","SU",269302.03999999998,"2016-03-10","2016-04-01",425735,null,null,null,269302.03999999998,null,null,null,null,null,null,null,269302.03999999998,269302.03999999998,null,"QC-Québec","Oui",22.652496299999999,136.277466,81.214025199999995,"Non","Oui",0,null,0,null,0,null,0,null,0,null,null,null,null,null,null,null,null,null,null,null,null,null,null,{"$f":"IF(SUM(AI105:BD105)=0,0,(Y105/SUMIF($AI$20:$BD$20,\"1\",AI105:BD105)))","v":0}]
[82,"Analyse","Aéroport de Québec inc.","Étude d'efficacité énergétique visant la récupération de chaleur des refroidisseurs et la géothermie",1,"03-Capitale-Nationale","Québec","TE","SU",12463.5,"2015-03-09","2015-12-09",323737.44,null,null,12451.44,null,null,null,null,null,null,null,null,12451.44,12451.44,null,"QC-Québec","Oui",25,0,0,"Non","Oui",null,null,null,null,null,null,null,null,null,null,null,null,null,null,null,null,null,null,null,null,null,null,null,{"$f":"IF(SUM(AI106:BD106)=0,0,(Y106/SUMIF($AI$20:$BD$20,\"1\",AI106:BD106)))","v":0}]
[83,"Implantation","Centre intégré de santé et de services sociaux de Chaudière-Appalaches","D654O - Hôtel-Dieu de Lévis - Projet d'efficacité énergétique",1,"12-Chaudière-Appalaches","Lévis","TE","SU",1418066.2,"2015-11-11","2016-04-01",6266275.29,null,null,709033.1,709033.1,null,null,null,null,null,null,null,1418066.2,1418066.2,null,"QC-Québec","Oui",42.020210300000002,417.58267899999998,2493.6027600000002,"Non","Oui",0,null,0,null,0,null,1447.6386600000001,null,2895.2773200000001,null,null,null,null,null,null,null,null,null,null,null,null,null,null,{"$f":"IF(SUM(AI107:BD107)=0,0,(Y107/SUMIF($AI$20:$BD$20,\"1\",AI107:BD107)))","v":{"$error":"#DIV/0!"}}]
[84,"Implantation","Centre intégré de santé et de services sociaux (CISSS) de la Montérégie-Ouest","Projet efficacité énergétique - D635A - Hôpital Anna-Laberge",1,"16-Montérégie","Châteauguay","TE","SU",677420.07,"2015-10-07","2016-04-01",2653517,null,null,338710.04,338710.03,null,null,null,null,null,null,null,677420.07,677420.07,null,"QC-Québec","Oui",38.646896400000003,282.045097,1103.5870399999999,"Non","Oui",0,null,0,null,0,null,620.88434500000005,null,1378.0603799999999,null,null,null,null,null,null,null,null,null,null,null,null,null,null,{"$f":"IF(SUM(AI108:BD108)=0,0,(Y108/SUMIF($AI$20:$BD$20,\"1\",AI108:BD108)))","v":{"$error":"#DIV/0!"}}]
[85,"Implantation","Université du Québec à Chicoutimi","UQAC - Récupération des hottes des laboratoires",1,"02-Saguenay─Lac-Saint-Jean","Saguenay","TE","SU",85171.94,"2015-02-18","2015-04-01",116903.86,null,63878.96,12001.73,null,null,null,null,null,null,null,null,75880.69,75880.69,null,"QC-Québec","Oui",20,68.137552200000002,0,"Non","Oui",0,null,19.361490199999999,null,67.951384000000004,null,67.765215799999993,null,67.765215799999993,null,null,null,null,null,null,null,null,null,null,null,null,null,null,{"$f":"IF(SUM(AI109:BD109)=0,0,(Y109/SUMIF($AI$20:$BD$20,\"1\",AI109:BD109)))","v":{"$error":"#DIV/0!"}}]
[86,"Implantation","Université du Québec à Chicoutimi","Université du Québec à Chicoutimi – Installation de nouvelles chaudières au gaz naturel",1,"02-Saguenay─Lac-Saint-Jean","Saguenay","RE","SU",174147.11,null,"2016-09-05",518427.25,null,null,null,174147.11,null,null,null,null,null,null,null,null,174147.11,null,"QC-Québec","Oui",20,139.31769,0,"Non","Oui",0,null,0,null,0,null,0,null,0,null,null,null,null,null,null,null,null,null,null,null,null,null,null,{"$f":"IF(SUM(AI110:BD110)=0,0,(Y110/SUMIF($AI$20:$BD$20,\"1\",AI110:BD110)))","v":0}]
[87,"Implantation","Centre intégré de santé et de services sociaux de Chaudière-Appalaches","D654A – Projet en efficacité énergétique au Centre d'hébergement de soins de longue durée Saint-Sylvestre",1,"12-Chaudière-Appalaches","Saint-Sylvestre","TE","SU",13926.87,"2015-10-26","2015-04-01",36536.199999999997,null,null,13926.87,null,null,null,null,null,null,null,null,13926.87,13926.87,null,"QC-Québec","Oui",34.687389400000001,4.7753089600000003,38.880941399999998,"Non","Oui",0,null,0,null,3.8169399300000002,null,43.417691699999999,null,43.417691699999999,null,null,null,null,null,null,null,null,null,null,null,null,null,null,{"$f":"IF(SUM(AI111:BD111)=0,0,(Y111/SUMIF($AI$20:$BD$20,\"1\",AI111:BD111)))","v":{"$error":"#DIV/0!"}}]
[88,"Implantation","Centre intégré de santé et de services sociaux (CISSS) de la Montérégie-Ouest","Projet efficacité énergétique - D635D - Centre d'hébergement de Saint-Rémi",1,"16-Montérégie","Saint-Rémi","TE","SU",14107.42,"2015-11-02","2015-04-01",47284.15,null,null,14107.42,null,null,null,null,null,null,null,null,14107.42,14107.42,null,"QC-Québec","Oui",38.553260799999997,11.2859322,0,"Non","Oui",0,null,0,null,2.2201833899999999,null,11.2242605,null,11.2242605,null,null,null,null,null,null,null,null,null,null,null,null,null,null,{"$f":"IF(SUM(AI112:BD112)=0,0,(Y112/SUMIF($AI$20:$BD$20,\"1\",AI112:BD112)))","v":{"$error":"#DIV/0!"}}]
[89,"Implantation","Centre intégré de santé et de services sociaux (CISSS) de la Montérégie-Ouest","Projet efficacité énergétique - D635B - Centre d’hébergement de Châteauguay",1,"16-Montérégie","Châteauguay","TE","SU",342834.39,"2015-11-11","2016-04-01",585100,null,null,171417.2,171417.19,null,null,null,null,null,null,null,342834.39,342834.39,null,"QC-Québec","Oui",25.397766099999998,276.94942500000002,0,"Non","Oui",0,null,0,null,0,null,260.30219199999999,null,275.43603999999999,null,null,null,null,null,null,null,null,null,null,null,null,null,null,{"$f":"IF(SUM(AI113:BD113)=0,0,(Y113/SUMIF($AI$20:$BD$20,\"1\",AI113:BD113)))","v":{"$error":"#DIV/0!"}}]
[90,"Implantation","Centre intégré de santé et de services sociaux (CISSS) de la Montérégie-Ouest","Projet efficacité énergétique - D635C - Centre d’hébergement de La Prairie",1,"16-Montérégie","La Prairie","TE","SU",107558.68,"2015-11-11","2015-04-01",197389,null,null,107558.68,null,null,null,null,null,null,null,null,107558.68,107558.68,null,"QC-Québec","Oui",45.230331399999997,86.918395599999997,0,"Non","Oui",0,null,0,null,17.0987008,null,86.443431700000005,null,86.443431700000005,null,null,null,null,null,null,null,null,null,null,null,null,null,null,{"$f":"IF(SUM(AI114:BD114)=0,0,(Y114/SUMIF($AI$20:$BD$20,\"1\",AI114:BD114)))","v":{"$error":"#DIV/0!"}}]
[91,"Implantation","Syndicat de la copropriété Club Marin III","Intégration d'un système de gestion énergétique à l'égard d'une conversion partielle de source d'énergie",1,"06-Montréal","Montréal","TE","SU",95627.14,"2015-10-29","2015-04-01",160285,null,null,95627.14,null,null,null,null,null,null,null,null,95627.14,95627.14,null,"QC-Québec","Oui",15,128.62252899999999,0,"Non","Oui",0,null,47.794163900000001,null,128.27110200000001,null,127.919674,null,127.919674,null,null,null,null,null,null,null,null,null,null,null,null,null,null,{"$f":"IF(SUM(AI115:BD115)=0,0,(Y115/SUMIF($AI$20:$BD$20,\"1\",AI115:BD115)))","v":{"$error":"#DIV/0!"}}]
[92,"Implantation","Syndicat de la copropriété du 4150 Saint-Ambroise","Intégration d'un système de gestion énergétique à l'égard d'une conversion partielle de source d'énergie",1,"06-Montréal","Montréal","RF","SU","                     -    $",null,"2015-10-13",85375,null,null,null,null,null,null,null,null,null,null,null,null,"                                                              -    $",null,"QC-Québec","Oui",15,88.418651499999996,0,"Non","Oui",null,null,null,null,null,null,null,null,null,null,null,null,null,null,null,null,null,null,null,null,null,null,null,{"$f":"IF(SUM(AI116:BD116)=0,0,(Y116/SUMIF($AI$20:$BD$20,\"1\",AI116:BD116)))","v":0}]
[93,"Implantation","Syndicat de la copropriété du 4200 Saint-Ambroise","Intégration d'un système de gestion énergétique à l'égard d'une conversion partielle de source d'énergie",1,"06-Montréal","Montréal","RF","SU","                     -    $",null,"2015-09-30",91800,null,null,null,null,null,null,null,null,null,null,null,null,"                                                              -    $",null,"QC-Québec","Oui",25,0,94.138222200000001,"Non","Oui",null,null,null,null,null,null,null,null,null,null,null,null,null,null,null,null,null,null,null,null,null,null,null,{"$f":"IF(SUM(AI117:BD117)=0,0,(Y117/SUMIF($AI$20:$BD$20,\"1\",AI117:BD117)))","v":0}]
[94,"Analyse","4196236 Canada inc.","Modernisation énergétique - 9600 Meilleur",1,"06-Montréal","Montréal","TE","SU",10000,"2015-05-14","2015-11-09",120000,null,null,10000,null,null,null,null,null,null,null,null,10000,10000,null,"QC-Québec","Oui",23.0891895,455.31183099999998,0,"Non","Oui",null,null,null,null,null,null,null,null,null,null,null,null,null,null,null,null,null,null,null,null,null,null,null,{"$f":"IF(SUM(AI118:BD118)=0,0,(Y118/SUMIF($AI$20:$BD$20,\"1\",AI118:BD118)))","v":0}]
[95,"Analyse","6300 avenue du Parc inc.","Modernisation énergétique au 6300, avenue du Parc",1,"06-Montréal","Montréal","TE","SU",6000,"2015-01-07","2015-06-18",48000,null,null,5500,null,null,null,null,null,null,null,null,5500,5500,null,"QC-Québec","Oui",24.962724699999999,0,0,"Non","Oui",null,null,null,null,null,null,null,null,null,null,null,null,null,null,null,null,null,null,null,null,null,null,null,{"$f":"IF(SUM(AI119:BD119)=0,0,(Y119/SUMIF($AI$20:$BD$20,\"1\",AI119:BD119)))","v":0}]
[96,"Implantation","Centre intégré universitaire de santé et de services sociaux du Centre-Sud-de-l’Île-de-Montréal","Centre jeunesse de Montréal édifice DSM - Projet d'économie d'énergie",1,"06-Montréal","Montréal","TE","SU",63164.54,"2016-04-27","2016-04-01",1424807.22,null,null,null,63164.54,null,null,null,null,null,null,null,63164.54,63164.54,null,"QC-Québec","Oui",18.291582099999999,50.292779199999998,9.8400441999999995,"Non","Oui",0,null,0,null,0,null,51.753659499999998,null,59.804228799999997,null,null,null,null,null,null,null,null,null,null,null,null,null,null,{"$f":"IF(SUM(AI120:BD120)=0,0,(Y120/SUMIF($AI$20:$BD$20,\"1\",AI120:BD120)))","v":{"$error":"#DIV/0!"}}]
[97,"Implantation","Centre intégré universitaire de santé et de services sociaux du Centre-Sud-de-l’Île-de-Montréal","Centre jeunesse de Montréal siège social - Projet d'économie d'énergie",1,"06-Montréal","Montréal","TE","SU",60870.47,"2016-04-27","2016-04-01",228191,null,null,null,60870.47,null,null,null,null,null,null,null,60870.47,60870.47,null,"QC-Québec","Oui",19.917764699999999,49.510672499999998,0,"Non","Oui",0,null,0,null,0,null,42.611644400000003,null,49.240122399999997,null,null,null,null,null,null,null,null,null,null,null,null,null,null,{"$f":"IF(SUM(AI121:BD121)=0,0,(Y121/SUMIF($AI$20:$BD$20,\"1\",AI121:BD121)))","v":{"$error":"#DIV/0!"}}]
[98,"Implantation","Centre intégré universitaire de santé et de services sociaux du Centre-Sud-de-l’Île-de-Montréal","Centre jeunesse de Montréal Cité des Prairies - Projet d'économie d'énergie",1,"06-Montréal","Montréal","TE","SU",44807.07,"2016-04-12","2016-04-01",150294.25,null,null,null,44807.07,null,null,null,null,null,null,null,44807.07,44807.07,null,"QC-Québec","Oui",21.107427600000001,44.023381399999998,0,"Non","Oui",0,null,0,null,0,null,37.888975799999997,null,43.782816500000003,null,null,null,null,null,null,null,null,null,null,null,null,null,null,{"$f":"IF(SUM(AI122:BD122)=0,0,(Y122/SUMIF($AI$20:$BD$20,\"1\",AI122:BD122)))","v":{"$error":"#DIV/0!"}}]
[99,"Implantation","Centre intégré universitaire de santé et de services sociaux du Centre-Sud-de-l’Île-de-Montréal","Centre jeunesse de Montréal édifice Rose-Virginie Pelletier - Projet d'économie d'énergie",1,"06-Montréal","Montréal","TE","SU",58205.68,"2016-04-27","2016-04-01",268962.46000000002,null,null,null,58205.68,null,null,null,null,null,null,null,58205.68,58205.68,null,"QC-Québec","Oui",28.0072212,48.962089400000004,0,"Non","Oui",0,null,0,null,0,null,42.1395032,null,48.694536999999997,null,null,null,null,null,null,null,null,null,null,null,null,null,null,{"$f":"IF(SUM(AI123:BD123)=0,0,(Y123/SUMIF($AI$20:$BD$20,\"1\",AI123:BD123)))","v":{"$error":"#DIV/0!"}}]
[100,"Implantation","Centre intégré universitaire de santé et de services sociaux du Centre-Sud-de-l’Île-de-Montréal","Centre jeunesse de Montréal édifice Décarie - Projet d'économie d'énergie",1,"06-Montréal","Montréal","TE","SU",48914.81,"2016-04-12","2016-04-01",234379,null,null,null,48914.81,null,null,null,null,null,null,null,48914.81,48914.81,null,"QC-Québec","Oui",27.509967799999998,52.1065532,0,"Non","Oui",0,null,0,null,0,null,44.845804000000001,null,51.821817899999999,null,null,null,null,null,null,null,null,null,null,null,null,null,null,{"$f":"IF(SUM(AI124:BD124)=0,0,(Y124/SUMIF($AI$20:$BD$20,\"1\",AI124:BD124)))","v":{"$error":"#DIV/0!"}}]
[101,"Implantation","Centre intégré universitaire de santé et de services sociaux du Centre-Sud-de-l’Île-de-Montréal","Centre jeunesse de Montréal Mont Saint-Antoine - Projet d'économie d'énergie",1,"06-Montréal","Montréal","TE","SU",94353.18,"2016-04-27","2016-04-01",1050286,null,null,null,94353.18,null,null,null,null,null,null,null,94353.18,94353.18,null,"QC-Québec","Oui",25.612205500000002,82.816885499999998,175.22579999999999,"Non","Oui",0,null,0,null,0,null,222.08591799999999,null,256.63261599999998,null,null,null,null,null,null,null,null,null,null,null,null,null,null,{"$f":"IF(SUM(AI125:BD125)=0,0,(Y125/SUMIF($AI$20:$BD$20,\"1\",AI125:BD125)))","v":{"$error":"#DIV/0!"}}]
[102,"Analyse","Propriétés N-HIM Sherbrooke inc.","Projet d'efficacité énergétique et de modernisation des équipements électro-mécaniques",1,"06-Montréal","Montréal","AN","SU","                     -    $",null,"2015-10-10",25000,null,null,null,null,null,null,null,null,null,null,null,null,"                                                              -    $",null,"QC-Québec","Oui",0,0,0,"Non","Oui",null,null,null,null,null,null,null,null,null,null,null,null,null,null,null,null,null,null,null,null,null,null,null,{"$f":"IF(SUM(AI126:BD126)=0,0,(Y126/SUMIF($AI$20:$BD$20,\"1\",AI126:BD126)))","v":0}]
[103,"Implantation","Office municipal d'habitation de Montréal","Habitation 537 Rosemont Implantation de deux mesures d'efficacité énergétique",1,"06-Montréal","Montréal","AN","SU","                     -    $",null,"2017-04-01",267500,null,null,null,null,null,null,null,null,null,null,null,null,"                                                              -    $",null,"QC-Québec","Oui",24.537126499999999,89.167990200000006,0,"Non","Oui",null,null,null,null,null,null,null,null,null,null,null,null,null,null,null,null,null,null,null,null,null,null,null,{"$f":"IF(SUM(AI127:BD127)=0,0,(Y127/SUMIF($AI$20:$BD$20,\"1\",AI127:BD127)))","v":0}]
[104,"Implantation","Office municipal d'habitation de Montréal","Habitation 389 Carillon Récupération de la chaleur et contrôle d'air d'appoint",1,"06-Montréal","Montréal","AN","SU","                     -    $",null,"2017-06-20",267071,null,null,null,null,null,null,null,null,null,null,null,null,"                                                              -    $",null,"QC-Québec","Oui",22.295547500000001,119.18584300000001,36.082399100000004,"Non","Oui",null,null,null,null,null,null,null,null,null,null,null,null,null,null,null,null,null,null,null,null,null,null,null,{"$f":"IF(SUM(AI128:BD128)=0,0,(Y128/SUMIF($AI$20:$BD$20,\"1\",AI128:BD128)))","v":0}]
[105,"Implantation","Office municipal d'habitation de Montréal","Habitation 577 Lajeunesse Implantation de chaudière a condensation",1,"06-Montréal","Montréal","AN","SU","                     -    $",null,"2017-06-30",224763,null,null,null,null,null,null,null,null,null,null,null,null,"                                                              -    $",null,"QC-Québec","Oui",24.294288600000002,75.572444099999998,0,"Non","Oui",null,null,null,null,null,null,null,null,null,null,null,null,null,null,null,null,null,null,null,null,null,null,null,{"$f":"IF(SUM(AI129:BD129)=0,0,(Y129/SUMIF($AI$20:$BD$20,\"1\",AI129:BD129)))","v":0}]
[106,"Implantation","Office municipal d'habitation de Montréal","Habitation 384 Des fleurs Échangeur de chaleur",1,"06-Montréal","Montréal","AN","SU","                     -    $",null,"2017-10-30",80742,null,null,null,null,null,null,null,null,null,null,null,null,"                                                              -    $",null,"QC-Québec","Oui",25,21.3136145,0,"Non","Oui",null,null,null,null,null,null,null,null,null,null,null,null,null,null,null,null,null,null,null,null,null,null,null,{"$f":"IF(SUM(AI130:BD130)=0,0,(Y130/SUMIF($AI$20:$BD$20,\"1\",AI130:BD130)))","v":0}]
[107,"Implantation","La Fabrique de la paroisse de Saint-Eustache","Remplacement des chaudières au mazout léger par des systèmes électriques zonés",1,"15-Laurentides","Saint-Eustache","TE","SU",126341.25,"2016-02-10","2016-04-01",189477,null,null,null,125607.75,null,null,null,null,null,null,null,125607.75,125607.75,null,"QC-Québec","Oui",40,0,134.08001999999999,"Non","Oui",0,null,0,null,0,null,66.307332500000001,null,133.347343,null,null,null,null,null,null,null,null,null,null,null,null,null,null,{"$f":"IF(SUM(AI131:BD131)=0,0,(Y131/SUMIF($AI$20:$BD$20,\"1\",AI131:BD131)))","v":{"$error":"#DIV/0!"}}]
[108,"Implantation","La Fabrique de la paroisse de Saint-André de La Sarre","Remplacement des chaudières au mazout léger par des systèmes électriques zonés",1,"08-Abitibi-Témiscamingue","La Sarre","TE","SU",122475,"2016-03-16","2016-04-01",150942.54999999999,null,null,null,101086.35,null,null,null,null,null,null,null,101086.35,101086.35,null,"QC-Québec","Oui",40,0,120.140001,"Non","Oui",0,null,0,null,0,null,60.070000299999997,null,119.483498,null,null,null,null,null,null,null,null,null,null,null,null,null,null,{"$f":"IF(SUM(AI132:BD132)=0,0,(Y132/SUMIF($AI$20:$BD$20,\"1\",AI132:BD132)))","v":{"$error":"#DIV/0!"}}]
[109,"Analyse","Collège de Maisonneuve","Analyse pour l'ajout de chauffage et de climatisation pour l'ensemble du pavillon sportif du collège de Maisonneuve",1,"06-Montréal","Montréal","TE","SU",25000,"2016-01-27","2017-02-23",240000,null,null,null,25000,null,null,null,null,null,null,null,25000,25000,null,"QC-Québec","Oui",24.402111099999999,0,0,"Non","Oui",null,null,null,null,null,null,null,null,null,null,null,null,null,null,null,null,null,null,null,null,null,null,null,{"$f":"IF(SUM(AI133:BD133)=0,0,(Y133/SUMIF($AI$20:$BD$20,\"1\",AI133:BD133)))","v":0}]
[110,"Implantation","Centre intégré universitaire de santé et services sociaux du Saguenay - Lac-St-Jean","Implantation de mesures en efficacité énergétique en mode ESE",1,"02-Saguenay─Lac-Saint-Jean","Saguenay","AC","SU",1810843.57,"2016-12-19","2018-04-01",5284554,null,null,null,452710.89,452710.89,905421.79,null,null,null,null,null,1358132.67,1810843.57,null,"QC-Québec","Oui",25,3889.1050700000001,0,"Non","Oui",0,null,0,null,0,null,0,null,0,null,null,null,null,null,null,null,null,null,null,null,null,null,null,{"$f":"IF(SUM(AI134:BD134)=0,0,(Y134/SUMIF($AI$20:$BD$20,\"1\",AI134:BD134)))","v":0}]
[111,"Implantation","La Fabrique de la paroisse Coeur-Immaculé-de-Marie","Remplacement des chaudières au mazout léger par des systèmes électriques zonés",1,"05-Estrie","Wotton","AC","SU",78339.28,"2016-02-24","2016-04-01",135632,null,null,null,78339.28,null,null,null,null,null,null,null,78339.28,78339.28,null,"QC-Québec","Oui",25,0,68.751530799999998,"Non","Oui",0,null,0,null,0,null,0,null,0,null,null,null,null,null,null,null,null,null,null,null,null,null,null,{"$f":"IF(SUM(AI135:BD135)=0,0,(Y135/SUMIF($AI$20:$BD$20,\"1\",AI135:BD135)))","v":0}]
[112,"Implantation","Réserve indienne de Wendake","Projet microturbine de 50 kw au Lac St-Anne",1,"03-Capitale-Nationale","Wendake","RE","SU",144832.95000000001,null,"2018-11-14",426934.31,null,null,null,null,null,144832.95000000001,null,null,null,null,null,null,144832.95000000001,null,"QC-Québec","Oui",30,0,251.52137099999999,"Non","Oui",0,null,0,null,0,null,0,null,0,null,null,null,null,null,null,null,null,null,null,null,null,null,null,{"$f":"IF(SUM(AI136:BD136)=0,0,(Y136/SUMIF($AI$20:$BD$20,\"1\",AI136:BD136)))","v":0}]
[113,"Implantation","Métro Richelieu inc.","Récupération de chaleur sur système de réfrigération",1,"12-Chaudière-Appalaches","Saint-Georges","AC","SU",10072.76,"2017-07-21","2018-06-29",55694.77,null,null,null,null,null,10072.76,null,null,null,null,null,null,10072.76,null,"QC-Québec","Oui",15,66.817502200000007,0,"Non","Oui",0,null,0,null,0,null,0,null,0,null,null,null,null,null,null,null,null,null,null,null,null,null,null,{"$f":"IF(SUM(AI137:BD137)=0,0,(Y137/SUMIF($AI$20:$BD$20,\"1\",AI137:BD137)))","v":0}]
[114,"Implantation","La Fabrique de la Paroisse de Sainte-Thérèse-d'Avila","Conversion partielle du système de chauffage au mazout léger par l'ajout d'une chaudière électrique",1,"02-Saguenay─Lac-Saint-Jean","Dolbeau-Mistassini","AC","SU",23853,"2016-02-18","2016-04-01",37101,null,null,17889.75,5963.25,null,null,null,null,null,null,null,23853,23853,null,"QC-Québec","Oui",7,0,86.989311999999998,"Non","Oui",0,null,0,null,0,null,0,null,0,null,null,null,null,null,null,null,null,null,null,null,null,null,null,{"$f":"IF(SUM(AI138:BD138)=0,0,(Y138/SUMIF($AI$20:$BD$20,\"1\",AI138:BD138)))","v":0}]
[115,"Analyse","Commission scolaire des Hautes-Rivières","Analyse d'efficacité énergétique dans le but de réduire les gaz à effets de serre",1,"16-Montérégie","Saint-Blaise-sur-Richelieu","TE","SU",4250,"2015-12-07","2016-03-15",59500,null,null,4250,null,null,null,null,null,null,null,null,4250,4250,null,"QC-Québec","Oui",0,0,0,"Non","Oui",null,null,null,null,null,null,null,null,null,null,null,null,null,null,null,null,null,null,null,null,null,null,null,{"$f":"IF(SUM(AI139:BD139)=0,0,(Y139/SUMIF($AI$20:$BD$20,\"1\",AI139:BD139)))","v":0}]
[116,"Analyse","Régie de Gestion des Matières Résiduelles de la Mauricie","Optimisation de la récupération de biogaz",1,"04-Mauricie","Saint-Étienne-des-Grès","TE","SU",9980,"2015-12-21","2016-04-27","                                -    $",null,null,4990,4990,null,null,null,null,null,null,null,9980,9980,null,"QC-Québec","Oui",20,0,0,"Non","Oui",null,null,null,null,null,null,null,null,null,null,null,null,null,null,null,null,null,null,null,null,null,null,null,{"$f":"IF(SUM(AI140:BD140)=0,0,(Y140/SUMIF($AI$20:$BD$20,\"1\",AI140:BD140)))","v":0}]
[117,"Implantation","La Fabrique de la paroisse de Notre-Dame-de-Bonsecours","Conversion du système de chauffage au mazout vers l'électricité",1,"07-Outaouais","Montebello","TE","SU",71583,"2016-01-12","2016-11-28",119969.44,null,null,35791.5,34940.58,null,null,null,null,null,null,null,70732.08,70732.08,null,"QC-Québec","Oui",25,0,69.572378299999997,"Non","Oui",0,null,0,null,19.959288799999999,null,69.192201299999994,null,69.192201299999994,null,null,null,null,null,null,null,null,null,null,null,null,null,null,{"$f":"IF(SUM(AI141:BD141)=0,0,(Y141/SUMIF($AI$20:$BD$20,\"1\",AI141:BD141)))","v":{"$error":"#DIV/0!"}}]
[118,"Implantation","CISSS de la Côte-Nord","Projet d’optimisation de la chaufferie au foyer de Havre-Saint-Pierre",1,"09-Côte-Nord","Havre-Saint-Pierre","AC","SU",101016.12,"2016-04-27","2018-07-30",219801,null,null,null,50508.06,25254.03,25254.03,null,null,null,null,null,75762.09,101016.12,null,"QC-Québec","Oui",23,80.812899599999994,0,"Non","Oui",0,null,0,null,0,null,0,null,0,null,null,null,null,null,null,null,null,null,null,null,null,null,null,{"$f":"IF(SUM(AI142:BD142)=0,0,(Y142/SUMIF($AI$20:$BD$20,\"1\",AI142:BD142)))","v":0}]
[119,"Implantation","Fabrique de la paroisse de Notre-Dame-de-Lourdes","Remplacement d'une chaudière mazout léger par une chaudière électrique",1,"01-Bas-Saint-Laurent","Mont-Joli","TE","SU",15817.91,"2015-12-14","2018-04-26",30226.5,null,null,11863.44,null,null,3954.47,null,null,null,null,null,15817.91,15817.91,null,"QC-Québec","Oui",30,0,77.825144600000002,"Non","Oui",0,null,0,null,22.752159800000001,null,77.3998706,null,77.3998706,null,null,null,null,null,null,null,null,null,null,null,null,null,null,{"$f":"IF(SUM(AI143:BD143)=0,0,(Y143/SUMIF($AI$20:$BD$20,\"1\",AI143:BD143)))","v":{"$error":"#DIV/0!"}}]
[120,"Implantation","ÉnerProx inc.","Conversion du mazout vers des thermopompes électriques",1,"17-Centre-du-Québec","Victoriaville","AC","SU",22514.42,"2015-12-04","2019-03-31",64160,null,null,5628.6,null,null,16885.82,null,null,null,null,null,5628.6,22514.42,null,"QC-Québec","Oui",25,0,18.011537799999999,"Non","Oui",0,null,0,null,0,null,0,null,0,null,null,null,null,null,null,null,null,null,null,null,null,null,null,{"$f":"IF(SUM(AI144:BD144)=0,0,(Y144/SUMIF($AI$20:$BD$20,\"1\",AI144:BD144)))","v":0}]
[121,"Analyse","Ville de Baie-Comeau","Aréna Henri-Desjardins - Étude en efficacité énergétique",1,"09-Côte-Nord","Baie-Comeau","TE","SU",9750,"2016-01-14","2016-07-14",39000,null,null,null,9750,null,null,null,null,null,null,null,9750,9750,null,"QC-Québec","Oui",20,0,0,"Non","Oui",null,null,null,null,null,null,null,null,null,null,null,null,null,null,null,null,null,null,null,null,null,null,null,{"$f":"IF(SUM(AI145:BD145)=0,0,(Y145/SUMIF($AI$20:$BD$20,\"1\",AI145:BD145)))","v":0}]
[122,"Implantation","Le Trois-Rivières (2014) inc.","C5464-TRIV Implantation du produit écoAZUR",1,"04-Mauricie","Trois-Rivières","AC","SU",34648.21,"2016-06-09","2016-04-01",62200,null,null,null,34648.21,null,null,null,null,null,null,null,34648.21,34648.21,null,"QC-Québec","Oui",10,30.119399000000001,0,"Non","Oui",0,null,0,null,0,null,0,null,0,null,null,null,null,null,null,null,null,null,null,null,null,null,null,{"$f":"IF(SUM(AI146:BD146)=0,0,(Y146/SUMIF($AI$20:$BD$20,\"1\",AI146:BD146)))","v":0}]
[123,"Implantation","Le Bouvier inc.","C5465-CAPT Implantation du produit écoAZUR",1,"03-Capitale-Nationale","Québec","AC","SU",34648.21,"2016-06-09","2016-04-01",62200,null,null,null,34648.21,null,null,null,null,null,null,null,34648.21,34648.21,null,"QC-Québec","Oui",10,27.7185688,0,"Non","Oui",0,null,0,null,0,null,0,null,0,null,null,null,null,null,null,null,null,null,null,null,null,null,null,{"$f":"IF(SUM(AI147:BD147)=0,0,(Y147/SUMIF($AI$20:$BD$20,\"1\",AI147:BD147)))","v":0}]
[124,"Implantation","Restaurant CAP (2014) inc.","C5466-CMAD Implantation du produit écoAZUR",1,"04-Mauricie","Trois-Rivières","AC","SU",34648.21,"2016-06-09","2016-04-01",62200,null,null,null,34648.21,null,null,null,null,null,null,null,34648.21,34648.21,null,"QC-Québec","Oui",10,27.7185688,0,"Non","Oui",0,null,0,null,0,null,0,null,0,null,null,null,null,null,null,null,null,null,null,null,null,null,null,{"$f":"IF(SUM(AI148:BD148)=0,0,(Y148/SUMIF($AI$20:$BD$20,\"1\",AI148:BD148)))","v":0}]
[125,"Implantation","Restaurant Le CHLB inc.","C5467-CHLB Implantation du produit écoAZUR",1,"03-Capitale-Nationale","Québec","AC","SU",34648.21,"2016-06-09","2016-04-01",62200,null,null,null,34648.21,null,null,null,null,null,null,null,34648.21,34648.21,null,"QC-Québec","Oui",10,34.317987100000003,0,"Non","Oui",0,null,0,null,0,null,0,null,0,null,null,null,null,null,null,null,null,null,null,null,null,null,null,{"$f":"IF(SUM(AI149:BD149)=0,0,(Y149/SUMIF($AI$20:$BD$20,\"1\",AI149:BD149)))","v":0}]
[126,"Implantation","Restaurant Le CHNY inc.","C5468-CHNY Implantation du produit écoAZUR",1,"12-Chaudière-Appalaches","Lévis","AC","SU",34648.21,"2016-06-09","2016-04-01",62200,null,null,null,34648.21,null,null,null,null,null,null,null,34648.21,31973.01,null,"QC-Québec","Oui",10,43.075272599999998,0,"Non","Oui",0,null,0,null,0,null,0,null,0,null,null,null,null,null,null,null,null,null,null,null,null,null,null,{"$f":"IF(SUM(AI150:BD150)=0,0,(Y150/SUMIF($AI$20:$BD$20,\"1\",AI150:BD150)))","v":0}]
[127,"Implantation","Restaurant Donnacona (2014) inc.","C5469-DNCA Implantation du produit écoAZUR",1,"03-Capitale-Nationale","Donnacona","AC","SU",34648.21,"2016-06-09","2016-04-01",62200,null,null,null,34648.21,null,null,null,null,null,null,null,34648.21,34648.21,null,"QC-Québec","Oui",10,27.7185688,0,"Non","Oui",0,null,0,null,0,null,0,null,0,null,null,null,null,null,null,null,null,null,null,null,null,null,null,{"$f":"IF(SUM(AI151:BD151)=0,0,(Y151/SUMIF($AI$20:$BD$20,\"1\",AI151:BD151)))","v":0}]
[128,"Implantation","Le Drummondvillois (2014) inc.","C5470-DRUM Implantation du produit écoAZUR",1,"17-Centre-du-Québec","Drummondville","AC","SU",34648.21,"2016-06-09","2016-04-01",62200,null,null,null,34648.21,null,null,null,null,null,null,null,34648.21,30040.04,null,"QC-Québec","Oui",10,44.852788199999999,0,"Non","Oui",0,null,0,null,0,null,0,null,0,null,null,null,null,null,null,null,null,null,null,null,null,null,null,{"$f":"IF(SUM(AI152:BD152)=0,0,(Y152/SUMIF($AI$20:$BD$20,\"1\",AI152:BD152)))","v":0}]
[129,"Implantation","Martin Brie inc.","C5471-DUBG Implantation du produit écoAZUR",1,"03-Capitale-Nationale","Québec","AC","SU",34648.21,"2016-06-09","2016-04-01",62200,null,null,null,34648.21,null,null,null,null,null,null,null,34648.21,34648.21,null,"QC-Québec","Oui",10,27.7185688,0,"Non","Oui",0,null,0,null,0,null,0,null,0,null,null,null,null,null,null,null,null,null,null,null,null,null,null,{"$f":"IF(SUM(AI153:BD153)=0,0,(Y153/SUMIF($AI$20:$BD$20,\"1\",AI153:BD153)))","v":0}]
[130,"Implantation","Le Flys inc.","C5472-FLYS Implantation du produit écoAZUR",1,"03-Capitale-Nationale","Québec","AC","SU",34648.21,"2016-06-09","2016-04-01",62200,null,null,null,34648.21,null,null,null,null,null,null,null,34648.21,34648.21,null,"QC-Québec","Oui",10,27.7185688,0,"Non","Oui",0,null,0,null,0,null,0,null,0,null,null,null,null,null,null,null,null,null,null,null,null,null,null,{"$f":"IF(SUM(AI154:BD154)=0,0,(Y154/SUMIF($AI$20:$BD$20,\"1\",AI154:BD154)))","v":0}]
[131,"Implantation","Restaurant Alauzon (2014) inc.","C5473-LZON Implantation du produit écoAZUR",1,"12-Chaudière-Appalaches","Lévis","AC","SU",34648.21,"2016-06-09","2016-04-01",62200,null,null,null,34648.21,null,null,null,null,null,null,null,34648.21,34648.21,null,"QC-Québec","Oui",10,36.902856,0,"Non","Oui",0,null,0,null,0,null,0,null,0,null,null,null,null,null,null,null,null,null,null,null,null,null,null,{"$f":"IF(SUM(AI155:BD155)=0,0,(Y155/SUMIF($AI$20:$BD$20,\"1\",AI155:BD155)))","v":0}]
[132,"Implantation","Restaurant Neufchâtel inc.","C5474-NCHT Implantation du produit écoAZUR",1,"03-Capitale-Nationale","Québec","AC","SU",34648.21,"2016-06-09","2016-04-01",62200,null,null,null,34648.21,null,null,null,null,null,null,null,34648.21,34648.21,null,"QC-Québec","Oui",10,36.687227900000003,0,"Non","Oui",0,null,0,null,0,null,0,null,0,null,null,null,null,null,null,null,null,null,null,null,null,null,null,{"$f":"IF(SUM(AI156:BD156)=0,0,(Y156/SUMIF($AI$20:$BD$20,\"1\",AI156:BD156)))","v":0}]
[133,"Implantation","Le STMA (2014) inc.","C5475-STMA Implantation du produit écoAZUR",1,"12-Chaudière-Appalaches","Sainte-Marie","AC","SU",34648.21,"2016-06-09","2016-04-01",62200,null,null,null,34648.21,null,null,null,null,null,null,null,34648.21,34648.21,null,"QC-Québec","Oui",10,35.970489000000001,0,"Non","Oui",0,null,0,null,0,null,0,null,0,null,null,null,null,null,null,null,null,null,null,null,null,null,null,{"$f":"IF(SUM(AI157:BD157)=0,0,(Y157/SUMIF($AI$20:$BD$20,\"1\",AI157:BD157)))","v":0}]
[134,"Implantation","TUGLIQ Démon Raglan, société en commandite","Déploiement éolien aux Ïles-de-la-Madeleine",1,"11-Gaspésie--Îles-de-la-Madeleine","Grosse-Île","AN","SU","                     -    $",null,"2018-12-10",18700000,null,null,null,null,null,null,null,null,null,null,null,null,"                                                              -    $",null,"QC-Québec","Oui",20,0,16115.502399999999,"Non","Oui",null,null,null,null,null,null,null,null,null,null,null,null,null,null,null,null,null,null,null,null,null,null,null,{"$f":"IF(SUM(AI158:BD158)=0,0,(Y158/SUMIF($AI$20:$BD$20,\"1\",AI158:BD158)))","v":0}]
[135,"Analyse","Ville de Candiac","Analyse de récupération d'énergie au Centre sportif Les 2 Glaces",1,"16-Montérégie","Candiac","TE","SU",4100,"2016-02-02","2016-11-08",18886,null,null,null,4100,null,null,null,null,null,null,null,4100,4100,null,"QC-Québec","Oui",15,0,0,"Non","Oui",null,null,null,null,null,null,null,null,null,null,null,null,null,null,null,null,null,null,null,null,null,null,null,{"$f":"IF(SUM(AI159:BD159)=0,0,(Y159/SUMIF($AI$20:$BD$20,\"1\",AI159:BD159)))","v":0}]
[136,"Implantation","Capital BLF inc.","Projet d'économie d'énergie - Immeuble Le Loretteville",1,"03-Capitale-Nationale","Québec","AN","SU","                     -    $","2016-03-10","2018-10-15",208070.16,null,null,null,null,null,null,null,null,null,null,null,null,"                                                              -    $",null,"QC-Québec","Oui",22.801746399999999,88.009722499999995,0,"Non","Oui",null,null,null,null,null,null,null,null,null,null,null,null,null,null,null,null,null,null,null,null,null,null,null,{"$f":"IF(SUM(AI160:BD160)=0,0,(Y160/SUMIF($AI$20:$BD$20,\"1\",AI160:BD160)))","v":0}]
[137,"Implantation","Capital BLF inc.","Projet d'économie d'énergie Capial BLF",1,"03-Capitale-Nationale","Québec","AC","SU",104678.06,"2018-03-16","2019-01-15",214869.11,null,null,null,null,null,104678.06,null,null,null,null,null,null,104678.06,null,"QC-Québec","Oui",18.637348200000002,88.009722499999995,0,"Non","Oui",0,null,0,null,0,null,0,null,0,null,null,null,null,null,null,null,null,null,null,null,null,null,null,{"$f":"IF(SUM(AI161:BD161)=0,0,(Y161/SUMIF($AI$20:$BD$20,\"1\",AI161:BD161)))","v":0}]
[138,"Implantation","9123-8584 Québec inc.","Projet d'efficacité énergétique - Immeuble La Belle Époque",1,"06-Montréal","Montréal","AN","SU","                     -    $","2016-03-24","2017-10-15",203967.81,null,null,null,null,null,null,null,null,null,null,null,null,"                                                              -    $",null,"QC-Québec","Oui",25.622959099999999,0,0,"Non","Oui",null,null,null,null,null,null,null,null,null,null,null,null,null,null,null,null,null,null,null,null,null,null,null,{"$f":"IF(SUM(AI162:BD162)=0,0,(Y162/SUMIF($AI$20:$BD$20,\"1\",AI162:BD162)))","v":0}]
[139,"Implantation","9123-8584 Québec  inc.","Projet d'efficacité énergétique - Immeuble Manoir Metcalfe",1,"06-Montréal","Westmount","AN","SU","                     -    $","2016-03-24","2017-10-15",355832.77,null,null,null,null,null,null,null,null,null,null,null,null,"                                                              -    $",null,"QC-Québec","Oui",25.2140369,0,0,"Non","Oui",null,null,null,null,null,null,null,null,null,null,null,null,null,null,null,null,null,null,null,null,null,null,null,{"$f":"IF(SUM(AI163:BD163)=0,0,(Y163/SUMIF($AI$20:$BD$20,\"1\",AI163:BD163)))","v":0}]
[140,"Implantation","Société de l'assurance automobile du Québec","Optimisation de la récupération d'énergie",1,"03-Capitale-Nationale","Québec","AN","SU","                     -    $",null,"2017-12-01",272670,null,null,null,null,null,null,null,null,null,null,null,null,"                                                              -    $",null,"QC-Québec","Oui",25,107.48724,0,"Non","Oui",null,null,null,null,null,null,null,null,null,null,null,null,null,null,null,null,null,null,null,null,null,null,null,{"$f":"IF(SUM(AI164:BD164)=0,0,(Y164/SUMIF($AI$20:$BD$20,\"1\",AI164:BD164)))","v":0}]
[141,"Implantation","Ville de Montréal","Mise à niveau de l'aréna Francis-Bouillon",1,"06-Montréal","Montréal","AC","SU",137551.91,"2017-05-26","2018-06-29",428923.21,null,null,null,null,34387.980000000003,103163.93,null,null,null,null,null,34387.980000000003,137551.91,null,"QC-Québec","Oui",19.7539616,142.598738,0,"Non","Oui",0,null,0,null,0,null,0,null,0,null,null,null,null,null,null,null,null,null,null,null,null,null,null,{"$f":"IF(SUM(AI165:BD165)=0,0,(Y165/SUMIF($AI$20:$BD$20,\"1\",AI165:BD165)))","v":0}]
[142,"Implantation","CIUSSS Capitale-Nationale","Projet d’efficacité énergétique - Hôpital Sainte-Anne-de-Beaupré",1,"03-Capitale-Nationale","Beaupré","AC","SU",754631.19,"2016-09-14","2019-02-15",2200224.83,null,null,null,377315.6,188657.8,188657.79,null,null,null,null,null,565973.4,754631.19,null,"QC-Québec","Oui",20,243.475696,571.38581399999998,"Non","Oui",0,null,0,null,0,null,0,null,0,null,null,null,null,null,null,null,null,null,null,null,null,null,null,{"$f":"IF(SUM(AI166:BD166)=0,0,(Y166/SUMIF($AI$20:$BD$20,\"1\",AI166:BD166)))","v":0}]
[143,"Implantation","Metro Richelieu inc.","Adonis (Métro) Griffintown",1,"06-Montréal","Montréal","RF","SU","                     -    $",null,"2017-06-20",131351,null,null,null,null,null,null,null,null,null,null,null,null,"                                                              -    $",null,"QC-Québec","Oui",20,97.103490699999995,0,"Non","Oui",null,null,null,null,null,null,null,null,null,null,null,null,null,null,null,null,null,null,null,null,null,null,null,{"$f":"IF(SUM(AI167:BD167)=0,0,(Y167/SUMIF($AI$20:$BD$20,\"1\",AI167:BD167)))","v":0}]
[144,"Analyse","L'Inter Marché","Étude de faisabilité - Efficacité énergétique dans un supermarché",1,"06-Montréal","Montréal","TE","SU",2500,"2016-01-15","2016-03-14",5000,null,null,2500,null,null,null,null,null,null,null,null,2500,2500,null,"QC-Québec","Oui",20.7085838,0,0,"Non","Oui",null,null,null,null,null,null,null,null,null,null,null,null,null,null,null,null,null,null,null,null,null,null,null,{"$f":"IF(SUM(AI168:BD168)=0,0,(Y168/SUMIF($AI$20:$BD$20,\"1\",AI168:BD168)))","v":0}]
[145,"Analyse","Société de développement de la Baie-James","Rallongement de ligne électrique pour le relais routier",1,"10-Nord-du-Québec","Matagami","TE","SU",25350,"2016-02-10","2016-04-01",63300,null,null,12675,3150,null,null,null,null,null,null,null,15825,15825,null,"QC-Québec","Oui",0,0,0,"Non","Oui",null,null,null,null,null,null,null,null,null,null,null,null,null,null,null,null,null,null,null,null,null,null,null,{"$f":"IF(SUM(AI169:BD169)=0,0,(Y169/SUMIF($AI$20:$BD$20,\"1\",AI169:BD169)))","v":0}]
[146,"Implantation","Société de développement de la Baie-James","Raccordement au réseau électrique pour le Relais routier du km 381",1,"10-Nord-du-Québec","Matagami","AC","SU",1264692.69,"2017-06-08","2018-11-23",3564204,null,null,null,null,632346.34,632346.35,null,null,null,null,null,316173.17,1264692.69,null,"QC-Québec","Oui",25,0,1472.03574,"Non","Oui",0,null,0,null,0,null,0,null,0,null,null,null,null,null,null,null,null,null,null,null,null,null,null,{"$f":"IF(SUM(AI170:BD170)=0,0,(Y170/SUMIF($AI$20:$BD$20,\"1\",AI170:BD170)))","v":0}]
[147,"Implantation","Municipalité du Canton de Saint-Camille","Conversion partielle du système de chauffage au mazout à un système de chauffage biénergie à l’électricité, zoné, et au mazout",1,"05-Estrie","Saint-Camille","AC","SU",38775.08,"2016-02-19","2016-04-01",59350,null,null,null,38775.08,null,null,null,null,null,null,null,38775.08,38775.08,null,"QC-Québec","Oui",25,0,31.020065200000001,"Non","Oui",0,null,0,null,0,null,0,null,0,null,null,null,null,null,null,null,null,null,null,null,null,null,null,{"$f":"IF(SUM(AI171:BD171)=0,0,(Y171/SUMIF($AI$20:$BD$20,\"1\",AI171:BD171)))","v":0}]
[148,"Implantation","CIUSSS Capitale-Nationale","Projet d'efficacité énergétique",1,"03-Capitale-Nationale","Saint-Pierre-de-l'Île-d'Orléans","AC","SU",42132.02,"2016-06-20","2018-09-01",91503,null,null,null,10533,21066,10533.02,null,null,null,null,null,31599,42132.02,null,"QC-Québec","Oui",20,33.705615999999999,0,"Non","Oui",0,null,0,null,0,null,0,null,0,null,null,null,null,null,null,null,null,null,null,null,null,null,null,{"$f":"IF(SUM(AI172:BD172)=0,0,(Y172/SUMIF($AI$20:$BD$20,\"1\",AI172:BD172)))","v":0}]
[149,"Implantation","Pourvoirie Poulin de Courval inc.","Implantation d'un système d'énergie renouvelable",1,"02-Saguenay─Lac-Saint-Jean","Sainte-Rose-du-Nord","AC","SU",233180.29,"2016-04-13","2018-09-20",450000,null,null,null,58295.07,null,174885.22,null,null,null,null,null,58295.07,233180.29,null,"QC-Québec","Oui",25,0,186.54423199999999,"Non","Oui",0,null,0,null,0,null,0,null,0,null,null,null,null,null,null,null,null,null,null,null,null,null,null,{"$f":"IF(SUM(AI173:BD173)=0,0,(Y173/SUMIF($AI$20:$BD$20,\"1\",AI173:BD173)))","v":0}]
[150,"Implantation","Commission scolaire des Patriotes","Conversion du système de chauffage au mazout léger vers un système électrique - École Jacques Rocheleau",1,"16-Montérégie","Saint-Basile-le-Grand","AC","SU",138365.16,"2016-07-25","2019-02-28",195711,null,null,null,34591.29,null,103773.87,null,null,null,null,null,34591.29,138365.16,null,"QC-Québec","Oui",20,0,124.196122,"Non","Oui",0,null,0,null,0,null,0,null,0,null,null,null,null,null,null,null,null,null,null,null,null,null,null,{"$f":"IF(SUM(AI174:BD174)=0,0,(Y174/SUMIF($AI$20:$BD$20,\"1\",AI174:BD174)))","v":0}]
[151,"Implantation","Commission scolaire des Patriotes","Projet d'efficacité énergétique-École L'Arpège",1,"16-Montérégie","Sainte-Julie","AC","SU",9489.5300000000007,"2016-06-29","2018-12-10",26148,null,null,null,2372.38,4744.76,2372.39,null,null,null,null,null,7117.14,9489.5300000000007,null,"QC-Québec","Oui",20,7.5916271399999999,0,"Non","Oui",0,null,0,null,0,null,0,null,0,null,null,null,null,null,null,null,null,null,null,null,null,null,null,{"$f":"IF(SUM(AI175:BD175)=0,0,(Y175/SUMIF($AI$20:$BD$20,\"1\",AI175:BD175)))","v":0}]
[152,"Implantation","Commission scolaire des Patriotes","Conversion du système de chauffage au mazout léger vers un système électrique - École Le Rucher",1,"16-Montérégie","Sainte-Julie","AC","SU",63110.74,"2016-07-29","2019-02-28",265056,null,null,null,15777.68,null,47222.11,null,null,null,null,null,47333.04,62999.79,null,"QC-Québec","Oui",20,0,50.399832699999997,"Non","Oui",0,null,0,null,0,null,0,null,0,null,null,null,null,null,null,null,null,null,null,null,null,null,null,{"$f":"IF(SUM(AI176:BD176)=0,0,(Y176/SUMIF($AI$20:$BD$20,\"1\",AI176:BD176)))","v":0}]
[153,"Implantation","Commission scolaire des Patriotes","Conversion du système de chauffage au mazout léger vers un système électrique - École de l'Odyssée",1,"16-Montérégie","Saint-Amable","AC","SU",39250.730000000003,"2016-06-27","2019-02-28",144598,null,null,null,9812.68,null,29438.05,null,null,null,null,null,9812.68,39250.730000000003,null,"QC-Québec","Oui",20,31.400582700000001,0,"Non","Oui",0,null,0,null,0,null,0,null,0,null,null,null,null,null,null,null,null,null,null,null,null,null,null,{"$f":"IF(SUM(AI177:BD177)=0,0,(Y177/SUMIF($AI$20:$BD$20,\"1\",AI177:BD177)))","v":0}]
[154,"Implantation","Commission scolaire des Patriotes","Conversion du système de chauffage au mazout léger vers un système électrique - École Au-Fil-de-l'Eau (pavillon Desrochers)",1,"16-Montérégie","Mont-Saint-Hilaire","AC","SU",37770.230000000003,"2016-06-27","2018-12-10",83789,null,null,null,9442.56,18885.12,9442.5499999999993,null,null,null,null,null,28327.68,37770.230000000003,null,"QC-Québec","Oui",20,0,30.216182799999999,"Non","Oui",0,null,0,null,0,null,0,null,0,null,null,null,null,null,null,null,null,null,null,null,null,null,null,{"$f":"IF(SUM(AI178:BD178)=0,0,(Y178/SUMIF($AI$20:$BD$20,\"1\",AI178:BD178)))","v":0}]
[155,"Implantation","Commission scolaire des Patriotes","Conversion du système de chauffage au mazout léger vers un système électrique - École Louis-Hippolyte-Lafontaine",1,"16-Montérégie","Boucherville","AC","SU",117454.54,"2016-08-01","2019-01-30",169524,null,null,null,29363.64,null,88090.9,null,null,null,null,null,88090.92,117454.54,null,"QC-Québec","Oui",20,0,93.963634799999994,"Non","Oui",0,null,0,null,0,null,0,null,0,null,null,null,null,null,null,null,null,null,null,null,null,null,null,{"$f":"IF(SUM(AI179:BD179)=0,0,(Y179/SUMIF($AI$20:$BD$20,\"1\",AI179:BD179)))","v":0}]
[156,"Implantation","Commission scolaire des Patriotes","Conversion du système de chauffage au mazout léger vers un système électrique - École Ludger-Duvernay",1,"16-Montérégie","Verchères","AC","SU",102577.82,"2016-07-29","2018-12-10",172061,null,null,null,25644.46,51288.92,25644.44,null,null,null,null,null,76933.38,102577.82,null,"QC-Québec","Oui",20,0,82.062258999999997,"Non","Oui",0,null,0,null,0,null,0,null,0,null,null,null,null,null,null,null,null,null,null,null,null,null,null,{"$f":"IF(SUM(AI180:BD180)=0,0,(Y180/SUMIF($AI$20:$BD$20,\"1\",AI180:BD180)))","v":0}]
[157,"Implantation","Commission scolaire des Patriotes","Projet d'efficacité énergétique - École secondaire Mont-Bruno",1,"16-Montérégie","Saint-Bruno-de-Montarville","AC","SU",93899.13,"2016-08-16","2019-02-28",193120,null,null,null,23474.78,null,70424.350000000006,null,null,null,null,null,23474.78,93899.13,null,"QC-Québec","Oui",20,75.119300300000006,0,"Non","Oui",0,null,0,null,0,null,0,null,0,null,null,null,null,null,null,null,null,null,null,null,null,null,null,{"$f":"IF(SUM(AI181:BD181)=0,0,(Y181/SUMIF($AI$20:$BD$20,\"1\",AI181:BD181)))","v":0}]
[158,"Implantation","Commission scolaire des Patriotes","Conversion partielle du système de chauffage au mazout léger vers un système électrique - École De la Broquerie",1,"16-Montérégie","Boucherville","AC","SU",93502.09,"2016-08-16","2019-02-28",151290,null,null,null,23375.52,null,70126.570000000007,null,null,null,null,null,23375.52,93502.09,null,"QC-Québec","Oui",20,0,74.801670700000003,"Non","Oui",0,null,0,null,0,null,0,null,0,null,null,null,null,null,null,null,null,null,null,null,null,null,null,{"$f":"IF(SUM(AI182:BD182)=0,0,(Y182/SUMIF($AI$20:$BD$20,\"1\",AI182:BD182)))","v":0}]
[159,"Implantation","Commission scolaire des Patriotes","Conversion du système de chauffage au mazout léger vers un système électrique - École Notre-Dame 1",1,"16-Montérégie","Otterburn Park","AC","SU",115632.81,"2016-08-16","2018-12-10",217295,null,null,null,28908.2,57816.4,28908.21,null,null,null,null,null,86724.6,115632.81,null,"QC-Québec","Oui",20,0,92.506250100000003,"Non","Oui",0,null,0,null,0,null,0,null,0,null,null,null,null,null,null,null,null,null,null,null,null,null,null,{"$f":"IF(SUM(AI183:BD183)=0,0,(Y183/SUMIF($AI$20:$BD$20,\"1\",AI183:BD183)))","v":0}]
[160,"Implantation","Commission scolaire des Patriotes","Conversion du système de chauffage au mazout léger vers un système électrique - École Notre-Dame 2",1,"16-Montérégie","Otterburn Park","AC","SU",104711.75,"2016-08-16","2019-02-28",190850,null,null,null,26177.94,52355.88,26177.93,null,null,null,null,null,78533.820000000007,104711.75,null,"QC-Québec","Oui",20,0,83.769397799999993,"Non","Oui",0,null,0,null,0,null,0,null,0,null,null,null,null,null,null,null,null,null,null,null,null,null,null,{"$f":"IF(SUM(AI184:BD184)=0,0,(Y184/SUMIF($AI$20:$BD$20,\"1\",AI184:BD184)))","v":0}]
[161,"Implantation","Commission scolaire des Patriotes","Conversion du système de chauffage au mazout léger vers un système électrique - École de l'Envolée",1,"16-Montérégie","Saint-Amable","AC","SU",102099.68,"2016-08-16","2018-12-10",168826,null,null,null,25524.92,null,76574.759999999995,null,null,null,null,null,76574.759999999995,102099.68,null,"QC-Québec","Oui",20,0,81.679741300000003,"Non","Oui",0,null,0,null,0,null,0,null,0,null,null,null,null,null,null,null,null,null,null,null,null,null,null,{"$f":"IF(SUM(AI185:BD185)=0,0,(Y185/SUMIF($AI$20:$BD$20,\"1\",AI185:BD185)))","v":0}]
[162,"Implantation","Commission scolaire des Patriotes","Projet d'efficacité énergétique - École Ozias-Leduc",1,"16-Montérégie","Mont-Saint-Hilaire","AC","SU",77861.87,"2016-08-16","2018-12-10",142000,null,null,null,19465.47,38930.94,19465.46,null,null,null,null,null,58396.41,77861.87,null,"QC-Québec","Oui",20,62.2894948,0,"Non","Oui",0,null,0,null,0,null,0,null,0,null,null,null,null,null,null,null,null,null,null,null,null,null,null,{"$f":"IF(SUM(AI186:BD186)=0,0,(Y186/SUMIF($AI$20:$BD$20,\"1\",AI186:BD186)))","v":0}]
[163,"Implantation","Commission scolaire des Patriotes","Conversion du système de chauffage au mazout léger vers un système électrique - École Père-Marquette",1,"16-Montérégie","Boucherville","AC","SU",197590.61,"2016-08-16","2019-02-28",507782,null,null,null,49397.65,null,130343.46,null,null,null,null,null,148192.95000000001,179741.11,null,"QC-Québec","Oui",20,2.7326999999999998E-3,157.90838400000001,"Non","Oui",0,null,0,null,0,null,0,null,0,null,null,null,null,null,null,null,null,null,null,null,null,null,null,{"$f":"IF(SUM(AI187:BD187)=0,0,(Y187/SUMIF($AI$20:$BD$20,\"1\",AI187:BD187)))","v":0}]
[164,"Implantation","Commission scolaire des Patriotes","Projet d'efficacité énergétique - École De Mortagne",1,"16-Montérégie","Boucherville","AC","SU",694013.58,"2016-08-16","2019-01-30",1067840,null,null,null,173503.4,null,520510.18,null,null,null,null,null,520510.2,694013.58,null,"QC-Québec","Oui",20,387.77164099999999,228.19241,"Non","Oui",0,null,0,null,0,null,0,null,0,null,null,null,null,null,null,null,null,null,null,null,null,null,null,{"$f":"IF(SUM(AI188:BD188)=0,0,(Y188/SUMIF($AI$20:$BD$20,\"1\",AI188:BD188)))","v":0}]
[165,"Implantation","Commission scolaire des Patriotes","Projet d'efficacité énergétique - École secondaire Polybel",1,"16-Montérégie","Beloeil","AC","SU",419693.84,"2016-08-16","2018-12-10",627640,null,null,null,104923.46,104923.46,209846.92,null,null,null,null,null,314770.38,419693.84,null,"QC-Québec","Oui",20,338.048923,0,"Non","Oui",0,null,0,null,0,null,0,null,0,null,null,null,null,null,null,null,null,null,null,null,null,null,null,{"$f":"IF(SUM(AI189:BD189)=0,0,(Y189/SUMIF($AI$20:$BD$20,\"1\",AI189:BD189)))","v":0}]
[166,"Implantation","Commission scolaire des Patriotes","Conversion du système de chauffage au mazout léger vers un système électrique - École des Trois-Temps",1,"16-Montérégie","Saint-Marc-sur-Richelieu","AC","SU",105646.2,"2016-08-16","2018-12-10",201359,null,null,null,26411.55,52823.1,26411.55,null,null,null,null,null,79234.649999999994,105646.2,null,"QC-Québec","Oui",20,0,84.516956100000002,"Non","Oui",0,null,0,null,0,null,0,null,0,null,null,null,null,null,null,null,null,null,null,null,null,null,null,{"$f":"IF(SUM(AI190:BD190)=0,0,(Y190/SUMIF($AI$20:$BD$20,\"1\",AI190:BD190)))","v":0}]
[167,"Implantation","Commission scolaire des Patriotes","Conversion du système de chauffage au mazout léger vers un système électrique - École de Salaberry",1,"16-Montérégie","Chambly","AC","SU",171239.54,"2016-08-16","2018-12-10",260897,null,null,null,42809.88,85619.76,42809.9,null,null,null,null,null,128429.64,171239.54,null,"QC-Québec","Oui",20,16.835034799999999,121.573663,"Non","Oui",0,null,0,null,0,null,0,null,0,null,null,null,null,null,null,null,null,null,null,null,null,null,null,{"$f":"IF(SUM(AI191:BD191)=0,0,(Y191/SUMIF($AI$20:$BD$20,\"1\",AI191:BD191)))","v":0}]
[168,"Implantation","Commission scolaire des Patriotes","Conversion du système de chauffage au mazout léger vers un système électrique - École Du Carrousel",1,"16-Montérégie","Varennes","AC","SU",120656.56,"2016-08-16","2019-02-28",168465,null,null,null,30164.14,null,90492.42,null,null,null,null,null,30164.14,120656.56,null,"QC-Québec","Oui",20,0,97.163741700000003,"Non","Oui",0,null,0,null,0,null,0,null,0,null,null,null,null,null,null,null,null,null,null,null,null,null,null,{"$f":"IF(SUM(AI192:BD192)=0,0,(Y192/SUMIF($AI$20:$BD$20,\"1\",AI192:BD192)))","v":0}]
[169,"Implantation","Commission scolaire des Patriotes","Conversion du système de chauffage au mazout léger vers un système électrique - École St-Charles",1,"16-Montérégie","Saint-Charles-sur-Richelieu","AC","SU",42810.58,"2016-08-16","2018-12-10",93814,null,null,null,10702.64,null,32107.94,null,null,null,null,null,32107.919999999998,42810.58,null,"QC-Québec","Oui",20,0,34.2484635,"Non","Oui",0,null,0,null,0,null,0,null,0,null,null,null,null,null,null,null,null,null,null,null,null,null,null,{"$f":"IF(SUM(AI193:BD193)=0,0,(Y193/SUMIF($AI$20:$BD$20,\"1\",AI193:BD193)))","v":0}]
[170,"Implantation","Commission scolaire des Patriotes","Projet d’efficacité énergétique - Le Pavillon Saint-Basile de l’école Jacques Rocheleau",1,"16-Montérégie","Saint-Basile-le-Grand","AC","SU",5963.17,"2016-08-16","2019-02-28",198861,null,null,null,16355.5,null,null,null,null,null,null,null,16355.5,5963.17,null,"QC-Québec","Oui",20,4.7705330000000004,52.337580500000001,"Non","Oui",0,null,0,null,0,null,0,null,0,null,null,null,null,null,null,null,null,null,null,null,null,null,null,{"$f":"IF(SUM(AI194:BD194)=0,0,(Y194/SUMIF($AI$20:$BD$20,\"1\",AI194:BD194)))","v":0}]
[171,"Implantation","Commission scolaire des Patriotes","Conversion du système de chauffage au mazout léger vers un système électrique - École du Parchemin",1,"16-Montérégie","Carignan","AC","SU",61798.82,"2016-08-16","2018-12-10",152430,null,null,null,15449.7,30899.4,15449.72,null,null,null,null,null,46349.1,61798.82,null,"QC-Québec","Oui",20,0,49.439058600000003,"Non","Oui",0,null,0,null,0,null,0,null,0,null,null,null,null,null,null,null,null,null,null,null,null,null,null,{"$f":"IF(SUM(AI195:BD195)=0,0,(Y195/SUMIF($AI$20:$BD$20,\"1\",AI195:BD195)))","v":0}]
[172,"Implantation","Commission scolaire des Patriotes","Conversion du système de chauffage au mazout léger vers un système électrique - École François-Williams",1,"16-Montérégie","Saint-Amable","AC","SU",98089.11,"2016-08-16","2018-12-10",159407,null,null,null,24522.28,49044.56,24522.27,null,null,null,null,null,73566.84,98089.11,null,"QC-Québec","Oui",20,0,78.471288599999994,"Non","Oui",0,null,0,null,0,null,0,null,0,null,null,null,null,null,null,null,null,null,null,null,null,null,null,{"$f":"IF(SUM(AI196:BD196)=0,0,(Y196/SUMIF($AI$20:$BD$20,\"1\",AI196:BD196)))","v":0}]
[173,"Implantation","Commission scolaire des Patriotes","Conversion du système de chauffage au mazout léger vers un système électrique - École Georges-Étienne-Cartier",1,"16-Montérégie","Saint-Antoine-sur-Richelieu","AC","SU",76192.61,"2016-08-16","2019-01-30",155871,null,null,null,19048.150000000001,null,57144.46,null,null,null,null,null,57144.45,76192.61,null,"QC-Québec","Oui",20,0,60.9540893,"Non","Oui",0,null,0,null,0,null,0,null,0,null,null,null,null,null,null,null,null,null,null,null,null,null,null,{"$f":"IF(SUM(AI197:BD197)=0,0,(Y197/SUMIF($AI$20:$BD$20,\"1\",AI197:BD197)))","v":0}]
[174,"Implantation","Commission scolaire des Patriotes","Projet d'efficacité énergétique - École d'éducation internationale",1,"16-Montérégie","McMasterville","AC","SU",210125.64,"2016-08-16","2019-02-28",425432,null,null,null,52531.41,null,157594.23000000001,null,null,null,null,null,52531.41,210125.64,null,"QC-Québec","Oui",20,178.296267,0,"Non","Oui",0,null,0,null,0,null,0,null,0,null,null,null,null,null,null,null,null,null,null,null,null,null,null,{"$f":"IF(SUM(AI198:BD198)=0,0,(Y198/SUMIF($AI$20:$BD$20,\"1\",AI198:BD198)))","v":0}]
[175,"Implantation","Fabrique Saint-André-Avellin","Remplacement des chaudières au mazout léger par des systèmes électriques zonés",1,"07-Outaouais","Saint-André-Avellin","TE","SU",84386.84,"2016-02-24","2017-11-27",117447.02,null,null,null,63290.13,21096.71,null,null,null,null,null,null,84386.84,84386.84,null,"QC-Québec","Oui",25,0,67.559214699999998,"Non","Oui",0,null,0,null,0,null,23.6272664,null,67.190038700000002,null,null,null,null,null,null,null,null,null,null,null,null,null,null,{"$f":"IF(SUM(AI199:BD199)=0,0,(Y199/SUMIF($AI$20:$BD$20,\"1\",AI199:BD199)))","v":{"$error":"#DIV/0!"}}]
[176,"Implantation","La Fabrique du Très-Saint-Sacrement","Remplacement du système de chauffage au gaz naturel par des systèmes électriques zonés",1,"03-Capitale-Nationale","Québec","AN","SU","                     -    $","2016-03-16","2018-10-01",240450,null,null,null,null,null,null,null,null,null,null,null,null,"                                                              -    $",null,"QC-Québec","Oui",25,0,199.82855599999999,"Non","Oui",null,null,null,null,null,null,null,null,null,null,null,null,null,null,null,null,null,null,null,null,null,null,null,{"$f":"IF(SUM(AI200:BD200)=0,0,(Y200/SUMIF($AI$20:$BD$20,\"1\",AI200:BD200)))","v":0}]
[177,"Implantation","CIUSSS Capitale-Nationale","Projet d'efficacité énergétique",1,"03-Capitale-Nationale","Québec","AN","SU","                     -    $",null,"2018-02-01",655711,null,null,null,null,null,null,null,null,null,null,null,null,"                                                              -    $",null,"QC-Québec","Oui",20,122.36296900000001,0,"Non","Oui",null,null,null,null,null,null,null,null,null,null,null,null,null,null,null,null,null,null,null,null,null,null,null,{"$f":"IF(SUM(AI201:BD201)=0,0,(Y201/SUMIF($AI$20:$BD$20,\"1\",AI201:BD201)))","v":0}]
[178,"Analyse","OBNL Le Colibri Lac-Mégantic","Étude de faisabilité - Le Colibri - Lac Mégantic",1,"05-Estrie","Lac-Mégantic","RF","SU","                     -    $",null,"2016-03-31",69900,null,null,null,null,null,null,null,null,null,null,null,null,"                                                              -    $",null,"QC-Québec","Oui",0,0,0,"Non","Oui",null,null,null,null,null,null,null,null,null,null,null,null,null,null,null,null,null,null,null,null,null,null,null,{"$f":"IF(SUM(AI202:BD202)=0,0,(Y202/SUMIF($AI$20:$BD$20,\"1\",AI202:BD202)))","v":0}]
[179,"Implantation","L'Éternel SPA, SA","Ajout de chauffage électrique pour l'eau des spa",1,"02-Saguenay─Lac-Saint-Jean","Saint-David-de-Falardeau","AN","SU","                     -    $","2016-05-16","2017-06-15",39800,null,null,null,null,null,null,null,null,null,null,null,null,"                                                              -    $",null,"QC-Québec","Oui",20,0,48.726198599999996,"Non","Oui",null,null,null,null,null,null,null,null,null,null,null,null,null,null,null,null,null,null,null,null,null,null,null,{"$f":"IF(SUM(AI203:BD203)=0,0,(Y203/SUMIF($AI$20:$BD$20,\"1\",AI203:BD203)))","v":0}]
[180,"Implantation","Timbercreek Asset Management inc.","Efficacité énergétique au 1212, rue Des Pins",1,"06-Montréal","Montréal","AC","SU",505431.41,"2016-10-25","2017-04-01",1033200,null,null,null,252715.7,252715.71,null,null,null,null,null,null,505431.41,505431.41,null,"QC-Québec","Oui",37,404.34512999999998,0,"Non","Oui",0,null,0,null,0,null,0,null,0,null,null,null,null,null,null,null,null,null,null,null,null,null,null,{"$f":"IF(SUM(AI204:BD204)=0,0,(Y204/SUMIF($AI$20:$BD$20,\"1\",AI204:BD204)))","v":0}]
[181,"Implantation","CIUSSS Capitale-Nationale","Projet d’efficacité énergétique du CSSS Source Nord",1,"03-Capitale-Nationale","Québec","AC","SU",329179.82,"2017-01-13","2018-08-01",675546,null,null,null,82294.960000000006,164589.92000000001,82294.94,null,null,null,null,null,246884.88,329179.82,null,"QC-Québec","Oui",20,280.428089,0,"Non","Oui",0,null,0,null,0,null,0,null,0,null,null,null,null,null,null,null,null,null,null,null,null,null,null,{"$f":"IF(SUM(AI205:BD205)=0,0,(Y205/SUMIF($AI$20:$BD$20,\"1\",AI205:BD205)))","v":0}]
[182,"Analyse","Groupe de la Côte inc.","Analyse de la production de vapeur de la buanderie industrielle",1,"09-Côte-Nord","Baie-Comeau","AN","SU","                     -    $","2016-01-22","2016-03-15",4500,null,null,null,null,null,null,null,null,null,null,null,null,"                                                              -    $",null,"QC-Québec","Oui",0,0,0,"Non","Oui",null,null,null,null,null,null,null,null,null,null,null,null,null,null,null,null,null,null,null,null,null,null,null,{"$f":"IF(SUM(AI206:BD206)=0,0,(Y206/SUMIF($AI$20:$BD$20,\"1\",AI206:BD206)))","v":0}]
[183,"Implantation","CIUSSS Capitale-Nationale","Projet d’efficacité énergétique – Hôpital Chauveau",1,"03-Capitale-Nationale","Québec","AC","SU",108631.53,"2016-10-17","2018-11-01",247227.84,null,null,null,27157.88,42315.76,39157.89,null,null,null,null,null,69473.64,108631.53,null,"QC-Québec","Oui",20,39.691974299999998,47.213251,"Non","Oui",0,null,0,null,0,null,0,null,0,null,null,null,null,null,null,null,null,null,null,null,null,null,null,{"$f":"IF(SUM(AI207:BD207)=0,0,(Y207/SUMIF($AI$20:$BD$20,\"1\",AI207:BD207)))","v":0}]
[184,"Implantation","Ivanhoé Cambridge inc.","Remise au point des systèmes mécaniques de Place Ste-Foy",1,"03-Capitale-Nationale","Québec","AN","SU","                     -    $",null,"2016-07-01","                                -    $",null,null,null,null,null,null,null,null,null,null,null,null,"                                                              -    $",null,"QC-Québec","Oui",0,0,0,"Non","Oui",null,null,null,null,null,null,null,null,null,null,null,null,null,null,null,null,null,null,null,null,null,null,null,{"$f":"IF(SUM(AI208:BD208)=0,0,(Y208/SUMIF($AI$20:$BD$20,\"1\",AI208:BD208)))","v":0}]
[185,"Implantation","9307-1306 Québec inc.","Projet d'efficacité énergétique - Manoir Manrese",1,"03-Capitale-Nationale","Québec","TE","SU",64604.83,"2016-03-23","2016-04-01",136226.26999999999,null,null,null,64604.84,null,null,null,null,null,null,null,64604.84,64604.83,null,"QC-Québec","Oui",13.321558,88.595875399999997,0,"Non","Oui",0,null,0,null,0,null,21.543805800000001,null,88.111744900000005,null,null,null,null,null,null,null,null,null,null,null,null,null,null,{"$f":"IF(SUM(AI209:BD209)=0,0,(Y209/SUMIF($AI$20:$BD$20,\"1\",AI209:BD209)))","v":{"$error":"#DIV/0!"}}]
[186,"Implantation","Le STJC inc.","C5525-STJC Implantation du produit écoAZUR",1,"12-Chaudière-Appalaches","Lévis","AC","SU",24517.7,"2016-06-09","2018-02-28",44000,null,null,null,null,24517.7,null,null,null,null,null,null,18388.259999999998,24517.7,null,"QC-Québec","Oui",10,20.674325499999998,0,"Non","Oui",0,null,0,null,0,null,0,null,0,null,null,null,null,null,null,null,null,null,null,null,null,null,null,{"$f":"IF(SUM(AI210:BD210)=0,0,(Y210/SUMIF($AI$20:$BD$20,\"1\",AI210:BD210)))","v":0}]
[187,"Implantation","Restaurant Normandin (2014) inc.","C5527-SHER Implantation du produit écoAZUR",1,"05-Estrie","Sherbrooke","AC","SU",34648.21,"2016-06-09","2016-04-01",62200,null,null,null,34648.21,null,null,null,null,null,null,null,34648.21,32383.03,null,"QC-Québec","Oui",10,35.292777200000003,0,"Non","Oui",0,null,0,null,0,null,0,null,0,null,null,null,null,null,null,null,null,null,null,null,null,null,null,{"$f":"IF(SUM(AI211:BD211)=0,0,(Y211/SUMIF($AI$20:$BD$20,\"1\",AI211:BD211)))","v":0}]
[188,"Implantation","Le Port-Jolien (2014) inc.","C5528-SJPJ Implantation du produit écoAZUR",1,"12-Chaudière-Appalaches","Saint-Jean-Port-Joli","AC","SU",40069.85,"2016-06-09","2016-04-01",67000,null,null,null,40069.85,null,null,null,null,null,null,null,40069.85,40069.85,null,"QC-Québec","Oui",10,32.055880199999997,0,"Non","Oui",0,null,0,null,0,null,0,null,0,null,null,null,null,null,null,null,null,null,null,null,null,null,null,{"$f":"IF(SUM(AI212:BD212)=0,0,(Y212/SUMIF($AI$20:$BD$20,\"1\",AI212:BD212)))","v":0}]
[189,"Implantation","Restaurant La rochette (2014) inc.","C5533-ROCHE Implantation du produit écoAZUR",1,"03-Capitale-Nationale","Québec","AC","SU",37736.92,"2016-06-09","2016-04-01",67000,null,null,null,37736.92,null,null,null,null,null,null,null,37736.92,37736.92,null,"QC-Québec","Oui",10,32.055880199999997,0,"Non","Oui",0,null,0,null,0,null,0,null,0,null,null,null,null,null,null,null,null,null,null,null,null,null,null,{"$f":"IF(SUM(AI213:BD213)=0,0,(Y213/SUMIF($AI$20:$BD$20,\"1\",AI213:BD213)))","v":0}]
[190,"Implantation","Restaurant Lévisien inc.","C5534-LVIS Implantation du produit écoAZUR",1,"12-Chaudière-Appalaches","Lévis","AC","SU",40069.85,"2016-06-09","2016-04-01",67000,null,null,null,40069.85,null,null,null,null,null,null,null,40069.85,40069.85,null,"QC-Québec","Oui",10,32.055880199999997,0,"Non","Oui",0,null,0,null,0,null,0,null,0,null,null,null,null,null,null,null,null,null,null,null,null,null,null,{"$f":"IF(SUM(AI214:BD214)=0,0,(Y214/SUMIF($AI$20:$BD$20,\"1\",AI214:BD214)))","v":0}]
[191,"Implantation","Restaurant Montmagny (2014) inc.","C5535-MONY Implantation du produit écoAZUR",1,"12-Chaudière-Appalaches","Montmagny","AC","SU",40069.85,"2016-06-09","2016-04-01",67000,null,null,null,40069.85,null,null,null,null,null,null,null,40069.85,32979.83,null,"QC-Québec","Oui",10,47.322252200000001,0,"Non","Oui",0,null,0,null,0,null,0,null,0,null,null,null,null,null,null,null,null,null,null,null,null,null,null,{"$f":"IF(SUM(AI215:BD215)=0,0,(Y215/SUMIF($AI$20:$BD$20,\"1\",AI215:BD215)))","v":0}]
[192,"Implantation","Restaurant Henri IV (2014) inc.","C5543-HRIV Implantation du produit écoAZUR",1,"03-Capitale-Nationale","Québec","AC","SU",11676,"2016-06-09","2018-02-28",35000,null,null,null,null,11676,null,null,null,null,null,null,8757,11676,null,"QC-Québec","Oui",10,9.3407980800000008,0,"Non","Oui",0,null,0,null,0,null,0,null,0,null,null,null,null,null,null,null,null,null,null,null,null,null,null,{"$f":"IF(SUM(AI216:BD216)=0,0,(Y216/SUMIF($AI$20:$BD$20,\"1\",AI216:BD216)))","v":0}]
[193,"Implantation","Restaurant Normandin Ste-Foy (2014) inc.","C5542-DVAL Implantation du produit écoAZUR",1,"03-Capitale-Nationale","Québec","AC","SU",9775,"2016-06-09","2018-02-28",22000,null,null,null,null,9775,null,null,null,null,null,null,7331.25,9775,null,"QC-Québec","Oui",10,9.3407980800000008,0,"Non","Oui",0,null,0,null,0,null,0,null,0,null,null,null,null,null,null,null,null,null,null,null,null,null,null,{"$f":"IF(SUM(AI217:BD217)=0,0,(Y217/SUMIF($AI$20:$BD$20,\"1\",AI217:BD217)))","v":0}]
[194,"Implantation","Le Rimouskais (2014) inc.","C5529-RIKI Implantation du produit écoAZUR",1,"01-Bas-Saint-Laurent","Rimouski","AC","SU",40069.85,"2016-06-09","2018-02-28",67000,null,null,null,null,40069.85,null,null,null,null,null,null,30052.38,40069.85,null,"QC-Québec","Oui",10,32.055880199999997,0,"Non","Oui",0,null,0,null,0,null,0,null,0,null,null,null,null,null,null,null,null,null,null,null,null,null,null,{"$f":"IF(SUM(AI218:BD218)=0,0,(Y218/SUMIF($AI$20:$BD$20,\"1\",AI218:BD218)))","v":0}]
[195,"Implantation","Restaurant St-Georges (2014) inc.","C5524-STGO Implantation du produit écoAZUR",1,"12-Chaudière-Appalaches","Saint-Georges","AC","SU",34648.21,"2016-06-09","2018-02-28",62200,null,null,null,null,34648.21,null,null,null,null,null,null,25986.15,34648.21,null,"QC-Québec","Oui",10,27.7185688,0,"Non","Oui",0,null,0,null,0,null,0,null,0,null,null,null,null,null,null,null,null,null,null,null,null,null,null,{"$f":"IF(SUM(AI219:BD219)=0,0,(Y219/SUMIF($AI$20:$BD$20,\"1\",AI219:BD219)))","v":0}]
[196,"Implantation","Restaurant Normandin (2014) inc.","C5526-CITÉ Implantation du produit écoAZUR",1,"03-Capitale-Nationale","Québec","AC","SU",34648.21,"2016-06-09","2016-04-01",62200,null,null,null,34648.21,null,null,null,null,null,null,null,34648.21,34648.21,null,"QC-Québec","Oui",10,27.7185688,0,"Non","Oui",0,null,0,null,0,null,0,null,0,null,null,null,null,null,null,null,null,null,null,null,null,null,null,{"$f":"IF(SUM(AI220:BD220)=0,0,(Y220/SUMIF($AI$20:$BD$20,\"1\",AI220:BD220)))","v":0}]
[197,"Implantation","Le Riveloup (2014) inc.","C5530-RVLOU Implantation du produit écoAZUR",1,"01-Bas-Saint-Laurent","Rivière-du-Loup","AC","SU",40069.85,"2016-06-09","2016-04-01",67000,null,null,null,40069.85,null,null,null,null,null,null,null,40069.85,35005.51,null,"QC-Québec","Oui",10,37.256220900000002,0,"Non","Oui",0,null,0,null,0,null,0,null,0,null,null,null,null,null,null,null,null,null,null,null,null,null,null,{"$f":"IF(SUM(AI221:BD221)=0,0,(Y221/SUMIF($AI$20:$BD$20,\"1\",AI221:BD221)))","v":0}]
[198,"Implantation","Restaurant le STJU inc.","C5531-STJU Implantation du produit écoAZUR",1,"16-Montérégie","Sainte-Julie","AC","SU",34648.21,"2016-06-09","2016-04-01",62200,null,null,null,34648.21,null,null,null,null,null,null,null,34648.21,33110.01,null,"QC-Québec","Oui",10,36.9396834,0,"Non","Oui",0,null,0,null,0,null,0,null,0,null,null,null,null,null,null,null,null,null,null,null,null,null,null,{"$f":"IF(SUM(AI222:BD222)=0,0,(Y222/SUMIF($AI$20:$BD$20,\"1\",AI222:BD222)))","v":0}]
[199,"Implantation","Restaurant BF (2014) inc.","C5532-STCA Implantation du produit écoAZUR",1,"03-Capitale-Nationale","Québec","AC","SU",40069.85,"2016-06-09","2016-04-01",67000,null,null,null,40069.85,null,null,null,null,null,null,null,40069.85,40069.85,null,"QC-Québec","Oui",10,32.055880199999997,0,"Non","Oui",0,null,0,null,0,null,0,null,0,null,null,null,null,null,null,null,null,null,null,null,null,null,null,{"$f":"IF(SUM(AI223:BD223)=0,0,(Y223/SUMIF($AI$20:$BD$20,\"1\",AI223:BD223)))","v":0}]
[200,"Implantation","Restaurant VB (2014) inc.","C5541-VBEL Implantation du produit écoAZUR",1,"03-Capitale-Nationale","Québec","AC","SU",11676,"2016-06-09","2016-04-01",49800,null,null,null,11676,null,null,null,null,null,null,null,11676,11676,null,"QC-Québec","Oui",10,13.846742600000001,0,"Non","Oui",0,null,0,null,0,null,0,null,0,null,null,null,null,null,null,null,null,null,null,null,null,null,null,{"$f":"IF(SUM(AI224:BD224)=0,0,(Y224/SUMIF($AI$20:$BD$20,\"1\",AI224:BD224)))","v":0}]
[201,"Implantation","Restaurant Normandin (2014) inc.","C5539-GRBY Implantation du produit écoAZUR",1,"16-Montérégie","Granby","AC","SU",24010.13,"2016-06-09","2018-02-28",45800,null,null,null,null,24010.13,null,null,null,null,null,null,18007.59,24010.13,null,"QC-Québec","Oui",10,19.2081056,0,"Non","Oui",0,null,0,null,0,null,0,null,0,null,null,null,null,null,null,null,null,null,null,null,null,null,null,{"$f":"IF(SUM(AI225:BD225)=0,0,(Y225/SUMIF($AI$20:$BD$20,\"1\",AI225:BD225)))","v":0}]
[202,"Implantation","Restaurant Deschambault (2014) inc.","C5538-DCHB Implantation du produit écoAZUR",1,"03-Capitale-Nationale","Deschambault-Grondines","AC","SU",40069.85,"2016-06-09","2016-04-01",67000,null,null,null,40069.85,null,null,null,null,null,null,null,40069.85,37352.400000000001,null,"QC-Québec","Oui",10,39.626203099999998,0,"Non","Oui",0,null,0,null,0,null,0,null,0,null,null,null,null,null,null,null,null,null,null,null,null,null,null,{"$f":"IF(SUM(AI226:BD226)=0,0,(Y226/SUMIF($AI$20:$BD$20,\"1\",AI226:BD226)))","v":0}]
[203,"Implantation","Le St-Anselme inc.","C5537-STAN Implantation du produit écoAZUR",1,"12-Chaudière-Appalaches","Saint-Anselme","AC","SU",40069.85,"2016-06-09","2016-04-01",67000,null,null,null,40069.85,null,null,null,null,null,null,null,40069.85,40069.85,null,"QC-Québec","Oui",10,32.055880199999997,0,"Non","Oui",0,null,0,null,0,null,0,null,0,null,null,null,null,null,null,null,null,null,null,null,null,null,null,{"$f":"IF(SUM(AI227:BD227)=0,0,(Y227/SUMIF($AI$20:$BD$20,\"1\",AI227:BD227)))","v":0}]
[204,"Implantation","Restaurant le Mont-Jolien inc.","C5536-MOJO Implantation du produit écoAZUR",1,"01-Bas-Saint-Laurent","Mont-Joli","AC","SU",40069.85,"2016-06-09","2016-04-01",67000,null,null,null,40069.85,null,null,null,null,null,null,null,40069.85,35487.599999999999,null,"QC-Québec","Oui",10,42.710264199999997,0,"Non","Oui",0,null,0,null,0,null,0,null,0,null,null,null,null,null,null,null,null,null,null,null,null,null,null,{"$f":"IF(SUM(AI228:BD228)=0,0,(Y228/SUMIF($AI$20:$BD$20,\"1\",AI228:BD228)))","v":0}]
[205,"Implantation","Restaurant BDJ (2014) inc.","C5544-ORSV Implantation du produit écoAZUR",1,"03-Capitale-Nationale","Québec","AC","SU",9775,"2016-06-09","2018-02-28",22000,null,null,null,null,9775,null,null,null,null,null,null,7331.25,9775,null,"QC-Québec","Oui",10,9.4827508399999996,0,"Non","Oui",0,null,0,null,0,null,0,null,0,null,null,null,null,null,null,null,null,null,null,null,null,null,null,{"$f":"IF(SUM(AI229:BD229)=0,0,(Y229/SUMIF($AI$20:$BD$20,\"1\",AI229:BD229)))","v":0}]
[206,"Implantation","Le Gauvinois (2014) inc.","C5545-JGAU Implantation du produit écoAZUR",1,"03-Capitale-Nationale","Québec","AC","SU",9775,"2016-06-09","2018-02-28",22000,null,null,null,null,9775,null,null,null,null,null,null,7331.25,9775,null,"QC-Québec","Oui",10,9.3407980800000008,0,"Non","Oui",0,null,0,null,0,null,0,null,0,null,null,null,null,null,null,null,null,null,null,null,null,null,null,{"$f":"IF(SUM(AI230:BD230)=0,0,(Y230/SUMIF($AI$20:$BD$20,\"1\",AI230:BD230)))","v":0}]
[207,"Implantation","Le Beauport Ste-Anne (2014) inc.","C5546-BSTA Implantation du produit écoAZUR",1,"03-Capitale-Nationale","Québec","AC","SU",9775,"2016-06-09","2018-02-28",22000,null,null,null,null,9775,null,null,null,null,null,null,7331.25,9775,null,"QC-Québec","Oui",10,9.3407980800000008,0,"Non","Oui",0,null,0,null,0,null,0,null,0,null,null,null,null,null,null,null,null,null,null,null,null,null,null,{"$f":"IF(SUM(AI231:BD231)=0,0,(Y231/SUMIF($AI$20:$BD$20,\"1\",AI231:BD231)))","v":0}]
[208,"Implantation","Restaurant Normandin (2014) inc.","C5547-TRIO Implantation du produit écoAZUR",1,"04-Mauricie","Trois-Rivières","AC","SU",34648.21,"2016-06-09","2016-04-01",62200,null,null,null,34648.21,null,null,null,null,null,null,null,34648.21,31368.37,null,"QC-Québec","Oui",10,37.723084900000003,0,"Non","Oui",0,null,0,null,0,null,0,null,0,null,null,null,null,null,null,null,null,null,null,null,null,null,null,{"$f":"IF(SUM(AI232:BD232)=0,0,(Y232/SUMIF($AI$20:$BD$20,\"1\",AI232:BD232)))","v":0}]
[209,"Implantation","Alimentation Sébastien Blackburn inc.","Ajout de chauffage électrique radiant",1,"02-Saguenay─Lac-Saint-Jean","Saguenay","TE","SU",23776.14,"2016-03-14","2016-04-01",36228,null,null,null,23776.14,null,null,null,null,null,null,null,23776.14,23776.14,null,"QC-Québec","Oui",20,0,35.324556800000003,"Non","Oui",0,null,0,null,0,null,29.7266762,null,35.131526399999998,null,null,null,null,null,null,null,null,null,null,null,null,null,null,{"$f":"IF(SUM(AI233:BD233)=0,0,(Y233/SUMIF($AI$20:$BD$20,\"1\",AI233:BD233)))","v":{"$error":"#DIV/0!"}}]
[210,"Implantation","Restaurant Normandin (2014) inc.","C5540-STHY Implantation du produit écoAZUR",1,"16-Montérégie","Saint-Hyacinthe","AC","SU",24010.13,"2016-06-09","2018-02-14",45800,null,null,null,null,24010.13,null,null,null,null,null,null,18007.59,24010.13,null,"QC-Québec","Oui",10,19.2081056,0,"Non","Oui",0,null,0,null,0,null,0,null,0,null,null,null,null,null,null,null,null,null,null,null,null,null,null,{"$f":"IF(SUM(AI234:BD234)=0,0,(Y234/SUMIF($AI$20:$BD$20,\"1\",AI234:BD234)))","v":0}]
[211,"Implantation","Centre Intégré Santé Service Sociaux des Îles","Récupération chaleur résiduelle centrale thermique",1,"11-Gaspésie--Îles-de-la-Madeleine","Les Îles-de-la-Madeleine","AC","SU",1944282.88,"2017-03-22","2018-05-30",3621138,null,null,null,null,972141.44,972141.44,null,null,null,null,null,972141.44,1944282.88,null,"QC-Québec","Oui",25,1555.4263100000001,0,"Non","Oui",0,null,0,null,0,null,0,null,0,null,null,null,null,null,null,null,null,null,null,null,null,null,null,{"$f":"IF(SUM(AI235:BD235)=0,0,(Y235/SUMIF($AI$20:$BD$20,\"1\",AI235:BD235)))","v":0}]
[212,"Implantation","CIUSSS Capitale-Nationale","Projet d'efficacité énergétique au CLSC La Source",1,"03-Capitale-Nationale","Québec","RE","SU",34265.910000000003,null,"2017-02-28",64010,null,null,null,34265.910000000003,null,null,null,null,null,null,null,null,34265.910000000003,null,"QC-Québec","Oui",20,0,27.412727700000001,"Non","Oui",0,null,0,null,0,null,0,null,0,null,null,null,null,null,null,null,null,null,null,null,null,null,null,{"$f":"IF(SUM(AI236:BD236)=0,0,(Y236/SUMIF($AI$20:$BD$20,\"1\",AI236:BD236)))","v":0}]
[213,"Implantation","Municipalité de la Paroisse de Saint-Léon-Le-Grand","Remplacement d'une chaudière aux mazout léger par une chaudière à air chaud électrique",1,"01-Bas-Saint-Laurent","Saint-Léon-le-Grand","AC","SU",6567,"2018-02-06","2018-09-01",19500,null,null,null,null,4925.25,1641.75,null,null,null,null,null,null,6567,null,"QC-Québec","Oui",30,0,69.962226799999996,"Non","Oui",0,null,0,null,0,null,0,null,0,null,null,null,null,null,null,null,null,null,null,null,null,null,null,{"$f":"IF(SUM(AI237:BD237)=0,0,(Y237/SUMIF($AI$20:$BD$20,\"1\",AI237:BD237)))","v":0}]
[214,"Analyse","Groleau Développement Immobilier inc.","Agrandissement du 655, Pierre-Bertrand",1,"03-Capitale-Nationale","Québec","TE","SU",5900,"2016-11-03","2017-12-07",27275,null,null,null,2950,2950,null,null,null,null,null,null,5900,5900,null,"QC-Québec","Oui",0,0,0,"Non","Oui",null,null,null,null,null,null,null,null,null,null,null,null,null,null,null,null,null,null,null,null,null,null,null,{"$f":"IF(SUM(AI238:BD238)=0,0,(Y238/SUMIF($AI$20:$BD$20,\"1\",AI238:BD238)))","v":0}]
[215,"Implantation","Groleau Développement Immobilier inc.","Agrandissement du 655, Pierre-Bertrand",1,"03-Capitale-Nationale","Québec","RE","SU",80413.19,null,"2019-01-31",465000,null,null,null,null,null,80413.19,null,null,null,null,null,null,80413.19,null,"QC-Québec","Oui",25,64.330554199999995,0,"Non","Oui",0,null,0,null,0,null,0,null,0,null,null,null,null,null,null,null,null,null,null,null,null,null,null,{"$f":"IF(SUM(AI239:BD239)=0,0,(Y239/SUMIF($AI$20:$BD$20,\"1\",AI239:BD239)))","v":0}]
[216,"Implantation","P.H. Vitres d'autos inc.","Gestion de la demande électrique et réduction de la consommation de mazout",1,"17-Centre-du-Québec","Sainte-Perpétue","AN","SU","                     -    $",null,"2018-07-01",46997,null,null,null,null,null,null,null,null,null,null,null,null,"                                                              -    $",null,"QC-Québec","Oui",20,0,32.776049800000003,"Non","Oui",null,null,null,null,null,null,null,null,null,null,null,null,null,null,null,null,null,null,null,null,null,null,null,{"$f":"IF(SUM(AI240:BD240)=0,0,(Y240/SUMIF($AI$20:$BD$20,\"1\",AI240:BD240)))","v":0}]
[217,"Implantation","Commission scolaire des Hauts-Cantons","Réfection de la chaufferie de l'école du Parchemin - Côté Collège",1,"05-Estrie","East Angus","TE","SU",28339.8,"2017-03-31","2018-03-21",88780,null,null,null,null,28339.8,null,null,null,null,null,null,28339.8,28339.8,null,"QC-Québec","Oui",25,24.7482027,0,"Non","Oui",0,null,0,null,0,null,11.4950668,null,24.6129666,null,null,null,null,null,null,null,null,null,null,null,null,null,null,{"$f":"IF(SUM(AI241:BD241)=0,0,(Y241/SUMIF($AI$20:$BD$20,\"1\",AI241:BD241)))","v":{"$error":"#DIV/0!"}}]
[218,"Analyse","Commission scolaire des Sommets","Analyse écoénergétique - École Notre-Dame-des-Érables",1,"05-Estrie","Sainte-Anne-de-la-Rochelle","AN","SU","                     -    $",null,"2016-08-08",4780,null,null,null,null,null,null,null,null,null,null,null,null,"                                                              -    $",null,"QC-Québec","Oui",0,0,0,"Non","Oui",null,null,null,null,null,null,null,null,null,null,null,null,null,null,null,null,null,null,null,null,null,null,null,{"$f":"IF(SUM(AI242:BD242)=0,0,(Y242/SUMIF($AI$20:$BD$20,\"1\",AI242:BD242)))","v":0}]
[219,"Implantation","La Fabrique de la paroisse de Saint-Patrice","Gestion de pointe électrique pour réduire le chauffage au mazout",1,"01-Bas-Saint-Laurent","Rivière-du-Loup","AN","SU","                     -    $",null,"2016-12-31",45000,null,null,null,null,null,null,null,null,null,null,null,null,"                                                              -    $",null,"QC-Québec","Oui",30,37.956258499999997,0,"Non","Oui",null,null,null,null,null,null,null,null,null,null,null,null,null,null,null,null,null,null,null,null,null,null,null,{"$f":"IF(SUM(AI243:BD243)=0,0,(Y243/SUMIF($AI$20:$BD$20,\"1\",AI243:BD243)))","v":0}]
[220,"Analyse","Régie intermunicipale du centre de valorisation des matières résiduelles du Haut-Saint-Francois et de Sherbrooke","Analyse sur la biométhanisation et culture en serre",1,"05-Estrie","Bury","AN","SU","                     -    $",null,"2016-05-15",24940,null,null,null,null,null,null,null,null,null,null,null,null,"                                                              -    $",null,"QC-Québec","Oui",0,0,0,"Non","Oui",null,null,null,null,null,null,null,null,null,null,null,null,null,null,null,null,null,null,null,null,null,null,null,{"$f":"IF(SUM(AI244:BD244)=0,0,(Y244/SUMIF($AI$20:$BD$20,\"1\",AI244:BD244)))","v":0}]
[221,"Analyse","Commission scolaire Central Québec","Analyse pour définir des projets d'efficacité énergétique portant sur 19 bâtiments",1,"03-Capitale-Nationale","Québec","TE","SU",58720,"2016-11-30","2016-04-01",2818567.2,null,null,null,58720,null,null,null,null,null,null,null,58720,58720,null,"QC-Québec","Oui",35.224311800000002,0,0,"Non","Oui",null,null,null,null,null,null,null,null,null,null,null,null,null,null,null,null,null,null,null,null,null,null,null,{"$f":"IF(SUM(AI245:BD245)=0,0,(Y245/SUMIF($AI$20:$BD$20,\"1\",AI245:BD245)))","v":0}]
[222,"Implantation","Centre intégré de santé et de services sociaux de l'Abitibi-Témiscamingue","Hôpital d'Amos - Projet d'efficacité énergétique",1,"08-Abitibi-Témiscamingue","Amos","AC","SU",217837.82,"2016-10-05","2018-12-31",438446,null,null,null,54459.46,54459.46,108918.9,null,null,null,null,null,108918.92,217837.82,null,"QC-Québec","Oui",20,177.945301,0,"Non","Oui",0,null,0,null,0,null,0,null,0,null,null,null,null,null,null,null,null,null,null,null,null,null,null,{"$f":"IF(SUM(AI246:BD246)=0,0,(Y246/SUMIF($AI$20:$BD$20,\"1\",AI246:BD246)))","v":0}]
[223,"Implantation","Centre intégré de santé et de services sociaux de l'Abitibi-Témiscamingue","CLSC d'Amos - Projet d'efficacité énergétique",1,"08-Abitibi-Témiscamingue","Amos","AC","SU",169983.47,"2016-09-21","2018-12-31",359874,null,null,null,42495.87,42495.87,84991.73,null,null,null,null,null,84991.74,169983.47,null,"QC-Québec","Oui",20,135.98677599999999,0,"Non","Oui",0,null,0,null,0,null,0,null,0,null,null,null,null,null,null,null,null,null,null,null,null,null,null,{"$f":"IF(SUM(AI247:BD247)=0,0,(Y247/SUMIF($AI$20:$BD$20,\"1\",AI247:BD247)))","v":0}]
[224,"Implantation","L'Institution royale pour l'avancement des sciences - Université McGill","\"Smart grid\" du sud-est",1,"06-Montréal","Montréal","RE","SU",610282.48,null,"2018-12-20",6002800,null,null,null,null,457711.86,152570.62,null,null,null,null,null,null,610282.48,null,"QC-Québec","Oui",25,2127.5198,0,"Non","Oui",0,null,0,null,0,null,0,null,0,null,null,null,null,null,null,null,null,null,null,null,null,null,null,{"$f":"IF(SUM(AI248:BD248)=0,0,(Y248/SUMIF($AI$20:$BD$20,\"1\",AI248:BD248)))","v":0}]
[225,"Implantation","Garage Andréa Roy et fils inc.","Implantation d'un système de contrôle et d'optimisation de la ventilation de la section de production d'extrusion de l'usine",1,"12-Chaudière-Appalaches","Saint-Georges","AN","SU","                     -    $",null,"2016-04-15",42460,null,null,null,null,null,null,null,null,null,null,null,null,"                                                              -    $",null,"QC-Québec","Oui",20,20.782520000000002,0,"Non","Oui",null,null,null,null,null,null,null,null,null,null,null,null,null,null,null,null,null,null,null,null,null,null,null,{"$f":"IF(SUM(AI249:BD249)=0,0,(Y249/SUMIF($AI$20:$BD$20,\"1\",AI249:BD249)))","v":0}]
[226,"Implantation","G. Bourgault Service inc.","BRIO St-Pamphile",1,"12-Chaudière-Appalaches","Saint-Pamphile","AC","SU",79249.84,"2017-11-08","2019-03-15",142855,null,null,null,null,39624.92,39624.92,null,null,null,null,null,39624.92,79249.84,null,"QC-Québec","Oui",30,63.399873800000002,0,"Non","Oui",0,null,0,null,0,null,0,null,0,null,null,null,null,null,null,null,null,null,null,null,null,null,null,{"$f":"IF(SUM(AI250:BD250)=0,0,(Y250/SUMIF($AI$20:$BD$20,\"1\",AI250:BD250)))","v":0}]
[227,"Implantation","Ville de Montréal","Récupération de chaleur – Centre sportif Père-Marquette",1,"06-Montréal","Montréal","AN","SU","                     -    $","2016-12-08","2018-11-01",49990.5,null,null,null,null,null,null,null,null,null,null,null,null,"                                                              -    $",null,"QC-Québec","Oui",25,0,0,"Non","Oui",null,null,null,null,null,null,null,null,null,null,null,null,null,null,null,null,null,null,null,null,null,null,null,{"$f":"IF(SUM(AI251:BD251)=0,0,(Y251/SUMIF($AI$20:$BD$20,\"1\",AI251:BD251)))","v":0}]
[228,"Analyse","L'Institution royale pour l'avancement des sciences - Université McGill","Audit énergétique de l'aréna McConnell de l'Université McGill",1,"06-Montréal","Montréal","AC","SU",9500,"2016-11-09","2018-04-30",57000,null,null,null,4570,null,4930,null,null,null,null,null,4570,9500,null,"QC-Québec","Oui",15,0,0,"Non","Oui",null,null,null,null,null,null,null,null,null,null,null,null,null,null,null,null,null,null,null,null,null,null,null,{"$f":"IF(SUM(AI252:BD252)=0,0,(Y252/SUMIF($AI$20:$BD$20,\"1\",AI252:BD252)))","v":0}]
[229,"Implantation","Centre intégré de santé et de services sociaux de la Montérégie-Est (CISSS)","Projet d’efficacité énergétique – D709C – Centre d’hébergement Andrée-Perreault",1,"16-Montérégie","Saint-Hyacinthe","AC","SU",86225.71,"2016-11-30","2019-01-30",161032.20000000001,null,null,null,null,21556.43,64669.279999999999,null,null,null,null,null,43112.86,86225.71,null,"QC-Québec","Oui",51.174766499999997,19.036187300000002,49.944379699999999,"Non","Oui",0,null,0,null,0,null,0,null,0,null,null,null,null,null,null,null,null,null,null,null,null,null,null,{"$f":"IF(SUM(AI253:BD253)=0,0,(Y253/SUMIF($AI$20:$BD$20,\"1\",AI253:BD253)))","v":0}]
[230,"Implantation","Centre intégré de santé et de services sociaux de la Montérégie-Est (CISSS)","Projet d’efficacité énergétique – D709A – Centre d’hébergement de l’Hôtel-Dieu",1,"16-Montérégie","Saint-Hyacinthe","AC","SU",834771.09,"2017-01-13","2019-02-28",2928430,null,null,null,null,208692.77,626078.31999999995,null,null,null,null,null,208692.77,834771.09,null,"QC-Québec","Oui",43.467395799999998,597.44610799999998,1080.2725800000001,"Non","Oui",0,null,0,null,0,null,0,null,0,null,null,null,null,null,null,null,null,null,null,null,null,null,null,{"$f":"IF(SUM(AI254:BD254)=0,0,(Y254/SUMIF($AI$20:$BD$20,\"1\",AI254:BD254)))","v":0}]
[231,"Analyse","Hôpital Maisonneuve Rosemont","Centrale d'air de la pharmacie d'oncologie",1,"06-Montréal","Montréal","AN","SU","                     -    $",null,"2017-12-31",5000,null,null,null,null,null,null,null,null,null,null,null,null,"                                                              -    $",null,"QC-Québec","Oui",0,0,0,"Non","Oui",null,null,null,null,null,null,null,null,null,null,null,null,null,null,null,null,null,null,null,null,null,null,null,{"$f":"IF(SUM(AI255:BD255)=0,0,(Y255/SUMIF($AI$20:$BD$20,\"1\",AI255:BD255)))","v":0}]
[232,"Implantation","CIUSSS de l'Est-de-l'île-de-Montréal","Centrale d'air de la pharmacie d'oncologie",1,"06-Montréal","Montréal","AC","SU",93386.2,"2017-09-20","2019-04-30",892084.95,null,null,null,null,null,70039.649999999994,23346.55,null,null,null,null,null,93386.2,null,"QC-Québec","Oui",30,186.77240800000001,0,"Non","Oui",0,null,0,null,0,null,0,null,0,null,null,null,null,null,null,null,null,null,null,null,null,null,null,{"$f":"IF(SUM(AI256:BD256)=0,0,(Y256/SUMIF($AI$20:$BD$20,\"1\",AI256:BD256)))","v":0}]
[233,"Implantation","CIUSSS de l'Est-de-l'île-de-Montréal","Projet de récupération de chaleur du système de ventilation du bloc opératoire du pavillon Marcel-Lamoureux de l’Hôpital Maisonneuve-Rosemont",1,"06-Montréal","Montréal","AP","SU",70849.5,null,"2019-07-09",150040,null,null,null,null,null,53137.14,17712.36,null,null,null,null,null,70849.5,null,"QC-Québec","Oui",30,141.69900000000001,0,"Non","Oui",0,null,0,null,0,null,0,null,0,null,null,null,null,null,null,null,null,null,null,null,null,null,null,{"$f":"IF(SUM(AI257:BD257)=0,0,(Y257/SUMIF($AI$20:$BD$20,\"1\",AI257:BD257)))","v":0}]
[234,"Implantation","Metro Richelieu inc.","Super C Lachine",1,"06-Montréal","Montréal","AN","SU","                     -    $",null,"2018-05-02",158625,null,null,null,null,null,null,null,null,null,null,null,null,"                                                              -    $",null,"QC-Québec","Oui",15,73.077008300000003,0,"Non","Oui",null,null,null,null,null,null,null,null,null,null,null,null,null,null,null,null,null,null,null,null,null,null,null,{"$f":"IF(SUM(AI258:BD258)=0,0,(Y258/SUMIF($AI$20:$BD$20,\"1\",AI258:BD258)))","v":0}]
[235,"Implantation","Ville de Montréal","Rénovation majeure et agrandissement de la caserne 71",1,"06-Montréal","Montréal","AC","SU",45950.62,"2016-10-14","2019-01-30",365000,null,null,null,11487.66,11487.66,22975.3,null,null,null,null,null,22975.32,45950.62,null,"QC-Québec","Oui",20,38.083187799999997,13.0819475,"Non","Oui",0,null,0,null,0,null,0,null,0,null,null,null,null,null,null,null,null,null,null,null,null,null,null,{"$f":"IF(SUM(AI259:BD259)=0,0,(Y259/SUMIF($AI$20:$BD$20,\"1\",AI259:BD259)))","v":0}]
[236,"Implantation","Centre intégré de santé et de services sociaux de la Montérégie-Est (CISSS)","Projet d’efficacité énergétique – D709E – Centre d’hébergement Marguerite-Adam",1,"16-Montérégie","Beloeil","AC","SU",2784.54,"2016-11-11","2019-01-30",14514,null,null,null,null,696.14,2088.4,null,null,null,null,null,1392.28,2784.54,null,"QC-Québec","Oui",24,2.2276293200000001,0,"Non","Oui",0,null,0,null,0,null,0,null,0,null,null,null,null,null,null,null,null,null,null,null,null,null,null,{"$f":"IF(SUM(AI260:BD260)=0,0,(Y260/SUMIF($AI$20:$BD$20,\"1\",AI260:BD260)))","v":0}]
[237,"Implantation","Centre intégré de santé et de services sociaux de la Montérégie-Est (CISSS)","Projet d’efficacité énergétique – D709D – Centre d’hébergement Montarville",1,"16-Montérégie","Saint-Bruno-de-Montarville","AC","SU",43669.36,"2016-12-08","2019-01-30",192421,null,null,null,null,10917.34,32752.02,null,null,null,null,null,21834.68,43669.36,null,"QC-Québec","Oui",44.883567800000002,44.9622034,0,"Non","Oui",0,null,0,null,0,null,0,null,0,null,null,null,null,null,null,null,null,null,null,null,null,null,null,{"$f":"IF(SUM(AI261:BD261)=0,0,(Y261/SUMIF($AI$20:$BD$20,\"1\",AI261:BD261)))","v":0}]
[238,"Implantation","Centre intégré de santé et de services sociaux de la Montérégie-Est (CISSS)","Projet d’efficacité énergétique – D709B – Centre d’hébergement MRC d’Acton",1,"16-Montérégie","Acton Vale","AC","SU",30017.040000000001,"2016-11-11","2019-01-30",124207,null,null,null,null,7504.26,22512.78,null,null,null,null,null,15008.52,30017.040000000001,null,"QC-Québec","Oui",46.093177799999999,30.038349,0,"Non","Oui",0,null,0,null,0,null,0,null,0,null,null,null,null,null,null,null,null,null,null,null,null,null,null,{"$f":"IF(SUM(AI262:BD262)=0,0,(Y262/SUMIF($AI$20:$BD$20,\"1\",AI262:BD262)))","v":0}]
[239,"Implantation","Les Entreprises forestières N.T. inc.","Camp à haute efficacité énergétique",1,"02-Saguenay─Lac-Saint-Jean","Dolbeau-Mistassini","AC","SU",177647.04,"2017-02-23","2018-09-30",401520,null,null,null,null,133235.28,44411.76,null,null,null,null,null,133235.28,177647.04,null,"QC-Québec","Oui",10,142.11763500000001,0,"Non","Oui",0,null,0,null,0,null,0,null,0,null,null,null,null,null,null,null,null,null,null,null,null,null,null,{"$f":"IF(SUM(AI263:BD263)=0,0,(Y263/SUMIF($AI$20:$BD$20,\"1\",AI263:BD263)))","v":0}]
[240,"Implantation","Commission scolaire de la Seigneurie-des-Mille-Îles","Projet d'efficacité énergétique au Centre de formation professionnelle St-Eustache",1,"15-Laurentides","Saint-Eustache","AC","SU",339486.27,"2017-03-31","2019-01-31",855627,null,null,null,null,84871.57,254614.7,null,null,null,null,null,169743.14,339486.27,null,"QC-Québec","Oui",25,358.47280000000001,81.469748999999993,"Non","Oui",0,null,0,null,0,null,0,null,0,null,null,null,null,null,null,null,null,null,null,null,null,null,null,{"$f":"IF(SUM(AI264:BD264)=0,0,(Y264/SUMIF($AI$20:$BD$20,\"1\",AI264:BD264)))","v":0}]
[241,"Implantation","Commission scolaire de la Seigneurie-des-Mille-Îles","Efficacité énergétique dans la nouvelle école de Saint-Eustache",1,"15-Laurentides","Saint-Eustache","AC","SU",156764.68,"2017-03-14","2017-04-01",349610.49,null,null,null,null,156764.68,null,null,null,null,null,null,156764.68,156764.68,null,"QC-Québec","Oui",25,125.411744,0,"Non","Oui",0,null,0,null,0,null,0,null,0,null,null,null,null,null,null,null,null,null,null,null,null,null,null,{"$f":"IF(SUM(AI265:BD265)=0,0,(Y265/SUMIF($AI$20:$BD$20,\"1\",AI265:BD265)))","v":0}]
[242,"Analyse","La Maison Simons inc.","Étude énergétique comparative – SIMONS des Galeries de la Capitale",1,"03-Capitale-Nationale","Québec","TE","SU",8600,"2016-11-02","2017-04-03",51600,null,null,null,4300,4300,null,null,null,null,null,null,8600,8600,null,"QC-Québec","Oui",0,0,0,"Non","Oui",null,null,null,null,null,null,null,null,null,null,null,null,null,null,null,null,null,null,null,null,null,null,null,{"$f":"IF(SUM(AI266:BD266)=0,0,(Y266/SUMIF($AI$20:$BD$20,\"1\",AI266:BD266)))","v":0}]
[243,"Implantation","La Maison Simons inc.","Rénovation du SIMONS Galeries de la Capitale",1,"03-Capitale-Nationale","Québec","AC","SU",118511.13,"2017-06-22","2019-03-30",383000,null,null,null,null,59255.56,59255.57,null,null,null,null,null,88883.34,118511.13,null,"QC-Québec","Oui",22.600828199999999,192.74374,0,"Non","Oui",0,null,0,null,0,null,0,null,0,null,null,null,null,null,null,null,null,null,null,null,null,null,null,{"$f":"IF(SUM(AI267:BD267)=0,0,(Y267/SUMIF($AI$20:$BD$20,\"1\",AI267:BD267)))","v":0}]
[244,"Implantation","Les fournisseurs du Nord","Raccordement ligne Électrique",1,"08-Abitibi-Témiscamingue","Val-d'Or","AN","SU","                     -    $",null,"2016-12-31","                                -    $",null,null,null,null,null,null,null,null,null,null,null,null,"                                                              -    $",null,"QC-Québec","Oui",0,0,0,"Non","Oui",null,null,null,null,null,null,null,null,null,null,null,null,null,null,null,null,null,null,null,null,null,null,null,{"$f":"IF(SUM(AI268:BD268)=0,0,(Y268/SUMIF($AI$20:$BD$20,\"1\",AI268:BD268)))","v":0}]
[245,"Analyse","Commission scolaire de la Riveraine","Analyse écoénergétique portant sur des bâtiments de la Commission scolaire de la Riveraine",1,"17-Centre-du-Québec","Saint-Léonard-d'Aston","TE","SU",63459.88,"2017-02-23","2017-09-01","                                -    $",null,null,null,31729.94,31729.94,null,null,null,null,null,null,63459.88,63459.88,null,"QC-Québec","Oui",0,0,0,"Non","Oui",null,null,null,null,null,null,null,null,null,null,null,null,null,null,null,null,null,null,null,null,null,null,null,{"$f":"IF(SUM(AI269:BD269)=0,0,(Y269/SUMIF($AI$20:$BD$20,\"1\",AI269:BD269)))","v":0}]
[246,"Analyse","Commission scolaire Marguerite-Bourgeoys","Étude énergétique comparative – Agrandissement de l'école primaire Laurentide",1,"06-Montréal","Montréal","TE","SU",9100,"2016-11-08","2018-04-12",18200,null,null,null,null,null,9100,null,null,null,null,null,9100,9100,null,"QC-Québec","Oui",0,0,0,"Non","Oui",null,null,null,null,null,null,null,null,null,null,null,null,null,null,null,null,null,null,null,null,null,null,null,{"$f":"IF(SUM(AI270:BD270)=0,0,(Y270/SUMIF($AI$20:$BD$20,\"1\",AI270:BD270)))","v":0}]
[247,"Implantation","Commission scolaire Marguerite-Bourgeoys","Agrandissement de l'école primaire Laurentide - Projet d'efficacité énergétique",1,"06-Montréal","Montréal","AC","SU",27373.89,"2018-03-29","2019-04-15",79500,null,null,null,null,null,20530.41,6843.48,null,null,null,null,null,27373.89,null,"QC-Québec","Oui",29.233465200000001,46.9930564,0,"Non","Oui",0,null,0,null,0,null,0,null,0,null,null,null,null,null,null,null,null,null,null,null,null,null,null,{"$f":"IF(SUM(AI271:BD271)=0,0,(Y271/SUMIF($AI$20:$BD$20,\"1\",AI271:BD271)))","v":0}]
[248,"Implantation","Projet Bromont ADR","Projet d'efficacité énergétique au Restaurant ThaiZone/BurgerKing à Bromont",1,"16-Montérégie","Bromont","AC","SU",49538.559999999998,"2017-07-11","2018-05-30",117200,null,null,null,null,37153.919999999998,12384.64,null,null,null,null,null,37153.919999999998,49538.559999999998,null,"QC-Québec","Oui",17,13.743635400000001,25.887211000000001,"Non","Oui",0,null,0,null,0,null,0,null,0,null,null,null,null,null,null,null,null,null,null,null,null,null,null,{"$f":"IF(SUM(AI272:BD272)=0,0,(Y272/SUMIF($AI$20:$BD$20,\"1\",AI272:BD272)))","v":0}]
[249,"Implantation","325 St-Vallier inc.","Projet d'économie d'énergie au 330 rue St-Vallier",1,"03-Capitale-Nationale","Québec","AC","SU",173496,"2017-07-26","2017-04-01",395000,null,null,null,null,173496,null,null,null,null,null,null,173496,173496,null,"QC-Québec","Oui",0,142.88099399999999,0,"Non","Oui",0,null,0,null,0,null,0,null,0,null,null,null,null,null,null,null,null,null,null,null,null,null,null,{"$f":"IF(SUM(AI273:BD273)=0,0,(Y273/SUMIF($AI$20:$BD$20,\"1\",AI273:BD273)))","v":0}]
[250,"Implantation","Commission scolaire des Affluents","Conversion électrique",1,"14-Lanaudière","L'Épiphanie","AC","SU",195439.66,"2016-11-30","2018-05-30",295717,null,null,null,null,146579.76,48859.9,null,null,null,null,null,146579.76,195439.66,null,"QC-Québec","Oui",20,0,156.35172399999999,"Non","Oui",0,null,0,null,0,null,0,null,0,null,null,null,null,null,null,null,null,null,null,null,null,null,null,{"$f":"IF(SUM(AI274:BD274)=0,0,(Y274/SUMIF($AI$20:$BD$20,\"1\",AI274:BD274)))","v":0}]
[251,"Implantation","Gestion Plaza Côtes des Neiges","Projet d'économie d'énergie à Plaza Cote-des-Neiges",1,"06-Montréal","Montréal","AC","SU",606911.36,"2017-09-20","2019-03-01",971344.69,null,null,null,null,303455.68,303455.68,null,null,null,null,null,303455.68,606911.36,null,"QC-Québec","Oui",26.409566900000002,495.29020500000001,0,"Non","Oui",0,null,0,null,0,null,0,null,0,null,null,null,null,null,null,null,null,null,null,null,null,null,null,{"$f":"IF(SUM(AI275:BD275)=0,0,(Y275/SUMIF($AI$20:$BD$20,\"1\",AI275:BD275)))","v":0}]
[252,"Implantation","Ville de Montréal","Efficacité énergétique au bâtiment de la cour de services Dickson",1,"06-Montréal","Montréal","AC","SU",62175,"2017-03-21","2019-02-09",132900,null,null,null,null,15543.75,46631.25,null,null,null,null,null,15543.75,62175,null,"QC-Québec","Oui",25,81.617569200000005,0,"Non","Oui",0,null,0,null,0,null,0,null,0,null,null,null,null,null,null,null,null,null,null,null,null,null,null,{"$f":"IF(SUM(AI276:BD276)=0,0,(Y276/SUMIF($AI$20:$BD$20,\"1\",AI276:BD276)))","v":0}]
[253,"Implantation","Commission scolaire de Montréal","Amélioration d'efficacité énergétique",1,"06-Montréal","Montréal","AC","SU",118544.07,"2017-09-27","2018-12-31",937852,null,null,null,null,29636.02,88908.05,null,null,null,null,null,29636.02,118544.07,null,"QC-Québec","Oui",22.931871399999999,235.97563099999999,0,"Non","Oui",0,null,0,null,0,null,0,null,0,null,null,null,null,null,null,null,null,null,null,null,null,null,null,{"$f":"IF(SUM(AI277:BD277)=0,0,(Y277/SUMIF($AI$20:$BD$20,\"1\",AI277:BD277)))","v":0}]
[254,"Analyse","La Maison du Père","Analyse énergétique des systèmes électromécaniques de La Maison du Père",1,"06-Montréal","Montréal","TE","SU",5000,"2017-03-31","2017-10-13",50000,null,null,null,null,5000,null,null,null,null,null,null,5000,5000,null,"QC-Québec","Oui",0,0,0,"Non","Oui",null,null,null,null,null,null,null,null,null,null,null,null,null,null,null,null,null,null,null,null,null,null,null,{"$f":"IF(SUM(AI278:BD278)=0,0,(Y278/SUMIF($AI$20:$BD$20,\"1\",AI278:BD278)))","v":0}]
[255,"Implantation","Commission scolaire de Montréal","Conversion VAV de systèmes de ventilation",1,"06-Montréal","Montréal","AC","SU",136302.56,"2017-10-11","2018-10-31",1096614,null,null,null,null,68151.28,68151.28,null,null,null,null,null,68151.28,136302.56,null,"QC-Québec","Oui",32.766735099999998,199.253299,0,"Non","Oui",0,null,0,null,0,null,0,null,0,null,null,null,null,null,null,null,null,null,null,null,null,null,null,{"$f":"IF(SUM(AI279:BD279)=0,0,(Y279/SUMIF($AI$20:$BD$20,\"1\",AI279:BD279)))","v":0}]
[256,"Implantation","Commission scolaire de Montréal","Implantation d'un système d'automatisation",1,"06-Montréal","Montréal","AC","SU",146355.15,"2017-10-11","2018-10-31",944402,null,null,null,null,36588.79,109766.36,null,null,null,null,null,36588.79,146355.15,null,"QC-Québec","Oui",27.252788500000001,183.70154299999999,0,"Non","Oui",0,null,0,null,0,null,0,null,0,null,null,null,null,null,null,null,null,null,null,null,null,null,null,{"$f":"IF(SUM(AI280:BD280)=0,0,(Y280/SUMIF($AI$20:$BD$20,\"1\",AI280:BD280)))","v":0}]
[257,"Implantation","Commission scolaire de Montréal","Remplacement des chaudières et modernisation de la chaufferie",1,"06-Montréal","Montréal","AC","SU",134590.32,"2017-10-11","2018-08-31",1257570,null,null,null,null,67295.16,67295.16,null,null,null,null,null,67295.16,134590.32,null,"QC-Québec","Oui",29.917777999999998,215.653335,0,"Non","Oui",0,null,0,null,0,null,0,null,0,null,null,null,null,null,null,null,null,null,null,null,null,null,null,{"$f":"IF(SUM(AI281:BD281)=0,0,(Y281/SUMIF($AI$20:$BD$20,\"1\",AI281:BD281)))","v":0}]
[258,"Implantation","Commission scolaire de Montréal","D813A - CSDM - St-Luc- Projet ESE  ANNULÉ la demande 0001 a été corrigé et celle-ci n'a plus raison d'être.",1,"06-Montréal","Montréal","AN","SU","                     -    $",null,"2018-05-31",476013,null,null,null,null,null,null,null,null,null,null,null,null,"                                                              -    $",null,"QC-Québec","Oui",21.731075300000001,108.713238,0,"Non","Oui",null,null,null,null,null,null,null,null,null,null,null,null,null,null,null,null,null,null,null,null,null,null,null,{"$f":"IF(SUM(AI282:BD282)=0,0,(Y282/SUMIF($AI$20:$BD$20,\"1\",AI282:BD282)))","v":0}]
[259,"Implantation","Commission scolaire de la Seigneurie-des-Mille-Îles","École Marie-Soleil-Tougas",1,"14-Lanaudière","Terrebonne","RF","SU","                     -    $",null,"2018-05-18",970894.5,null,null,null,null,null,null,null,null,null,null,null,null,"                                                              -    $",null,"QC-Québec","Oui",25,17.289682899999999,34.579363700000002,"Non","Oui",null,null,null,null,null,null,null,null,null,null,null,null,null,null,null,null,null,null,null,null,null,null,null,{"$f":"IF(SUM(AI283:BD283)=0,0,(Y283/SUMIF($AI$20:$BD$20,\"1\",AI283:BD283)))","v":0}]
[260,"Implantation","Ville de Montréal","Rénovation partielle - Caserne 17",1,"06-Montréal","Montréal","AC","SU",14300,"2017-02-03","2018-06-01",30000,null,null,null,3575,null,10725,null,null,null,null,null,3575,14300,null,"QC-Québec","Oui",20,14.8802843,0,"Non","Oui",0,null,0,null,0,null,0,null,0,null,null,null,null,null,null,null,null,null,null,null,null,null,null,{"$f":"IF(SUM(AI284:BD284)=0,0,(Y284/SUMIF($AI$20:$BD$20,\"1\",AI284:BD284)))","v":0}]
[261,"Implantation","Ville de Montréal","Construction d’un nouveau bâtiment au complexe Atwater",1,"06-Montréal","Montréal","AC","SU",201405.93,"2017-05-29","2019-06-30",571000,null,null,null,null,50351.48,50351.48,100702.97,null,null,null,null,50351.48,201405.93,null,"QC-Québec","Oui",20,210.87865199999999,0,"Non","Oui",0,null,0,null,0,null,0,null,0,null,null,null,null,null,null,null,null,null,null,null,null,null,null,{"$f":"IF(SUM(AI285:BD285)=0,0,(Y285/SUMIF($AI$20:$BD$20,\"1\",AI285:BD285)))","v":0}]
[262,"Analyse","Ville de Laval","Construction du pavillon d'accueil du Parc de la Rivière-des-Mille-Îles",1,"13-Laval","Laval","AC","SU",2550,"2017-06-01","2018-03-16",5100,null,null,null,null,2550,null,null,null,null,null,null,null,2550,null,"QC-Québec","Oui",0,0,0,"Non","Oui",null,null,null,null,null,null,null,null,null,null,null,null,null,null,null,null,null,null,null,null,null,null,null,{"$f":"IF(SUM(AI286:BD286)=0,0,(Y286/SUMIF($AI$20:$BD$20,\"1\",AI286:BD286)))","v":0}]
[263,"Implantation","Ville de Laval","Construction du pavillon d'accueil du parc de la rivière des milles-iles",1,"13-Laval","Laval","AC","SU",73634.960000000006,"2017-07-26","2019-02-02",409954,null,null,null,null,18408.740000000002,55226.22,null,null,null,null,null,18408.740000000002,73634.960000000006,null,"QC-Québec","Oui",25,17.842888599999998,93.7549159,"Non","Oui",0,null,0,null,0,null,0,null,0,null,null,null,null,null,null,null,null,null,null,null,null,null,null,{"$f":"IF(SUM(AI287:BD287)=0,0,(Y287/SUMIF($AI$20:$BD$20,\"1\",AI287:BD287)))","v":0}]
[264,"Implantation","La Fabrique de la paroisse de Saint-Benoît-de-Bellechasse","Conversion du système de chauffage à l'huile à l'électricité",1,"12-Chaudière-Appalaches","Saint-Gervais","AC","SU",47100,"2017-12-05","2018-11-01",65800,null,null,null,null,null,47100,null,null,null,null,null,35325,47100,null,"QC-Québec","Oui",25,0,67.960400000000007,"Non","Oui",0,null,0,null,0,null,0,null,0,null,null,null,null,null,null,null,null,null,null,null,null,null,null,{"$f":"IF(SUM(AI288:BD288)=0,0,(Y288/SUMIF($AI$20:$BD$20,\"1\",AI288:BD288)))","v":0}]
[265,"Implantation","Société en commandite Gestion Tour de la Bourse","Implantation de mesures en efficacité énergétique et certification LEED",1,"06-Montréal","Montréal","AC","SU",708914.07,"2017-01-13","2019-07-30",3039544.29,null,null,null,177228.52,177228.52,177228.52,177228.51,null,null,null,null,354457.04,708914.07,null,"QC-Québec","Oui",25,1417.8281400000001,0,"Non","Oui",0,null,0,null,0,null,0,null,0,null,null,null,null,null,null,null,null,null,null,null,null,null,null,{"$f":"IF(SUM(AI289:BD289)=0,0,(Y289/SUMIF($AI$20:$BD$20,\"1\",AI289:BD289)))","v":0}]
[266,"Analyse","Québecor inc.","Analyse de mesures éconergétiques pour l'édifice Québecor",1,"06-Montréal","Montréal","TE","SU",20566,"2016-12-08","2017-03-15",123396,null,null,null,20566,null,null,null,null,null,null,null,20566,20566,null,"QC-Québec","Oui",25,0,0,"Non","Oui",null,null,null,null,null,null,null,null,null,null,null,null,null,null,null,null,null,null,null,null,null,null,null,{"$f":"IF(SUM(AI290:BD290)=0,0,(Y290/SUMIF($AI$20:$BD$20,\"1\",AI290:BD290)))","v":0}]
[267,"Implantation","Québecor inc.","Implantation de projet d'efficacité énergétique",1,"06-Montréal","Montréal","AC","SU",286753.90000000002,"2017-11-20","2018-08-31",692244,null,null,null,null,null,286753.90000000002,null,null,null,null,null,143376.95999999999,286753.90000000002,null,"QC-Québec","Oui",25,229.40312399999999,0,"Non","Oui",0,null,0,null,0,null,0,null,0,null,null,null,null,null,null,null,null,null,null,null,null,null,null,{"$f":"IF(SUM(AI291:BD291)=0,0,(Y291/SUMIF($AI$20:$BD$20,\"1\",AI291:BD291)))","v":0}]
[268,"Implantation","Université de Montréal","Complexe des sciences - Site Outremont",1,"06-Montréal","Montréal","AC","SU",1270313.79,"2017-03-24","2019-08-12",4603307,null,null,null,null,null,952735.35,317578.44,null,null,null,null,635156.9,1270313.79,null,"QC-Québec","Oui",33.693771400000003,4009.5050299999998,0,"Non","Oui",0,null,0,null,0,null,0,null,0,null,null,null,null,null,null,null,null,null,null,null,null,null,null,{"$f":"IF(SUM(AI292:BD292)=0,0,(Y292/SUMIF($AI$20:$BD$20,\"1\",AI292:BD292)))","v":0}]
[269,"Analyse","Collège Vanier","D674 - Projet d'efficacité énergétique au Cégep Vanier",1,"06-Montréal","Montréal","RF","SU","                     -    $",null,"2018-04-30",145890,null,null,null,null,null,null,null,null,null,null,null,null,"                                                              -    $",null,"QC-Québec","Oui",0,0,0,"Non","Oui",null,null,null,null,null,null,null,null,null,null,null,null,null,null,null,null,null,null,null,null,null,null,null,{"$f":"IF(SUM(AI293:BD293)=0,0,(Y293/SUMIF($AI$20:$BD$20,\"1\",AI293:BD293)))","v":0}]
[270,"Implantation","Collège Champagneur","Projet d'économie d'énergie au Collège Champagneur",1,"14-Lanaudière","Rawdon","AC","SU",88952.36,"2017-07-19","2018-11-01",145000,null,null,null,null,66714.27,22238.09,null,null,null,null,null,66714.27,88952.36,null,"QC-Québec","Oui",33.374267600000003,30.680685199999999,51.785975499999999,"Non","Oui",0,null,0,null,0,null,0,null,0,null,null,null,null,null,null,null,null,null,null,null,null,null,null,{"$f":"IF(SUM(AI294:BD294)=0,0,(Y294/SUMIF($AI$20:$BD$20,\"1\",AI294:BD294)))","v":0}]
[271,"Implantation","Ville de Montréal","Mise aux normes de l'aréna Bill-Durnan",1,"06-Montréal","Montréal","AC","SU",117787.48,"2017-09-20","2018-10-29",331150,null,null,null,null,null,117787.48,null,null,null,null,null,null,117787.48,null,"QC-Québec","Oui",24.732296000000002,165.99185399999999,0,"Non","Oui",0,null,0,null,0,null,0,null,0,null,null,null,null,null,null,null,null,null,null,null,null,null,null,{"$f":"IF(SUM(AI295:BD295)=0,0,(Y295/SUMIF($AI$20:$BD$20,\"1\",AI295:BD295)))","v":0}]
[272,"Implantation","La Seigneurie du Triton","Construction d’une ligne électrique à haute tension",1,"04-Mauricie","Lac-Édouard","AC","SU",194452.44,"2017-06-01","2018-12-21",528000,null,null,null,null,145839.32999999999,48613.11,null,null,null,null,null,145839.32999999999,194452.44,null,"QC-Québec","Oui",40,0,155.561949,"Non","Oui",0,null,0,null,0,null,0,null,0,null,null,null,null,null,null,null,null,null,null,null,null,null,null,{"$f":"IF(SUM(AI296:BD296)=0,0,(Y296/SUMIF($AI$20:$BD$20,\"1\",AI296:BD296)))","v":0}]
[273,"Implantation","350-360 Franquet Société en commandite","Projet d'économie d'énergie au 350, rue Franquet",1,"03-Capitale-Nationale","Québec","AC","SU",280805.25,"2017-11-14","2019-05-30",658367,null,null,null,null,70201.31,140402.62,70201.320000000007,null,null,null,null,70201.31,280805.25,null,"QC-Québec","Oui",30,0,226.96189200000001,"Non","Oui",0,null,0,null,0,null,0,null,0,null,null,null,null,null,null,null,null,null,null,null,null,null,null,{"$f":"IF(SUM(AI297:BD297)=0,0,(Y297/SUMIF($AI$20:$BD$20,\"1\",AI297:BD297)))","v":0}]
[274,"Implantation","Ville de Montréal","Rénovation et agrandissement de la bibliothèque de Pierrefonds",1,"06-Montréal","Montréal","AC","SU",63986.15,"2017-03-21","2019-10-01",192500,null,null,null,null,15996.54,31993.08,15996.53,null,null,null,null,15996.54,63986.15,null,"QC-Québec","Oui",20,64.650322599999996,0,"Non","Oui",0,null,0,null,0,null,0,null,0,null,null,null,null,null,null,null,null,null,null,null,null,null,null,{"$f":"IF(SUM(AI298:BD298)=0,0,(Y298/SUMIF($AI$20:$BD$20,\"1\",AI298:BD298)))","v":0}]
[275,"Analyse","Le Château Montebello","Analyse énergétique Le Château Montebello",1,"07-Outaouais","Montebello","AC","SU",18367.5,"2017-02-07","2016-04-01",52500,null,null,null,18367.5,null,null,null,null,null,null,null,18367.5,18367.5,null,"QC-Québec","Oui",0,0,0,"Non","Oui",null,null,null,null,null,null,null,null,null,null,null,null,null,null,null,null,null,null,null,null,null,null,null,{"$f":"IF(SUM(AI299:BD299)=0,0,(Y299/SUMIF($AI$20:$BD$20,\"1\",AI299:BD299)))","v":0}]
[276,"Implantation","Le Château Montebello","Analyse énergétique Château Montebello",1,"07-Outaouais","Montebello","RE","SU",1645796.8,null,"2019-02-01",3500000,null,null,null,null,411449.2,1234347.6000000001,null,null,null,null,null,null,1645796.8,null,"QC-Québec","Oui",30,2084.2485299999998,0,"Non","Oui",0,null,0,null,0,null,0,null,0,null,null,null,null,null,null,null,null,null,null,null,null,null,null,{"$f":"IF(SUM(AI300:BD300)=0,0,(Y300/SUMIF($AI$20:$BD$20,\"1\",AI300:BD300)))","v":0}]
[277,"Analyse","Ville de Laval","Construction d'un centre communautaire à Sainte-Dorothée",1,"13-Laval","Laval","TE","SU",2550,"2017-06-14","2017-11-06",11800,null,null,null,null,2550,null,null,null,null,null,null,2550,2550,null,"QC-Québec","Oui",22.523107499999998,0,0,"Non","Oui",null,null,null,null,null,null,null,null,null,null,null,null,null,null,null,null,null,null,null,null,null,null,null,{"$f":"IF(SUM(AI301:BD301)=0,0,(Y301/SUMIF($AI$20:$BD$20,\"1\",AI301:BD301)))","v":0}]
[278,"Implantation","Frontenac Hotel LP","Modification du système de ventilation UTA-01",1,"03-Capitale-Nationale","Québec","AC","SU",32959.550000000003,"2016-10-24","2018-03-01",86000,null,null,null,24719.67,8239.8799999999992,null,null,null,null,null,null,8239.89,32959.550000000003,null,"QC-Québec","Oui",30,90.696331099999995,0,"Non","Oui",0,null,0,null,0,null,0,null,0,null,null,null,null,null,null,null,null,null,null,null,null,null,null,{"$f":"IF(SUM(AI302:BD302)=0,0,(Y302/SUMIF($AI$20:$BD$20,\"1\",AI302:BD302)))","v":0}]
[279,"Implantation","Frontenac Hotel LP","Remplacement des systèmes de ventilation 7A et 20",1,"03-Capitale-Nationale","Québec","AC","SU",17001.349999999999,"2017-06-27","2018-11-30",86806,null,null,null,null,12751.02,4250.33,null,null,null,null,null,null,17001.349999999999,null,"QC-Québec","Oui",30,97.217033900000004,0,"Non","Oui",0,null,0,null,0,null,0,null,0,null,null,null,null,null,null,null,null,null,null,null,null,null,null,{"$f":"IF(SUM(AI303:BD303)=0,0,(Y303/SUMIF($AI$20:$BD$20,\"1\",AI303:BD303)))","v":0}]
[280,"Implantation","Le Troll Immobilier inc.","Projet d'efficacité d'énergétique au local de la pharmacie Proxim de St-Jérôme",1,"15-Laurentides","Saint-Jérôme","AC","SU",53681.120000000003,"2017-03-24","2018-09-30",94300,null,null,null,null,40260.839999999997,13420.28,null,null,null,null,null,40260.839999999997,53681.120000000003,null,"QC-Québec","Oui",25,42.944895699999996,0,"Non","Oui",0,null,0,null,0,null,0,null,0,null,null,null,null,null,null,null,null,null,null,null,null,null,null,{"$f":"IF(SUM(AI304:BD304)=0,0,(Y304/SUMIF($AI$20:$BD$20,\"1\",AI304:BD304)))","v":0}]
[281,"Implantation","9264-0101 Québec inc.","Projet d'efficacité énergétique au restaurant Harvey's",1,"16-Montérégie","Saint-Jean-sur-Richelieu","AC","SU",59041,"2017-07-04","2018-05-01",96000,null,null,null,null,44280.75,14760.25,null,null,null,null,null,44280.75,59041,null,"QC-Québec","Oui",17,23.877052899999999,25.875135799999999,"Non","Oui",0,null,0,null,0,null,0,null,0,null,null,null,null,null,null,null,null,null,null,null,null,null,null,{"$f":"IF(SUM(AI305:BD305)=0,0,(Y305/SUMIF($AI$20:$BD$20,\"1\",AI305:BD305)))","v":0}]
[282,"Implantation","Ville de Montréal","Projet de rénovation majeure",1,"06-Montréal","Montréal","RE","SU",545446.68000000005,null,"2019-11-30",1314962.5,null,null,null,136361.67000000001,136361.67000000001,136361.67000000001,136361.67000000001,null,null,null,null,null,545446.68000000005,null,"QC-Québec","Oui",20.014446299999999,437.62168200000002,0,"Non","Oui",0,null,0,null,0,null,0,null,0,null,null,null,null,null,null,null,null,null,null,null,null,null,null,{"$f":"IF(SUM(AI306:BD306)=0,0,(Y306/SUMIF($AI$20:$BD$20,\"1\",AI306:BD306)))","v":0}]
[283,"Implantation","Édifice 319 Franquet inc.","Efficacité énergétique au 319, rue Franquet",1,"03-Capitale-Nationale","Québec","AC","SU",1041209.74,"2018-02-08","2019-04-30",1675000,null,null,null,null,260302.44,520604.88,260302.42,null,null,null,null,520604.88,1041209.74,null,"QC-Québec","Oui",16.095237699999998,832.96779400000003,0,"Non","Oui",0,null,0,null,0,null,0,null,0,null,null,null,null,null,null,null,null,null,null,null,null,null,null,{"$f":"IF(SUM(AI307:BD307)=0,0,(Y307/SUMIF($AI$20:$BD$20,\"1\",AI307:BD307)))","v":0}]
[284,"Analyse","Commission scolaire des Affluents","Analyse énergétique de l’École aux-Quatre-Vents",1,"14-Lanaudière","Saint-Sulpice","TE","SU",3400,"2017-03-28","2017-09-05",6800,null,null,null,null,3400,null,null,null,null,null,null,3400,3400,null,"QC-Québec","Oui",20,0,0,"Non","Oui",null,null,null,null,null,null,null,null,null,null,null,null,null,null,null,null,null,null,null,null,null,null,null,{"$f":"IF(SUM(AI308:BD308)=0,0,(Y308/SUMIF($AI$20:$BD$20,\"1\",AI308:BD308)))","v":0}]
[285,"Analyse","Commission scolaire des Affluents","Analyse énergétique de l'École de la Source",1,"14-Lanaudière","Mascouche","TE","SU",3400,"2017-03-28","2017-09-05",6800,null,null,null,null,3400,null,null,null,null,null,null,3400,3400,null,"QC-Québec","Oui",20,0,0,"Non","Oui",null,null,null,null,null,null,null,null,null,null,null,null,null,null,null,null,null,null,null,null,null,null,null,{"$f":"IF(SUM(AI309:BD309)=0,0,(Y309/SUMIF($AI$20:$BD$20,\"1\",AI309:BD309)))","v":0}]
[286,"Implantation","Commission scolaire des Affluents","Remplacement des systèmes de chauffage au mazout par des systèmes électriques",1,"14-Lanaudière","Mascouche","RE","SU",151845.04,null,"2018-12-31",304082,null,null,null,null,37961.26,113883.78,null,null,null,null,null,null,151845.04,null,"QC-Québec","Oui",20,0,121.47603599999999,"Non","Oui",0,null,0,null,0,null,0,null,0,null,null,null,null,null,null,null,null,null,null,null,null,null,null,{"$f":"IF(SUM(AI310:BD310)=0,0,(Y310/SUMIF($AI$20:$BD$20,\"1\",AI310:BD310)))","v":0}]
[287,"Analyse","Commission scolaire des Affluents","Analyse énergétique de l'École Primaire Esther-Blondin",1,"14-Lanaudière","Terrebonne","TE","SU",3400,"2017-03-28","2017-09-05",6800,null,null,null,null,3400,null,null,null,null,null,null,3400,3400,null,"QC-Québec","Oui",20,0,0,"Non","Oui",null,null,null,null,null,null,null,null,null,null,null,null,null,null,null,null,null,null,null,null,null,null,null,{"$f":"IF(SUM(AI311:BD311)=0,0,(Y311/SUMIF($AI$20:$BD$20,\"1\",AI311:BD311)))","v":0}]
[288,"Implantation","Commission scolaire des Affluents","Remplacement du système de chauffage au mazout par des systèmes électriques",1,"14-Lanaudière","Terrebonne","RE","SU",102721.21,null,"2018-12-31",265876,null,null,null,null,25680.3,77040.91,null,null,null,null,null,null,102721.21,null,"QC-Québec","Oui",20,0,82.176964999999996,"Non","Oui",0,null,0,null,0,null,0,null,0,null,null,null,null,null,null,null,null,null,null,null,null,null,null,{"$f":"IF(SUM(AI312:BD312)=0,0,(Y312/SUMIF($AI$20:$BD$20,\"1\",AI312:BD312)))","v":0}]
[289,"Analyse","Commission scolaire des Affluents","Analyse énergétique de l’École Jean-De La Fontaine – Édifice Jean-De La Fontaine",1,"14-Lanaudière","Terrebonne","TE","SU",3650,"2017-03-28","2017-09-05",7300,null,null,null,null,3650,null,null,null,null,null,null,3650,3650,null,"QC-Québec","Oui",20,0,0,"Non","Oui",null,null,null,null,null,null,null,null,null,null,null,null,null,null,null,null,null,null,null,null,null,null,null,{"$f":"IF(SUM(AI313:BD313)=0,0,(Y313/SUMIF($AI$20:$BD$20,\"1\",AI313:BD313)))","v":0}]
[290,"Analyse","Commission scolaire des Affluents","Analyse énergétique de l'École Mgr-Mongeau",1,"14-Lanaudière","L'Épiphanie","TE","SU",3650,"2017-03-28","2017-09-05",7300,null,null,null,null,3650,null,null,null,null,null,null,3650,3650,null,"QC-Québec","Oui",20,0,0,"Non","Oui",null,null,null,null,null,null,null,null,null,null,null,null,null,null,null,null,null,null,null,null,null,null,null,{"$f":"IF(SUM(AI314:BD314)=0,0,(Y314/SUMIF($AI$20:$BD$20,\"1\",AI314:BD314)))","v":0}]
[291,"Analyse","Commission scolaire des Affluents","Analyse énergétique de l'École Jean-De La Fontaine – Édifice Saint-Charles",1,"14-Lanaudière","Terrebonne","TE","SU",3150,"2017-03-28","2017-09-05",6300,null,null,null,null,3150,null,null,null,null,null,null,3150,3150,null,"QC-Québec","Oui",20,0,0,"Non","Oui",null,null,null,null,null,null,null,null,null,null,null,null,null,null,null,null,null,null,null,null,null,null,null,{"$f":"IF(SUM(AI315:BD315)=0,0,(Y315/SUMIF($AI$20:$BD$20,\"1\",AI315:BD315)))","v":0}]
[292,"Implantation","FPInnovations","FPInnovations - Efficacité énergétique au 570 blvd Saint-Jean",1,"06-Montréal","Pointe-Claire","AN","SU","                     -    $",null,"2017-12-31",920000,null,null,null,null,null,null,null,null,null,null,null,null,"                                                              -    $",null,"QC-Québec","Oui",22.200149499999998,814.31057799999996,0,"Non","Oui",null,null,null,null,null,null,null,null,null,null,null,null,null,null,null,null,null,null,null,null,null,null,null,{"$f":"IF(SUM(AI316:BD316)=0,0,(Y316/SUMIF($AI$20:$BD$20,\"1\",AI316:BD316)))","v":0}]
[293,"Implantation","Club de golf Summerlea inc.","Projet d'economie d'énergie au Golf Summerlea",1,"16-Montérégie","Vaudreuil-Dorion","RE","SU",123757.57,null,"2017-09-01",475000,null,null,null,30939.39,92818.18,null,null,null,null,null,null,null,123757.57,null,"QC-Québec","Oui",17.108512900000001,99.885628800000006,20.988223999999999,"Non","Oui",0,null,0,null,0,null,0,null,0,null,null,null,null,null,null,null,null,null,null,null,null,null,null,{"$f":"IF(SUM(AI317:BD317)=0,0,(Y317/SUMIF($AI$20:$BD$20,\"1\",AI317:BD317)))","v":0}]
[294,"Implantation","Édifice 200 Sainte-Foy inc.","Projet d'économie d'énergie au 200 Ste-Foy",1,"03-Capitale-Nationale","Québec","AC","SU",530549.09,"2017-12-08","2018-09-30",850000,null,null,null,null,397911.81,132637.28,null,null,null,null,null,397911.81,530549.09,null,"QC-Québec","Oui",23.337306999999999,375.34895999999998,49.247908199999998,"Non","Oui",0,null,0,null,0,null,0,null,0,null,null,null,null,null,null,null,null,null,null,null,null,null,null,{"$f":"IF(SUM(AI318:BD318)=0,0,(Y318/SUMIF($AI$20:$BD$20,\"1\",AI318:BD318)))","v":0}]
[295,"Implantation","Centre intégré de santé et de services sociaux de Lanaudière","Projet d'efficacité énergétique Hôpital Legardeur",1,"14-Lanaudière","Terrebonne","AC","SU",989248.57,"2017-12-01","2020-07-31",2711097.18,null,null,null,null,null,741936.42,null,247312.15,null,null,null,null,989248.57,null,"QC-Québec","Oui",26.460485500000001,1978.4971399999999,0,"Non","Oui",0,null,0,null,0,null,0,null,0,null,null,null,null,null,null,null,null,null,null,null,null,null,null,{"$f":"IF(SUM(AI319:BD319)=0,0,(Y319/SUMIF($AI$20:$BD$20,\"1\",AI319:BD319)))","v":0}]
[296,"Implantation","Les immeubles Mitelman inc.","Projet d'économie d'énergie au 4200 Dorchester",1,"06-Montréal","Westmount","AC","SU",98360.61,"2018-03-29","2019-03-31",195500,null,null,null,null,null,98360.61,null,null,null,null,null,73770.45,98360.61,null,"QC-Québec","Oui",35,78.688489099999998,0,"Non","Oui",0,null,0,null,0,null,0,null,0,null,null,null,null,null,null,null,null,null,null,null,null,null,null,{"$f":"IF(SUM(AI320:BD320)=0,0,(Y320/SUMIF($AI$20:$BD$20,\"1\",AI320:BD320)))","v":0}]
[297,"Implantation","Les immeubles Mitelman inc.","Projet d'économie d'énergie du 1600 boulevard St-Martin",1,"13-Laval","Laval","AN","SU","                     -    $",null,"2017-02-15",240000,null,null,null,null,null,null,null,null,null,null,null,null,"                                                              -    $",null,"QC-Québec","Oui",24.972581900000002,46.608031699999998,0,"Non","Oui",null,null,null,null,null,null,null,null,null,null,null,null,null,null,null,null,null,null,null,null,null,null,null,{"$f":"IF(SUM(AI321:BD321)=0,0,(Y321/SUMIF($AI$20:$BD$20,\"1\",AI321:BD321)))","v":0}]
[298,"Implantation","Fabrique de la Paroisse Notre-Dame de Montréal","Installation de fours crématoires efficaces avec récupération thermique et filtration",1,"06-Montréal","Montréal","AN","SU","                     -    $",null,"2017-08-01",929923,null,null,null,null,null,null,null,null,null,null,null,null,"                                                              -    $",null,"QC-Québec","Oui",20,398.39713,0,"Non","Oui",null,null,null,null,null,null,null,null,null,null,null,null,null,null,null,null,null,null,null,null,null,null,null,{"$f":"IF(SUM(AI322:BD322)=0,0,(Y322/SUMIF($AI$20:$BD$20,\"1\",AI322:BD322)))","v":0}]
[299,"Implantation","Fonds d'entraide pour les dépendances","Projet d'efficacité énergétique à la Maison Jean Lapointe",1,"06-Montréal","Montréal","AN","SU","                     -    $",null,"2017-03-01",625000,null,null,null,null,null,null,null,null,null,null,null,null,"                                                              -    $",null,"QC-Québec","Oui",35,172.39354599999999,0,"Non","Oui",null,null,null,null,null,null,null,null,null,null,null,null,null,null,null,null,null,null,null,null,null,null,null,{"$f":"IF(SUM(AI323:BD323)=0,0,(Y323/SUMIF($AI$20:$BD$20,\"1\",AI323:BD323)))","v":0}]
[300,"Implantation","Institut Philippe-Pinel de Montréal","Projet d'efficacité énergétique D815 - Institut Philippe-Pinel de Montréal",1,"06-Montréal","Montréal","AC","SU",778271.33,"2018-03-29","2019-04-30",4936893,null,null,null,null,null,583703.49,194567.84,null,null,null,null,null,778271.33,null,"QC-Québec","Oui",33.939079300000003,1316.63042,239.91224299999999,"Non","Oui",0,null,0,null,0,null,0,null,0,null,null,null,null,null,null,null,null,null,null,null,null,null,null,{"$f":"IF(SUM(AI324:BD324)=0,0,(Y324/SUMIF($AI$20:$BD$20,\"1\",AI324:BD324)))","v":0}]
[301,"Implantation","Société de transport de Trois-Rivières","Remplacement des unités de ventilation et chauffage du centre de service de la STTR",1,"04-Mauricie","Trois-Rivières","AC","SU",206204.37,"2017-10-11","2019-04-15",754143,null,null,null,null,null,154653.26999999999,51551.1,null,null,null,null,null,140706.07999999999,null,"QC-Québec","Oui",24.025648100000002,212.07428100000001,0,"Non","Oui",0,null,0,null,0,null,0,null,0,null,null,null,null,null,null,null,null,null,null,null,null,null,null,{"$f":"IF(SUM(AI325:BD325)=0,0,(Y325/SUMIF($AI$20:$BD$20,\"1\",AI325:BD325)))","v":0}]
[302,"Implantation","2250 Guy inc.","Efficacité énergétique au 2250, rue Guy",1,"06-Montréal","Montréal","AC","SU",438180.94,"2017-07-19","2017-04-01",798500,null,null,null,null,438180.93,null,null,null,null,null,null,438180.93,438180.94,null,"QC-Québec","Oui",25,360.91582499999998,0,"Non","Oui",0,null,0,null,0,null,0,null,0,null,null,null,null,null,null,null,null,null,null,null,null,null,null,{"$f":"IF(SUM(AI326:BD326)=0,0,(Y326/SUMIF($AI$20:$BD$20,\"1\",AI326:BD326)))","v":0}]
[303,"Implantation","9316-5363 Québec inc.","Espace Montmorency - construction phase 1",1,"13-Laval","Laval","RE","SU",791643.41,null,"2019-01-01",1614122,null,null,null,197910.85,395821.7,197910.86,null,null,null,null,null,null,791643.41,null,"QC-Québec","Oui",19.846176100000001,638.22344499999997,0,"Non","Oui",0,null,0,null,0,null,0,null,0,null,null,null,null,null,null,null,null,null,null,null,null,null,null,{"$f":"IF(SUM(AI327:BD327)=0,0,(Y327/SUMIF($AI$20:$BD$20,\"1\",AI327:BD327)))","v":0}]
[304,"Implantation","9316-5363 Québec inc.","Espace Montmorency - construction phase 2",1,"13-Laval","Laval","RE","SU",538333.39,null,"2021-05-31",3737342,null,null,null,null,null,null,null,403750.05,134583.34,null,null,null,538333.39,null,"QC-Québec","Oui",20,434.14595000000003,0,"Non","Oui",0,null,0,null,0,null,0,null,0,null,null,null,null,null,null,null,null,null,null,null,null,null,null,{"$f":"IF(SUM(AI328:BD328)=0,0,(Y328/SUMIF($AI$20:$BD$20,\"1\",AI328:BD328)))","v":0}]
[305,"Implantation","9316-5363 Québec inc.","Espace Montmorency - construction phase 3",1,"13-Laval","Laval","RE","SU",441874.16,null,"2020-05-31",2723957,null,null,null,null,null,null,331405.62,110468.54,null,null,null,null,441874.16,null,"QC-Québec","Oui",20,357.76478600000002,0,"Non","Oui",0,null,0,null,0,null,0,null,0,null,null,null,null,null,null,null,null,null,null,null,null,null,null,{"$f":"IF(SUM(AI329:BD329)=0,0,(Y329/SUMIF($AI$20:$BD$20,\"1\",AI329:BD329)))","v":0}]
[306,"Implantation","9316-5363 Québec inc.","Espace Montmorency - construction phase 4",1,"13-Laval","Laval","RE","SU",238725.03,null,"2019-05-31",1960072,null,null,null,null,null,179043.78,59681.25,null,null,null,null,null,238725.03,null,"QC-Québec","Oui",19.7676792,193.22452699999999,0,"Non","Oui",0,null,0,null,0,null,0,null,0,null,null,null,null,null,null,null,null,null,null,null,null,null,null,{"$f":"IF(SUM(AI330:BD330)=0,0,(Y330/SUMIF($AI$20:$BD$20,\"1\",AI330:BD330)))","v":0}]
[307,"Analyse","Arbec (Médifice immobilier s.e.n.c.)","Étude d'efficacité énergétique avec Arbec/Médifice immobilier s.e.n.c.",1,"14-Lanaudière","Terrebonne","AC","SU",15729,"2017-01-13","2018-10-31",62916,null,null,null,7864.5,null,7864.5,null,null,null,null,null,7864.5,15729,null,"QC-Québec","Oui",0,0,0,"Non","Oui",null,null,null,null,null,null,null,null,null,null,null,null,null,null,null,null,null,null,null,null,null,null,null,{"$f":"IF(SUM(AI331:BD331)=0,0,(Y331/SUMIF($AI$20:$BD$20,\"1\",AI331:BD331)))","v":0}]
[308,"Implantation","Arbec (Médifice immobilier s.e.n.c.)","Projet d'efficacité énergétique avec Arbec / Médifice immobilier s.e.n.c.",1,"14-Lanaudière","Terrebonne","AC","SU",342451.5,"2017-11-14","2019-09-27",563708,null,null,null,null,null,256838.64,85612.86,null,null,null,null,null,342451.5,null,"QC-Québec","Oui",24,273.96119700000003,0,"Non","Oui",0,null,0,null,0,null,0,null,0,null,null,null,null,null,null,null,null,null,null,null,null,null,null,{"$f":"IF(SUM(AI332:BD332)=0,0,(Y332/SUMIF($AI$20:$BD$20,\"1\",AI332:BD332)))","v":0}]
[309,"Implantation","9275-7244 Québec inc. (Galeries Chaudière)","Projet d'économie d'énergie aux Galeries Chaudière",1,"12-Chaudière-Appalaches","Sainte-Marie","AN","SU","                     -    $",null,"2017-10-01",75000,null,null,null,null,null,null,null,null,null,null,null,null,"                                                              -    $",null,"QC-Québec","Oui",20,0,33.104826099999997,"Non","Oui",null,null,null,null,null,null,null,null,null,null,null,null,null,null,null,null,null,null,null,null,null,null,null,{"$f":"IF(SUM(AI333:BD333)=0,0,(Y333/SUMIF($AI$20:$BD$20,\"1\",AI333:BD333)))","v":0}]
[310,"Implantation","Commission scolaire des Affluents","Remplacement du système de chauffage au mazout par des systèmes électriques",1,"14-Lanaudière","Mascouche","AC","SU",133814.95000000001,"2017-07-19","2018-09-30",225000,null,null,null,null,100361.22,33453.730000000003,null,null,null,null,null,100361.22,133814.95000000001,null,"QC-Québec","Oui",20,0,107.051963,"Non","Oui",0,null,0,null,0,null,0,null,0,null,null,null,null,null,null,null,null,null,null,null,null,null,null,{"$f":"IF(SUM(AI334:BD334)=0,0,(Y334/SUMIF($AI$20:$BD$20,\"1\",AI334:BD334)))","v":0}]
[311,"Implantation","Ville de Saint-Jérôme","Complexe sportif multifonctionnel-Institut jérômien des sports (IJS)",1,"15-Laurentides","Saint-Jérôme","AN","SU","                     -    $",null,"2019-04-01",900000,null,null,null,null,null,null,null,null,null,null,null,null,"                                                              -    $",null,"QC-Québec","Oui",50,0,343.392653,"Non","Oui",null,null,null,null,null,null,null,null,null,null,null,null,null,null,null,null,null,null,null,null,null,null,null,{"$f":"IF(SUM(AI335:BD335)=0,0,(Y335/SUMIF($AI$20:$BD$20,\"1\",AI335:BD335)))","v":0}]
[312,"Implantation","Commission scolaire de l'Or-et-des-Bois","Projet d’amélioration énergétique - École la Concorde",1,"08-Abitibi-Témiscamingue","Senneterre","RE","SU",258367.88,null,"2018-04-01",562411.88,null,null,null,null,129183.94,129183.94,null,null,null,null,null,null,258367.88,null,"QC-Québec","Oui",19.7103024,129.08289199999999,79.743684799999997,"Non","Oui",0,null,0,null,0,null,0,null,0,null,null,null,null,null,null,null,null,null,null,null,null,null,null,{"$f":"IF(SUM(AI336:BD336)=0,0,(Y336/SUMIF($AI$20:$BD$20,\"1\",AI336:BD336)))","v":0}]
[313,"Implantation","Carrefour Providence","Implantation de mesures en efficacité énergétique",1,"06-Montréal","Montréal","AN","SU","                     -    $",null,"2018-03-01",1808657.19,null,null,null,null,null,null,null,null,null,null,null,null,"                                                              -    $",null,"QC-Québec","Oui",10,621.67302900000004,0,"Non","Oui",null,null,null,null,null,null,null,null,null,null,null,null,null,null,null,null,null,null,null,null,null,null,null,{"$f":"IF(SUM(AI337:BD337)=0,0,(Y337/SUMIF($AI$20:$BD$20,\"1\",AI337:BD337)))","v":0}]
[314,"Implantation","Carrefour Providence","Projet d'économie d'énergie au Carrefour Providence",1,"06-Montréal","Montréal","RE","SU",694521.88,null,"2018-12-31",2350000,null,null,null,null,null,694521.88,null,null,null,null,null,null,694521.88,null,"QC-Québec","Oui",36.25,1389.04376,0,"Non","Oui",0,null,0,null,0,null,0,null,0,null,null,null,null,null,null,null,null,null,null,null,null,null,null,{"$f":"IF(SUM(AI338:BD338)=0,0,(Y338/SUMIF($AI$20:$BD$20,\"1\",AI338:BD338)))","v":0}]
[315,"Implantation","Les Couvre-Planchers Eddy","Installation d'un rideau d'air sur porte de garage",1,"16-Montérégie","Granby","AN","SU","                     -    $","2017-03-17","2018-04-11",20000,null,null,null,null,null,null,null,null,null,null,null,null,"                                                              -    $",null,"QC-Québec","Oui",15,8.6115205600000007,0,"Non","Oui",null,null,null,null,null,null,null,null,null,null,null,null,null,null,null,null,null,null,null,null,null,null,null,{"$f":"IF(SUM(AI339:BD339)=0,0,(Y339/SUMIF($AI$20:$BD$20,\"1\",AI339:BD339)))","v":0}]
[316,"Implantation","La Fabrique de la paroisse Immaculée-Conception-de-la-Sainte-Vierge","Conversion électrique",1,"04-Mauricie","Trois-Rivières","RE","SU",141000,null,"2018-10-25",188000,null,null,null,null,105750,35250,null,null,null,null,null,null,141000,null,"QC-Québec","Oui",25,0,134.826438,"Non","Oui",0,null,0,null,0,null,0,null,0,null,null,null,null,null,null,null,null,null,null,null,null,null,null,{"$f":"IF(SUM(AI340:BD340)=0,0,(Y340/SUMIF($AI$20:$BD$20,\"1\",AI340:BD340)))","v":0}]
[317,"Implantation","La Fabrique de la paroisse de Saint-Esprit des Pentes-Côtes","Conversion du système de chauffage au mazout à l'électricité",1,"12-Chaudière-Appalaches","Saint-Pierre-de-Broughton","TE","SU",59180.25,"2017-03-24","2018-05-31",107485,null,null,null,null,44385.18,14795.07,null,null,null,null,null,59180.25,59180.25,null,"QC-Québec","Oui",20,0,47.344200499999999,"Non","Oui",0,null,0,null,0,null,0,null,20.0501395,null,null,null,null,null,null,null,null,null,null,null,null,null,null,{"$f":"IF(SUM(AI341:BD341)=0,0,(Y341/SUMIF($AI$20:$BD$20,\"1\",AI341:BD341)))","v":{"$error":"#DIV/0!"}}]
[318,"Implantation","Compagnie du cimetière Saint-Charles","Installation de fours crématoires efficaces avec récupération thermique et filtration",1,"03-Capitale-Nationale","Québec","RF","SU","                     -    $",null,"2017-11-01",984032,null,null,null,null,null,null,null,null,null,null,null,null,"                                                              -    $",null,"QC-Québec","Oui",20,183.33205599999999,0,"Non","Oui",null,null,null,null,null,null,null,null,null,null,null,null,null,null,null,null,null,null,null,null,null,null,null,{"$f":"IF(SUM(AI342:BD342)=0,0,(Y342/SUMIF($AI$20:$BD$20,\"1\",AI342:BD342)))","v":0}]
[319,"Implantation","Compagnie du cimetière Saint-Charles","Installation de fours crématoires efficaces avec récupération thermique et filtration",1,"03-Capitale-Nationale","Québec","AN","SU","                     -    $",null,"2017-11-01",1176413,null,null,null,null,null,null,null,null,null,null,null,null,"                                                              -    $",null,"QC-Québec","Oui",20,219.16112000000001,0,"Non","Oui",null,null,null,null,null,null,null,null,null,null,null,null,null,null,null,null,null,null,null,null,null,null,null,{"$f":"IF(SUM(AI343:BD343)=0,0,(Y343/SUMIF($AI$20:$BD$20,\"1\",AI343:BD343)))","v":0}]
[320,"Implantation","Compagnie du cimetière Saint-Charles","Installation de fours crématoires efficaces avec récupération thermique et filtration",1,"03-Capitale-Nationale","Québec","IN","SU",241714.88,null,"2019-04-01",782890,null,null,null,null,null,181286.16,60428.72,null,null,null,null,null,241714.88,null,"QC-Québec","Oui",20,193.37190200000001,0,"Non","Oui",0,null,0,null,0,null,0,null,0,null,null,null,null,null,null,null,null,null,null,null,null,null,null,{"$f":"IF(SUM(AI344:BD344)=0,0,(Y344/SUMIF($AI$20:$BD$20,\"1\",AI344:BD344)))","v":0}]
[321,"Implantation","Garage Éric Lavoie","Conversion du chauffage au mazout pour du chauffage radiant électrique",1,"02-Saguenay─Lac-Saint-Jean","Petit-Saguenay","AC","SU",11119.71,"2017-03-24","2018-06-30",16129,null,null,null,null,8339.7900000000009,2779.92,null,null,null,null,null,8339.7900000000009,11119.71,null,"QC-Québec","Oui",20,0,8.8957646399999994,"Non","Oui",0,null,0,null,0,null,0,null,0,null,null,null,null,null,null,null,null,null,null,null,null,null,null,{"$f":"IF(SUM(AI345:BD345)=0,0,(Y345/SUMIF($AI$20:$BD$20,\"1\",AI345:BD345)))","v":0}]
[322,"Analyse","La Corporation du Collège Jean-de-Brébeuf","Analyse énergétique du Collège Jean-de-Brébeuf",1,"06-Montréal","Montréal","TE","SU",2470,"2017-06-01","2017-09-29",138320,null,null,null,null,2470,null,null,null,null,null,null,2470,2470,null,"QC-Québec","Oui",20,0,0,"Non","Oui",null,null,null,null,null,null,null,null,null,null,null,null,null,null,null,null,null,null,null,null,null,null,null,{"$f":"IF(SUM(AI346:BD346)=0,0,(Y346/SUMIF($AI$20:$BD$20,\"1\",AI346:BD346)))","v":0}]
[323,"Implantation","La Corporation du Collège Jean-de-Brébeuf","Économie d'énergie - Divers projets",1,"06-Montréal","Montréal","RE","SU",422142.52,null,"2017-12-15",5946400,null,null,null,null,422142.52,null,null,null,null,null,null,null,422142.52,null,"QC-Québec","Oui",20,1172.2722100000001,0,"Non","Oui",0,null,0,null,0,null,0,null,0,null,null,null,null,null,null,null,null,null,null,null,null,null,null,{"$f":"IF(SUM(AI347:BD347)=0,0,(Y347/SUMIF($AI$20:$BD$20,\"1\",AI347:BD347)))","v":0}]
[324,"Analyse","Ville de Québec","Projet de valorisation de la vapeur de l’incinérateur de la ville de Québec",1,"03-Capitale-Nationale","Québec","AC","SU",156081,"2018-05-16","2018-11-30",549224,null,null,null,null,null,156081,null,null,null,null,null,78040.5,156081,null,"QC-Québec","Oui",0,0,0,"Non","Oui",null,null,null,null,null,null,null,null,null,null,null,null,null,null,null,null,null,null,null,null,null,null,null,{"$f":"IF(SUM(AI348:BD348)=0,0,(Y348/SUMIF($AI$20:$BD$20,\"1\",AI348:BD348)))","v":0}]
[325,"Implantation","Centre intégré de santé et de services sociaux de Lanaudière","Projet d'efficacité énergétique au Centre d'hébergement des Deux-Rives",1,"14-Lanaudière","Repentigny","RE","SU",11191.86,null,"2020-09-01",632457.13,null,null,null,null,2797.96,2797.96,2797.96,2797.98,null,null,null,null,11191.86,null,"QC-Québec","Oui",20,90.529169300000007,157.86332999999999,"Non","Oui",0,null,0,null,0,null,0,null,0,null,null,null,null,null,null,null,null,null,null,null,null,null,null,{"$f":"IF(SUM(AI349:BD349)=0,0,(Y349/SUMIF($AI$20:$BD$20,\"1\",AI349:BD349)))","v":0}]
[326,"Implantation","Centre intégré de santé et de services sociaux de Lanaudière","Projet d'efficacité énergétique au Centre d'hébergement de L'Assomption",1,"14-Lanaudière","L'Assomption","AC","SU",424060.67,"2017-09-20","2020-01-30",952613,null,null,null,null,106015.17,212030.34,106015.16,null,null,null,null,106015.17,424060.67,null,"QC-Québec","Oui",37.253398900000001,197.510651,141.737886,"Non","Oui",0,null,0,null,0,null,0,null,0,null,null,null,null,null,null,null,null,null,null,null,null,null,null,{"$f":"IF(SUM(AI350:BD350)=0,0,(Y350/SUMIF($AI$20:$BD$20,\"1\",AI350:BD350)))","v":0}]
[327,"Analyse","Les investissements 6445 Milan Ltée","Étude en efficacité énergétique - Place Milan",1,"16-Montérégie","Brossard","RE","SU","                     -    $",null,"2017-07-31",20000,null,null,null,null,null,null,null,null,null,null,null,null,10000,null,"QC-Québec","Oui",0,0,0,"Non","Oui",null,null,null,null,null,null,null,null,null,null,null,null,null,null,null,null,null,null,null,null,null,null,null,{"$f":"IF(SUM(AI351:BD351)=0,0,(Y351/SUMIF($AI$20:$BD$20,\"1\",AI351:BD351)))","v":0}]
[328,"Analyse","Commission scolaire des Chênes","Étude écoénergétique type ASHRAE niveau 2",1,"17-Centre-du-Québec","Drummondville","TE","SU",7360,"2017-07-26","2017-10-05",14720,null,null,null,null,7040,null,null,null,null,null,null,7040,7040,null,"QC-Québec","Oui",0,0,0,"Non","Oui",null,null,null,null,null,null,null,null,null,null,null,null,null,null,null,null,null,null,null,null,null,null,null,{"$f":"IF(SUM(AI352:BD352)=0,0,(Y352/SUMIF($AI$20:$BD$20,\"1\",AI352:BD352)))","v":0}]
[329,"Implantation","Municipalité de Saint-Isidore","Récupération de chaleur sur le nouveau système de réfrigération au HFO",1,"12-Chaudière-Appalaches","Saint-Isidore","RE","SU",44987.33,null,"2017-07-15",86336,null,null,null,null,44987.33,null,null,null,null,null,null,null,44987.33,null,"QC-Québec","Oui",15,43.260725499999999,0,"Non","Oui",0,null,0,null,0,null,0,null,0,null,null,null,null,null,null,null,null,null,null,null,null,null,null,{"$f":"IF(SUM(AI353:BD353)=0,0,(Y353/SUMIF($AI$20:$BD$20,\"1\",AI353:BD353)))","v":0}]
[330,"Implantation","Yves Houde","Conversion du chauffage au mazout pour du chauffage à l'électricité",1,"02-Saguenay─Lac-Saint-Jean","Petit-Saguenay","AC","SU",11827.01,"2018-05-08","2017-04-30",16614,null,null,null,8870.25,2956.76,null,null,null,null,null,null,null,11827.01,null,"QC-Québec","Oui",20,0,9.4616113300000002,"Non","Oui",0,null,0,null,0,null,0,null,0,null,null,null,null,null,null,null,null,null,null,null,null,null,null,{"$f":"IF(SUM(AI354:BD354)=0,0,(Y354/SUMIF($AI$20:$BD$20,\"1\",AI354:BD354)))","v":0}]
[331,"Analyse","Syndicat des copropriétaires de Tropiques Nord1, Montréal, Phase 1","Étude d'efficacité énergétique chez Tropiques Nord",1,"06-Montréal","Montréal","TE","SU",43990,"2017-06-01","2017-10-24",87980,null,null,null,null,43990,null,null,null,null,null,null,43990,43990,null,"QC-Québec","Oui",0,0,0,"Non","Oui",null,null,null,null,null,null,null,null,null,null,null,null,null,null,null,null,null,null,null,null,null,null,null,{"$f":"IF(SUM(AI355:BD355)=0,0,(Y355/SUMIF($AI$20:$BD$20,\"1\",AI355:BD355)))","v":0}]
[332,"Implantation","Syndicat des copropriétaires de Tropiques Nord1, Montréal, Phase 1","Projet d'efficacité énergétique chez Tropiques Nord",1,"06-Montréal","Montréal","AC","SU",434202.79,"2017-12-05","2019-03-31",1702553,null,null,null,null,108550.7,325652.09000000003,null,null,null,null,null,217101.4,434202.79,null,"QC-Québec","Oui",25,371.844044,0,"Non","Oui",0,null,0,null,0,null,0,null,0,null,null,null,null,null,null,null,null,null,null,null,null,null,null,{"$f":"IF(SUM(AI356:BD356)=0,0,(Y356/SUMIF($AI$20:$BD$20,\"1\",AI356:BD356)))","v":0}]
[333,"Implantation","Fabrique de la paroisse St-Dominique de Jonquière","Transformation du système de chauffage",1,"02-Saguenay─Lac-Saint-Jean","Saguenay","AN","SU","                     -    $",null,"2018-11-01",288000,null,null,null,null,null,null,null,null,null,null,null,null,"                                                              -    $",null,"QC-Québec","Oui",50,0,233.72744,"Non","Oui",null,null,null,null,null,null,null,null,null,null,null,null,null,null,null,null,null,null,null,null,null,null,null,{"$f":"IF(SUM(AI357:BD357)=0,0,(Y357/SUMIF($AI$20:$BD$20,\"1\",AI357:BD357)))","v":0}]
[334,"Implantation","350-360 Franquet Société en commandite","Projet d'économie d'énergie au 360, rue Franquet",1,"03-Capitale-Nationale","Québec","AC","SU",49607.14,"2017-11-14","2019-05-29",145800,null,null,null,null,24803.56,12401.78,12401.8,null,null,null,null,null,49607.14,null,"QC-Québec","Oui",25,0,39.6857142,"Non","Oui",0,null,0,null,0,null,0,null,0,null,null,null,null,null,null,null,null,null,null,null,null,null,null,{"$f":"IF(SUM(AI358:BD358)=0,0,(Y358/SUMIF($AI$20:$BD$20,\"1\",AI358:BD358)))","v":0}]
[335,"Implantation","Ville de Roberval","Centre sportif Benoît-Lévesque - Rénovation majeure",1,"02-Saguenay─Lac-Saint-Jean","Roberval","RE","SU",345268.62,null,"2017-09-30",728250,null,null,null,null,345268.62,null,null,null,null,null,null,null,255359.92,null,"QC-Québec","Oui",20,276.70522499999998,0,"Non","Oui",0,null,0,null,0,null,0,null,0,null,null,null,null,null,null,null,null,null,null,null,null,null,null,{"$f":"IF(SUM(AI359:BD359)=0,0,(Y359/SUMIF($AI$20:$BD$20,\"1\",AI359:BD359)))","v":0}]
[336,"Implantation","La Fabrique de la paroisse de Sainte-Marguerite d'Youville","Remplacement de la fournaise au mazout léger par un système électrique zoné",1,"17-Centre-du-Québec","Pierreville","AC","SU",23312.69,"2017-08-10","2019-01-15",32120,null,null,null,null,17484.509999999998,5828.18,null,null,null,null,null,17484.509999999998,23312.69,null,"QC-Québec","Oui",30,0,18.6501482,"Non","Oui",0,null,0,null,0,null,0,null,0,null,null,null,null,null,null,null,null,null,null,null,null,null,null,{"$f":"IF(SUM(AI360:BD360)=0,0,(Y360/SUMIF($AI$20:$BD$20,\"1\",AI360:BD360)))","v":0}]
[337,"Implantation","Ville de Montréal","Mise aux Normes de l'aréna Marcelin Wilson",1,"06-Montréal","Montréal","RE","SU",112190,null,"2018-07-31",371140,null,null,null,null,null,112190,null,null,null,null,null,null,81105,null,"QC-Québec","Oui",21.919899000000001,230.96804299999999,0,"Non","Oui",0,null,0,null,0,null,0,null,0,null,null,null,null,null,null,null,null,null,null,null,null,null,null,{"$f":"IF(SUM(AI361:BD361)=0,0,(Y361/SUMIF($AI$20:$BD$20,\"1\",AI361:BD361)))","v":0}]
[338,"Implantation","La Fabrique de la paroisse Sainte-Cécile de Cloridorme","Conversion du système de chauffage central au mazout vers une système électrique par zone",1,"11-Gaspésie--Îles-de-la-Madeleine","Cloridorme","AC","SU",87412.5,"2017-11-24","2019-12-31",116550,null,null,null,null,null,65559.360000000001,21853.14,null,null,null,null,21853.119999999999,87412.5,null,"QC-Québec","Oui",25,0,70.872584399999994,"Non","Oui",0,null,0,null,0,null,0,null,0,null,null,null,null,null,null,null,null,null,null,null,null,null,null,{"$f":"IF(SUM(AI362:BD362)=0,0,(Y362/SUMIF($AI$20:$BD$20,\"1\",AI362:BD362)))","v":0}]
[339,"Implantation","Développements LB9, s.e.c.","Condos LB9",1,"03-Capitale-Nationale","Québec","RE","SU",281894.94,null,"2019-01-20",1257574,null,null,null,null,211421.22,70473.72,null,null,null,null,null,null,281894.94,null,"QC-Québec","Oui",20,144.83716100000001,203.075165,"Non","Oui",0,null,0,null,0,null,0,null,0,null,null,null,null,null,null,null,null,null,null,null,null,null,null,{"$f":"IF(SUM(AI363:BD363)=0,0,(Y363/SUMIF($AI$20:$BD$20,\"1\",AI363:BD363)))","v":0}]
[340,"Implantation","Couche-Tard inc.","Déstratification de l'air de l'entrepôt",1,"13-Laval","Laval","RE","SU",2840,null,"2017-04-26",20000,null,null,null,null,2840,null,null,null,null,null,null,null,2840,null,"QC-Québec","Oui",10,24.561160000000001,0,"Non","Oui",0,null,0,null,0,null,0,null,0,null,null,null,null,null,null,null,null,null,null,null,null,null,null,{"$f":"IF(SUM(AI364:BD364)=0,0,(Y364/SUMIF($AI$20:$BD$20,\"1\",AI364:BD364)))","v":0}]
[341,"Implantation","Les Soeurs de la Congrégation de Notre Dame","Congrégation Notre-Dame",1,"06-Montréal","Montréal","AC","SU",143000.18,"2018-03-19","2018-12-30",353522,null,null,null,null,null,143000.18,null,null,null,null,null,107250.12,143000.18,null,"QC-Québec","Oui",16.5913124,114.468124,0,"Non","Oui",0,null,0,null,0,null,0,null,0,null,null,null,null,null,null,null,null,null,null,null,null,null,null,{"$f":"IF(SUM(AI365:BD365)=0,0,(Y365/SUMIF($AI$20:$BD$20,\"1\",AI365:BD365)))","v":0}]
[342,"Implantation","La Fabrique de la paroisse de Saint-Joachim","Remplacement du système de chauffage au gaz naturel par un système électrique zoné",1,"16-Montérégie","Châteauguay","RF","SU","                     -    $",null,"2018-08-01",123000,null,null,null,null,null,null,null,null,null,null,null,null,"                                                              -    $",null,"QC-Québec","Oui",50,0,54.934144600000003,"Non","Oui",null,null,null,null,null,null,null,null,null,null,null,null,null,null,null,null,null,null,null,null,null,null,null,{"$f":"IF(SUM(AI366:BD366)=0,0,(Y366/SUMIF($AI$20:$BD$20,\"1\",AI366:BD366)))","v":0}]
[343,"Implantation","La Fabrique de la paroisse de Saint-Liboire","Remplacement du système de chauffage central à l'eau chauffé par chaufière à l'huile #2 par un système distribué électrique de type Ecorad",1,"16-Montérégie","Saint-Liboire","RE","SU",67197.710000000006,null,"2019-09-30",92650,null,null,null,null,null,50398.29,16799.419999999998,null,null,null,null,null,67197.710000000006,null,"QC-Québec","Oui",35,0,53.758170100000001,"Non","Oui",0,null,0,null,0,null,0,null,0,null,null,null,null,null,null,null,null,null,null,null,null,null,null,{"$f":"IF(SUM(AI367:BD367)=0,0,(Y367/SUMIF($AI$20:$BD$20,\"1\",AI367:BD367)))","v":0}]
[344,"Implantation","8766517 Canada inc.","Complexe médical Nord de l'ïle",1,"06-Montréal","Montréal","RE","SU",73036.09,null,"2018-03-31",202000,null,null,null,null,73036.09,null,null,null,null,null,null,null,73036.09,null,"QC-Québec","Oui",20,58.428873099999997,0,"Non","Oui",0,null,0,null,0,null,0,null,0,null,null,null,null,null,null,null,null,null,null,null,null,null,null,{"$f":"IF(SUM(AI368:BD368)=0,0,(Y368/SUMIF($AI$20:$BD$20,\"1\",AI368:BD368)))","v":0}]
[345,"Implantation","La Fabrique de la paroisse de Sainte-Rose-du-Dégelis","Conversion électrique du chauffage",1,"01-Bas-Saint-Laurent","Dégelis","AN","SU","                     -    $","2017-11-07","2018-04-23",133550,null,null,null,null,null,null,null,null,null,null,null,null,"                                                              -    $",null,"QC-Québec","Oui",25,0,61.688180600000003,"Non","Oui",null,null,null,null,null,null,null,null,null,null,null,null,null,null,null,null,null,null,null,null,null,null,null,{"$f":"IF(SUM(AI369:BD369)=0,0,(Y369/SUMIF($AI$20:$BD$20,\"1\",AI369:BD369)))","v":0}]
[346,"Implantation","Groupe immobilier Pertel inc.","Projet d'efficacité énergétique - Les appartements le Saphir I",1,"06-Montréal","Montréal","AC","SU",193174.55,"2017-07-19","2018-09-30",377352.18,null,null,null,null,144880.92000000001,48293.63,null,null,null,null,null,144880.92000000001,193174.55,null,"QC-Québec","Oui",19.788299599999998,203.42456100000001,0,"Non","Oui",0,null,0,null,0,null,0,null,0,null,null,null,null,null,null,null,null,null,null,null,null,null,null,{"$f":"IF(SUM(AI370:BD370)=0,0,(Y370/SUMIF($AI$20:$BD$20,\"1\",AI370:BD370)))","v":0}]
[347,"Analyse","Hôtel Chicoutimi (1994) enr.","Étude en efficacité énergétique du bâtiment",1,"02-Saguenay─Lac-Saint-Jean","Saguenay","AC","SU",8125,"2017-06-14","2018-09-30",16250,null,null,null,null,4062.5,4062.5,null,null,null,null,null,4062.5,8125,null,"QC-Québec","Oui",0,0,0,"Non","Oui",null,null,null,null,null,null,null,null,null,null,null,null,null,null,null,null,null,null,null,null,null,null,null,{"$f":"IF(SUM(AI371:BD371)=0,0,(Y371/SUMIF($AI$20:$BD$20,\"1\",AI371:BD371)))","v":0}]
[348,"Implantation","Arbec (Médifice immobilier s.e.n.c.)","Projet d'efficacité énergétique avec Arbec / Médifice immobilier s.e.n.c.",1,"14-Lanaudière","Repentigny","AC","SU",342451.5,"2017-11-14","2019-09-27",563708,null,null,null,null,null,256838.64,85612.86,null,null,null,null,null,342451.5,null,"QC-Québec","Oui",24,273.96119700000003,0,"Non","Oui",0,null,0,null,0,null,0,null,0,null,null,null,null,null,null,null,null,null,null,null,null,null,null,{"$f":"IF(SUM(AI372:BD372)=0,0,(Y372/SUMIF($AI$20:$BD$20,\"1\",AI372:BD372)))","v":0}]
[349,"Implantation","9244-7770 Québec inc.","Implantation du produit écoAZUR, confort du chef avec tableau de bord",1,"02-Saguenay─Lac-Saint-Jean","Saguenay","AC","SU",36669.599999999999,"2018-03-05","2018-10-01",65684.77,null,null,null,null,27502.2,9167.4,null,null,null,null,null,27502.2,36669.599999999999,null,"QC-Québec","Oui",10,30.023561000000001,0,"Non","Oui",0,null,0,null,0,null,0,null,0,null,null,null,null,null,null,null,null,null,null,null,null,null,null,{"$f":"IF(SUM(AI373:BD373)=0,0,(Y373/SUMIF($AI$20:$BD$20,\"1\",AI373:BD373)))","v":0}]
[350,"Implantation","Ville de Montréal","Mise au norme de l'aréna St-Donat",1,"06-Montréal","Montréal","RE","SU",71176.479999999996,null,"2017-10-01",630900,null,null,null,null,71176.479999999996,null,null,null,null,null,null,null,71176.479999999996,null,"QC-Québec","Oui",24.096193299999999,154.71068700000001,0,"Non","Oui",0,null,0,null,0,null,0,null,0,null,null,null,null,null,null,null,null,null,null,null,null,null,null,{"$f":"IF(SUM(AI374:BD374)=0,0,(Y374/SUMIF($AI$20:$BD$20,\"1\",AI374:BD374)))","v":0}]
[351,"Implantation","Ville de Montréal","Mise aux normes de l'aréna René Masson",1,"06-Montréal","Montréal","RE","SU",302804,null,"2019-08-30",941618,null,null,null,null,151402,75701,75701,null,null,null,null,null,302804,null,"QC-Québec","Oui",23.4779491,448.171131,0,"Non","Oui",0,null,0,null,0,null,0,null,0,null,null,null,null,null,null,null,null,null,null,null,null,null,null,{"$f":"IF(SUM(AI375:BD375)=0,0,(Y375/SUMIF($AI$20:$BD$20,\"1\",AI375:BD375)))","v":0}]
[352,"Implantation","Hotellus Montreal Holding inc.","Optimisation du chauffage de l'eau chaude domestique",1,"06-Montréal","Montréal","AC","SU",114918.26,"2018-03-27","2019-06-30",724800,null,null,null,null,null,86188.68,28729.58,null,null,null,null,null,114918.26,null,"QC-Québec","Oui",25,0,91.934608999999995,"Non","Oui",0,null,0,null,0,null,0,null,0,null,null,null,null,null,null,null,null,null,null,null,null,null,null,{"$f":"IF(SUM(AI376:BD376)=0,0,(Y376/SUMIF($AI$20:$BD$20,\"1\",AI376:BD376)))","v":0}]
[353,"Analyse","Ville de Joliette","Réfection majeure - Garage municipal",1,"14-Lanaudière","Joliette","AC","SU",15203.82,"2017-10-02","2018-04-30",30407.64,null,null,null,null,null,15203.82,null,null,null,null,null,null,15203.82,null,"QC-Québec","Oui",0,0,0,"Non","Oui",null,null,null,null,null,null,null,null,null,null,null,null,null,null,null,null,null,null,null,null,null,null,null,{"$f":"IF(SUM(AI377:BD377)=0,0,(Y377/SUMIF($AI$20:$BD$20,\"1\",AI377:BD377)))","v":0}]
[354,"Analyse","Commission scolaire des Grandes Seigneuries","Agrandissement de l'École Louis-Cyr",1,"16-Montérégie","Napierville","TE","SU",4975,"2017-09-14","2018-05-07","                                -    $",null,null,null,null,null,4975,null,null,null,null,null,4975,4975,null,"QC-Québec","Oui",0,0,0,"Non","Oui",null,null,null,null,null,null,null,null,null,null,null,null,null,null,null,null,null,null,null,null,null,null,null,{"$f":"IF(SUM(AI378:BD378)=0,0,(Y378/SUMIF($AI$20:$BD$20,\"1\",AI378:BD378)))","v":0}]
[355,"Implantation","Commission scolaire des Grandes Seigneuries","Agrandissement de l'École Louis-Cyr",1,"16-Montérégie","Napierville","AC","SU",68407.039999999994,"2017-12-05","2019-08-30",135000,null,null,null,null,null,51305.279999999999,17101.759999999998,null,null,null,null,17101.759999999998,68407.039999999994,null,"QC-Québec","Oui",25,60.670118199999997,0,"Non","Oui",0,null,0,null,0,null,0,null,0,null,null,null,null,null,null,null,null,null,null,null,null,null,null,{"$f":"IF(SUM(AI379:BD379)=0,0,(Y379/SUMIF($AI$20:$BD$20,\"1\",AI379:BD379)))","v":0}]
[356,"Analyse","Casiloc inc.","Analyse d'un programme de récupération de chaleur et de réduction des émissions de gaz à effet de serre au Casino de Charlevoix",1,"03-Capitale-Nationale","La Malbaie","AC","SU",17390,"2018-03-19","2018-06-15",34780,null,null,null,null,null,17390,null,null,null,null,null,null,17390,null,"QC-Québec","Oui",0,0,0,"Non","Oui",null,null,null,null,null,null,null,null,null,null,null,null,null,null,null,null,null,null,null,null,null,null,null,{"$f":"IF(SUM(AI380:BD380)=0,0,(Y380/SUMIF($AI$20:$BD$20,\"1\",AI380:BD380)))","v":0}]
[357,"Implantation","Casiloc inc.","Projet éco énergétique, Casino de Charlevoix",1,"03-Capitale-Nationale","La Malbaie","RE","SU",697173.09,null,"2019-02-15",1843947,null,null,null,null,null,697173.09,null,null,null,null,null,null,697173.09,null,"QC-Québec","Oui",30,557.73846800000001,0,"Non","Oui",0,null,0,null,0,null,0,null,0,null,null,null,null,null,null,null,null,null,null,null,null,null,null,{"$f":"IF(SUM(AI381:BD381)=0,0,(Y381/SUMIF($AI$20:$BD$20,\"1\",AI381:BD381)))","v":0}]
[358,"Implantation","Gestion Saint-Laurent Angus inc.","Nouvelle construction - Carré Saint-Laurent",1,"06-Montréal","Montréal","RE","SU",1103527.1299999999,null,"2020-08-31",1795150,null,null,null,null,275881.78000000003,551763.56000000006,null,275881.78999999998,null,null,null,null,1103527.1299999999,null,"QC-Québec","Oui",20,891.03856699999994,0,"Non","Oui",0,null,0,null,0,null,0,null,0,null,null,null,null,null,null,null,null,null,null,null,null,null,null,{"$f":"IF(SUM(AI382:BD382)=0,0,(Y382/SUMIF($AI$20:$BD$20,\"1\",AI382:BD382)))","v":0}]
[359,"Implantation","7037457 Canada inc.","Projet d'efficacité énergétique",1,"06-Montréal","Montréal","RE","SU",639702.22,null,"2018-09-30",1300000,null,null,null,null,479776.68,159925.54,null,null,null,null,null,null,639702.22,null,"QC-Québec","Oui",23.451789900000001,511.76177200000001,0,"Non","Oui",0,null,0,null,0,null,0,null,0,null,null,null,null,null,null,null,null,null,null,null,null,null,null,{"$f":"IF(SUM(AI383:BD383)=0,0,(Y383/SUMIF($AI$20:$BD$20,\"1\",AI383:BD383)))","v":0}]
[360,"Implantation","Bistro Ophélia inc.","Implantation du produit écoAZUR, confort du chef avec tableau de bord",1,"03-Capitale-Nationale","Québec","AC","SU",18219.47,"2017-11-01","2018-07-02",36306.76,null,null,null,null,13664.61,4554.8599999999997,null,null,null,null,null,13664.61,18219.47,null,"QC-Québec","Oui",10,14.575579299999999,0,"Non","Oui",0,null,0,null,0,null,0,null,0,null,null,null,null,null,null,null,null,null,null,null,null,null,null,{"$f":"IF(SUM(AI384:BD384)=0,0,(Y384/SUMIF($AI$20:$BD$20,\"1\",AI384:BD384)))","v":0}]
[361,"Analyse","Institut de Cardiologie de Montréal","Étude d'efficacité énergétique en prévision du projet Agrandissement du Centre ÉPIC - Phase 2",1,"06-Montréal","Montréal","AC","SU",9500,"2017-10-02","2018-05-30",19000,null,null,null,null,null,9500,null,null,null,null,null,null,9500,null,"QC-Québec","Oui",0,0,0,"Non","Oui",null,null,null,null,null,null,null,null,null,null,null,null,null,null,null,null,null,null,null,null,null,null,null,{"$f":"IF(SUM(AI385:BD385)=0,0,(Y385/SUMIF($AI$20:$BD$20,\"1\",AI385:BD385)))","v":0}]
[362,"Implantation","Institut de Cardiologie de Montréal","Agrandissement du Centre ÉPIC - Phase 2",1,"06-Montréal","Montréal","RE","SU",132441.25,null,"2020-01-30",350000,null,null,null,null,null,33110.31,99330.94,null,null,null,null,null,132441.25,null,"QC-Québec","Oui",21.811593999999999,130.36308,0,"Non","Oui",0,null,0,null,0,null,0,null,0,null,null,null,null,null,null,null,null,null,null,null,null,null,null,{"$f":"IF(SUM(AI386:BD386)=0,0,(Y386/SUMIF($AI$20:$BD$20,\"1\",AI386:BD386)))","v":0}]
[363,"Analyse","Commission scolaire du Chemin-du-Roy","Étude de faisabilité en efficacité énergétique - CSRJQ",1,"04-Mauricie","Trois-Rivières","TE","SU",13300,"2017-12-04","2018-03-13",25757.5,null,null,null,null,12878.75,null,null,null,null,null,null,12878.75,12878.75,null,"QC-Québec","Oui",0,0,0,"Non","Oui",null,null,null,null,null,null,null,null,null,null,null,null,null,null,null,null,null,null,null,null,null,null,null,{"$f":"IF(SUM(AI387:BD387)=0,0,(Y387/SUMIF($AI$20:$BD$20,\"1\",AI387:BD387)))","v":0}]
[364,"Analyse","Ville de Saint-Joseph-de-Beauce","Analyse écoénergétique - Nouvelle construction d’une caserne incendie",1,"12-Chaudière-Appalaches","Saint-Joseph-de-Beauce","TE","SU",4000,"2017-10-03","2017-11-27","                                -    $",null,null,null,null,4000,null,null,null,null,null,null,4000,4000,null,"QC-Québec","Oui",0,0,0,"Non","Oui",null,null,null,null,null,null,null,null,null,null,null,null,null,null,null,null,null,null,null,null,null,null,null,{"$f":"IF(SUM(AI388:BD388)=0,0,(Y388/SUMIF($AI$20:$BD$20,\"1\",AI388:BD388)))","v":0}]
[365,"Implantation","Développements rue Dowd S.E.C.","Dowd",1,"06-Montréal","Montréal","RE","SU",284060.3,null,"2019-01-01",4325833.1399999997,null,null,null,null,142030.16,142030.14000000001,null,null,null,null,null,null,284060.3,null,"QC-Québec","Oui",18.0236187,436.054554,0,"Non","Oui",0,null,0,null,0,null,0,null,0,null,null,null,null,null,null,null,null,null,null,null,null,null,null,{"$f":"IF(SUM(AI389:BD389)=0,0,(Y389/SUMIF($AI$20:$BD$20,\"1\",AI389:BD389)))","v":0}]
[366,"Analyse","Commission scolaire Eastern Townships","Analyse écoénergétique - École de Sutton",1,"16-Montérégie","Lac-Brome","TE","SU",3800,"2017-09-28","2018-04-13","                                -    $",null,null,null,null,null,3800,null,null,null,null,null,3800,3800,null,"QC-Québec","Oui",0,0,0,"Non","Oui",null,null,null,null,null,null,null,null,null,null,null,null,null,null,null,null,null,null,null,null,null,null,null,{"$f":"IF(SUM(AI390:BD390)=0,0,(Y390/SUMIF($AI$20:$BD$20,\"1\",AI390:BD390)))","v":0}]
[367,"Analyse","Commission scolaire des Portages-de-l'Outaouais","Analyse écoénergétique - École primaire 035 de la CSPO",1,"07-Outaouais","Gatineau","AC","SU",5900,"2018-02-06","2018-01-26",11800,null,null,null,null,5900,null,null,null,null,null,null,null,5900,null,"QC-Québec","Oui",0,0,0,"Non","Oui",null,null,null,null,null,null,null,null,null,null,null,null,null,null,null,null,null,null,null,null,null,null,null,{"$f":"IF(SUM(AI391:BD391)=0,0,(Y391/SUMIF($AI$20:$BD$20,\"1\",AI391:BD391)))","v":0}]
[368,"Implantation","Commission scolaire des Portages-de-l'Outaouais","Projet d'efficacité énergétique à l\"École primaire 035",1,"07-Outaouais","Gatineau","AC","SU",34804.94,"2018-06-11","2019-09-30",416200,null,null,null,null,null,26103.72,8701.2199999999993,null,null,null,null,null,34804.94,null,"QC-Québec","Oui",25,37.404757400000001,107.626975,"Non","Oui",0,null,0,null,0,null,0,null,0,null,null,null,null,null,null,null,null,null,null,null,null,null,null,{"$f":"IF(SUM(AI392:BD392)=0,0,(Y392/SUMIF($AI$20:$BD$20,\"1\",AI392:BD392)))","v":0}]
[369,"Implantation","Ville de Montréal","Rénovation et agrandissement de la caserne 18",1,"06-Montréal","Montréal","AC","SU",32287.05,"2017-12-21","2020-02-07",442800,null,null,null,null,8071.76,16143.52,8071.77,null,null,null,null,8071.76,32287.05,null,"QC-Québec","Oui",22.763608900000001,35.656973100000002,28.8546558,"Non","Oui",0,null,0,null,0,null,0,null,0,null,null,null,null,null,null,null,null,null,null,null,null,null,null,{"$f":"IF(SUM(AI393:BD393)=0,0,(Y393/SUMIF($AI$20:$BD$20,\"1\",AI393:BD393)))","v":0}]
[370,"Implantation","Immoparc Holdings Two Canadian Propreties","Projet d'économie d'énergie aux Appartements Le Parc",1,"06-Montréal","Montréal","AC","SU",754846.47,"2018-03-02","2019-11-15",1250403,null,null,null,null,188711.62,377423.24,188711.61,null,null,null,null,188711.62,754846.47,null,"QC-Québec","Oui",28.142299699999999,721.154449,0,"Non","Oui",0,null,0,null,0,null,0,null,0,null,null,null,null,null,null,null,null,null,null,null,null,null,null,{"$f":"IF(SUM(AI394:BD394)=0,0,(Y394/SUMIF($AI$20:$BD$20,\"1\",AI394:BD394)))","v":0}]
[371,"Implantation","Le Carrefour Laval (2013) inc.","Conversion VAV des systèmes S-X",1,"13-Laval","Laval","RE","SU",142793.60999999999,null,"2019-10-31",753050,null,null,null,null,null,35698.400000000001,107095.21,null,null,null,null,null,142793.60999999999,null,"QC-Québec","Oui",0,114.23488999999999,0,"Non","Oui",0,null,0,null,0,null,0,null,0,null,null,null,null,null,null,null,null,null,null,null,null,null,null,{"$f":"IF(SUM(AI395:BD395)=0,0,(Y395/SUMIF($AI$20:$BD$20,\"1\",AI395:BD395)))","v":0}]
[372,"Analyse","Construction JPL","57, Crémazie, Gatineau - Neuf logements",1,"07-Outaouais","Gatineau","AC","SU",2250,"2018-04-27","2018-10-30",4500,null,null,null,null,null,2250,null,null,null,null,null,null,2250,null,"QC-Québec","Oui",0,0,0,"Non","Oui",null,null,null,null,null,null,null,null,null,null,null,null,null,null,null,null,null,null,null,null,null,null,null,{"$f":"IF(SUM(AI396:BD396)=0,0,(Y396/SUMIF($AI$20:$BD$20,\"1\",AI396:BD396)))","v":0}]
[373,"Implantation","Gestion immobilière Bégin","Nouveau bâtiment de services à Audi Ste-Foy",1,"03-Capitale-Nationale","Québec","RE","SU",203243.45,null,"2018-11-24",555000,null,null,null,null,152432.57999999999,50810.87,null,null,null,null,null,null,203243.45,null,"QC-Québec","Oui",20,162.59475900000001,0,"Non","Oui",0,null,0,null,0,null,0,null,0,null,null,null,null,null,null,null,null,null,null,null,null,null,null,{"$f":"IF(SUM(AI397:BD397)=0,0,(Y397/SUMIF($AI$20:$BD$20,\"1\",AI397:BD397)))","v":0}]
[374,"Implantation","Boston Pizza Beauport","Implantation du produit ecoAZUR",1,"03-Capitale-Nationale","Québec","AC","SU",27077.7,"2018-03-06","2018-10-31",54130,null,null,null,null,20308.259999999998,6769.44,null,null,null,null,null,20308.259999999998,27077.7,null,"QC-Québec","Oui",10,21.662163199999998,0,"Non","Oui",0,null,0,null,0,null,0,null,0,null,null,null,null,null,null,null,null,null,null,null,null,null,null,{"$f":"IF(SUM(AI398:BD398)=0,0,(Y398/SUMIF($AI$20:$BD$20,\"1\",AI398:BD398)))","v":0}]
[375,"Analyse","Hôtel McMillan 555 inc.","Projet d’efficacité énergétique à l'hôtel Le Sheraton de l'Aéroport de Montréal",1,"06-Montréal","Dorval","AC","SU",25000,"2018-02-05","2018-01-31",165000,null,null,null,null,25000,null,null,null,null,null,null,null,25000,null,"QC-Québec","Oui",0,0,0,"Non","Oui",null,null,null,null,null,null,null,null,null,null,null,null,null,null,null,null,null,null,null,null,null,null,null,{"$f":"IF(SUM(AI399:BD399)=0,0,(Y399/SUMIF($AI$20:$BD$20,\"1\",AI399:BD399)))","v":0}]
[376,"Implantation","Hôtel McMillan 555 inc.","Projet d'efficacité énergétique pour l'hôtel Sheraton Aéroport Montréal",1,"06-Montréal","Dorval","AC","SU",1111365.1000000001,"2018-04-10","2020-01-01",2773793.34,null,null,null,null,null,833523.84,277841.26,null,null,null,null,277841.28000000003,1111365.1000000001,null,"QC-Québec","Oui",20.246696499999999,923.45652900000005,0,"Non","Oui",0,null,0,null,0,null,0,null,0,null,null,null,null,null,null,null,null,null,null,null,null,null,null,{"$f":"IF(SUM(AI400:BD400)=0,0,(Y400/SUMIF($AI$20:$BD$20,\"1\",AI400:BD400)))","v":0}]
[377,"Implantation","3090-5103 Québec inc.","Projet de géothermie chez 3090-5103 Québec inc.",1,"14-Lanaudière","Terrebonne","RF","SU","                     -    $",null,"2018-12-29",46721,null,null,null,null,null,null,null,null,null,null,null,null,"                                                              -    $",null,"QC-Québec","Oui",0,0,12.615448000000001,"Non","Oui",null,null,null,null,null,null,null,null,null,null,null,null,null,null,null,null,null,null,null,null,null,null,null,{"$f":"IF(SUM(AI401:BD401)=0,0,(Y401/SUMIF($AI$20:$BD$20,\"1\",AI401:BD401)))","v":0}]
[378,"Implantation","Marmott énergies inc.","Projet de géothermie chez 3090-5103 Québec inc.",1,"14-Lanaudière","Terrebonne","RF","SU","                     -    $",null,"2018-12-29",46721,null,null,null,null,null,null,null,null,null,null,null,null,"                                                              -    $",null,"QC-Québec","Oui",0,0,12.615448000000001,"Non","Oui",null,null,null,null,null,null,null,null,null,null,null,null,null,null,null,null,null,null,null,null,null,null,null,{"$f":"IF(SUM(AI402:BD402)=0,0,(Y402/SUMIF($AI$20:$BD$20,\"1\",AI402:BD402)))","v":0}]
[379,"Implantation","3090-5103 Québec inc.","Conversion d'un système de chauffage au gaz et mise en place de climatisation par géothermie dans le cadre d'un projet d'agrandissement de bâtiment",1,"14-Lanaudière","Terrebonne","RE","SU",40621.31,null,"2018-12-29",87000,null,null,null,null,null,40621.31,null,null,null,null,null,null,40621.31,null,"QC-Québec","Oui",25,0,32.497047100000003,"Non","Oui",0,null,0,null,0,null,0,null,0,null,null,null,null,null,null,null,null,null,null,null,null,null,null,{"$f":"IF(SUM(AI403:BD403)=0,0,(Y403/SUMIF($AI$20:$BD$20,\"1\",AI403:BD403)))","v":0}]
[380,"Implantation","4328175 Canada inc.","Projet d'efficacité énergétique à l'Hôtel Marriott - Chaudières à condensation",1,"06-Montréal","Dorval","RE","SU",37637.620000000003,null,"2019-07-13",120000,null,null,null,null,null,28228.23,9409.39,null,null,null,null,null,37637.620000000003,null,"QC-Québec","Oui",20,30.1100928,0,"Non","Oui",0,null,0,null,0,null,0,null,0,null,null,null,null,null,null,null,null,null,null,null,null,null,null,{"$f":"IF(SUM(AI404:BD404)=0,0,(Y404/SUMIF($AI$20:$BD$20,\"1\",AI404:BD404)))","v":0}]
[381,"Analyse","Le Séminaire Salésien de Sherbrooke","Analyse écoénergétique du Séminaire Salésien",1,"05-Estrie","Sherbrooke","TE","SU",4480,"2018-03-02","2018-03-23","                                -    $",null,null,null,null,4480,null,null,null,null,null,null,4480,4480,null,"QC-Québec","Oui",0,0,0,"Non","Oui",null,null,null,null,null,null,null,null,null,null,null,null,null,null,null,null,null,null,null,null,null,null,null,{"$f":"IF(SUM(AI405:BD405)=0,0,(Y405/SUMIF($AI$20:$BD$20,\"1\",AI405:BD405)))","v":0}]
[382,"Implantation","Le Séminaire Salésien de Sherbrooke","Projet d'efficacité énergétique",1,"05-Estrie","Sherbrooke","RE","SU",369665.15,null,"2019-12-15",962296.15,null,null,null,null,92416.29,184832.58,92416.28,null,null,null,null,null,369665.15,null,"QC-Québec","Oui",19.837154399999999,342.78686499999998,0,"Non","Oui",0,null,0,null,0,null,0,null,0,null,null,null,null,null,null,null,null,null,null,null,null,null,null,{"$f":"IF(SUM(AI406:BD406)=0,0,(Y406/SUMIF($AI$20:$BD$20,\"1\",AI406:BD406)))","v":0}]
[383,"Implantation","Ville de Saint-Joseph-de-Beauce","Projet d'efficacité énergétique - Maison de la Culture",1,"12-Chaudière-Appalaches","Saint-Joseph-de-Beauce","RE","SU",9000,null,"2019-06-01",42966,null,null,null,null,null,6750,2250,null,null,null,null,null,9000,null,"QC-Québec","Oui",16.519111599999999,9.3182690800000003,0,"Non","Oui",0,null,0,null,0,null,0,null,0,null,null,null,null,null,null,null,null,null,null,null,null,null,null,{"$f":"IF(SUM(AI407:BD407)=0,0,(Y407/SUMIF($AI$20:$BD$20,\"1\",AI407:BD407)))","v":0}]
[384,"Implantation","Restaurant Chez Gérard inc.","Implantation du produit ecoAZUR",1,"12-Chaudière-Appalaches","Saint-Georges","AC","SU",11920.57,"2018-03-05","2018-09-28",26254.94,null,null,null,null,8940.42,2980.15,null,null,null,null,null,8940.42,11920.57,null,"QC-Québec","Oui",10,9.5364589399999993,0,"Non","Oui",0,null,0,null,0,null,0,null,0,null,null,null,null,null,null,null,null,null,null,null,null,null,null,{"$f":"IF(SUM(AI408:BD408)=0,0,(Y408/SUMIF($AI$20:$BD$20,\"1\",AI408:BD408)))","v":0}]
[385,"Implantation","Ville de Montréal","Projet d'efficacité énergétique - Nouvelle construction du centre de tri Fairway",1,"06-Montréal","Montréal","RE","SU",751676.39,null,"2020-09-01",1430000,null,null,null,null,187919.1,187919.1,187919.1,187919.09,null,null,null,null,751676.39,null,"QC-Québec","Oui",24.2808189,758.73459200000002,22.435675,"Non","Oui",0,null,0,null,0,null,0,null,0,null,null,null,null,null,null,null,null,null,null,null,null,null,null,{"$f":"IF(SUM(AI409:BD409)=0,0,(Y409/SUMIF($AI$20:$BD$20,\"1\",AI409:BD409)))","v":0}]
[386,"Implantation","Capreit Apartments inc.","Projet d'efficacité énergétique au Parc Royal Apartments",1,"06-Montréal","Montréal","RE","SU",512289.35,null,"2019-02-15",853520,null,null,null,null,384217.02,128072.33,null,null,null,null,null,null,512289.35,null,"QC-Québec","Oui",17.4756088,409.831479,0,"Non","Oui",0,null,0,null,0,null,0,null,0,null,null,null,null,null,null,null,null,null,null,null,null,null,null,{"$f":"IF(SUM(AI410:BD410)=0,0,(Y410/SUMIF($AI$20:$BD$20,\"1\",AI410:BD410)))","v":0}]
[387,"Implantation","Collège Bourget","Aréna du Collège Bourget - Remplacement du système de réfrigération",1,"16-Montérégie","Rigaud","RE","SU",74786.25,null,"2019-07-19",989839,null,null,null,null,37393.120000000003,18696.560000000001,18696.57,null,null,null,null,null,74786.25,null,"QC-Québec","Oui",15,185.273326,0,"Non","Oui",0,null,0,null,0,null,0,null,0,null,null,null,null,null,null,null,null,null,null,null,null,null,null,{"$f":"IF(SUM(AI411:BD411)=0,0,(Y411/SUMIF($AI$20:$BD$20,\"1\",AI411:BD411)))","v":0}]
[388,"Implantation","Collège d'Anjou","Projet d'efficacité énergétique et conversion vers l'électricité avec gestion de l'appel de puissance",1,"06-Montréal","Montréal","AC","SU",158376.68,"2018-07-04","2019-12-15",337631,null,null,null,null,null,118782.51,39594.17,null,null,null,null,null,158376.68,null,"QC-Québec","Oui",40,76.308989800000006,50.3923548,"Non","Oui",0,null,0,null,0,null,0,null,0,null,null,null,null,null,null,null,null,null,null,null,null,null,null,{"$f":"IF(SUM(AI412:BD412)=0,0,(Y412/SUMIF($AI$20:$BD$20,\"1\",AI412:BD412)))","v":0}]
[389,"Analyse","Gestion 333 Chabanel (9315-3252 Québec inc.)","Étude de modernisation énergétique",1,"06-Montréal","Montréal","AC","SU",17500,"2018-04-27","2018-09-28",35000,null,null,null,null,null,17500,null,null,null,null,null,null,17500,null,"QC-Québec","Oui",null,0,0,"Non","Oui",null,null,null,null,null,null,null,null,null,null,null,null,null,null,null,null,null,null,null,null,null,null,null,{"$f":"IF(SUM(AI413:BD413)=0,0,(Y413/SUMIF($AI$20:$BD$20,\"1\",AI413:BD413)))","v":0}]
[390,"Implantation","Collège de Lévis","Projet d'efficacité énergétique Collège de Lévis",1,"12-Chaudière-Appalaches","Lévis","AC","SU",326318.63,"2018-04-06","2019-10-31",1067849,null,null,null,null,null,244738.98,81579.649999999994,null,null,null,null,81579.66,326318.63,null,"QC-Québec","Oui",27.300744999999999,261.05490200000003,6.5052411499999998,"Non","Oui",0,null,0,null,0,null,0,null,0,null,null,null,null,null,null,null,null,null,null,null,null,null,null,{"$f":"IF(SUM(AI414:BD414)=0,0,(Y414/SUMIF($AI$20:$BD$20,\"1\",AI414:BD414)))","v":0}]
[391,"Implantation","Capreit Apartments inc.","Projet d'efficacité énergétique au 5740, boulevard Cavendish",1,"06-Montréal","Montréal","AC","SU",314432.56,null,"2019-05-01",540000,null,null,null,null,null,235824.42,78608.14,null,null,null,null,null,314432.56,null,"QC-Québec","Oui",16.428146399999999,251.54604699999999,0,"Non","Oui",0,null,0,null,0,null,0,null,0,null,null,null,null,null,null,null,null,null,null,null,null,null,null,{"$f":"IF(SUM(AI415:BD415)=0,0,(Y415/SUMIF($AI$20:$BD$20,\"1\",AI415:BD415)))","v":0}]
[392,"Implantation","Résidences Les Jardins, société en commandite","Projet d'économie d'énergie à la résidence Jardins Le Flandre",1,"03-Capitale-Nationale","Québec","AC","SU",60568.15,"2018-06-19","2019-07-18",128627.09,null,null,null,null,null,45426.12,15142.03,null,null,null,null,null,60568.15,null,"QC-Québec","Oui",17.393100700000002,94.147738700000005,0,"Non","Oui",0,null,0,null,0,null,0,null,0,null,null,null,null,null,null,null,null,null,null,null,null,null,null,{"$f":"IF(SUM(AI416:BD416)=0,0,(Y416/SUMIF($AI$20:$BD$20,\"1\",AI416:BD416)))","v":0}]
[393,"Implantation","Entreprises Burak inc.","Projet d'efficacité énergétique - Burak Édifice Lafontaine",1,"06-Montréal","Montréal","AC","SU",279821.51,"2018-05-30","2019-06-30",610410.51,null,null,null,null,null,209866.14,69955.37,null,null,null,null,209866.14,279821.51,null,"QC-Québec","Oui",24.229892700000001,231.440721,0,"Non","Oui",0,null,0,null,0,null,0,null,0,null,null,null,null,null,null,null,null,null,null,null,null,null,null,{"$f":"IF(SUM(AI417:BD417)=0,0,(Y417/SUMIF($AI$20:$BD$20,\"1\",AI417:BD417)))","v":0}]
[394,"Implantation","Commission scolaire des Grandes-Seigneuries","Agrandissement de l'école Saint-Édouard - Phase 2",1,"16-Montérégie","Saint-Édouard","RE","SU",23190.560000000001,null,"2018-08-24",330000,null,null,null,null,11595.28,11595.28,null,null,null,null,null,null,"                                                              -    $",null,"QC-Québec","Oui",30,18.552448999999999,43.012901399999997,"Non","Oui",0,null,0,null,0,null,0,null,0,null,null,null,null,null,null,null,null,null,null,null,null,null,null,{"$f":"IF(SUM(AI418:BD418)=0,0,(Y418/SUMIF($AI$20:$BD$20,\"1\",AI418:BD418)))","v":0}]
[395,"Analyse","10303712 Canada inc.","Analyse énergétique du projet de quartier AGORA Village Urbain",1,"07-Outaouais","Gatineau","TE","SU",19650,"2018-01-18","2018-03-19","                                -    $",null,null,null,null,19650,null,null,null,null,null,null,19650,19650,null,"QC-Québec","Oui",22.092063899999999,0,0,"Non","Oui",null,null,null,null,null,null,null,null,null,null,null,null,null,null,null,null,null,null,null,null,null,null,null,{"$f":"IF(SUM(AI419:BD419)=0,0,(Y419/SUMIF($AI$20:$BD$20,\"1\",AI419:BD419)))","v":0}]
[396,"Analyse","Commission Scolaire de la Beauce-Etchemin","Analyse énergétique pour la modernisation de la chaufferie",1,"12-Chaudière-Appalaches","Saint-Martin","TE","SU",16000,"2018-02-14","2018-04-09",131959.4,null,null,null,null,null,16000,null,null,null,null,null,16000,16000,null,"QC-Québec","Oui",30,0,0,"Non","Oui",null,null,null,null,null,null,null,null,null,null,null,null,null,null,null,null,null,null,null,null,null,null,null,{"$f":"IF(SUM(AI420:BD420)=0,0,(Y420/SUMIF($AI$20:$BD$20,\"1\",AI420:BD420)))","v":0}]
[397,"Implantation","Les 7 doigts de la main","Nouveau centre de création des 7 doigts de la main",1,"06-Montréal","Montréal","RE","SU",140000,null,"2018-04-01",2873214.3,null,null,null,null,105000,35000,null,null,null,null,null,null,140000,null,"QC-Québec","Oui",25,0,0,"Non","Oui",0,null,0,null,0,null,0,null,0,null,null,null,null,null,null,null,null,null,null,null,null,null,null,{"$f":"IF(SUM(AI421:BD421)=0,0,(Y421/SUMIF($AI$20:$BD$20,\"1\",AI421:BD421)))","v":0}]
[398,"Implantation","Arbec (Médifice immobilier s.e.n.c.)","Projet d'efficacité énergétique au noveau CHSLD à Blainville",1,"15-Laurentides","Blainville","RE","SU",422377.9,null,"2018-10-01",923170.53,null,null,null,null,105594.48,316783.42,null,null,null,null,null,null,422377.9,null,"QC-Québec","Oui",25,355.14059600000002,0,"Non","Oui",0,null,0,null,0,null,0,null,0,null,null,null,null,null,null,null,null,null,null,null,null,null,null,{"$f":"IF(SUM(AI422:BD422)=0,0,(Y422/SUMIF($AI$20:$BD$20,\"1\",AI422:BD422)))","v":0}]
[399,"Implantation","Arbec (Médifice immobilier s.e.n.c.)","Projet d'efficacité énergétique au noveau CHSLD à St-Hubert",1,"16-Montérégie","Longueuil","RE","SU",422377.9,null,"2018-10-01",923170.53,null,null,null,null,105594.48,316783.42,null,null,null,null,null,null,422377.9,null,"QC-Québec","Oui",25,355.14059600000002,0,"Non","Oui",0,null,0,null,0,null,0,null,0,null,null,null,null,null,null,null,null,null,null,null,null,null,null,{"$f":"IF(SUM(AI423:BD423)=0,0,(Y423/SUMIF($AI$20:$BD$20,\"1\",AI423:BD423)))","v":0}]
[400,"Analyse","Ville de Dorval","Projet d'efficacité énergétique à la ville de Dorval",1,"06-Montréal","Dorval","RF","SU","                     -    $",null,"2018-05-01",122377,null,null,null,null,null,null,null,null,null,null,null,null,"                                                              -    $",null,"QC-Québec","Oui",null,0,0,"Non","Oui",null,null,null,null,null,null,null,null,null,null,null,null,null,null,null,null,null,null,null,null,null,null,null,{"$f":"IF(SUM(AI424:BD424)=0,0,(Y424/SUMIF($AI$20:$BD$20,\"1\",AI424:BD424)))","v":0}]
[401,"Implantation","Paroisse de St-Paul-de-Montminy","Conversion de la chaudière au mazout léger vers l'électricité",1,"12-Chaudière-Appalaches","Saint-Paul-de-Montminy","AC","SU",39097.42,"2018-05-25","2018-12-31",62500,null,null,null,null,null,39097.42,null,null,null,null,null,null,39097.42,null,"QC-Québec","Oui",25,0,31.2779326,"Non","Oui",0,null,0,null,0,null,0,null,0,null,null,null,null,null,null,null,null,null,null,null,null,null,null,{"$f":"IF(SUM(AI425:BD425)=0,0,(Y425/SUMIF($AI$20:$BD$20,\"1\",AI425:BD425)))","v":0}]
[402,"Analyse","Commission scolaire Lester B. Pearson","Analyse énergétique pour le remplacement des chaudières au mazout par des chaudières électriques",1,"16-Montérégie","Saint-Lazare","IN","SU",3800,null,"2017-12-15",7600,null,null,null,null,3800,null,null,null,null,null,null,null,3800,null,"QC-Québec","Oui",null,0,0,"Non","Oui",null,null,null,null,null,null,null,null,null,null,null,null,null,null,null,null,null,null,null,null,null,null,null,{"$f":"IF(SUM(AI426:BD426)=0,0,(Y426/SUMIF($AI$20:$BD$20,\"1\",AI426:BD426)))","v":0}]
[403,"Analyse","Commission scolaire Lester B. Pearson","Étude visant le remplacement de chaudières au mazout par des chaudières électriques - Mount Pleasant",1,"16-Montérégie","Hudson","IN","SU",5000,null,"2017-12-15",10000,null,null,null,null,5000,null,null,null,null,null,null,null,5000,null,"QC-Québec","Oui",null,0,0,"Non","Oui",null,null,null,null,null,null,null,null,null,null,null,null,null,null,null,null,null,null,null,null,null,null,null,{"$f":"IF(SUM(AI427:BD427)=0,0,(Y427/SUMIF($AI$20:$BD$20,\"1\",AI427:BD427)))","v":0}]
[404,"Analyse","Loews Hotel Vogue","Loews Hôtel Vogue, Économie d'énergie",1,"06-Montréal","Montréal","AC","SU",13005,"2018-06-28","2018-01-15",26010,null,null,null,null,13005,null,null,null,null,null,null,null,13005,null,"QC-Québec","Oui",null,0,0,"Non","Oui",null,null,null,null,null,null,null,null,null,null,null,null,null,null,null,null,null,null,null,null,null,null,null,{"$f":"IF(SUM(AI428:BD428)=0,0,(Y428/SUMIF($AI$20:$BD$20,\"1\",AI428:BD428)))","v":0}]
[405,"Implantation","Loews Hotel Vogue","Loews Hôtel Vogue, Économie d'énergie",1,"06-Montréal","Montréal","RE","SU",55488.53,null,"2019-12-15",672581,null,null,null,null,13872.13,27744.26,13872.14,null,null,null,null,null,55488.53,null,"QC-Québec","Oui",18.9377022,312.58418599999999,0,"Non","Oui",0,null,0,null,0,null,0,null,0,null,null,null,null,null,null,null,null,null,null,null,null,null,null,{"$f":"IF(SUM(AI429:BD429)=0,0,(Y429/SUMIF($AI$20:$BD$20,\"1\",AI429:BD429)))","v":0}]
[406,"Analyse","Commission scolaire Lester B. Pearson","Analyse énergétique pour remplacement des chaudières au mazout par des chaudières électriques",1,"16-Montérégie","Saint-Lazare","IN","SU",6200,null,"2017-12-01",12400,null,null,null,null,6200,null,null,null,null,null,null,null,6200,null,"QC-Québec","Oui",null,0,0,"Non","Oui",null,null,null,null,null,null,null,null,null,null,null,null,null,null,null,null,null,null,null,null,null,null,null,{"$f":"IF(SUM(AI430:BD430)=0,0,(Y430/SUMIF($AI$20:$BD$20,\"1\",AI430:BD430)))","v":0}]
[407,"Analyse","Séminaire du Sacré-Coeur","Étude de faisabilité pour projet d'efficacité énergetique",1,"15-Laurentides","Grenville-sur-la-Rouge","RF","SU","                     -    $",null,"2018-01-23",23590,null,null,null,null,null,null,null,null,null,null,null,null,"                                                              -    $",null,"QC-Québec","Oui",null,0,0,"Non","Oui",null,null,null,null,null,null,null,null,null,null,null,null,null,null,null,null,null,null,null,null,null,null,null,{"$f":"IF(SUM(AI431:BD431)=0,0,(Y431/SUMIF($AI$20:$BD$20,\"1\",AI431:BD431)))","v":0}]
[408,"Implantation","Séminaire du Sacré-Coeur","Modification des réseaux de chauffage et eau chaude domestique",1,"15-Laurentides","Grenville-sur-la-Rouge","RF","SU","                     -    $",null,"2018-12-20",384198,null,null,null,null,null,null,null,null,null,null,null,null,"                                                              -    $",null,"QC-Québec","Oui",0,80.967221300000006,0,"Non","Oui",null,null,null,null,null,null,null,null,null,null,null,null,null,null,null,null,null,null,null,null,null,null,null,{"$f":"IF(SUM(AI432:BD432)=0,0,(Y432/SUMIF($AI$20:$BD$20,\"1\",AI432:BD432)))","v":0}]
[409,"Analyse","Commission scolaire des Affluents","Analyse éco-énergétique relative aux systèmes de chauffage et de refroidissement",1,"14-Lanaudière","Repentigny","AC","SU",25000,"2018-07-04","2018-08-31",80515,null,null,null,null,null,25000,null,null,null,null,null,null,25000,null,"QC-Québec","Oui",null,0,0,"Non","Oui",null,null,null,null,null,null,null,null,null,null,null,null,null,null,null,null,null,null,null,null,null,null,null,{"$f":"IF(SUM(AI433:BD433)=0,0,(Y433/SUMIF($AI$20:$BD$20,\"1\",AI433:BD433)))","v":0}]
[410,"Implantation","9242-5370 Québec inc.","Édifice 3 500 Saint-Jacques",1,"06-Montréal","Montréal","RF","SU","                     -    $",null,"2017-12-15",5176371.43,null,null,null,null,null,null,null,null,null,null,null,null,"                                                              -    $",null,"QC-Québec","Oui",29.974414800000002,0,0,"Non","Oui",null,null,null,null,null,null,null,null,null,null,null,null,null,null,null,null,null,null,null,null,null,null,null,{"$f":"IF(SUM(AI434:BD434)=0,0,(Y434/SUMIF($AI$20:$BD$20,\"1\",AI434:BD434)))","v":0}]
[411,"Implantation","Humaniti Locatifs Residentiels s.e.c.","Humaniti",1,"06-Montréal","Montréal","RE","SU",776447.52,null,"2020-09-08",4000000,null,null,null,null,194111.88,194111.88,194111.88,194111.87,null,null,null,null,776447.52,null,"QC-Québec","Oui",22.326734500000001,1242.3072500000001,0,"Non","Oui",0,null,0,null,0,null,0,null,0,null,null,null,null,null,null,null,null,null,null,null,null,null,null,{"$f":"IF(SUM(AI435:BD435)=0,0,(Y435/SUMIF($AI$20:$BD$20,\"1\",AI435:BD435)))","v":0}]
[412,"Implantation","Alessa Trattoria inc.","Remplacement d'un compensateur et d'une hotte pour des équipements à débit variable",1,"05-Estrie","Magog","IN","SU",25741.98,null,"2018-01-20",58750,null,null,null,null,25741.98,null,null,null,null,null,null,null,25741.98,null,"QC-Québec","Oui",15,20.593588,0,"Non","Oui",0,null,0,null,0,null,0,null,0,null,null,null,null,null,null,null,null,null,null,null,null,null,null,{"$f":"IF(SUM(AI436:BD436)=0,0,(Y436/SUMIF($AI$20:$BD$20,\"1\",AI436:BD436)))","v":0}]
[413,"Implantation","Strom Spa Québec inc.","Projet d'efficacité énergétique au nouveau Strom Spa à Québec",1,"03-Capitale-Nationale","Québec","AC","SU",530406.93000000005,"2018-07-04","2019-10-01",1296620,null,null,null,null,null,397805.19,132601.74,null,null,null,null,null,530406.93000000005,null,"QC-Québec","Oui",20.289228399999999,97.213071299999996,857.70191799999998,"Non","Oui",0,null,0,null,0,null,0,null,0,null,null,null,null,null,null,null,null,null,null,null,null,null,null,{"$f":"IF(SUM(AI437:BD437)=0,0,(Y437/SUMIF($AI$20:$BD$20,\"1\",AI437:BD437)))","v":0}]
[414,"Implantation","Commission scolaire de l'Or-et-des-Bois","Projet d’amélioration énergétique - École Notre-Dame du Rosaire",1,"08-Abitibi-Témiscamingue","Val-d'Or","IN","SU",26319.53,null,"2018-09-01",47012.98,null,null,null,null,13159.76,13159.77,null,null,null,null,null,null,26319.53,null,"QC-Québec","Oui",21.254146599999999,14.7307709,9.2347617199999998,"Non","Oui",0,null,0,null,0,null,0,null,0,null,null,null,null,null,null,null,null,null,null,null,null,null,null,{"$f":"IF(SUM(AI438:BD438)=0,0,(Y438/SUMIF($AI$20:$BD$20,\"1\",AI438:BD438)))","v":0}]
[415,"Implantation","Les immeubles HOOPP inc.","Projet d'efficacité énergétique - Édifice 2001 boulevard Robert-Bourassa",1,"06-Montréal","Montréal","AC","SU",366143.52,"2018-06-13","2019-10-30",1048400,null,null,null,null,null,274607.64,91535.88,null,null,null,null,null,366143.52,null,"QC-Québec","Oui",20,711.45736099999999,0,"Non","Oui",0,null,0,null,0,null,0,null,0,null,null,null,null,null,null,null,null,null,null,null,null,null,null,{"$f":"IF(SUM(AI439:BD439)=0,0,(Y439/SUMIF($AI$20:$BD$20,\"1\",AI439:BD439)))","v":0}]
[416,"Implantation","Commission scolaire de l'Or-et-des-Bois","Projet d’amélioration énergétique - École Saint-Sauveur",1,"08-Abitibi-Témiscamingue","Val-d'Or","IN","SU",17006.240000000002,null,"2019-08-31",47002.21,null,null,null,null,4251.5600000000004,8503.1200000000008,4251.5600000000004,null,null,null,null,null,17006.240000000002,null,"QC-Québec","Oui",24,13.6049933,0,"Non","Oui",0,null,0,null,0,null,0,null,0,null,null,null,null,null,null,null,null,null,null,null,null,null,null,{"$f":"IF(SUM(AI440:BD440)=0,0,(Y440/SUMIF($AI$20:$BD$20,\"1\",AI440:BD440)))","v":0}]
[417,"Implantation","S. Setlakwe Ltée","Implantation d'un mur solaire",1,"16-Montérégie","Granby","RE","SU",15183.05,null,"2018-12-11",38500,null,null,null,null,11387.28,3795.77,null,null,null,null,null,null,15183.05,null,"QC-Québec","Oui",25,0,12.1464383,"Non","Oui",0,null,0,null,0,null,0,null,0,null,null,null,null,null,null,null,null,null,null,null,null,null,null,{"$f":"IF(SUM(AI441:BD441)=0,0,(Y441/SUMIF($AI$20:$BD$20,\"1\",AI441:BD441)))","v":0}]
[418,"Implantation","S. Setlakwe Ltée","Implantation d'un mur solaire",1,"17-Centre-du-Québec","Saint-Germain-de-Grantham","RE","SU",26254.46,null,"2018-12-11",64750,null,null,null,null,19690.86,6563.6,null,null,null,null,null,null,26254.46,null,"QC-Québec","Oui",10,0,21.003570400000001,"Non","Oui",0,null,0,null,0,null,0,null,0,null,null,null,null,null,null,null,null,null,null,null,null,null,null,{"$f":"IF(SUM(AI442:BD442)=0,0,(Y442/SUMIF($AI$20:$BD$20,\"1\",AI442:BD442)))","v":0}]
[419,"Analyse","Commission scolaire des Hauts-Cantons","Étude technico-économique pour le remplacement du mazout comme source de chauffage",1,"05-Estrie","Saint-Isidore-de-Clifton","AC","SU",3750,"2018-05-16","2018-03-31",7500,null,null,null,null,3750,null,null,null,null,null,null,null,3750,null,"QC-Québec","Oui",null,0,0,"Non","Oui",null,null,null,null,null,null,null,null,null,null,null,null,null,null,null,null,null,null,null,null,null,null,null,{"$f":"IF(SUM(AI443:BD443)=0,0,(Y443/SUMIF($AI$20:$BD$20,\"1\",AI443:BD443)))","v":0}]
[420,"Implantation","Commission scolaire des Hauts-Cantons","Remplacement du mazoute comme source de chauffage par un système électrique",1,"05-Estrie","Saint-Isidore-de-Clifton","IN","SU",86976.48,null,"2018-10-15",132265,null,null,null,null,null,86976.48,null,null,null,null,null,null,86976.48,null,"QC-Québec","Oui",30,0,78.210358900000003,"Non","Oui",0,null,0,null,0,null,0,null,0,null,null,null,null,null,null,null,null,null,null,null,null,null,null,{"$f":"IF(SUM(AI444:BD444)=0,0,(Y444/SUMIF($AI$20:$BD$20,\"1\",AI444:BD444)))","v":0}]
[421,"Implantation","Commission scolaire de l'Or-et-des-Bois","Projet d’amélioration énergétique - École Saint-Isidore",1,"08-Abitibi-Témiscamingue","Val-d'Or","IN","SU",56299.18,null,"2018-08-31",87632,null,null,null,null,28149.599999999999,28149.58,null,null,null,null,null,null,56299.18,null,"QC-Québec","Oui",36,52.889270199999999,0,"Non","Oui",0,null,0,null,0,null,0,null,0,null,null,null,null,null,null,null,null,null,null,null,null,null,null,{"$f":"IF(SUM(AI445:BD445)=0,0,(Y445/SUMIF($AI$20:$BD$20,\"1\",AI445:BD445)))","v":0}]
[422,"Implantation","Commission scolaire de l'Or-et-des-Bois","Projet d’amélioration énergétique - École Sainte-Marie",1,"08-Abitibi-Témiscamingue","Val-d'Or","IN","SU",21416.26,null,"2018-08-31",42999,null,null,null,null,10708.12,10708.14,null,null,null,null,null,null,21416.26,null,"QC-Québec","Oui",24.557670600000002,17.516697400000002,0,"Non","Oui",0,null,0,null,0,null,0,null,0,null,null,null,null,null,null,null,null,null,null,null,null,null,null,{"$f":"IF(SUM(AI446:BD446)=0,0,(Y446/SUMIF($AI$20:$BD$20,\"1\",AI446:BD446)))","v":0}]
[423,"Implantation","Commission scolaire de l'Or-et-des-Bois","Projet d’amélioration énergétique - École Sainte-Lucie",1,"08-Abitibi-Témiscamingue","Val-d'Or","IN","SU",18132.150000000001,null,"2018-08-31",50093.67,null,null,null,null,13599.12,4533.03,null,null,null,null,null,null,18132.150000000001,null,"QC-Québec","Oui",24.944995899999999,14.5057236,0,"Non","Oui",0,null,0,null,0,null,0,null,0,null,null,null,null,null,null,null,null,null,null,null,null,null,null,{"$f":"IF(SUM(AI447:BD447)=0,0,(Y447/SUMIF($AI$20:$BD$20,\"1\",AI447:BD447)))","v":0}]
[424,"Implantation","Les Investissements 650 Wellington Ltée","Projet d'efficacitée énergétique – King-Wellington",1,"06-Montréal","Montréal","RE","SU",215191.55,null,"2018-12-01",448527,null,null,null,null,53797.89,161393.66,null,null,null,null,null,null,215191.55,null,"QC-Québec","Oui",20.716600400000001,245.933199,0,"Non","Oui",0,null,0,null,0,null,0,null,0,null,null,null,null,null,null,null,null,null,null,null,null,null,null,{"$f":"IF(SUM(AI448:BD448)=0,0,(Y448/SUMIF($AI$20:$BD$20,\"1\",AI448:BD448)))","v":0}]
[425,"Implantation","Ville de Dorval","Projet d'efficacité énergétique à la ville de Dorval",1,"06-Montréal","Dorval","RE","SU",28006.49,null,"2018-12-31",61970,null,null,null,null,null,28006.49,null,null,null,null,null,null,28006.49,null,"QC-Québec","Oui",24,22.405190999999999,0,"Non","Oui",0,null,0,null,0,null,0,null,0,null,null,null,null,null,null,null,null,null,null,null,null,null,null,{"$f":"IF(SUM(AI449:BD449)=0,0,(Y449/SUMIF($AI$20:$BD$20,\"1\",AI449:BD449)))","v":0}]
[426,"Implantation","Résidences Les Jardins, Société en commandite","Projet d'efficacité énergétique - Les Jardins Champfleury",1,"03-Capitale-Nationale","Québec","RE","SU",69005.710000000006,null,"2019-09-01",117892,null,null,null,null,null,51754.29,17251.419999999998,null,null,null,null,null,69005.710000000006,null,"QC-Québec","Oui",32.865379300000001,55.204565199999998,0,"Non","Oui",0,null,0,null,0,null,0,null,0,null,null,null,null,null,null,null,null,null,null,null,null,null,null,{"$f":"IF(SUM(AI450:BD450)=0,0,(Y450/SUMIF($AI$20:$BD$20,\"1\",AI450:BD450)))","v":0}]
[427,"Implantation","Commission scolaire de l'Or-et-des-Bois","Projet d’amélioration énergétique - École Notre-Dame-de-Fatima",1,"08-Abitibi-Témiscamingue","Val-d'Or","IN","SU",29889.35,null,"2018-09-01",91966.64,null,null,null,null,14944.68,14944.67,null,null,null,null,null,null,29889.35,null,"QC-Québec","Oui",22.126318000000001,23.911479400000001,0,"Non","Oui",0,null,0,null,0,null,0,null,0,null,null,null,null,null,null,null,null,null,null,null,null,null,null,{"$f":"IF(SUM(AI451:BD451)=0,0,(Y451/SUMIF($AI$20:$BD$20,\"1\",AI451:BD451)))","v":0}]
[428,"Implantation","Holand leasing (1995) ltd","Projet d'efficacité énergétique - Holand Rolls Royce",1,"06-Montréal","Mont-Royal","RE","SU",176234.03,null,"2018-04-24",433482.41,null,null,null,null,88117.02,88117.01,null,null,null,null,null,null,176234.03,null,"QC-Québec","Oui",20.284275099999999,145.11239900000001,0,"Non","Oui",0,null,0,null,0,null,0,null,0,null,null,null,null,null,null,null,null,null,null,null,null,null,null,{"$f":"IF(SUM(AI452:BD452)=0,0,(Y452/SUMIF($AI$20:$BD$20,\"1\",AI452:BD452)))","v":0}]
[429,"Implantation","Édifice 5000 Buchan inc.","Projet d'efficacité énergétique au 5000 Buchan",1,"03-Capitale-Nationale","Québec","RE","SU",131926.88,null,"2018-10-01",286650,null,null,null,null,65963.44,65963.44,null,null,null,null,null,null,131926.88,null,"QC-Québec","Oui",25,105.541505,0,"Non","Oui",0,null,0,null,0,null,0,null,0,null,null,null,null,null,null,null,null,null,null,null,null,null,null,{"$f":"IF(SUM(AI453:BD453)=0,0,(Y453/SUMIF($AI$20:$BD$20,\"1\",AI453:BD453)))","v":0}]
[430,"Implantation","Groupe Yves Légaré inc.","Installation d'un nouveau four crématoire efficace",1,"13-Laval","Laval","RF","SU",169546.19,null,"2019-04-01",327200,null,null,null,null,84773.1,42386.55,42386.54,null,null,null,null,null,169546.19,null,"QC-Québec","Oui",25,253.15187599999999,0,"Non","Oui",null,null,null,null,null,null,null,null,null,null,null,null,null,null,null,null,null,null,null,null,null,null,null,{"$f":"IF(SUM(AI454:BD454)=0,0,(Y454/SUMIF($AI$20:$BD$20,\"1\",AI454:BD454)))","v":0}]
[431,"Implantation","Le repos Saint-Francois d'Assise","Installation de deux nouveaux fours crématoires efficaces",1,"06-Montréal","Montréal","RE","SU",279699.65999999997,null,"2019-11-01",665770,null,null,null,null,null,209774.73,69924.929999999993,null,null,null,null,null,279699.65999999997,null,"QC-Québec","Oui",25,223.759725,0,"Non","Oui",0,null,0,null,0,null,0,null,0,null,null,null,null,null,null,null,null,null,null,null,null,null,null,{"$f":"IF(SUM(AI455:BD455)=0,0,(Y455/SUMIF($AI$20:$BD$20,\"1\",AI455:BD455)))","v":0}]
[432,"Analyse","Société d'habitation populaire de l'Est de Montréal (SHAPEM)","Analyse éco-énergétique",1,"06-Montréal","Montréal","RE","SU",10649,null,"2019-02-01",21298,null,null,null,null,5324.5,5324.5,null,null,null,null,null,null,10649,null,"QC-Québec","Oui",null,0,0,"Non","Oui",null,null,null,null,null,null,null,null,null,null,null,null,null,null,null,null,null,null,null,null,null,null,null,{"$f":"IF(SUM(AI456:BD456)=0,0,(Y456/SUMIF($AI$20:$BD$20,\"1\",AI456:BD456)))","v":0}]
[433,"Implantation","Les Investissements 6250 Hutchison Ltée","6250 Hutchison",1,"06-Montréal","Montréal","RE","SU",60000,null,"2019-06-01",360600,null,null,null,null,15000,30000,15000,null,null,null,null,null,60000,null,"QC-Québec","Oui",20,69.904839999999993,0,"Non","Oui",0,null,0,null,0,null,0,null,0,null,null,null,null,null,null,null,null,null,null,null,null,null,null,{"$f":"IF(SUM(AI457:BD457)=0,0,(Y457/SUMIF($AI$20:$BD$20,\"1\",AI457:BD457)))","v":0}]
[434,"Implantation","Syndicat des copropritétaires de développements Cartier avenue I","Remplacement d'unités de chauffage",1,"06-Montréal","Pointe-Claire","AN","SU","                     -    $",null,"2018-12-31",170000,null,null,null,null,null,null,null,null,null,null,null,null,"                                                              -    $",null,"QC-Québec","Oui",20,116.406673,0,"Non","Oui",null,null,null,null,null,null,null,null,null,null,null,null,null,null,null,null,null,null,null,null,null,null,null,{"$f":"IF(SUM(AI458:BD458)=0,0,(Y458/SUMIF($AI$20:$BD$20,\"1\",AI458:BD458)))","v":0}]
[435,"Implantation","Municipalité de Sainte-Luce","Remplacement d'une chaudière au mazout par une chaudière électrique",1,"01-Bas-Saint-Laurent","Sainte-Luce","IN","SU",98635.74,null,"2018-06-01",139880,null,null,null,null,73976.820000000007,24658.92,null,null,null,null,null,null,98635.74,null,"QC-Québec","Oui",25,0,78.908589300000003,"Non","Oui",0,null,0,null,0,null,0,null,0,null,null,null,null,null,null,null,null,null,null,null,null,null,null,{"$f":"IF(SUM(AI459:BD459)=0,0,(Y459/SUMIF($AI$20:$BD$20,\"1\",AI459:BD459)))","v":0}]
[436,"Implantation","Ville de Nicolet","Réfection Aréna Pierre-Provencher",1,"17-Centre-du-Québec","Nicolet","RE","SU",117076.73,null,"2018-11-22",218991,null,null,null,null,null,117076.73,null,null,null,null,null,null,117076.73,null,"QC-Québec","Oui",25,129.171626,0,"Non","Oui",0,null,0,null,0,null,0,null,0,null,null,null,null,null,null,null,null,null,null,null,null,null,null,{"$f":"IF(SUM(AI460:BD460)=0,0,(Y460/SUMIF($AI$20:$BD$20,\"1\",AI460:BD460)))","v":0}]
[437,"Implantation","Ville de Drummondville","Remplacement des équipements de réfrigération",1,"17-Centre-du-Québec","Drummondville","RE","SU",123473.82,null,"2019-08-01",249947,null,null,null,null,30868.46,61736.92,30868.44,null,null,null,null,null,123473.82,null,"QC-Québec","Oui",25,166.665852,0,"Non","Oui",0,null,0,null,0,null,0,null,0,null,null,null,null,null,null,null,null,null,null,null,null,null,null,{"$f":"IF(SUM(AI461:BD461)=0,0,(Y461/SUMIF($AI$20:$BD$20,\"1\",AI461:BD461)))","v":0}]
[438,"Implantation","Parc Commémoratif de Montréal Inc.","Installation de 2 nouveaux fours crématoires efficaces",1,"06-Montréal","Montréal","RE","SU",306069.84000000003,null,"2018-10-01",530570,null,null,null,null,null,306069.84000000003,null,null,null,null,null,null,306069.84000000003,null,"QC-Québec","Oui",25,244.85587200000001,0,"Non","Oui",0,null,0,null,0,null,0,null,0,null,null,null,null,null,null,null,null,null,null,null,null,null,null,{"$f":"IF(SUM(AI462:BD462)=0,0,(Y462/SUMIF($AI$20:$BD$20,\"1\",AI462:BD462)))","v":0}]
[439,"Implantation","Faubourg de la Gauchetière inc.","Projet d'économie d'énergie au 1400 René-Lévesque",1,"06-Montréal","Montréal","IN","SU",1066966.98,null,"2021-06-01",1530000,null,null,null,null,null,null,266741.74,533483.48,266741.76000000001,null,null,null,1066966.98,null,"QC-Québec","Oui",25,853.57358799999997,0,"Non","Oui",0,null,0,null,0,null,0,null,0,null,null,null,null,null,null,null,null,null,null,null,null,null,null,{"$f":"IF(SUM(AI463:BD463)=0,0,(Y463/SUMIF($AI$20:$BD$20,\"1\",AI463:BD463)))","v":0}]
[440,"Implantation","1751 Richardson inc.","Récupération de chaleur de la boucle thermique",1,"06-Montréal","Montréal","IN","SU",217431.11,null,"2018-08-31",375000,null,null,null,null,54357.78,163073.32999999999,null,null,null,null,null,null,217431.11,null,"QC-Québec","Oui",40,0,173.944885,"Non","Oui",0,null,0,null,0,null,0,null,0,null,null,null,null,null,null,null,null,null,null,null,null,null,null,{"$f":"IF(SUM(AI464:BD464)=0,0,(Y464/SUMIF($AI$20:$BD$20,\"1\",AI464:BD464)))","v":0}]
[441,"Implantation","1751 Richardson inc.","Modernisation Énergétique - Le Nordelec",1,"06-Montréal","Montréal","IN","SU",357488.51,null,"2018-12-31",2493142.85,null,null,null,null,null,357488.51,null,null,null,null,null,null,357488.51,null,"QC-Québec","Oui",26.929576900000001,714.97702600000002,0,"Non","Oui",0,null,0,null,0,null,0,null,0,null,null,null,null,null,null,null,null,null,null,null,null,null,null,{"$f":"IF(SUM(AI465:BD465)=0,0,(Y465/SUMIF($AI$20:$BD$20,\"1\",AI465:BD465)))","v":0}]
[442,"Implantation","Capreit Apartments inc.","Projet d'efficacité énergétique au Jardin des Seigneurs (3084)",1,"03-Capitale-Nationale","Québec","RE","SU",67883.27,null,"2019-04-01",200000,null,null,null,null,null,50912.46,16970.810000000001,null,null,null,null,null,67883.27,null,"QC-Québec","Oui",30,0,54.306614099999997,"Non","Oui",0,null,0,null,0,null,0,null,0,null,null,null,null,null,null,null,null,null,null,null,null,null,null,{"$f":"IF(SUM(AI466:BD466)=0,0,(Y466/SUMIF($AI$20:$BD$20,\"1\",AI466:BD466)))","v":0}]
[443,"Implantation","Capreit Apartments inc.","Projet d'efficacité énergétique au Jardin des Seigneurs (3040)",1,"03-Capitale-Nationale","Québec","RE","SU",103112,null,"2019-04-01",300000,null,null,null,null,null,77334,25778,null,null,null,null,null,103112,null,"QC-Québec","Oui",30,82.489600499999995,0,"Non","Oui",0,null,0,null,0,null,0,null,0,null,null,null,null,null,null,null,null,null,null,null,null,null,null,{"$f":"IF(SUM(AI467:BD467)=0,0,(Y467/SUMIF($AI$20:$BD$20,\"1\",AI467:BD467)))","v":0}]
[444,"Implantation","Capreit Apartments inc.","Projet d'efficacité énergétique au Jardin des Seigneurs (3056)",1,"03-Capitale-Nationale","Québec","RE","SU",66334.03,null,"2019-04-01",200000,null,null,null,null,null,49750.53,16583.5,null,null,null,null,null,66334.03,null,"QC-Québec","Oui",30,53.067220200000001,0,"Non","Oui",0,null,0,null,0,null,0,null,0,null,null,null,null,null,null,null,null,null,null,null,null,null,null,{"$f":"IF(SUM(AI468:BD468)=0,0,(Y468/SUMIF($AI$20:$BD$20,\"1\",AI468:BD468)))","v":0}]
[445,"Implantation","Capreit Apartments inc.","Projet d'efficacité énergétique au Jardin des Seigneurs (3072)",1,"03-Capitale-Nationale","Québec","RE","SU",101402.17,null,"2019-04-01",300000,null,null,null,null,null,76051.62,25350.55,null,null,null,null,null,101402.17,null,"QC-Québec","Oui",30,81.121732800000004,0,"Non","Oui",0,null,0,null,0,null,0,null,0,null,null,null,null,null,null,null,null,null,null,null,null,null,null,{"$f":"IF(SUM(AI469:BD469)=0,0,(Y469/SUMIF($AI$20:$BD$20,\"1\",AI469:BD469)))","v":0}]
[446,"Implantation","Capreit Apartments inc.","Implantation de thermopompes aérothermiques et de chaudières à condensation",1,"06-Montréal","Montréal","RE","SU",849084.86,null,"2019-04-01",1257560,null,null,null,null,null,636813.66,212271.2,null,null,null,null,null,849084.86,null,"QC-Québec","Oui",33.644985200000001,92.041748200000001,587.22614099999998,"Non","Oui",0,null,0,null,0,null,0,null,0,null,null,null,null,null,null,null,null,null,null,null,null,null,null,{"$f":"IF(SUM(AI470:BD470)=0,0,(Y470/SUMIF($AI$20:$BD$20,\"1\",AI470:BD470)))","v":0}]
[447,"Analyse","Buanderie progrès hygiénique inc.","Analyse énergétique",1,"06-Montréal","Montréal","TE","SU",3275,"2018-03-20","2018-06-29",10347,null,null,null,null,null,3275,null,null,null,null,null,3275,3275,null,"QC-Québec","Oui",20,0,0,"Non","Oui",null,null,null,null,null,null,null,null,null,null,null,null,null,null,null,null,null,null,null,null,null,null,null,{"$f":"IF(SUM(AI471:BD471)=0,0,(Y471/SUMIF($AI$20:$BD$20,\"1\",AI471:BD471)))","v":0}]
[448,"Implantation","Buanderie progrès hygiénique inc.","Remplacement d'une chaudière 150bhp en fin de vie par une chaudière de 60bhp + une chaudière de 10bhp + trois chauffe-eaux à condensation 24bhp chaque",1,"06-Montréal","Montréal","IN","SU",148429.1,null,"2019-05-01",272976,null,null,null,null,null,111321.84,37107.26,null,null,null,null,null,148429.1,null,"QC-Québec","Oui",20,124.52885999999999,0,"Non","Oui",0,null,0,null,0,null,0,null,0,null,null,null,null,null,null,null,null,null,null,null,null,null,null,{"$f":"IF(SUM(AI472:BD472)=0,0,(Y472/SUMIF($AI$20:$BD$20,\"1\",AI472:BD472)))","v":0}]
[449,"Analyse","Best Western Plus Centre-ville Québec","Analyse éco-énergétique",1,"03-Capitale-Nationale","Québec","RE","SU",4450,null,"2018-04-16",8900,null,null,null,null,2225,2225,null,null,null,null,null,null,4450,null,"QC-Québec","Oui",null,0,0,"Non","Oui",null,null,null,null,null,null,null,null,null,null,null,null,null,null,null,null,null,null,null,null,null,null,null,{"$f":"IF(SUM(AI473:BD473)=0,0,(Y473/SUMIF($AI$20:$BD$20,\"1\",AI473:BD473)))","v":0}]
[450,"Analyse","Pourvoirie Nabisipi UenapeuHipu inc.","Analyse éco-énergétique et d’approvisionnement énergétique renouvelable",1,"16-Montérégie","Saint-Anicet","RE","SU",4975,null,"2018-12-31",9950,null,null,null,null,null,4975,null,null,null,null,null,null,4975,null,"QC-Québec","Oui",null,0,0,"Non","Oui",null,null,null,null,null,null,null,null,null,null,null,null,null,null,null,null,null,null,null,null,null,null,null,{"$f":"IF(SUM(AI474:BD474)=0,0,(Y474/SUMIF($AI$20:$BD$20,\"1\",AI474:BD474)))","v":0}]
[451,"Implantation","Université de Sherbrooke","Projet d'efficacité énergétique - Studio de Création",1,"05-Estrie","Sherbrooke","RE","SU",44707.88,null,"2019-12-17",258350,null,null,null,null,null,33530.910000000003,11176.97,null,null,null,null,null,44707.88,null,"QC-Québec","Oui",20,277.460939,0,"Non","Oui",0,null,0,null,0,null,0,null,0,null,null,null,null,null,null,null,null,null,null,null,null,null,null,{"$f":"IF(SUM(AI475:BD475)=0,0,(Y475/SUMIF($AI$20:$BD$20,\"1\",AI475:BD475)))","v":0}]
[452,"Implantation","Commandité Henri-Bourassa Est inc.","Modenisation Énergétique - Transport XTL",1,"06-Montréal","Montréal","IN","SU",171962.71,null,"2018-09-30",499256.39,null,null,null,null,42990.68,128972.03,null,null,null,null,null,null,171962.71,null,"QC-Québec","Oui",20.030834200000001,203.62597099999999,0,"Non","Oui",0,null,0,null,0,null,0,null,0,null,null,null,null,null,null,null,null,null,null,null,null,null,null,{"$f":"IF(SUM(AI476:BD476)=0,0,(Y476/SUMIF($AI$20:$BD$20,\"1\",AI476:BD476)))","v":0}]
[453,"Implantation","Compagnie SB-Montréal 2000 inc.","Efficacité énergétique",1,"06-Montréal","Montréal","RE","SU",197746.27,null,"2020-02-23",345000,null,null,null,null,49436.57,98873.14,49436.56,null,null,null,null,null,197746.27,null,"QC-Québec","Oui",26.6136646,199.03643199999999,0,"Non","Oui",0,null,0,null,0,null,0,null,0,null,null,null,null,null,null,null,null,null,null,null,null,null,null,{"$f":"IF(SUM(AI477:BD477)=0,0,(Y477/SUMIF($AI$20:$BD$20,\"1\",AI477:BD477)))","v":0}]
[454,"Implantation","Corporation de l’École des hautes études commerciales de Montréal","Projet d'efficacitée énergétique - HEC Centre-Ville",1,"06-Montréal","Montréal","RE","SU",215493.6,null,"2021-08-01",1559666.2,null,null,null,null,null,53873.4,null,53873.4,107746.8,null,null,null,215493.6,null,"QC-Québec","Oui",25,499.73563300000001,0,"Non","Oui",0,null,0,null,0,null,0,null,0,null,null,null,null,null,null,null,null,null,null,null,null,null,null,{"$f":"IF(SUM(AI478:BD478)=0,0,(Y478/SUMIF($AI$20:$BD$20,\"1\",AI478:BD478)))","v":0}]
[455,"Implantation","9082-0143 Québec inc. - La Promenade","Implantation du produit ecoAZUR avec Confort du Chef",1,"09-Côte-Nord","Havre-Saint-Pierre","RE","SU",23127.46,null,"2019-06-15",56327.62,null,null,null,null,null,17345.580000000002,5781.88,null,null,null,null,null,23127.46,null,"QC-Québec","Oui",10,18.924318800000002,0,"Non","Oui",0,null,0,null,0,null,0,null,0,null,null,null,null,null,null,null,null,null,null,null,null,null,null,{"$f":"IF(SUM(AI479:BD479)=0,0,(Y479/SUMIF($AI$20:$BD$20,\"1\",AI479:BD479)))","v":0}]
[456,"Implantation","Les Pétroles Alcasyna (1993) inc. / Relais Val-d'Or","Implantation du produit ecoAZUR avec Confort du Chef et tableau de bord",1,"08-Abitibi-Témiscamingue","Val-d'Or","RE","SU",15210.32,null,"2019-04-20",29347,null,null,null,null,null,11407.74,3802.58,null,null,null,null,null,15210.32,null,"QC-Québec","Oui",10,12.168258099999999,0,"Non","Oui",0,null,0,null,0,null,0,null,0,null,null,null,null,null,null,null,null,null,null,null,null,null,null,{"$f":"IF(SUM(AI480:BD480)=0,0,(Y480/SUMIF($AI$20:$BD$20,\"1\",AI480:BD480)))","v":0}]
[457,"Analyse","9315-3252 Québec inc.(Gestion 433 Chabanel)","Étude de modernisation énergétique",1,"06-Montréal","Montréal","AC","SU",17500,"2018-04-09","2018-10-31",35000,null,null,null,null,null,17500,null,null,null,null,null,8750,17500,null,"QC-Québec","Oui",null,0,0,"Non","Oui",null,null,null,null,null,null,null,null,null,null,null,null,null,null,null,null,null,null,null,null,null,null,null,{"$f":"IF(SUM(AI481:BD481)=0,0,(Y481/SUMIF($AI$20:$BD$20,\"1\",AI481:BD481)))","v":0}]
[458,"Implantation","Centre Aquatique de Mascouche inc.","Récupération de chaleur",1,"14-Lanaudière","Saint-Roch-de-l'Achigan","RE","SU",132364,null,"2020-06-01",547000,null,null,null,null,null,66182,33091,33091,null,null,null,null,132364,null,"QC-Québec","Oui",25,269.60596399999997,0,"Non","Oui",0,null,0,null,0,null,0,null,0,null,null,null,null,null,null,null,null,null,null,null,null,null,null,{"$f":"IF(SUM(AI482:BD482)=0,0,(Y482/SUMIF($AI$20:$BD$20,\"1\",AI482:BD482)))","v":0}]
[459,"Implantation","Les Rotisseries St-Hubert Ltée","Implantation du produit ecoAZUR - Comptoir Harvey's / St-Hubert Express Matane",1,"01-Bas-Saint-Laurent","Matane","RE","SU",33450.160000000003,null,"2019-06-16",78416,null,null,null,null,null,25087.62,8362.5400000000009,null,null,null,null,null,33450.160000000003,null,"QC-Québec","Oui",10,26.7601263,0,"Non","Oui",0,null,0,null,0,null,0,null,0,null,null,null,null,null,null,null,null,null,null,null,null,null,null,{"$f":"IF(SUM(AI483:BD483)=0,0,(Y483/SUMIF($AI$20:$BD$20,\"1\",AI483:BD483)))","v":0}]
[460,"Implantation","Corporation de l'édifice St-Régis","Efficacité énergétique au 2555 Benny",1,"06-Montréal","Montréal","RE","SU",279528,null,"2019-07-31",448500,null,null,null,null,null,209646,69882,null,null,null,null,null,279528,null,"QC-Québec","Oui",25,250.15755999999999,0,"Non","Oui",0,null,0,null,0,null,0,null,0,null,null,null,null,null,null,null,null,null,null,null,null,null,null,{"$f":"IF(SUM(AI484:BD484)=0,0,(Y484/SUMIF($AI$20:$BD$20,\"1\",AI484:BD484)))","v":0}]
[461,"Implantation","Commission scolaire de l'Or-et-des-Bois","Projet d’amélioration énergétique - École St-Paul",1,"08-Abitibi-Témiscamingue","Senneterre","RE","SU",47698.5,null,"2018-12-31",87113,null,null,null,null,null,47698.5,null,null,null,null,null,null,47698.5,null,"QC-Québec","Oui",20.6553535,60.978707200000002,0,"Non","Oui",0,null,0,null,0,null,0,null,0,null,null,null,null,null,null,null,null,null,null,null,null,null,null,{"$f":"IF(SUM(AI485:BD485)=0,0,(Y485/SUMIF($AI$20:$BD$20,\"1\",AI485:BD485)))","v":0}]
[462,"Implantation","Commission scolaire de l'Or-et-des-Bois","Projet d’amélioration énergétique - Maison des Soeurs",1,"08-Abitibi-Témiscamingue","Val-d'Or","RE","SU",16651.419999999998,null,"2018-12-31",66285,null,null,null,null,null,16651.419999999998,null,null,null,null,null,null,16651.419999999998,null,"QC-Québec","Oui",20.767217599999999,24.915603399999998,0,"Non","Oui",0,null,0,null,0,null,0,null,0,null,null,null,null,null,null,null,null,null,null,null,null,null,null,{"$f":"IF(SUM(AI486:BD486)=0,0,(Y486/SUMIF($AI$20:$BD$20,\"1\",AI486:BD486)))","v":0}]
[463,"Implantation","Commission scolaire de l'Or-et-des-Bois","Projet d’amélioration énergétique - École Chanoine Delisle",1,"08-Abitibi-Témiscamingue","Senneterre","RE","SU",20207.04,null,"2018-12-31",63148,null,null,null,null,null,20207.04,null,null,null,null,null,null,20207.04,null,"QC-Québec","Oui",21.8801937,41.310490799999997,0,"Non","Oui",0,null,0,null,0,null,0,null,0,null,null,null,null,null,null,null,null,null,null,null,null,null,null,{"$f":"IF(SUM(AI487:BD487)=0,0,(Y487/SUMIF($AI$20:$BD$20,\"1\",AI487:BD487)))","v":0}]
[464,"Implantation","Les Entreprises JM Benjamin inc.","Implantation du produit ecoAZUR avec Confort du Chef et tableau de bord",1,"16-Montérégie","Saint-Jean-sur-Richelieu","RE","SU",30280.06,null,"2019-06-30",106514,null,null,null,null,null,22710.06,7570,null,null,null,null,null,30280.06,null,"QC-Québec","Oui",10,26.380050600000001,0,"Non","Oui",0,null,0,null,0,null,0,null,0,null,null,null,null,null,null,null,null,null,null,null,null,null,null,{"$f":"IF(SUM(AI488:BD488)=0,0,(Y488/SUMIF($AI$20:$BD$20,\"1\",AI488:BD488)))","v":0}]
[465,"Implantation","9282-5645 Québec inc.","Modernisation énergétique - 3333 Queen-Mary",1,"06-Montréal","Montréal","IN","SU",102000.95,null,"2018-09-28",384000,null,null,null,null,null,102000.95,null,null,null,null,null,null,102000.95,null,"QC-Québec","Oui",23.625917399999999,81.878201799999999,0,"Non","Oui",0,null,0,null,0,null,0,null,0,null,null,null,null,null,null,null,null,null,null,null,null,null,null,{"$f":"IF(SUM(AI489:BD489)=0,0,(Y489/SUMIF($AI$20:$BD$20,\"1\",AI489:BD489)))","v":0}]
[466,"Implantation","10322717 Canada inc.","Projet d'efficacité énergétique - Le William",1,"06-Montréal","Montréal","RE","SU",28908.720000000001,null,"2019-07-01",508947,null,null,null,null,null,14454.36,14454.36,null,null,null,null,null,28908.720000000001,null,"QC-Québec","Oui",28.200378400000002,183.58601899999999,0,"Non","Oui",0,null,0,null,0,null,0,null,0,null,null,null,null,null,null,null,null,null,null,null,null,null,null,{"$f":"IF(SUM(AI490:BD490)=0,0,(Y490/SUMIF($AI$20:$BD$20,\"1\",AI490:BD490)))","v":0}]
[467,"Implantation","766 3609 Canada inc.","Projet d'efficacité énergétique - Le Berri",1,"06-Montréal","Montréal","RE","SU",24522.02,null,"2019-07-01",563066,null,null,null,null,null,12261,12261.02,null,null,null,null,null,1563,null,"QC-Québec","Oui",28.680519100000001,212.57485399999999,0,"Non","Oui",0,null,0,null,0,null,0,null,0,null,null,null,null,null,null,null,null,null,null,null,null,null,null,{"$f":"IF(SUM(AI491:BD491)=0,0,(Y491/SUMIF($AI$20:$BD$20,\"1\",AI491:BD491)))","v":0}]
[468,"Implantation","9292-2707 Québec inc.","Projet d'efficacité énergétique - Le Saint-Dominique",1,"06-Montréal","Montréal","RE","SU",194209.29,null,"2019-07-01",569643,null,null,null,null,null,97104.639999999999,97104.65,null,null,null,null,null,194209.29,null,"QC-Québec","Oui",28.780321099999998,275.712108,0,"Non","Oui",0,null,0,null,0,null,0,null,0,null,null,null,null,null,null,null,null,null,null,null,null,null,null,{"$f":"IF(SUM(AI492:BD492)=0,0,(Y492/SUMIF($AI$20:$BD$20,\"1\",AI492:BD492)))","v":0}]
[469,"Implantation","Institut de Cardiologie de Montréal","Projet d'efficacité énergétique - Institut de Cardiologie de Montréal",1,"06-Montréal","Montréal","RE","SU",654199,null,"2021-01-01",1149468,null,null,null,null,null,163549.75,163549.75,327099.5,null,null,null,null,654199,null,"QC-Québec","Oui",30,601.58966499999997,0,"Non","Oui",0,null,0,null,0,null,0,null,0,null,null,null,null,null,null,null,null,null,null,null,null,null,null,{"$f":"IF(SUM(AI493:BD493)=0,0,(Y493/SUMIF($AI$20:$BD$20,\"1\",AI493:BD493)))","v":0}]
[470,"Analyse","Hôpital du Sûroit","Étude réseau vapeur",1,"16-Montérégie","Salaberry-de-Valleyfield","AC","SU",8765.5,"2018-05-25","2018-08-31",18354,null,null,null,null,null,8765.5,null,null,null,null,null,null,8765.5,null,"QC-Québec","Oui",null,0,0,"Non","Oui",null,null,null,null,null,null,null,null,null,null,null,null,null,null,null,null,null,null,null,null,null,null,null,{"$f":"IF(SUM(AI494:BD494)=0,0,(Y494/SUMIF($AI$20:$BD$20,\"1\",AI494:BD494)))","v":0}]
[471,"Implantation","Commission scolaire de la Seigneurie-des-Mille-Îles","Installation de la géothermie et de la récupération de chaleur",1,"15-Laurentides","Saint-Eustache","IN","SU",59131,null,"2019-06-27",125508,null,null,null,null,null,44348.25,14782.75,null,null,null,null,null,59131,null,"QC-Québec","Oui",25,66.5248694,0,"Non","Oui",0,null,0,null,0,null,0,null,0,null,null,null,null,null,null,null,null,null,null,null,null,null,null,{"$f":"IF(SUM(AI495:BD495)=0,0,(Y495/SUMIF($AI$20:$BD$20,\"1\",AI495:BD495)))","v":0}]
[472,"Analyse","9274-5124 Québec inc.","Analyse technique d’efficacité et d’approvisionnement énergétique renouvelable appliquée",1,"03-Capitale-Nationale","Saint-Ferréol-les-Neiges","AC","SU",5365,"2018-04-27","2018-12-31",10730,null,null,null,null,null,5365,null,null,null,null,null,null,5365,null,"QC-Québec","Oui",null,0,0,"Non","Oui",null,null,null,null,null,null,null,null,null,null,null,null,null,null,null,null,null,null,null,null,null,null,null,{"$f":"IF(SUM(AI496:BD496)=0,0,(Y496/SUMIF($AI$20:$BD$20,\"1\",AI496:BD496)))","v":0}]
[473,"Implantation","Hôpital Marie-Clarac des Soeurs de Charité de Ste-Marie (1995) inc.","D930 - Hôpital Marie-Clarac - Projet ESE",1,"06-Montréal","Montréal","RE","SU",1190956.3500000001,null,"2020-01-01",2530410,null,null,null,null,null,893217.27,297739.08,null,null,null,null,null,1190956.3500000001,null,"QC-Québec","Oui",43.363826799999998,969.87420899999995,0,"Non","Oui",0,null,0,null,0,null,0,null,0,null,null,null,null,null,null,null,null,null,null,null,null,null,null,{"$f":"IF(SUM(AI497:BD497)=0,0,(Y497/SUMIF($AI$20:$BD$20,\"1\",AI497:BD497)))","v":0}]
[474,"Implantation","Commission scolaire de la Seigneurie-des-Mille-Îles","Construction d'une nouvelle école primaire écoénergétique - École Domaine-Vert Nord",1,"15-Laurentides","Mirabel","RE","SU",120271.64,null,"2021-02-28",979102,null,null,null,null,null,60135.82,30067.91,30067.91,null,null,null,null,120271.64,null,"QC-Québec","Oui",25,134.24546599999999,0,"Non","Oui",0,null,0,null,0,null,0,null,0,null,null,null,null,null,null,null,null,null,null,null,null,null,null,{"$f":"IF(SUM(AI498:BD498)=0,0,(Y498/SUMIF($AI$20:$BD$20,\"1\",AI498:BD498)))","v":0}]
[475,"Implantation","Archibald Blainville","Implantation du produit ecoAZUR",1,"15-Laurentides","Blainville","RE","SU",38547.61,null,"2019-06-16",117743.37,null,null,null,null,null,28910.7,9636.91,null,null,null,null,null,38547.61,null,"QC-Québec","Oui",10,30.8380893,0,"Non","Oui",0,null,0,null,0,null,0,null,0,null,null,null,null,null,null,null,null,null,null,null,null,null,null,{"$f":"IF(SUM(AI499:BD499)=0,0,(Y499/SUMIF($AI$20:$BD$20,\"1\",AI499:BD499)))","v":0}]
[476,"Implantation","CISSS du Bas-Saint-Laurent","Implantation du produit ecoAZUR",1,"01-Bas-Saint-Laurent","Rivière-du-Loup","RE","SU",14491.29,null,"2019-05-15",51234,null,null,null,null,null,10868.46,3622.83,null,null,null,null,null,14491.29,null,"QC-Québec","Oui",10,18.797820099999999,0,"Non","Oui",0,null,0,null,0,null,0,null,0,null,null,null,null,null,null,null,null,null,null,null,null,null,null,{"$f":"IF(SUM(AI500:BD500)=0,0,(Y500/SUMIF($AI$20:$BD$20,\"1\",AI500:BD500)))","v":0}]
[477,"Analyse","Les Immeubles Perron","Étude en efficacité énergétique",1,"02-Saguenay─Lac-Saint-Jean","Saguenay","AC","SU",5300,"2018-05-25","2018-06-28",10600,null,null,null,null,null,5300,null,null,null,null,null,null,5300,null,"QC-Québec","Oui",null,0,0,"Non","Oui",null,null,null,null,null,null,null,null,null,null,null,null,null,null,null,null,null,null,null,null,null,null,null,{"$f":"IF(SUM(AI501:BD501)=0,0,(Y501/SUMIF($AI$20:$BD$20,\"1\",AI501:BD501)))","v":0}]
[478,"Implantation","Soeurs de la Providence","Projet d'économie d'énergie au Centre international Providence",1,"06-Montréal","Montréal","RE","SU",48747.45,null,"2018-12-15",163700,null,null,null,null,null,48747.45,null,null,null,null,null,null,48747.45,null,"QC-Québec","Oui",40,48.005731900000001,0,"Non","Oui",0,null,0,null,0,null,0,null,0,null,null,null,null,null,null,null,null,null,null,null,null,null,null,{"$f":"IF(SUM(AI502:BD502)=0,0,(Y502/SUMIF($AI$20:$BD$20,\"1\",AI502:BD502)))","v":0}]
[479,"Implantation","STGM Inc.","Agrandissement de l’édifice le 2980",1,"03-Capitale-Nationale","Québec","IN","SU",27187.8,null,"2018-12-28",104976,null,null,null,null,null,27187.8,null,null,null,null,null,null,27187.8,null,"QC-Québec","Oui",0,21.750240300000002,0,"Non","Oui",0,null,0,null,0,null,0,null,0,null,null,null,null,null,null,null,null,null,null,null,null,null,null,{"$f":"IF(SUM(AI503:BD503)=0,0,(Y503/SUMIF($AI$20:$BD$20,\"1\",AI503:BD503)))","v":0}]
[480,"Implantation","80 Chemin du Bord du Lac inc.","Projet d'optimisation énergétique Bayside",1,"06-Montréal","Pointe-Claire","IN","SU",240261.75,null,"2019-12-31",532767,null,null,null,null,null,180196.32,60065.43,null,null,null,null,null,240261.75,null,"QC-Québec","Oui",21.290035199999998,211.280497,0,"Non","Oui",0,null,0,null,0,null,0,null,0,null,null,null,null,null,null,null,null,null,null,null,null,null,null,{"$f":"IF(SUM(AI504:BD504)=0,0,(Y504/SUMIF($AI$20:$BD$20,\"1\",AI504:BD504)))","v":0}]
[481,"Implantation","9366-5099 Québec inc. (La Voie Maltée - Laurier)","Implantation du produit écoAZUR, confort du chef avec tableau de bord",1,"03-Capitale-Nationale","Québec","IN","SU",34416.21,null,"2019-06-15",61951.76,null,null,null,null,null,25812.15,8604.06,null,null,null,null,null,34416.21,null,"QC-Québec","Oui",10,27.532966299999998,0,"Non","Oui",0,null,0,null,0,null,0,null,0,null,null,null,null,null,null,null,null,null,null,null,null,null,null,{"$f":"IF(SUM(AI505:BD505)=0,0,(Y505/SUMIF($AI$20:$BD$20,\"1\",AI505:BD505)))","v":0}]
[482,"Analyse","Holiday Inn (MC) Montréal Centre-ville","Économie d'énergie",1,"06-Montréal","Montréal","RE","SU",9850,null,"2018-07-31",22800,null,null,null,null,null,9850,null,null,null,null,null,null,9850,null,"QC-Québec","Oui",null,0,0,"Non","Oui",null,null,null,null,null,null,null,null,null,null,null,null,null,null,null,null,null,null,null,null,null,null,null,{"$f":"IF(SUM(AI506:BD506)=0,0,(Y506/SUMIF($AI$20:$BD$20,\"1\",AI506:BD506)))","v":0}]
[483,"Implantation","Investissement Woodcrest inc.","Modernisation de la chaufferie prinicpale",1,"06-Montréal","Westmount","RE","SU",75560.990000000005,null,"2018-10-01",179500,null,null,null,null,null,75560.990000000005,null,null,null,null,null,null,75560.990000000005,null,"QC-Québec","Oui",25,60.4487934,0,"Non","Oui",0,null,0,null,0,null,0,null,0,null,null,null,null,null,null,null,null,null,null,null,null,null,null,{"$f":"IF(SUM(AI507:BD507)=0,0,(Y507/SUMIF($AI$20:$BD$20,\"1\",AI507:BD507)))","v":0}]
[484,"Implantation","CRSSS de la Baie-James","Projet d’efficacité énergétique du CRSSS de la Baie-James",1,"10-Nord-du-Québec","Chibougamau","IN","SU",98858.17,null,"2019-06-01",151410,null,null,null,null,null,74143.62,24714.55,null,null,null,null,null,98858.17,null,"QC-Québec","Oui",20,84.747788600000007,0,"Non","Oui",0,null,0,null,0,null,0,null,0,null,null,null,null,null,null,null,null,null,null,null,null,null,null,{"$f":"IF(SUM(AI508:BD508)=0,0,(Y508/SUMIF($AI$20:$BD$20,\"1\",AI508:BD508)))","v":0}]
[485,"Implantation","Le 7295 Lajeunesse inc.","Nouveau bâtiment écoénergétique - Centre de formation UA Local 144",1,"06-Montréal","Montréal","RE","SU",142306.29,null,"2018-10-24",394000,null,null,null,null,null,142306.29,null,null,null,null,null,null,142306.29,null,"QC-Québec","Oui",20,113.84503599999999,0,"Non","Oui",0,null,0,null,0,null,0,null,0,null,null,null,null,null,null,null,null,null,null,null,null,null,null,{"$f":"IF(SUM(AI509:BD509)=0,0,(Y509/SUMIF($AI$20:$BD$20,\"1\",AI509:BD509)))","v":0}]
[486,"Implantation","CAPREIT Apartments Inc.","Efficacité énergétique au 65 rue Sherbrooke",1,"06-Montréal","Montréal","RE","SU",456811.52000000002,null,"2019-06-01",710000,null,null,null,null,null,342608.64000000001,114202.88,null,null,null,null,null,456811.52000000002,null,"QC-Québec","Oui",27.086458199999999,367.979491,0,"Non","Oui",0,null,0,null,0,null,0,null,0,null,null,null,null,null,null,null,null,null,null,null,null,null,null,{"$f":"IF(SUM(AI510:BD510)=0,0,(Y510/SUMIF($AI$20:$BD$20,\"1\",AI510:BD510)))","v":0}]
[487,"Analyse","Commission scolaire des Chênes","Audit énergétique ASHRAE Niv.2 Centre de formation professionnelle Paul-Rousseau",1,"17-Centre-du-Québec","Drummondville","AC","SU",6900,"2018-07-03","2018-11-30",13800,null,null,null,null,null,6900,null,null,null,null,null,null,6900,null,"QC-Québec","Oui",null,0,0,"Non","Oui",null,null,null,null,null,null,null,null,null,null,null,null,null,null,null,null,null,null,null,null,null,null,null,{"$f":"IF(SUM(AI511:BD511)=0,0,(Y511/SUMIF($AI$20:$BD$20,\"1\",AI511:BD511)))","v":0}]
[488,"Analyse","Commission scolaire des Grandes-Seigneuries","Agrandissement et réaménagement de l'École St-René",1,"16-Montérégie","Mercier","IN","SU",5625,null,"2018-06-25",11750,null,null,null,null,null,5625,null,null,null,null,null,null,5625,null,"QC-Québec","Oui",null,0,0,"Non","Oui",null,null,null,null,null,null,null,null,null,null,null,null,null,null,null,null,null,null,null,null,null,null,null,{"$f":"IF(SUM(AI512:BD512)=0,0,(Y512/SUMIF($AI$20:$BD$20,\"1\",AI512:BD512)))","v":0}]
[489,"Analyse","Commission scolaire des Grandes-Seigneuries","Réaménagement de l'École St-Viateur-Clotilde-Raymond, édifice St-Viateur",1,"16-Montérégie","Saint-Rémi","AC","SU",4600,"2018-07-26","2018-06-25",9650,null,null,null,null,null,4600,null,null,null,null,null,null,4600,null,"QC-Québec","Oui",null,0,0,"Non","Oui",null,null,null,null,null,null,null,null,null,null,null,null,null,null,null,null,null,null,null,null,null,null,null,{"$f":"IF(SUM(AI513:BD513)=0,0,(Y513/SUMIF($AI$20:$BD$20,\"1\",AI513:BD513)))","v":0}]
[490,"Implantation","Domaine des Cascades","Projet des Cascades - Agrandissement",1,"16-Montérégie","Sainte-Catherine","RE","SU",122739.15,null,"2018-09-30",326000,null,null,null,null,null,122739.15,null,null,null,null,null,null,122739.15,null,"QC-Québec","Oui",35,98.1913196,0,"Non","Oui",0,null,0,null,0,null,0,null,0,null,null,null,null,null,null,null,null,null,null,null,null,null,null,{"$f":"IF(SUM(AI514:BD514)=0,0,(Y514/SUMIF($AI$20:$BD$20,\"1\",AI514:BD514)))","v":0}]
[491,"Implantation","Commission scolaire de Montréal","Reconstruction de l'École Sainte-Catherine-de-Sienne",1,"06-Montréal","Montréal","RE","SU",62778.77,null,"2020-08-17",128980,null,null,null,null,null,31389.38,15694.69,15694.7,null,null,null,null,62778.77,null,"QC-Québec","Oui",25,53.833403500000003,0,"Non","Oui",0,null,0,null,0,null,0,null,0,null,null,null,null,null,null,null,null,null,null,null,null,null,null,{"$f":"IF(SUM(AI515:BD515)=0,0,(Y515/SUMIF($AI$20:$BD$20,\"1\",AI515:BD515)))","v":0}]
[492,"Analyse","POURVOIRIE WABAN-AKI (2008) INC.","ÉTUDE ÉNERGÉTIQUE POURVOIRIE WABAN-AKI",1,"04-Mauricie","La Tuque","IN","SU",2000,null,"2018-08-16",4000,null,null,null,null,null,2000,null,null,null,null,null,null,2000,null,"QC-Québec","Oui",null,0,0,"Non","Oui",null,null,null,null,null,null,null,null,null,null,null,null,null,null,null,null,null,null,null,null,null,null,null,{"$f":"IF(SUM(AI516:BD516)=0,0,(Y516/SUMIF($AI$20:$BD$20,\"1\",AI516:BD516)))","v":0}]
[493,"Analyse","Traffic Tech inc.","Traffic Tech étude d'économie d'énergie",1,"06-Montréal","Kirkland","AC","SU",7125,"2018-07-27","2018-08-15",17900,null,null,null,null,null,7125,null,null,null,null,null,null,7125,null,"QC-Québec","Oui",null,0,0,"Non","Oui",null,null,null,null,null,null,null,null,null,null,null,null,null,null,null,null,null,null,null,null,null,null,null,{"$f":"IF(SUM(AI517:BD517)=0,0,(Y517/SUMIF($AI$20:$BD$20,\"1\",AI517:BD517)))","v":0}]
[494,"Analyse","Manoir Trois","Étude de faisabilité - Efficaicté énergétique dans un Edifce Multi-Logements",1,"06-Montréal","Montréal","RE","SU",9000,null,"2018-07-07",18000,null,null,null,null,null,9000,null,null,null,null,null,null,9000,null,"QC-Québec","Oui",null,0,0,"Non","Oui",null,null,null,null,null,null,null,null,null,null,null,null,null,null,null,null,null,null,null,null,null,null,null,{"$f":"IF(SUM(AI518:BD518)=0,0,(Y518/SUMIF($AI$20:$BD$20,\"1\",AI518:BD518)))","v":0}]
[495,"Implantation","Société en Commandite Résidence Beloeil","Réseau Sélection – RPA Beloeil",1,"16-Montérégie","Beloeil","RF","SU",264058.76,null,"2019-05-24",1717153,null,null,null,null,null,198044.07,66014.69,null,null,null,null,null,264058.76,null,"QC-Québec","Oui",40,211.24701099999999,0,"Non","Oui",null,null,null,null,null,null,null,null,null,null,null,null,null,null,null,null,null,null,null,null,null,null,null,{"$f":"IF(SUM(AI519:BD519)=0,0,(Y519/SUMIF($AI$20:$BD$20,\"1\",AI519:BD519)))","v":0}]
[496,"Analyse","Commission scolaire de la Pointe-de-l'Ïle","Agrandissement de l'école Sainte-Marguerite-Bourgeoys",1,"06-Montréal","Montréal","IN","SU",6350,null,"2018-07-09",13200,null,null,null,null,null,6350,null,null,null,null,null,null,6350,null,"QC-Québec","Oui",null,0,0,"Non","Oui",null,null,null,null,null,null,null,null,null,null,null,null,null,null,null,null,null,null,null,null,null,null,null,{"$f":"IF(SUM(AI520:BD520)=0,0,(Y520/SUMIF($AI$20:$BD$20,\"1\",AI520:BD520)))","v":0}]
[497,"Implantation","Syndicat de la copropriété QB","Projet de récupération de chaleur de ventilation et de remplacement d'un système de chauffage d'eau domestique au gaz",1,"03-Capitale-Nationale","Québec","RE","SU",624781.19999999995,null,"2019-09-01",1016250,null,null,null,null,null,468585.9,156195.29999999999,null,null,null,null,null,624781.19999999995,null,"QC-Québec","Oui",25,552.61632399999996,0,"Non","Oui",0,null,0,null,0,null,0,null,0,null,null,null,null,null,null,null,null,null,null,null,null,null,null,{"$f":"IF(SUM(AI521:BD521)=0,0,(Y521/SUMIF($AI$20:$BD$20,\"1\",AI521:BD521)))","v":0}]
[498,"Implantation","Le Renaissance Cowansville, S.E.C.","Installation système de hotte variable",1,"16-Montérégie","Lac-Brome","RE","SU",13905,null,"2018-09-10",25000,null,null,null,null,null,13905,null,null,null,null,null,null,13905,null,"QC-Québec","Oui",15,15.0559911,0,"Non","Oui",0,null,0,null,0,null,0,null,0,null,null,null,null,null,null,null,null,null,null,null,null,null,null,{"$f":"IF(SUM(AI522:BD522)=0,0,(Y522/SUMIF($AI$20:$BD$20,\"1\",AI522:BD522)))","v":0}]
[499,"Implantation","9213-8510 Québec inc.","Efficacité énergétique et conversion chez Les Jardins d'Évangéline",1,"03-Capitale-Nationale","Québec","IN","SU",166986.79999999999,null,"2018-12-30",330000,null,null,null,null,null,166986.79999999999,null,null,null,null,null,null,166986.79999999999,null,"QC-Québec","Oui",20,193.67608300000001,21.311546100000001,"Non","Oui",0,null,0,null,0,null,0,null,0,null,null,null,null,null,null,null,null,null,null,null,null,null,null,{"$f":"IF(SUM(AI523:BD523)=0,0,(Y523/SUMIF($AI$20:$BD$20,\"1\",AI523:BD523)))","v":0}]
[500,"Analyse","Commission scolaire Eastern Townships","Analyse écoénergétique de dix écoles de la commission scolaires Eastern Townships",1,"05-Estrie","Sherbrooke","IN","SU",25000,null,"2018-11-18",96600,null,null,null,null,null,25000,null,null,null,null,null,null,25000,null,"QC-Québec","Oui",null,0,0,"Non","Oui",null,null,null,null,null,null,null,null,null,null,null,null,null,null,null,null,null,null,null,null,null,null,null,{"$f":"IF(SUM(AI524:BD524)=0,0,(Y524/SUMIF($AI$20:$BD$20,\"1\",AI524:BD524)))","v":0}]
[501,"Analyse","Commission scolaire des Chênes","Audit énergétique ASHRAE Niv.2 Centre de formation professionnelle - Mécanique de Véhicules Lourds Routiers",1,"17-Centre-du-Québec","Saint-Germain-de-Grantham","IN","SU",8000,null,"2018-08-31",16000,null,null,null,null,null,8000,null,null,null,null,null,null,8000,null,"QC-Québec","Oui",null,0,0,"Non","Oui",null,null,null,null,null,null,null,null,null,null,null,null,null,null,null,null,null,null,null,null,null,null,null,{"$f":"IF(SUM(AI525:BD525)=0,0,(Y525/SUMIF($AI$20:$BD$20,\"1\",AI525:BD525)))","v":0}]
[502,"Implantation","Commission Scolaire du Lac-Saint-Jean","Réfection du système de chauffage de l'école secondaire Curé-Hébert",1,"02-Saguenay─Lac-Saint-Jean","Hébertville","IN","SU",13167.5,null,"2019-08-31",604250,null,null,null,null,null,9875.64,3291.86,null,null,null,null,null,13167.5,null,"QC-Québec","Oui",22.796917000000001,248.719683,0,"Non","Oui",0,null,0,null,0,null,0,null,0,null,null,null,null,null,null,null,null,null,null,null,null,null,null,{"$f":"IF(SUM(AI526:BD526)=0,0,(Y526/SUMIF($AI$20:$BD$20,\"1\",AI526:BD526)))","v":0}]
[503,"Implantation","Commission scolaire de Montréal","Reconstruction de l'école Sainte-Bibianne",1,"06-Montréal","Montréal","IN","SU",57019.66,null,"2021-03-01",115640,null,null,null,null,null,14254.92,28509.84,14254.9,null,null,null,null,57019.66,null,"QC-Québec","Oui",25,47.918620199999999,0,"Non","Oui",0,null,0,null,0,null,0,null,0,null,null,null,null,null,null,null,null,null,null,null,null,null,null,{"$f":"IF(SUM(AI527:BD527)=0,0,(Y527/SUMIF($AI$20:$BD$20,\"1\",AI527:BD527)))","v":0}]
[504,"Implantation","Ville de Trois-Rivières","Coisée de Trois Rivières",1,"04-Mauricie","Trois-Rivières","IN","SU",59454.65,null,"2020-01-01",380250,null,null,null,null,null,29727.32,29727.33,null,null,null,null,null,59454.65,null,"QC-Québec","Oui",25,210.84886800000001,0,"Non","Oui",0,null,0,null,0,null,0,null,0,null,null,null,null,null,null,null,null,null,null,null,null,null,null,{"$f":"IF(SUM(AI528:BD528)=0,0,(Y528/SUMIF($AI$20:$BD$20,\"1\",AI528:BD528)))","v":0}]
[505,"Implantation","Commission Scolaire du Lac-Saint-Jean","Réfection de la chaufferie",1,"02-Saguenay─Lac-Saint-Jean","Métabetchouan--Lac-à-la-Croix","RF","SU","                     -    $",null,"2018-08-31",312000,null,null,null,null,null,null,null,null,null,null,null,null,"                                                              -    $",null,"QC-Québec","Oui",25,75.470832799999997,0,"Non","Oui",null,null,null,null,null,null,null,null,null,null,null,null,null,null,null,null,null,null,null,null,null,null,null,{"$f":"IF(SUM(AI529:BD529)=0,0,(Y529/SUMIF($AI$20:$BD$20,\"1\",AI529:BD529)))","v":0}]
[506,"Implantation","Les Pétroles Alcasyna (1993) inc. / Relais La Sarre","Implantation du produit ecoAZUR avec Confort du Chef et tableau de bord",1,"08-Abitibi-Témiscamingue","La Sarre","IN","SU",16630.61,null,"2019-09-20",28647,null,null,null,null,null,12472.95,4157.66,null,null,null,null,null,16630.61,null,"QC-Québec","Oui",10,13.304486600000001,0,"Non","Oui",0,null,0,null,0,null,0,null,0,null,null,null,null,null,null,null,null,null,null,null,null,null,null,{"$f":"IF(SUM(AI530:BD530)=0,0,(Y530/SUMIF($AI$20:$BD$20,\"1\",AI530:BD530)))","v":0}]
[507,"Implantation","La Fabrique de la Paroisse de Saint-Jérôme","Installation de 2 nouveaux fours crématoires efficaces",1,"15-Laurentides","Saint-Jérôme","IN","SU",402000,null,"2018-10-01",607500,null,null,null,null,null,402000,null,null,null,null,null,null,402000,null,"QC-Québec","Oui",40,323.54604999999998,0,"Non","Oui",0,null,0,null,0,null,0,null,0,null,null,null,null,null,null,null,null,null,null,null,null,null,null,{"$f":"IF(SUM(AI531:BD531)=0,0,(Y531/SUMIF($AI$20:$BD$20,\"1\",AI531:BD531)))","v":0}]
[508,"Analyse","Collège de Sainte-Anne-de-la-Pocatière","Analyse de faisabilité de l'amélioration des systèmes de chauffage et géothermie",1,"01-Bas-Saint-Laurent","La Pocatière","IN","SU",10000,null,"2018-11-01",20000,null,null,null,null,null,10000,null,null,null,null,null,null,10000,null,"QC-Québec","Oui",null,0,0,"Non","Oui",null,null,null,null,null,null,null,null,null,null,null,null,null,null,null,null,null,null,null,null,null,null,null,{"$f":"IF(SUM(AI532:BD532)=0,0,(Y532/SUMIF($AI$20:$BD$20,\"1\",AI532:BD532)))","v":0}]
[509,"Implantation","Pancosma Canada inc.","Préchauffage solaire de l'air de procédé et isolation des conduits",1,"17-Centre-du-Québec","Drummondville","AN","SU","                     -    $",null,"2014-08-31",27600,null,null,null,null,null,null,null,null,null,null,null,null,"                                                              -    $",null,"QC-Québec","Oui",20,0,0,"Non","Oui",null,null,null,null,null,null,null,null,null,null,null,null,null,null,null,null,null,null,null,null,null,null,null,{"$f":"IF(SUM(AI533:BD533)=0,0,(Y533/SUMIF($AI$20:$BD$20,\"1\",AI533:BD533)))","v":0}]
[510,"Implantation","Concept Éco-Plein-Air Le Baluchon inc.","Récupération de chaleur de la buanderie et installation d'un mur solaire",1,"04-Mauricie","Saint-Paulin","AC","SU",18508.38,"2015-01-14","2018-07-01",204200,null,null,null,4627.1000000000004,9254.19,4627.09,null,null,null,null,null,13881.29,18508.38,null,"QC-Québec","Oui",20,103.351201,0,"Non","Oui",0,null,0,null,0,null,0,null,0,null,null,null,null,null,null,null,null,null,null,null,null,null,null,{"$f":"IF(SUM(AI534:BD534)=0,0,(Y534/SUMIF($AI$20:$BD$20,\"1\",AI534:BD534)))","v":0}]
[511,"Implantation","Municipalité de Papineauville","Rénovation incluant des mesures d'économies d'énergie pour l'aréna Joseph-Lucien-Malo",1,"07-Outaouais","Papineauville","AN","SU","                     -    $","2014-03-04","2016-03-26",115940,null,null,null,null,null,null,null,null,null,null,null,null,"                                                              -    $",null,"QC-Québec","Oui",24.615915300000001,0,0,"Non","Oui",null,null,null,null,null,null,null,null,null,null,null,null,null,null,null,null,null,null,null,null,null,null,null,{"$f":"IF(SUM(AI535:BD535)=0,0,(Y535/SUMIF($AI$20:$BD$20,\"1\",AI535:BD535)))","v":0}]
[512,"Implantation","Municipalité de Crabtree","Rénovation incluant des mesures d'économies d'énergie pour l'aréna Roch-Lasalle",1,"14-Lanaudière","Crabtree","AN","SU","                     -    $","2014-03-04","2016-12-30",114233,null,null,null,null,null,null,null,null,null,null,null,null,"                                                              -    $",null,"QC-Québec","Oui",25.288263300000001,0,0,"Non","Oui",null,null,null,null,null,null,null,null,null,null,null,null,null,null,null,null,null,null,null,null,null,null,null,{"$f":"IF(SUM(AI536:BD536)=0,0,(Y536/SUMIF($AI$20:$BD$20,\"1\",AI536:BD536)))","v":0}]
[513,"Implantation","Ville de Sherbrooke","Remplacement du système de réfrigération, récupération de chaleur et remplacement des bandes et appareils d'éclairage du Centre Julien Ducharme",1,"05-Estrie","Sherbrooke","RE","SU","                     -    $",null,"2019-08-14",829365,null,null,null,null,null,null,null,null,null,null,null,null,"                                                              -    $",null,"QC-Québec","Oui",19.955594999999999,10.332051,0,"Non","Oui",0,null,0,null,0,null,0,null,0,null,null,null,null,null,null,null,null,null,null,null,null,null,null,{"$f":"IF(SUM(AI537:BD537)=0,0,(Y537/SUMIF($AI$20:$BD$20,\"1\",AI537:BD537)))","v":0}]
[514,"Implantation","Sobeys Québec inc.","Réfrigération CO2 avec récupération de chaleur - No 88076 - IGA Saint-Antoine",1,"15-Laurentides","Saint-Jérôme","TE","SU","                     -    $","2014-12-03","2014-04-01",90000,null,null,null,null,null,null,null,null,null,null,null,"                                              -    $","                                                              -    $",null,"QC-Québec","Oui",15,366.06708600000002,0,"Non","Oui",0,null,13.5024745,null,182.53345100000001,null,182.03335999999999,null,182.03335999999999,null,null,null,null,null,null,null,null,null,null,null,null,null,null,{"$f":"IF(SUM(AI538:BD538)=0,0,(Y538/SUMIF($AI$20:$BD$20,\"1\",AI538:BD538)))","v":{"$error":"#VALUE!"}}]
[515,"Implantation","Supermarché Marquis l'Assomption inc.","Supermarché Marquis l'Assomption - Réfrigération CO2 et récupération de chaleur",1,"14-Lanaudière","Repentigny","TE","SU",159877.37,"2014-12-10","2015-04-01",370834.62,null,79938.69,20948.46,null,null,null,null,null,null,null,null,100887.14,100887.14,null,"QC-Québec","Oui",15,263.767965,0,"Non","Oui",0,null,30.268454999999999,null,131.52364399999999,null,131.16330500000001,null,131.16330500000001,null,null,null,null,null,null,null,null,null,null,null,null,null,null,{"$f":"IF(SUM(AI539:BD539)=0,0,(Y539/SUMIF($AI$20:$BD$20,\"1\",AI539:BD539)))","v":{"$error":"#DIV/0!"}}]
[516,"Implantation","Sobeys Québec inc.","No 360 - IGA Longueuil - Réfrigération CO2 avec récupération de chaleur",1,"16-Montérégie","Longueuil","TE","SU","                     -    $","2014-12-10","2014-04-01",150000,null,null,null,null,null,null,null,null,null,null,null,"                                              -    $","                                                              -    $",null,"QC-Québec","Oui",15,381.91092300000003,0,"Non","Oui",0,null,66.260501700000006,null,190.43372500000001,null,189.91198900000001,null,189.91198900000001,null,null,null,null,null,null,null,null,null,null,null,null,null,null,{"$f":"IF(SUM(AI540:BD540)=0,0,(Y540/SUMIF($AI$20:$BD$20,\"1\",AI540:BD540)))","v":{"$error":"#VALUE!"}}]
[517,"Implantation","Sobeys Québec inc.","Réfrigération au CO2 avec récupération de chaleur- No 08033 IGA Sainte-Thérèse (Daigle)",1,"15-Laurentides","Sainte-Thérèse","TE","SU","                     -    $","2014-12-10","2016-03-29",112500,null,null,null,null,null,null,null,null,null,null,null,"                                              -    $","                                                              -    $",null,"QC-Québec","Oui",15,525.23965099999998,0,"Non","Oui",0,null,28.701620299999998,null,261.90228500000001,null,261.18474400000002,null,261.18474400000002,null,null,null,null,null,null,null,null,null,null,null,null,null,null,{"$f":"IF(SUM(AI541:BD541)=0,0,(Y541/SUMIF($AI$20:$BD$20,\"1\",AI541:BD541)))","v":{"$error":"#VALUE!"}}]
[518,"Implantation","Sobeys Québec inc.","Réfrigération au CO2 avec récupération de chaleur - No 8724 - IGA  Ayer's Cliff",1,"05-Estrie","Ayer's Cliff","TE","SU","                     -    $","2014-12-09","2015-04-01",75000,null,null,null,null,null,null,null,null,null,null,null,"                                              -    $","                                                              -    $",null,"QC-Québec","Oui",15,1.30236456,0,"Non","Oui",0,null,3.9142099999999999E-2,null,0.64940308999999996,null,0.64762390999999997,null,0.64762390999999997,null,null,null,null,null,null,null,null,null,null,null,null,null,null,{"$f":"IF(SUM(AI542:BD542)=0,0,(Y542/SUMIF($AI$20:$BD$20,\"1\",AI542:BD542)))","v":{"$error":"#VALUE!"}}]
[519,"Implantation","Sobeys Québec inc.","Réfrigération CO2 avec récupération de chaleur - No 0444  IGA Saint-Romuald",1,"12-Chaudière-Appalaches","Lévis","TE","SU","                     -    $","2014-12-10","2016-03-29",112500,null,null,null,null,null,null,null,null,null,null,null,"                                              -    $","                                                              -    $",null,"QC-Québec","Oui",15,4.5065558399999999,0,"Non","Oui",0,null,0.30782484999999998,null,2.24712142,null,2.2409649300000001,null,1.09887321,null,null,null,null,null,null,null,null,null,null,null,null,null,null,{"$f":"IF(SUM(AI543:BD543)=0,0,(Y543/SUMIF($AI$20:$BD$20,\"1\",AI543:BD543)))","v":{"$error":"#VALUE!"}}]
[520,"Implantation","Sobeys Québec inc.","Réfrigération au CO2 avec récupération de chaleur",1,"06-Montréal","Montréal","TE","SU",20677.759999999998,"2015-02-05","2016-03-24",117120,null,15508.32,5169.4399999999996,null,null,null,null,null,null,null,null,20677.759999999998,20677.759999999998,null,"QC-Québec","Oui",15,72.785297299999996,0,"Non","Oui",0,null,0.69603426000000002,null,36.293215199999999,null,36.193781700000002,null,36.193781700000002,null,null,null,null,null,null,null,null,null,null,null,null,null,null,{"$f":"IF(SUM(AI544:BD544)=0,0,(Y544/SUMIF($AI$20:$BD$20,\"1\",AI544:BD544)))","v":{"$error":"#DIV/0!"}}]
[521,"Implantation","Sobeys Québec inc.","Réfrigération CO2 avec récupération de chaleur - No 8187 -  IGA Sainte-Julie",1,"16-Montérégie","Sainte-Julie","TE","SU","                     -    $","2014-12-01","2014-04-01",52500,null,null,null,null,null,null,null,null,null,null,null,"                                              -    $","                                                              -    $",null,"QC-Québec","Oui",15,0.80827247999999996,0,"Non","Oui",0,null,6.6251799999999996E-3,null,0.40303203999999998,null,0.40192784999999998,null,0.40192784999999998,null,null,null,null,null,null,null,null,null,null,null,null,null,null,{"$f":"IF(SUM(AI545:BD545)=0,0,(Y545/SUMIF($AI$20:$BD$20,\"1\",AI545:BD545)))","v":{"$error":"#VALUE!"}}]
[522,"Implantation","Sobeys Québec inc.","Réfrigération CO2 avec récupération de chaleur (89035)",1,"08-Abitibi-Témiscamingue","Témiscaming","TE","SU","                     -    $","2014-12-10","2014-04-01",75000,null,null,null,null,null,null,null,null,null,null,null,"                                              -    $","                                                              -    $",null,"QC-Québec","Oui",15,1.8439274400000001,0,"Non","Oui",0,null,0.29472610999999999,null,0.91944468999999995,null,0.91692567000000003,null,0.91692567000000003,null,null,null,null,null,null,null,null,null,null,null,null,null,null,{"$f":"IF(SUM(AI546:BD546)=0,0,(Y546/SUMIF($AI$20:$BD$20,\"1\",AI546:BD546)))","v":{"$error":"#VALUE!"}}]
[523,"Implantation","SportPlex de l'Énergie inc.","Réfrigération CO2 avec récupération de chaleur - Phase 1",1,"16-Montérégie","Varennes","TE","SU",305657.95,"2016-04-28","2016-04-01",1230633.1399999999,null,null,null,305657.95,null,null,null,null,null,null,null,305657.95,305657.95,null,"QC-Québec","Oui",25,592.80835999999999,67.1678256,"Non","Oui",0,null,0,null,27.048204299999998,null,328.18487900000002,null,328.18487900000002,null,null,null,null,null,null,null,null,null,null,null,null,null,null,{"$f":"IF(SUM(AI547:BD547)=0,0,(Y547/SUMIF($AI$20:$BD$20,\"1\",AI547:BD547)))","v":{"$error":"#DIV/0!"}}]
[524,"Implantation","SportPlex de l'Énergie inc.","Réfrigération CO2 avec récupération de chaleur - Phase 2",1,"16-Montérégie","Varennes","AN","SU","                     -    $",null,"2017-08-01",470255,null,null,null,null,null,null,null,null,null,null,null,null,"                                                              -    $",null,"QC-Québec","Oui",25,349.96928800000001,0,"Non","Oui",null,null,null,null,null,null,null,null,null,null,null,null,null,null,null,null,null,null,null,null,null,null,null,{"$f":"IF(SUM(AI548:BD548)=0,0,(Y548/SUMIF($AI$20:$BD$20,\"1\",AI548:BD548)))","v":0}]
[525,"Implantation","Marché St-Canut inc.","Réfrigération CO2 avec récupération de chaleur - #8240 - IGA Marché St-Canut",1,"15-Laurentides","Mirabel","TE","SU","                     -    $","2015-06-09","2016-03-24",150000,null,null,null,null,null,null,null,null,null,null,null,"                                              -    $","                                                              -    $",null,"QC-Québec","Oui",15.739542,318.90965899999998,0,"Non","Oui",0,null,0,null,152.91979499999999,null,158.58349100000001,null,158.58349100000001,null,null,null,null,null,null,null,null,null,null,null,null,null,null,{"$f":"IF(SUM(AI549:BD549)=0,0,(Y549/SUMIF($AI$20:$BD$20,\"1\",AI549:BD549)))","v":{"$error":"#VALUE!"}}]
[526,"Implantation","Métro Richelieu inc.","Réfrigération au CO2 avec récupération de chaleur",1,"16-Montérégie","La Prairie","AC","SU",22694.23,"2015-03-18","2016-04-01",156168,null,5673.56,5673.56,11347.11,null,null,null,null,null,null,null,22694.23,22694.23,null,"QC-Québec","Oui",15,169.83853199999999,0,"Non","Oui",0,null,0,null,0,null,0,null,0,null,null,null,null,null,null,null,null,null,null,null,null,null,null,{"$f":"IF(SUM(AI550:BD550)=0,0,(Y550/SUMIF($AI$20:$BD$20,\"1\",AI550:BD550)))","v":0}]
[527,"Implantation","Ville de Chambly","Optimisation du système de réfrigération de l'aréna",1,"16-Montérégie","Chambly","AC","SU",63353.46,"2016-09-01","2020-08-28",351572,null,null,null,15838.37,null,null,31676.73,15838.36,null,null,null,15838.37,63353.46,null,"QC-Québec","Oui",26.486959500000001,216.61053799999999,0,"Non","Oui",0,null,0,null,0,null,0,null,0,null,null,null,null,null,null,null,null,null,null,null,null,null,null,{"$f":"IF(SUM(AI551:BD551)=0,0,(Y551/SUMIF($AI$20:$BD$20,\"1\",AI551:BD551)))","v":0}]
[528,"Implantation","Sobeys Québec inc.","Réfrigération CO2 avec récupération de chaleur (88208)",1,"16-Montérégie","Beauharnois","AN","SU","                     -    $","2016-09-01","2017-01-24",56250,null,null,null,null,null,null,null,null,null,null,null,null,"                                                              -    $",null,"QC-Québec","Oui",15,0,0,"Non","Oui",null,null,null,null,null,null,null,null,null,null,null,null,null,null,null,null,null,null,null,null,null,null,null,{"$f":"IF(SUM(AI552:BD552)=0,0,(Y552/SUMIF($AI$20:$BD$20,\"1\",AI552:BD552)))","v":0}]
[529,"Implantation","Sobeys Québec inc.","Réfrigération CO2 avec récupération de chaleur (0439)",1,"16-Montérégie","Châteauguay","AN","SU","                     -    $","2016-08-25","2017-03-17",112500,null,null,null,null,null,null,null,null,null,null,null,null,"                                                              -    $",null,"QC-Québec","Oui",15,0,0,"Non","Oui",null,null,null,null,null,null,null,null,null,null,null,null,null,null,null,null,null,null,null,null,null,null,null,{"$f":"IF(SUM(AI553:BD553)=0,0,(Y553/SUMIF($AI$20:$BD$20,\"1\",AI553:BD553)))","v":0}]
[530,"Implantation","Sobeys Québec inc.","Réfrigération CO2 avec récupération de chaleur (88079)",1,"16-Montérégie","Vaudreuil-Dorion","AN","SU","                     -    $","2016-06-27","2017-01-10",37500,null,null,null,null,null,null,null,null,null,null,null,null,"                                                              -    $",null,"QC-Québec","Oui",15,0,0,"Non","Oui",null,null,null,null,null,null,null,null,null,null,null,null,null,null,null,null,null,null,null,null,null,null,null,{"$f":"IF(SUM(AI554:BD554)=0,0,(Y554/SUMIF($AI$20:$BD$20,\"1\",AI554:BD554)))","v":0}]
[531,"Implantation","Sobeys Québec inc.","Réfrigération CO2 avec récupération de chaleur (08547)",1,"06-Montréal","Montréal","TE","SU","                     -    $","2016-07-29","2016-04-01",112500,null,null,null,null,null,null,null,null,null,null,null,"                                              -    $","                                                              -    $",null,"QC-Québec","Oui",15,357.05125099999998,0,"Non","Oui",0,null,0,null,9.7554986600000007,null,177.55007599999999,null,177.55007599999999,null,null,null,null,null,null,null,null,null,null,null,null,null,null,{"$f":"IF(SUM(AI555:BD555)=0,0,(Y555/SUMIF($AI$20:$BD$20,\"1\",AI555:BD555)))","v":{"$error":"#VALUE!"}}]
[532,"Implantation","Sobeys Québec inc.","0001-Réfrigération CO2 avec récupération de chaleur (88208)",1,"16-Montérégie","Beauharnois","AN","SU","                     -    $",null,"2016-04-15",25,null,null,null,null,null,null,null,null,null,null,null,null,"                                                              -    $",null,"QC-Québec","Oui",15,0,0,"Non","Oui",null,null,null,null,null,null,null,null,null,null,null,null,null,null,null,null,null,null,null,null,null,null,null,{"$f":"IF(SUM(AI556:BD556)=0,0,(Y556/SUMIF($AI$20:$BD$20,\"1\",AI556:BD556)))","v":0}]
[533,"Implantation","Sobeys Québec inc.","Réfrigération CO2 avec récupération de chaleur (000259)",1,"06-Montréal","Montréal","TE","SU","                     -    $","2016-12-13","2018-04-12",112500,null,null,null,null,null,null,null,null,null,null,null,"                                              -    $","                                                              -    $",null,"QC-Québec","Oui",15,408.27071599999999,0,"Non","Oui",0,null,0,null,16.174659500000001,null,203.01986400000001,null,203.01986400000001,null,null,null,null,null,null,null,null,null,null,null,null,null,null,{"$f":"IF(SUM(AI557:BD557)=0,0,(Y557/SUMIF($AI$20:$BD$20,\"1\",AI557:BD557)))","v":{"$error":"#VALUE!"}}]
[534,"Implantation","Sobeys Québec inc.","Réfrigération CO2 avec récupération de chaleur (88734)",1,"03-Capitale-Nationale","Québec","AC","SU","                     -    $","2016-10-18","2016-04-01",112500,null,null,null,null,null,null,null,null,null,null,null,"                                              -    $","                                                              -    $",null,"QC-Québec","Oui",15,357.04407099999997,0,"Non","Oui",0,null,0,null,0,null,0,null,0,null,null,null,null,null,null,null,null,null,null,null,null,null,null,{"$f":"IF(SUM(AI558:BD558)=0,0,(Y558/SUMIF($AI$20:$BD$20,\"1\",AI558:BD558)))","v":0}]
[535,"Implantation","Sobeys Québec inc.","Réfrigération CO2 avec récupération de chaleur",1,"08-Abitibi-Témiscamingue","Rouyn-Noranda","TE","SU","                     -    $","2016-10-18","2016-04-01",112500,null,null,null,null,null,null,null,null,null,null,null,"                                              -    $","                                                              -    $",null,"QC-Québec","Oui",15,387.61553600000002,0,"Non","Oui",0,null,0,null,0,null,79.429413199999999,null,192.74870899999999,null,null,null,null,null,null,null,null,null,null,null,null,null,null,{"$f":"IF(SUM(AI559:BD559)=0,0,(Y559/SUMIF($AI$20:$BD$20,\"1\",AI559:BD559)))","v":{"$error":"#VALUE!"}}]
[536,"Implantation","Sobeys Québec inc.","Réfrigération CO2 avec récupération de chaleur (89056)",1,"04-Mauricie","Trois-Rivières","AC","SU","                     -    $","2016-10-18","2018-06-19",112500,null,null,null,null,null,null,null,null,null,null,null,"                                              -    $","                                                              -    $",null,"QC-Québec","Oui",15,310.83735000000001,0,"Non","Oui",0,null,0,null,0,null,0,null,0,null,null,null,null,null,null,null,null,null,null,null,null,null,null,{"$f":"IF(SUM(AI560:BD560)=0,0,(Y560/SUMIF($AI$20:$BD$20,\"1\",AI560:BD560)))","v":0}]
[537,"Implantation","Sobeys Québec inc.","Réfrigération CO2 avec récupération de chaleur (8557)",1,"08-Abitibi-Témiscamingue","Val-d'Or","AC","SU","                     -    $","2016-10-18","2019-02-28",112500,null,null,null,null,null,null,null,null,null,null,null,"                                              -    $","                                                              -    $",null,"QC-Québec","Oui",15,374.91666099999998,0,"Non","Oui",0,null,0,null,0,null,0,null,0,null,null,null,null,null,null,null,null,null,null,null,null,null,null,{"$f":"IF(SUM(AI561:BD561)=0,0,(Y561/SUMIF($AI$20:$BD$20,\"1\",AI561:BD561)))","v":0}]
[538,"Implantation","Sobeys Québec inc.","Réfrigération CO2 avec récupération de chaleur (8341)",1,"16-Montérégie","Saint-Bruno-de-Montarville","AC","SU","                     -    $","2016-10-18","2018-09-18",112500,null,null,null,null,null,null,null,null,null,null,null,"                                              -    $","                                                              -    $",null,"QC-Québec","Oui",15,379.35618499999998,0,"Non","Oui",0,null,0,null,0,null,0,null,0,null,null,null,null,null,null,null,null,null,null,null,null,null,null,{"$f":"IF(SUM(AI562:BD562)=0,0,(Y562/SUMIF($AI$20:$BD$20,\"1\",AI562:BD562)))","v":0}]
[539,"Implantation","Sobeys Québec inc.","Réfrigération CO2 avec récupération de chaleur (8113)",1,"16-Montérégie","Saint-Jean-sur-Richelieu","AC","SU","                     -    $","2016-11-15","2020-05-15",112500,null,null,null,null,null,null,null,null,null,null,null,null,"                                                              -    $",null,"QC-Québec","Oui",15,377.47744499999999,0,"Non","Oui",0,null,0,null,0,null,0,null,0,null,null,null,null,null,null,null,null,null,null,null,null,null,null,{"$f":"IF(SUM(AI563:BD563)=0,0,(Y563/SUMIF($AI$20:$BD$20,\"1\",AI563:BD563)))","v":0}]
[540,"Implantation","Sobeys Québec inc.","Réfrigération CO2 avec récupération de chaleur (8095)",1,"06-Montréal","Montréal","AN","SU","                     -    $","2016-11-15","2018-09-21",37500,null,null,null,null,null,null,null,null,null,null,null,null,"                                                              -    $",null,"QC-Québec","Oui",15,173.54311100000001,0,"Non","Oui",null,null,null,null,null,null,null,null,null,null,null,null,null,null,null,null,null,null,null,null,null,null,null,{"$f":"IF(SUM(AI564:BD564)=0,0,(Y564/SUMIF($AI$20:$BD$20,\"1\",AI564:BD564)))","v":0}]
[541,"Implantation","Sobeys Québec inc.","Réfrigération CO2 avec récupération de chaleur",1,"14-Lanaudière","Saint-Lin--Laurentides","AC","SU","                     -    $","2016-11-15","2019-02-21",75000,null,null,null,null,null,null,null,null,null,null,null,"                                              -    $","                                                              -    $",null,"QC-Québec","Oui",15,320.77404000000001,0,"Non","Oui",0,null,0,null,0,null,0,null,0,null,null,null,null,null,null,null,null,null,null,null,null,null,null,{"$f":"IF(SUM(AI565:BD565)=0,0,(Y565/SUMIF($AI$20:$BD$20,\"1\",AI565:BD565)))","v":0}]
[542,"Implantation","Sobeys Québec inc.","Réfrigération CO2 avec récupération de chaleur (8046)",1,"05-Estrie","Coaticook","AC","SU","                     -    $","2016-11-15","2018-06-18",75000,null,null,null,null,null,null,null,null,null,null,null,"                                              -    $","                                                              -    $",null,"QC-Québec","Oui",15,315.58445599999999,0,"Non","Oui",0,null,0,null,0,null,0,null,0,null,null,null,null,null,null,null,null,null,null,null,null,null,null,{"$f":"IF(SUM(AI566:BD566)=0,0,(Y566/SUMIF($AI$20:$BD$20,\"1\",AI566:BD566)))","v":0}]
[543,"Implantation","Metro Richelieu inc.","Réfrigération CO2 avec récupération de chaleur - Super C - Baie St-Paul",1,"03-Capitale-Nationale","Baie-Saint-Paul","AC","SU","                     -    $","2018-02-02","2017-12-29",110667.16,null,null,null,null,null,null,null,null,null,null,null,"                                              -    $","                                                              -    $",null,"QC-Québec","Oui",15,2.08619376,0,"Non","Oui",0,null,0,null,0,null,0,null,0,null,null,null,null,null,null,null,null,null,null,null,null,null,null,{"$f":"IF(SUM(AI567:BD567)=0,0,(Y567/SUMIF($AI$20:$BD$20,\"1\",AI567:BD567)))","v":0}]
[544,"Implantation","Metro Richelieu inc.","Réfrigération CO2 avec récupération de chaleur - Metro Drummondville",1,"17-Centre-du-Québec","Drummondville","RE","SU",23074.33,null,"2018-04-29",134398.72,null,null,null,11537.17,5768.58,5768.58,null,null,null,null,null,null,23074.33,null,"QC-Québec","Oui",15,138.94323800000001,0,"Non","Oui",0,null,0,null,0,null,0,null,0,null,null,null,null,null,null,null,null,null,null,null,null,null,null,{"$f":"IF(SUM(AI568:BD568)=0,0,(Y568/SUMIF($AI$20:$BD$20,\"1\",AI568:BD568)))","v":0}]
[545,"Implantation","Ville de Kirkland","Remplacement du système de réfrigération et amélioration de l’efficacité énergétique du complexe",1,"06-Montréal","Kirkland","AC","SU",82366.81,"2017-05-29","2018-08-27",284610,null,null,null,null,60801.95,21564.86,null,null,null,null,null,60801.95,82366.81,null,"QC-Québec","Oui",25,146.639567,0,"Non","Oui",0,null,0,null,0,null,0,null,0,null,null,null,null,null,null,null,null,null,null,null,null,null,null,{"$f":"IF(SUM(AI569:BD569)=0,0,(Y569/SUMIF($AI$20:$BD$20,\"1\",AI569:BD569)))","v":0}]
[546,"Implantation","Sobeys Québec inc.","Réfrigération CO2 avec récupération de chaleur (8188)",1,"03-Capitale-Nationale","Québec","AC","SU","                     -    $","2017-06-14","2018-08-31",112500,null,null,null,null,null,null,null,null,null,null,null,null,"                                                              -    $",null,"QC-Québec","Oui",13.974554100000001,220.46512899999999,0,"Non","Oui",0,null,0,null,0,null,0,null,0,null,null,null,null,null,null,null,null,null,null,null,null,null,null,{"$f":"IF(SUM(AI570:BD570)=0,0,(Y570/SUMIF($AI$20:$BD$20,\"1\",AI570:BD570)))","v":0}]
[547,"Implantation","Sobeys Québec inc.","Réfrigération CO2 avec récupération de chaleur (08092)",1,"16-Montérégie","Cowansville","AC","SU","                     -    $","2017-06-16","2018-08-31",112500,null,null,null,null,null,null,null,null,null,null,null,"                                              -    $","                                                              -    $",null,"QC-Québec","Oui",14.0334158,333.23297200000002,0,"Non","Oui",0,null,0,null,0,null,0,null,0,null,null,null,null,null,null,null,null,null,null,null,null,null,null,{"$f":"IF(SUM(AI571:BD571)=0,0,(Y571/SUMIF($AI$20:$BD$20,\"1\",AI571:BD571)))","v":0}]
[548,"Implantation","Sobeys Québec inc.","Réfrigération CO2 avec récupération de chaleur (134)",1,"03-Capitale-Nationale","Baie-Saint-Paul","AC","SU","                     -    $","2017-07-03","2018-08-31","                                -    $",null,null,null,null,null,null,null,null,null,null,null,"                                              -    $","                                                              -    $",null,"QC-Québec","Oui",14.955758100000001,0,3.3500435300000002,"Non","Oui",0,null,0,null,0,null,0,null,0,null,null,null,null,null,null,null,null,null,null,null,null,null,null,{"$f":"IF(SUM(AI572:BD572)=0,0,(Y572/SUMIF($AI$20:$BD$20,\"1\",AI572:BD572)))","v":0}]
[549,"Implantation","Metro Richelieu inc.","Système de réfrigération CO2 avec récupération de chaleur - Super C St-Hyacinthe",1,"16-Montérégie","Saint-Hyacinthe","RE","SU","                     -    $",null,"2018-05-29",917000,null,null,null,null,null,null,null,null,null,null,null,null,"                                                              -    $",null,"QC-Québec","Oui",15,163.47908100000001,0,"Non","Oui",0,null,0,null,0,null,0,null,0,null,null,null,null,null,null,null,null,null,null,null,null,null,null,{"$f":"IF(SUM(AI573:BD573)=0,0,(Y573/SUMIF($AI$20:$BD$20,\"1\",AI573:BD573)))","v":0}]
[550,"Implantation","Sobeys Québec inc.","Réfrigération CO2 avec récupération de chaleur (88029)",1,"16-Montérégie","Carignan","AC","SU","                     -    $","2017-06-14","2018-06-20",112500,null,null,null,null,null,null,null,null,null,null,null,"                                              -    $","                                                              -    $",null,"QC-Québec","Oui",15,471.51872600000002,0,"Non","Oui",0,null,0,null,0,null,0,null,0,null,null,null,null,null,null,null,null,null,null,null,null,null,null,{"$f":"IF(SUM(AI574:BD574)=0,0,(Y574/SUMIF($AI$20:$BD$20,\"1\",AI574:BD574)))","v":0}]
[551,"Implantation","Sobeys Québec inc.","Réfrigération CO2 avec récupération de chaleur (8340)",1,"04-Mauricie","Shawinigan","AC","SU","                     -    $","2017-06-14","2018-06-18",75000,null,null,null,null,null,null,null,null,null,null,null,"                                              -    $","                                                              -    $",null,"QC-Québec","Oui",15,213.89407399999999,0,"Non","Oui",0,null,0,null,0,null,0,null,0,null,null,null,null,null,null,null,null,null,null,null,null,null,null,{"$f":"IF(SUM(AI575:BD575)=0,0,(Y575/SUMIF($AI$20:$BD$20,\"1\",AI575:BD575)))","v":0}]
[552,"Implantation","Michal inc.","Agrandissement Centre de distribution et entrepôt réfrigéré de Michal",1,"06-Montréal","Montréal","TE","SU","                     -    $","2017-09-13","2018-04-25",27000,null,null,null,null,null,null,null,null,null,null,null,"                                              -    $","                                                              -    $",null,"QC-Québec","Oui",25,0.24675839999999999,0,"Non","Oui",0,null,0,null,0,null,0,null,5.258786E-2,null,null,null,null,null,null,null,null,null,null,null,null,null,null,{"$f":"IF(SUM(AI576:BD576)=0,0,(Y576/SUMIF($AI$20:$BD$20,\"1\",AI576:BD576)))","v":{"$error":"#VALUE!"}}]
[553,"Implantation","Sobeys Québec inc.","Réfrigération CO2 avec récupération de chaleur (88093)",1,"06-Montréal","Montréal","AC","SU","                     -    $","2017-12-05","2019-05-13",112500,null,null,null,null,null,null,null,null,null,null,null,null,"                                                              -    $",null,"QC-Québec","Oui",15,347.37793199999999,0,"Non","Oui",0,null,0,null,0,null,0,null,0,null,null,null,null,null,null,null,null,null,null,null,null,null,null,{"$f":"IF(SUM(AI577:BD577)=0,0,(Y577/SUMIF($AI$20:$BD$20,\"1\",AI577:BD577)))","v":0}]
[554,"Implantation","Distribution Alimentaire Aubut inc.","Système de réfrigération au CO2 avec récupération de chaleur",1,"13-Laval","Laval","TE","SU","                     -    $","2017-11-22","2018-05-25",57380,null,null,null,null,null,null,null,null,null,null,null,"                                              -    $","                                                              -    $",null,"QC-Québec","Oui",29.4968529,151.1456,0,"Non","Oui",0,null,0,null,0,null,0,null,27.049280899999999,null,null,null,null,null,null,null,null,null,null,null,null,null,null,{"$f":"IF(SUM(AI578:BD578)=0,0,(Y578/SUMIF($AI$20:$BD$20,\"1\",AI578:BD578)))","v":{"$error":"#VALUE!"}}]
[555,"Implantation","Complexe Sportif Saint-Raphaël","Implantation d'une système de réfrigération au CO2",1,"06-Montréal","Montréal","TE","SU","                     -    $","2017-12-21","2018-04-06",252000,null,null,null,null,null,null,null,null,null,null,null,"                                              -    $","                                                              -    $",null,"QC-Québec","Oui",24.819625899999998,3.06,0,"Non","Oui",0,null,0,null,0,null,0,null,0.41385245999999998,null,null,null,null,null,null,null,null,null,null,null,null,null,null,{"$f":"IF(SUM(AI579:BD579)=0,0,(Y579/SUMIF($AI$20:$BD$20,\"1\",AI579:BD579)))","v":{"$error":"#VALUE!"}}]
[556,"Implantation","Sobeys Québec inc.","Réfrigération CO2 avec récupération de chaleur (075016)",1,"06-Montréal","Montréal","AC","SU","                     -    $","2018-02-02","2020-09-29",75000,null,null,null,null,null,null,null,null,null,null,null,null,"                                                              -    $",null,"QC-Québec","Oui",15,295.626057,0,"Non","Oui",0,null,0,null,0,null,0,null,0,null,null,null,null,null,null,null,null,null,null,null,null,null,null,{"$f":"IF(SUM(AI580:BD580)=0,0,(Y580/SUMIF($AI$20:$BD$20,\"1\",AI580:BD580)))","v":0}]
[557,"Implantation","Sobeys Québec inc.","Réfrigération CO2 avec récupération de chaleur (000294)",1,"06-Montréal","Montréal","AC","SU","                     -    $","2018-03-02","2019-05-28",75000,null,null,null,null,null,null,null,null,null,null,null,null,"                                                              -    $",null,"QC-Québec","Oui",15,251.96916200000001,0,"Non","Oui",0,null,0,null,0,null,0,null,0,null,null,null,null,null,null,null,null,null,null,null,null,null,null,{"$f":"IF(SUM(AI581:BD581)=0,0,(Y581/SUMIF($AI$20:$BD$20,\"1\",AI581:BD581)))","v":0}]
[558,"Implantation","Metro Richelieu inc.","Super C Galerie Aylmer",1,"07-Outaouais","Gatineau","RE","SU","                     -    $",null,"2018-08-30",1394400,null,null,null,null,null,null,null,null,null,null,null,null,"                                                              -    $",null,"QC-Québec","Oui",20,407.56340799999998,0,"Non","Oui",0,null,0,null,0,null,0,null,0,null,null,null,null,null,null,null,null,null,null,null,null,null,null,{"$f":"IF(SUM(AI582:BD582)=0,0,(Y582/SUMIF($AI$20:$BD$20,\"1\",AI582:BD582)))","v":0}]
[559,"Implantation","Metro Richelieu inc.","Réfrigération CO2 avec récupération de chaleur",1,"07-Outaouais","Gatineau","RE","SU","                     -    $",null,"2018-08-30",114000,null,null,null,null,null,null,null,null,null,null,null,null,"                                                              -    $",null,"QC-Québec","Oui",16.013166399999999,671.26041799999996,0,"Non","Oui",0,null,0,null,0,null,0,null,0,null,null,null,null,null,null,null,null,null,null,null,null,null,null,{"$f":"IF(SUM(AI583:BD583)=0,0,(Y583/SUMIF($AI$20:$BD$20,\"1\",AI583:BD583)))","v":0}]
[560,"Implantation","Sobeys Québec inc.","Réfrigération CO2 avec récupération de chaleur (008476)",1,"07-Outaouais","Gatineau","RE","SU","                     -    $",null,"2018-03-14",150000,null,null,null,null,null,null,null,null,null,null,null,null,"                                                              -    $",null,"QC-Québec","Oui",14.9673529,5.3014861399999997,0,"Non","Oui",0,null,0,null,0,null,0,null,0,null,null,null,null,null,null,null,null,null,null,null,null,null,null,{"$f":"IF(SUM(AI584:BD584)=0,0,(Y584/SUMIF($AI$20:$BD$20,\"1\",AI584:BD584)))","v":0}]
[561,"Implantation","Sobeys Québec inc.","Réfrigération CO2 avec récupération de chaleur (089101)",1,"03-Capitale-Nationale","Québec","AC","SU","                     -    $","2017-11-20","2020-08-31",75000,null,null,null,null,null,null,null,null,null,null,null,null,"                                                              -    $",null,"QC-Québec","Oui",16.1095638,128.50738999999999,0,"Non","Oui",0,null,0,null,0,null,0,null,0,null,null,null,null,null,null,null,null,null,null,null,null,null,null,{"$f":"IF(SUM(AI585:BD585)=0,0,(Y585/SUMIF($AI$20:$BD$20,\"1\",AI585:BD585)))","v":0}]
[562,"Implantation","Avril","Avril Supermarché-Laval",1,"13-Laval","Laval","RE","SU",31200.28,null,"2019-03-29",120000,null,null,null,null,23400.21,7800.08,null,null,null,null,null,null,31200.28,null,"QC-Québec","Oui",15,90.687359999999998,0,"Non","Oui",0,null,0,null,0,null,0,null,0,null,null,null,null,null,null,null,null,null,null,null,null,null,null,{"$f":"IF(SUM(AI586:BD586)=0,0,(Y586/SUMIF($AI$20:$BD$20,\"1\",AI586:BD586)))","v":0}]
[563,"Implantation","Sobeys Québec inc.","Réfrigération CO2 avec récupération de chaleur (089130)",1,"06-Montréal","Montréal","RE","SU","                     -    $",null,"2019-08-02",100000,null,null,null,null,null,null,null,null,null,null,null,null,"                                                              -    $",null,"QC-Québec","Oui",15,338.21488499999998,0,"Non","Oui",0,null,0,null,0,null,0,null,0,null,null,null,null,null,null,null,null,null,null,null,null,null,null,{"$f":"IF(SUM(AI587:BD587)=0,0,(Y587/SUMIF($AI$20:$BD$20,\"1\",AI587:BD587)))","v":0}]
[564,"Implantation","Sobeys Québec inc.","Réfrigération CO2 avec récupération de chaleur (088077)",1,"06-Montréal","Montréal","RE","SU","                     -    $",null,"2019-03-01",100000,null,null,null,null,null,null,null,null,null,null,null,null,"                                                              -    $",null,"QC-Québec","Oui",15,338.214945,0,"Non","Oui",0,null,0,null,0,null,0,null,0,null,null,null,null,null,null,null,null,null,null,null,null,null,null,{"$f":"IF(SUM(AI588:BD588)=0,0,(Y588/SUMIF($AI$20:$BD$20,\"1\",AI588:BD588)))","v":0}]
[565,"Implantation","Sobeys Québec inc.","Réfrigération CO2 avec récupération de chaleur (008263)",1,"16-Montérégie","Acton Vale","RE","SU","                     -    $",null,"2019-08-02",100000,null,null,null,null,null,null,null,null,null,null,null,null,"                                                              -    $",null,"QC-Québec","Oui",15,397.10434900000001,0,"Non","Oui",0,null,0,null,0,null,0,null,0,null,null,null,null,null,null,null,null,null,null,null,null,null,null,{"$f":"IF(SUM(AI589:BD589)=0,0,(Y589/SUMIF($AI$20:$BD$20,\"1\",AI589:BD589)))","v":0}]
[566,"Implantation","Sobeys Québec inc.","Réfrigération CO2 avec récupération de chaleur (08123)",1,"14-Lanaudière","Mascouche","RE","SU","                     -    $",null,"2020-08-01",150000,null,null,null,null,null,null,null,null,null,null,null,null,"                                                              -    $",null,"QC-Québec","Oui",15,448.87144699999999,0,"Non","Oui",0,null,0,null,0,null,0,null,0,null,null,null,null,null,null,null,null,null,null,null,null,null,null,{"$f":"IF(SUM(AI590:BD590)=0,0,(Y590/SUMIF($AI$20:$BD$20,\"1\",AI590:BD590)))","v":0}]
[567,"Implantation","Sobeys Québec inc.","Réfrigération CO2 avec récupération de chaleur (008108)",1,"06-Montréal","Côte-Saint-Luc","AC","SU","                     -    $","2018-05-15","2019-08-02",75000,null,null,null,null,null,null,null,null,null,null,null,null,"                                                              -    $",null,"QC-Québec","Oui",15,295.84181699999999,0,"Non","Oui",0,null,0,null,0,null,0,null,0,null,null,null,null,null,null,null,null,null,null,null,null,null,null,{"$f":"IF(SUM(AI591:BD591)=0,0,(Y591/SUMIF($AI$20:$BD$20,\"1\",AI591:BD591)))","v":0}]
[568,"Implantation","Sobeys Québec inc.","Réfrigération CO2 avec récupération de chaleur (000521)",1,"16-Montérégie","Longueuil","RE","SU","                     -    $",null,"2019-08-04",100000,null,null,null,null,null,null,null,null,null,null,null,null,"                                                              -    $",null,"QC-Québec","Oui",15,426.30763100000001,0,"Non","Oui",0,null,0,null,0,null,0,null,0,null,null,null,null,null,null,null,null,null,null,null,null,null,null,{"$f":"IF(SUM(AI592:BD592)=0,0,(Y592/SUMIF($AI$20:$BD$20,\"1\",AI592:BD592)))","v":0}]
[569,"Implantation","Sobeys Québec inc.","Réfrigération CO2 avec récupération de chaleur (000408)",1,"12-Chaudière-Appalaches","Saint-Jean-Port-Joli","RE","SU","                     -    $",null,"2019-08-02",100000,null,null,null,null,null,null,null,null,null,null,null,null,"                                                              -    $",null,"QC-Québec","Oui",15,3.5849923700000002,0,"Non","Oui",0,null,0,null,0,null,0,null,0,null,null,null,null,null,null,null,null,null,null,null,null,null,null,{"$f":"IF(SUM(AI593:BD593)=0,0,(Y593/SUMIF($AI$20:$BD$20,\"1\",AI593:BD593)))","v":0}]
[570,"Implantation","Sobeys Québec inc.","#000110 - St-Jean-sur-Richelieu (Iberville)",1,"16-Montérégie","Saint-Jean-sur-Richelieu","RE","SU","                     -    $",null,"2019-08-21",100000,null,null,null,null,null,null,null,null,null,null,null,null,"                                                              -    $",null,"QC-Québec","Oui",15,338.214945,0,"Non","Oui",0,null,0,null,0,null,0,null,0,null,null,null,null,null,null,null,null,null,null,null,null,null,null,{"$f":"IF(SUM(AI594:BD594)=0,0,(Y594/SUMIF($AI$20:$BD$20,\"1\",AI594:BD594)))","v":0}]
[571,"Implantation","Avril","Avril-Centre distribution Granby",1,"16-Montérégie","Granby","RE","SU",107699.34,null,"2019-03-30",335400,null,null,null,null,80774.509999999995,26924.83,null,null,null,null,null,null,107699.34,null,"QC-Québec","Oui",15,188.93199999999999,0,"Non","Oui",0,null,0,null,0,null,0,null,0,null,null,null,null,null,null,null,null,null,null,null,null,null,null,{"$f":"IF(SUM(AI595:BD595)=0,0,(Y595/SUMIF($AI$20:$BD$20,\"1\",AI595:BD595)))","v":0}]
[572,"Implantation","Ville de Dorval","Projet d'efficacité énergétique à la ville de Dorval",1,"06-Montréal","Dorval","RE","SU",127783.06,null,"2019-09-29",491400,null,null,null,null,null,95837.29,31945.77,null,null,null,null,null,127783.06,null,"QC-Québec","Oui",43.994037599999999,204.452755,0,"Non","Oui",0,null,0,null,0,null,0,null,0,null,null,null,null,null,null,null,null,null,null,null,null,null,null,{"$f":"IF(SUM(AI596:BD596)=0,0,(Y596/SUMIF($AI$20:$BD$20,\"1\",AI596:BD596)))","v":0}]
[573,"Implantation","Ville de Dorval","Projet d'efficacité énergétique à la ville de Dorval",1,"06-Montréal","Dorval","RE","SU",116075.49,null,"2019-09-29",466404,null,null,null,null,null,87056.6,29018.880000000001,null,null,null,null,null,116075.49,null,"QC-Québec","Oui",40.4076576,185.722048,0,"Non","Oui",0,null,0,null,0,null,0,null,0,null,null,null,null,null,null,null,null,null,null,null,null,null,null,{"$f":"IF(SUM(AI597:BD597)=0,0,(Y597/SUMIF($AI$20:$BD$20,\"1\",AI597:BD597)))","v":0}]
[574,"Implantation","Sobeys Québec inc.","#008012 - IGA St-Jérôme bld. du Grand Héron",1,"15-Laurentides","Saint-Jérôme","RE","SU","                     -    $",null,"2018-08-31",150000,null,null,null,null,null,null,null,null,null,null,null,null,"                                                              -    $",null,"QC-Québec","Oui",15,451.88572799999997,0,"Non","Oui",0,null,0,null,0,null,0,null,0,null,null,null,null,null,null,null,null,null,null,null,null,null,null,{"$f":"IF(SUM(AI598:BD598)=0,0,(Y598/SUMIF($AI$20:$BD$20,\"1\",AI598:BD598)))","v":0}]
[575,"Implantation","Sobeys Québec inc.","Réfrigération CO2 avec récupération de chaleur (008608)",1,"06-Montréal","Montréal","AP","SU","                     -    $",null,"2019-07-03",75000,null,null,null,null,null,null,null,null,null,null,null,null,"                                                              -    $",null,"QC-Québec","Oui",13.6656952,295.84181699999999,0,"Non","Oui",0,null,0,null,0,null,0,null,0,null,null,null,null,null,null,null,null,null,null,null,null,null,null,{"$f":"IF(SUM(AI599:BD599)=0,0,(Y599/SUMIF($AI$20:$BD$20,\"1\",AI599:BD599)))","v":0}]
[576,"Implantation","Sobeys Québec inc.","#075022 - IGA Duke",1,"06-Montréal","Montréal","RE","SU","                     -    $",null,"2019-12-31",100000,null,null,null,null,null,null,null,null,null,null,null,null,"                                                              -    $",null,"QC-Québec","Oui",15,271.788884,0,"Non","Oui",0,null,0,null,0,null,0,null,0,null,null,null,null,null,null,null,null,null,null,null,null,null,null,{"$f":"IF(SUM(AI600:BD600)=0,0,(Y600/SUMIF($AI$20:$BD$20,\"1\",AI600:BD600)))","v":0}]
[577,"Implantation","Metro Richelieu inc.","Réfrigération CO2 avec récupération de chaleur (Super C Mont St-Jacques)",1,"06-Montréal","Montréal","RE","SU","                     -    $",null,"2018-08-30",929000,null,null,null,null,null,null,null,null,null,null,null,null,"                                                              -    $",null,"QC-Québec","Oui",20.737081499999999,125.432573,0,"Non","Oui",0,null,0,null,0,null,0,null,0,null,null,null,null,null,null,null,null,null,null,null,null,null,null,{"$f":"IF(SUM(AI601:BD601)=0,0,(Y601/SUMIF($AI$20:$BD$20,\"1\",AI601:BD601)))","v":0}]
[578,"Implantation","Metro Richelieu inc.","Réfrigération et récupération de chaleur",1,"03-Capitale-Nationale","Québec","IN","SU",64769.43,null,"2018-11-30",386794.9,null,null,null,null,16192.36,48577.07,null,null,null,null,null,null,64769.43,null,"QC-Québec","Oui",25,406.40675499999998,0,"Non","Oui",0,null,0,null,0,null,0,null,0,null,null,null,null,null,null,null,null,null,null,null,null,null,null,{"$f":"IF(SUM(AI602:BD602)=0,0,(Y602/SUMIF($AI$20:$BD$20,\"1\",AI602:BD602)))","v":0}]
[579,"Implantation","Metro Richelieu inc.","Metro Joseph Renaud - Anjou",1,"06-Montréal","Montréal","RE","SU",58645.7,null,"2018-11-30",200000,null,null,null,null,null,58645.7,null,null,null,null,null,null,58645.7,null,"QC-Québec","Oui",15,93.832902000000004,0,"Non","Oui",0,null,0,null,0,null,0,null,0,null,null,null,null,null,null,null,null,null,null,null,null,null,null,{"$f":"IF(SUM(AI603:BD603)=0,0,(Y603/SUMIF($AI$20:$BD$20,\"1\",AI603:BD603)))","v":0}]
[580,"Implantation","Ivanhoé Cambridge inc.","Re-Cx Complexe Les Ailes",1,"06-Montréal","Montréal","TE","SU","                     -    $","2015-01-27","2016-06-28",210784,null,null,null,null,null,null,null,null,null,null,null,"                                              -    $","                                                              -    $",null,"QC-Québec","Oui",0,0,0,"Non","Oui",null,null,null,null,null,null,null,null,null,null,null,null,null,null,null,null,null,null,null,null,null,null,null,{"$f":"IF(SUM(AI604:BD604)=0,0,(Y604/SUMIF($AI$20:$BD$20,\"1\",AI604:BD604)))","v":0}]
[581,"Implantation","Ville de Montréal","Mise aux normes de l'Aréna Fleury (5858)",1,"06-Montréal","Montréal","AC","SU","                     -    $","2017-09-20","2019-09-30",282681,null,null,null,null,null,null,null,null,null,null,null,null,"                                                              -    $",null,"QC-Québec","Oui",25,19.2994038,0,"Non","Oui",0,null,0,null,0,null,0,null,0,null,null,null,null,null,null,null,null,null,null,null,null,null,null,{"$f":"IF(SUM(AI605:BD605)=0,0,(Y605/SUMIF($AI$20:$BD$20,\"1\",AI605:BD605)))","v":0}]
[582,"Implantation","Centre de Tri Bouffard inc.","Chauffage du bâtiment",1,"01-Bas-Saint-Laurent","Saint-Joseph-de-Lepage","AN","SU","                     -    $",null,"2017-09-30",37693,null,null,null,null,null,null,null,null,null,null,null,null,"                                                              -    $",null,"QC-Québec","Oui",25,0,0,"Non","Oui",null,null,null,null,null,null,null,null,null,null,null,null,null,null,null,null,null,null,null,null,null,null,null,{"$f":"IF(SUM(AI606:BD606)=0,0,(Y606/SUMIF($AI$20:$BD$20,\"1\",AI606:BD606)))","v":0}]
[583,null,null,null,null,null,null,null,null,null,null,null,null,null,null,null,null,null,null,null,null,null,null,null,{"$f":"SUM(N607:R607)","v":0},{"$f":"SUM(N607:X607)","v":0},null,null,null,null,null,null,null,null,null,null,null,null,null,null,null,null,null,null,null,null,null,null,null,null,null,null,null,null,null,null,null,{"$f":"IF(SUM(AI607:BD607)=0,0,(Y607/SUMIF($AI$20:$BD$20,\"1\",AI607:BD607)))","v":0}]
[584,null,null,null,null,null,null,null,null,null,null,null,null,null,null,null,null,null,null,null,null,null,null,null,{"$f":"SUM(N608:R608)","v":0},{"$f":"SUM(N608:X608)","v":0},null,null,null,null,null,null,null,null,null,null,null,null,null,null,null,null,null,null,null,null,null,null,null,null,null,null,null,null,null,null,null,{"$f":"IF(SUM(AI608:BD608)=0,0,(Y608/SUMIF($AI$20:$BD$20,\"1\",AI608:BD608)))","v":0}]
[585,null,null,null,null,null,null,null,null,null,null,null,null,null,null,null,null,null,null,null,null,null,null,null,{"$f":"SUM(N609:R609)","v":0},{"$f":"SUM(N609:X609)","v":0},null,null,null,null,null,null,null,null,null,null,null,null,null,null,null,null,null,null,null,null,null,null,null,null,null,null,null,null,null,null,null,{"$f":"IF(SUM(AI609:BD609)=0,0,(Y609/SUMIF($AI$20:$BD$20,\"1\",AI609:BD609)))","v":0}]
[586,null,null,null,null,null,null,null,null,null,null,null,null,null,null,null,null,null,null,null,null,null,null,null,{"$f":"SUM(N610:R610)","v":0},{"$f":"SUM(N610:X610)","v":0},null,null,null,null,null,null,null,null,null,null,null,null,null,null,null,null,null,null,null,null,null,null,null,null,null,null,null,null,null,null,null,{"$f":"IF(SUM(AI610:BD610)=0,0,(Y610/SUMIF($AI$20:$BD$20,\"1\",AI610:BD610)))","v":0}]
[587,null,null,null,null,null,null,null,null,null,null,null,null,null,null,null,null,null,null,null,null,null,null,null,{"$f":"SUM(N611:R611)","v":0},{"$f":"SUM(N611:X611)","v":0},null,null,null,null,null,null,null,null,null,null,null,null,null,null,null,null,null,null,null,null,null,null,null,null,null,null,null,null,null,null,null,{"$f":"IF(SUM(AI611:BD611)=0,0,(Y611/SUMIF($AI$20:$BD$20,\"1\",AI611:BD611)))","v":0}]
[588,null,null,null,null,null,null,null,null,null,null,null,null,null,null,null,null,null,null,null,null,null,null,null,{"$f":"SUM(N612:R612)","v":0},{"$f":"SUM(N612:X612)","v":0},null,null,null,null,null,null,null,null,null,null,null,null,null,null,null,null,null,null,null,null,null,null,null,null,null,null,null,null,null,null,null,{"$f":"IF(SUM(AI612:BD612)=0,0,(Y612/SUMIF($AI$20:$BD$20,\"1\",AI612:BD612)))","v":0}]
[589,null,null,null,null,null,null,null,null,null,null,null,null,null,null,null,null,null,null,null,null,null,null,null,{"$f":"SUM(N613:R613)","v":0},{"$f":"SUM(N613:X613)","v":0},null,null,null,null,null,null,null,null,null,null,null,null,null,null,null,null,null,null,null,null,null,null,null,null,null,null,null,null,null,null,null,{"$f":"IF(SUM(AI613:BD613)=0,0,(Y613/SUMIF($AI$20:$BD$20,\"1\",AI613:BD613)))","v":0}]
[590,null,null,null,null,null,null,null,null,null,null,null,null,null,null,null,null,null,null,null,null,null,null,null,{"$f":"SUM(N614:R614)","v":0},{"$f":"SUM(N614:X614)","v":0},null,null,null,null,null,null,null,null,null,null,null,null,null,null,null,null,null,null,null,null,null,null,null,null,null,null,null,null,null,null,null,{"$f":"IF(SUM(AI614:BD614)=0,0,(Y614/SUMIF($AI$20:$BD$20,\"1\",AI614:BD614)))","v":0}]
[591,null,null,null,null,null,null,null,null,null,null,null,null,null,null,null,null,null,null,null,null,null,null,null,{"$f":"SUM(N615:R615)","v":0},{"$f":"SUM(N615:X615)","v":0},null,null,null,null,null,null,null,null,null,null,null,null,null,null,null,null,null,null,null,null,null,null,null,null,null,null,null,null,null,null,null,{"$f":"IF(SUM(AI615:BD615)=0,0,(Y615/SUMIF($AI$20:$BD$20,\"1\",AI615:BD615)))","v":0}]
[592,null,null,null,null,null,null,null,null,null,null,null,null,null,null,null,null,null,null,null,null,null,null,null,{"$f":"SUM(N616:R616)","v":0},{"$f":"SUM(N616:X616)","v":0},null,null,null,null,null,null,null,null,null,null,null,null,null,null,null,null,null,null,null,null,null,null,null,null,null,null,null,null,null,null,null,{"$f":"IF(SUM(AI616:BD616)=0,0,(Y616/SUMIF($AI$20:$BD$20,\"1\",AI616:BD616)))","v":0}]
[593,null,null,null,null,null,null,null,null,null,null,null,null,null,null,null,null,null,null,null,null,null,null,null,{"$f":"SUM(N617:R617)","v":0},{"$f":"SUM(N617:X617)","v":0},null,null,null,null,null,null,null,null,null,null,null,null,null,null,null,null,null,null,null,null,null,null,null,null,null,null,null,null,null,null,null,{"$f":"IF(SUM(AI617:BD617)=0,0,(Y617/SUMIF($AI$20:$BD$20,\"1\",AI617:BD617)))","v":0}]
[594,null,null,null,null,null,null,null,null,null,null,null,null,null,null,null,null,null,null,null,null,null,null,null,{"$f":"SUM(N618:R618)","v":0},{"$f":"SUM(N618:X618)","v":0},null,null,null,null,null,null,null,null,null,null,null,null,null,null,null,null,null,null,null,null,null,null,null,null,null,null,null,null,null,null,null,{"$f":"IF(SUM(AI618:BD618)=0,0,(Y618/SUMIF($AI$20:$BD$20,\"1\",AI618:BD618)))","v":0}]
[595,null,null,null,null,null,null,null,null,null,null,null,null,null,null,null,null,null,null,null,null,null,null,null,{"$f":"SUM(N619:R619)","v":0},{"$f":"SUM(N619:X619)","v":0},null,null,null,null,null,null,null,null,null,null,null,null,null,null,null,null,null,null,null,null,null,null,null,null,null,null,null,null,null,null,null,{"$f":"IF(SUM(AI619:BD619)=0,0,(Y619/SUMIF($AI$20:$BD$20,\"1\",AI619:BD619)))","v":0}]
[596,null,null,null,null,null,null,null,null,null,null,null,null,null,null,null,null,null,null,null,null,null,null,null,{"$f":"SUM(N620:R620)","v":0},{"$f":"SUM(N620:X620)","v":0},null,null,null,null,null,null,null,null,null,null,null,null,null,null,null,null,null,null,null,null,null,null,null,null,null,null,null,null,null,null,null,{"$f":"IF(SUM(AI620:BD620)=0,0,(Y620/SUMIF($AI$20:$BD$20,\"1\",AI620:BD620)))","v":0}]
[597,null,null,null,null,null,null,null,null,null,null,null,null,null,null,null,null,null,null,null,null,null,null,null,{"$f":"SUM(N621:R621)","v":0},{"$f":"SUM(N621:X621)","v":0},null,null,null,null,null,null,null,null,null,null,null,null,null,null,null,null,null,null,null,null,null,null,null,null,null,null,null,null,null,null,null,{"$f":"IF(SUM(AI621:BD621)=0,0,(Y621/SUMIF($AI$20:$BD$20,\"1\",AI621:BD621)))","v":0}]
[598,null,null,null,null,null,null,null,null,null,null,null,null,null,null,null,null,null,null,null,null,null,null,null,{"$f":"SUM(N622:R622)","v":0},{"$f":"SUM(N622:X622)","v":0},null,null,null,null,null,null,null,null,null,null,null,null,null,null,null,null,null,null,null,null,null,null,null,null,null,null,null,null,null,null,null,{"$f":"IF(SUM(AI622:BD622)=0,0,(Y622/SUMIF($AI$20:$BD$20,\"1\",AI622:BD622)))","v":0}]
[599,null,null,null,null,null,null,null,null,null,null,null,null,null,null,null,null,null,null,null,null,null,null,null,{"$f":"SUM(N623:R623)","v":0},{"$f":"SUM(N623:X623)","v":0},null,null,null,null,null,null,null,null,null,null,null,null,null,null,null,null,null,null,null,null,null,null,null,null,null,null,null,null,null,null,null,{"$f":"IF(SUM(AI623:BD623)=0,0,(Y623/SUMIF($AI$20:$BD$20,\"1\",AI623:BD623)))","v":0}]
[600,null,null,null,null,null,null,null,null,null,null,null,null,null,null,null,null,null,null,null,null,null,null,null,{"$f":"SUM(N624:R624)","v":0},{"$f":"SUM(N624:X624)","v":0},null,null,null,null,null,null,null,null,null,null,null,null,null,null,null,null,null,null,null,null,null,null,null,null,null,null,null,null,null,null,null,{"$f":"IF(SUM(AI624:BD624)=0,0,(Y624/SUMIF($AI$20:$BD$20,\"1\",AI624:BD624)))","v":0}]
[601,null,null,null,null,null,null,null,null,null,null,null,null,null,null,null,null,null,null,null,null,null,null,null,{"$f":"SUM(N625:R625)","v":0},{"$f":"SUM(N625:X625)","v":0},null,null,null,null,null,null,null,null,null,null,null,null,null,null,null,null,null,null,null,null,null,null,null,null,null,null,null,null,null,null,null,{"$f":"IF(SUM(AI625:BD625)=0,0,(Y625/SUMIF($AI$20:$BD$20,\"1\",AI625:BD625)))","v":0}]
[602,null,null,null,null,null,null,null,null,null,null,null,null,null,null,null,null,null,null,null,null,null,null,null,{"$f":"SUM(N626:R626)","v":0},{"$f":"SUM(N626:X626)","v":0},null,null,null,null,null,null,null,null,null,null,null,null,null,null,null,null,null,null,null,null,null,null,null,null,null,null,null,null,null,null,null,{"$f":"IF(SUM(AI626:BD626)=0,0,(Y626/SUMIF($AI$20:$BD$20,\"1\",AI626:BD626)))","v":0}]
[603,null,null,null,null,null,null,null,null,null,null,null,null,null,null,null,null,null,null,null,null,null,null,null,{"$f":"SUM(N627:R627)","v":0},{"$f":"SUM(N627:X627)","v":0},null,null,null,null,null,null,null,null,null,null,null,null,null,null,null,null,null,null,null,null,null,null,null,null,null,null,null,null,null,null,null,{"$f":"IF(SUM(AI627:BD627)=0,0,(Y627/SUMIF($AI$20:$BD$20,\"1\",AI627:BD627)))","v":0}]
[604,null,null,null,null,null,null,null,null,null,null,null,null,null,null,null,null,null,null,null,null,null,null,null,{"$f":"SUM(N628:R628)","v":0},{"$f":"SUM(N628:X628)","v":0},null,null,null,null,null,null,null,null,null,null,null,null,null,null,null,null,null,null,null,null,null,null,null,null,null,null,null,null,null,null,null,{"$f":"IF(SUM(AI628:BD628)=0,0,(Y628/SUMIF($AI$20:$BD$20,\"1\",AI628:BD628)))","v":0}]
[605,null,null,null,null,null,null,null,null,null,null,null,null,null,null,null,null,null,null,null,null,null,null,null,{"$f":"SUM(N629:R629)","v":0},{"$f":"SUM(N629:X629)","v":0},null,null,null,null,null,null,null,null,null,null,null,null,null,null,null,null,null,null,null,null,null,null,null,null,null,null,null,null,null,null,null,{"$f":"IF(SUM(AI629:BD629)=0,0,(Y629/SUMIF($AI$20:$BD$20,\"1\",AI629:BD629)))","v":0}]
[606,null,null,null,null,null,null,null,null,null,null,null,null,null,null,null,null,null,null,null,null,null,null,null,{"$f":"SUM(N630:R630)","v":0},{"$f":"SUM(N630:X630)","v":0},null,null,null,null,null,null,null,null,null,null,null,null,null,null,null,null,null,null,null,null,null,null,null,null,null,null,null,null,null,null,null,{"$f":"IF(SUM(AI630:BD630)=0,0,(Y630/SUMIF($AI$20:$BD$20,\"1\",AI630:BD630)))","v":0}]
[607,null,null,null,null,null,null,null,null,null,null,null,null,null,null,null,null,null,null,null,null,null,null,null,{"$f":"SUM(N631:R631)","v":0},{"$f":"SUM(N631:X631)","v":0},null,null,null,null,null,null,null,null,null,null,null,null,null,null,null,null,null,null,null,null,null,null,null,null,null,null,null,null,null,null,null,{"$f":"IF(SUM(AI631:BD631)=0,0,(Y631/SUMIF($AI$20:$BD$20,\"1\",AI631:BD631)))","v":0}]
[608,null,null,null,null,null,null,null,null,null,null,null,null,null,null,null,null,null,null,null,null,null,null,null,{"$f":"SUM(N632:R632)","v":0},{"$f":"SUM(N632:X632)","v":0},null,null,null,null,null,null,null,null,null,null,null,null,null,null,null,null,null,null,null,null,null,null,null,null,null,null,null,null,null,null,null,{"$f":"IF(SUM(AI632:BD632)=0,0,(Y632/SUMIF($AI$20:$BD$20,\"1\",AI632:BD632)))","v":0}]
[609,null,null,null,null,null,null,null,null,null,null,null,null,null,null,null,null,null,null,null,null,null,null,null,{"$f":"SUM(N633:R633)","v":0},{"$f":"SUM(N633:X633)","v":0},null,null,null,null,null,null,null,null,null,null,null,null,null,null,null,null,null,null,null,null,null,null,null,null,null,null,null,null,null,null,null,{"$f":"IF(SUM(AI633:BD633)=0,0,(Y633/SUMIF($AI$20:$BD$20,\"1\",AI633:BD633)))","v":0}]
[610,null,null,null,null,null,null,null,null,null,null,null,null,null,null,null,null,null,null,null,null,null,null,null,{"$f":"SUM(N634:R634)","v":0},{"$f":"SUM(N634:X634)","v":0},null,null,null,null,null,null,null,null,null,null,null,null,null,null,null,null,null,null,null,null,null,null,null,null,null,null,null,null,null,null,null,{"$f":"IF(SUM(AI634:BD634)=0,0,(Y634/SUMIF($AI$20:$BD$20,\"1\",AI634:BD634)))","v":0}]
[611,null,null,null,null,null,null,null,null,null,null,null,null,null,null,null,null,null,null,null,null,null,null,null,{"$f":"SUM(N635:R635)","v":0},{"$f":"SUM(N635:X635)","v":0},null,null,null,null,null,null,null,null,null,null,null,null,null,null,null,null,null,null,null,null,null,null,null,null,null,null,null,null,null,null,null,{"$f":"IF(SUM(AI635:BD635)=0,0,(Y635/SUMIF($AI$20:$BD$20,\"1\",AI635:BD635)))","v":0}]
[612,null,null,null,null,null,null,null,null,null,null,null,null,null,null,null,null,null,null,null,null,null,null,null,{"$f":"SUM(N636:R636)","v":0},{"$f":"SUM(N636:X636)","v":0},null,null,null,null,null,null,null,null,null,null,null,null,null,null,null,null,null,null,null,null,null,null,null,null,null,null,null,null,null,null,null,{"$f":"IF(SUM(AI636:BD636)=0,0,(Y636/SUMIF($AI$20:$BD$20,\"1\",AI636:BD636)))","v":0}]
[613,null,null,null,null,null,null,null,null,null,null,null,null,null,null,null,null,null,null,null,null,null,null,null,{"$f":"SUM(N637:R637)","v":0},{"$f":"SUM(N637:X637)","v":0},null,null,null,null,null,null,null,null,null,null,null,null,null,null,null,null,null,null,null,null,null,null,null,null,null,null,null,null,null,null,null,{"$f":"IF(SUM(AI637:BD637)=0,0,(Y637/SUMIF($AI$20:$BD$20,\"1\",AI637:BD637)))","v":0}]
[614,null,null,null,null,null,null,null,null,null,null,null,null,null,null,null,null,null,null,null,null,null,null,null,{"$f":"SUM(N638:R638)","v":0},{"$f":"SUM(N638:X638)","v":0},null,null,null,null,null,null,null,null,null,null,null,null,null,null,null,null,null,null,null,null,null,null,null,null,null,null,null,null,null,null,null,{"$f":"IF(SUM(AI638:BD638)=0,0,(Y638/SUMIF($AI$20:$BD$20,\"1\",AI638:BD638)))","v":0}]
[615,null,null,null,null,null,null,null,null,null,null,null,null,null,null,null,null,null,null,null,null,null,null,null,{"$f":"SUM(N639:R639)","v":0},{"$f":"SUM(N639:X639)","v":0},null,null,null,null,null,null,null,null,null,null,null,null,null,null,null,null,null,null,null,null,null,null,null,null,null,null,null,null,null,null,null,{"$f":"IF(SUM(AI639:BD639)=0,0,(Y639/SUMIF($AI$20:$BD$20,\"1\",AI639:BD639)))","v":0}]
[616,null,null,null,null,null,null,null,null,null,null,null,null,null,null,null,null,null,null,null,null,null,null,null,{"$f":"SUM(N640:R640)","v":0},{"$f":"SUM(N640:X640)","v":0},null,null,null,null,null,null,null,null,null,null,null,null,null,null,null,null,null,null,null,null,null,null,null,null,null,null,null,null,null,null,null,{"$f":"IF(SUM(AI640:BD640)=0,0,(Y640/SUMIF($AI$20:$BD$20,\"1\",AI640:BD640)))","v":0}]
[617,null,null,null,null,null,null,null,null,null,null,null,null,null,null,null,null,null,null,null,null,null,null,null,{"$f":"SUM(N641:R641)","v":0},{"$f":"SUM(N641:X641)","v":0},null,null,null,null,null,null,null,null,null,null,null,null,null,null,null,null,null,null,null,null,null,null,null,null,null,null,null,null,null,null,null,{"$f":"IF(SUM(AI641:BD641)=0,0,(Y641/SUMIF($AI$20:$BD$20,\"1\",AI641:BD641)))","v":0}]
[618,null,null,null,null,null,null,null,null,null,null,null,null,null,null,null,null,null,null,null,null,null,null,null,{"$f":"SUM(N642:R642)","v":0},{"$f":"SUM(N642:X642)","v":0},null,null,null,null,null,null,null,null,null,null,null,null,null,null,null,null,null,null,null,null,null,null,null,null,null,null,null,null,null,null,null,{"$f":"IF(SUM(AI642:BD642)=0,0,(Y642/SUMIF($AI$20:$BD$20,\"1\",AI642:BD642)))","v":0}]
[619,null,null,null,null,null,null,null,null,null,null,null,null,null,null,null,null,null,null,null,null,null,null,null,{"$f":"SUM(N643:R643)","v":0},{"$f":"SUM(N643:X643)","v":0},null,null,null,null,null,null,null,null,null,null,null,null,null,null,null,null,null,null,null,null,null,null,null,null,null,null,null,null,null,null,null,{"$f":"IF(SUM(AI643:BD643)=0,0,(Y643/SUMIF($AI$20:$BD$20,\"1\",AI643:BD643)))","v":0}]
[620,null,null,null,null,null,null,null,null,null,null,null,null,null,null,null,null,null,null,null,null,null,null,null,{"$f":"SUM(N644:R644)","v":0},{"$f":"SUM(N644:X644)","v":0},null,null,null,null,null,null,null,null,null,null,null,null,null,null,null,null,null,null,null,null,null,null,null,null,null,null,null,null,null,null,null,{"$f":"IF(SUM(AI644:BD644)=0,0,(Y644/SUMIF($AI$20:$BD$20,\"1\",AI644:BD644)))","v":0}]
[621,null,null,null,null,null,null,null,null,null,null,null,null,null,null,null,null,null,null,null,null,null,null,null,{"$f":"SUM(N645:R645)","v":0},{"$f":"SUM(N645:X645)","v":0},null,null,null,null,null,null,null,null,null,null,null,null,null,null,null,null,null,null,null,null,null,null,null,null,null,null,null,null,null,null,null,{"$f":"IF(SUM(AI645:BD645)=0,0,(Y645/SUMIF($AI$20:$BD$20,\"1\",AI645:BD645)))","v":0}]
[622,null,null,null,null,null,null,null,null,null,null,null,null,null,null,null,null,null,null,null,null,null,null,null,{"$f":"SUM(N646:R646)","v":0},{"$f":"SUM(N646:X646)","v":0},null,null,null,null,null,null,null,null,null,null,null,null,null,null,null,null,null,null,null,null,null,null,null,null,null,null,null,null,null,null,null,{"$f":"IF(SUM(AI646:BD646)=0,0,(Y646/SUMIF($AI$20:$BD$20,\"1\",AI646:BD646)))","v":0}]
[623,null,null,null,null,null,null,null,null,null,null,null,null,null,null,null,null,null,null,null,null,null,null,null,{"$f":"SUM(N647:R647)","v":0},{"$f":"SUM(N647:X647)","v":0},null,null,null,null,null,null,null,null,null,null,null,null,null,null,null,null,null,null,null,null,null,null,null,null,null,null,null,null,null,null,null,{"$f":"IF(SUM(AI647:BD647)=0,0,(Y647/SUMIF($AI$20:$BD$20,\"1\",AI647:BD647)))","v":0}]
[624,null,null,null,null,null,null,null,null,null,null,null,null,null,null,null,null,null,null,null,null,null,null,null,{"$f":"SUM(N648:R648)","v":0},{"$f":"SUM(N648:X648)","v":0},null,null,null,null,null,null,null,null,null,null,null,null,null,null,null,null,null,null,null,null,null,null,null,null,null,null,null,null,null,null,null,{"$f":"IF(SUM(AI648:BD648)=0,0,(Y648/SUMIF($AI$20:$BD$20,\"1\",AI648:BD648)))","v":0}]
[625,null,null,null,null,null,null,null,null,null,null,null,null,null,null,null,null,null,null,null,null,null,null,null,{"$f":"SUM(N649:R649)","v":0},{"$f":"SUM(N649:X649)","v":0},null,null,null,null,null,null,null,null,null,null,null,null,null,null,null,null,null,null,null,null,null,null,null,null,null,null,null,null,null,null,null,{"$f":"IF(SUM(AI649:BD649)=0,0,(Y649/SUMIF($AI$20:$BD$20,\"1\",AI649:BD649)))","v":0}]
[626,null,null,null,null,null,null,null,null,null,null,null,null,null,null,null,null,null,null,null,null,null,null,null,{"$f":"SUM(N650:R650)","v":0},{"$f":"SUM(N650:X650)","v":0},null,null,null,null,null,null,null,null,null,null,null,null,null,null,null,null,null,null,null,null,null,null,null,null,null,null,null,null,null,null,null,{"$f":"IF(SUM(AI650:BD650)=0,0,(Y650/SUMIF($AI$20:$BD$20,\"1\",AI650:BD650)))","v":0}]
[627,null,null,null,null,null,null,null,null,null,null,null,null,null,null,null,null,null,null,null,null,null,null,null,{"$f":"SUM(N651:R651)","v":0},{"$f":"SUM(N651:X651)","v":0},null,null,null,null,null,null,null,null,null,null,null,null,null,null,null,null,null,null,null,null,null,null,null,null,null,null,null,null,null,null,null,{"$f":"IF(SUM(AI651:BD651)=0,0,(Y651/SUMIF($AI$20:$BD$20,\"1\",AI651:BD651)))","v":0}]
[628,null,null,null,null,null,null,null,null,null,null,null,null,null,null,null,null,null,null,null,null,null,null,null,{"$f":"SUM(N652:R652)","v":0},{"$f":"SUM(N652:X652)","v":0},null,null,null,null,null,null,null,null,null,null,null,null,null,null,null,null,null,null,null,null,null,null,null,null,null,null,null,null,null,null,null,{"$f":"IF(SUM(AI652:BD652)=0,0,(Y652/SUMIF($AI$20:$BD$20,\"1\",AI652:BD652)))","v":0}]
[629,null,null,null,null,null,null,null,null,null,null,null,null,null,null,null,null,null,null,null,null,null,null,null,{"$f":"SUM(N653:R653)","v":0},{"$f":"SUM(N653:X653)","v":0},null,null,null,null,null,null,null,null,null,null,null,null,null,null,null,null,null,null,null,null,null,null,null,null,null,null,null,null,null,null,null,{"$f":"IF(SUM(AI653:BD653)=0,0,(Y653/SUMIF($AI$20:$BD$20,\"1\",AI653:BD653)))","v":0}]
[630,null,null,null,null,null,null,null,null,null,null,null,null,null,null,null,null,null,null,null,null,null,null,null,{"$f":"SUM(N654:R654)","v":0},{"$f":"SUM(N654:X654)","v":0},null,null,null,null,null,null,null,null,null,null,null,null,null,null,null,null,null,null,null,null,null,null,null,null,null,null,null,null,null,null,null,{"$f":"IF(SUM(AI654:BD654)=0,0,(Y654/SUMIF($AI$20:$BD$20,\"1\",AI654:BD654)))","v":0}]
[631,null,null,null,null,null,null,null,null,null,null,null,null,null,null,null,null,null,null,null,null,null,null,null,{"$f":"SUM(N655:R655)","v":0},{"$f":"SUM(N655:X655)","v":0},null,null,null,null,null,null,null,null,null,null,null,null,null,null,null,null,null,null,null,null,null,null,null,null,null,null,null,null,null,null,null,{"$f":"IF(SUM(AI655:BD655)=0,0,(Y655/SUMIF($AI$20:$BD$20,\"1\",AI655:BD655)))","v":0}]
[632,null,null,null,null,null,null,null,null,null,null,null,null,null,null,null,null,null,null,null,null,null,null,null,{"$f":"SUM(N656:R656)","v":0},{"$f":"SUM(N656:X656)","v":0},null,null,null,null,null,null,null,null,null,null,null,null,null,null,null,null,null,null,null,null,null,null,null,null,null,null,null,null,null,null,null,{"$f":"IF(SUM(AI656:BD656)=0,0,(Y656/SUMIF($AI$20:$BD$20,\"1\",AI656:BD656)))","v":0}]
[633,null,null,null,null,null,null,null,null,null,null,null,null,null,null,null,null,null,null,null,null,null,null,null,{"$f":"SUM(N657:R657)","v":0},{"$f":"SUM(N657:X657)","v":0},null,null,null,null,null,null,null,null,null,null,null,null,null,null,null,null,null,null,null,null,null,null,null,null,null,null,null,null,null,null,null,{"$f":"IF(SUM(AI657:BD657)=0,0,(Y657/SUMIF($AI$20:$BD$20,\"1\",AI657:BD657)))","v":0}]
[634,null,null,null,null,null,null,null,null,null,null,null,null,null,null,null,null,null,null,null,null,null,null,null,{"$f":"SUM(N658:R658)","v":0},{"$f":"SUM(N658:X658)","v":0},null,null,null,null,null,null,null,null,null,null,null,null,null,null,null,null,null,null,null,null,null,null,null,null,null,null,null,null,null,null,null,{"$f":"IF(SUM(AI658:BD658)=0,0,(Y658/SUMIF($AI$20:$BD$20,\"1\",AI658:BD658)))","v":0}]
[635,null,null,null,null,null,null,null,null,null,null,null,null,null,null,null,null,null,null,null,null,null,null,null,{"$f":"SUM(N659:R659)","v":0},{"$f":"SUM(N659:X659)","v":0},null,null,null,null,null,null,null,null,null,null,null,null,null,null,null,null,null,null,null,null,null,null,null,null,null,null,null,null,null,null,null,{"$f":"IF(SUM(AI659:BD659)=0,0,(Y659/SUMIF($AI$20:$BD$20,\"1\",AI659:BD659)))","v":0}]
[636,null,null,null,null,null,null,null,null,null,null,null,null,null,null,null,null,null,null,null,null,null,null,null,{"$f":"SUM(N660:R660)","v":0},{"$f":"SUM(N660:X660)","v":0},null,null,null,null,null,null,null,null,null,null,null,null,null,null,null,null,null,null,null,null,null,null,null,null,null,null,null,null,null,null,null,{"$f":"IF(SUM(AI660:BD660)=0,0,(Y660/SUMIF($AI$20:$BD$20,\"1\",AI660:BD660)))","v":0}]
[637,null,null,null,null,null,null,null,null,null,null,null,null,null,null,null,null,null,null,null,null,null,null,null,{"$f":"SUM(N661:R661)","v":0},{"$f":"SUM(N661:X661)","v":0},null,null,null,null,null,null,null,null,null,null,null,null,null,null,null,null,null,null,null,null,null,null,null,null,null,null,null,null,null,null,null,{"$f":"IF(SUM(AI661:BD661)=0,0,(Y661/SUMIF($AI$20:$BD$20,\"1\",AI661:BD661)))","v":0}]
[638,null,null,null,null,null,null,null,null,null,null,null,null,null,null,null,null,null,null,null,null,null,null,null,{"$f":"SUM(N662:R662)","v":0},{"$f":"SUM(N662:X662)","v":0},null,null,null,null,null,null,null,null,null,null,null,null,null,null,null,null,null,null,null,null,null,null,null,null,null,null,null,null,null,null,null,{"$f":"IF(SUM(AI662:BD662)=0,0,(Y662/SUMIF($AI$20:$BD$20,\"1\",AI662:BD662)))","v":0}]
[639,null,null,null,null,null,null,null,null,null,null,null,null,null,null,null,null,null,null,null,null,null,null,null,{"$f":"SUM(N663:R663)","v":0},{"$f":"SUM(N663:X663)","v":0},null,null,null,null,null,null,null,null,null,null,null,null,null,null,null,null,null,null,null,null,null,null,null,null,null,null,null,null,null,null,null,{"$f":"IF(SUM(AI663:BD663)=0,0,(Y663/SUMIF($AI$20:$BD$20,\"1\",AI663:BD663)))","v":0}]
[640,null,null,null,null,null,null,null,null,null,null,null,null,null,null,null,null,null,null,null,null,null,null,null,{"$f":"SUM(N664:R664)","v":0},{"$f":"SUM(N664:X664)","v":0},null,null,null,null,null,null,null,null,null,null,null,null,null,null,null,null,null,null,null,null,null,null,null,null,null,null,null,null,null,null,null,{"$f":"IF(SUM(AI664:BD664)=0,0,(Y664/SUMIF($AI$20:$BD$20,\"1\",AI664:BD664)))","v":0}]
[641,null,null,null,null,null,null,null,null,null,null,null,null,null,null,null,null,null,null,null,null,null,null,null,{"$f":"SUM(N665:R665)","v":0},{"$f":"SUM(N665:X665)","v":0},null,null,null,null,null,null,null,null,null,null,null,null,null,null,null,null,null,null,null,null,null,null,null,null,null,null,null,null,null,null,null,{"$f":"IF(SUM(AI665:BD665)=0,0,(Y665/SUMIF($AI$20:$BD$20,\"1\",AI665:BD665)))","v":0}]
[642,null,null,null,null,null,null,null,null,null,null,null,null,null,null,null,null,null,null,null,null,null,null,null,{"$f":"SUM(N666:R666)","v":0},{"$f":"SUM(N666:X666)","v":0},null,null,null,null,null,null,null,null,null,null,null,null,null,null,null,null,null,null,null,null,null,null,null,null,null,null,null,null,null,null,null,{"$f":"IF(SUM(AI666:BD666)=0,0,(Y666/SUMIF($AI$20:$BD$20,\"1\",AI666:BD666)))","v":0}]
[643,null,null,null,null,null,null,null,null,null,null,null,null,null,null,null,null,null,null,null,null,null,null,null,{"$f":"SUM(N667:R667)","v":0},{"$f":"SUM(N667:X667)","v":0},null,null,null,null,null,null,null,null,null,null,null,null,null,null,null,null,null,null,null,null,null,null,null,null,null,null,null,null,null,null,null,{"$f":"IF(SUM(AI667:BD667)=0,0,(Y667/SUMIF($AI$20:$BD$20,\"1\",AI667:BD667)))","v":0}]
[644,null,null,null,null,null,null,null,null,null,null,null,null,null,null,null,null,null,null,null,null,null,null,null,{"$f":"SUM(N668:R668)","v":0},{"$f":"SUM(N668:X668)","v":0},null,null,null,null,null,null,null,null,null,null,null,null,null,null,null,null,null,null,null,null,null,null,null,null,null,null,null,null,null,null,null,{"$f":"IF(SUM(AI668:BD668)=0,0,(Y668/SUMIF($AI$20:$BD$20,\"1\",AI668:BD668)))","v":0}]
[645,null,null,null,null,null,null,null,null,null,null,null,null,null,null,null,null,null,null,null,null,null,null,null,{"$f":"SUM(N669:R669)","v":0},{"$f":"SUM(N669:X669)","v":0},null,null,null,null,null,null,null,null,null,null,null,null,null,null,null,null,null,null,null,null,null,null,null,null,null,null,null,null,null,null,null,{"$f":"IF(SUM(AI669:BD669)=0,0,(Y669/SUMIF($AI$20:$BD$20,\"1\",AI669:BD669)))","v":0}]
[646,null,null,null,null,null,null,null,null,null,null,null,null,null,null,null,null,null,null,null,null,null,null,null,{"$f":"SUM(N670:R670)","v":0},{"$f":"SUM(N670:X670)","v":0},null,null,null,null,null,null,null,null,null,null,null,null,null,null,null,null,null,null,null,null,null,null,null,null,null,null,null,null,null,null,null,{"$f":"IF(SUM(AI670:BD670)=0,0,(Y670/SUMIF($AI$20:$BD$20,\"1\",AI670:BD670)))","v":0}]
[647,null,null,null,null,null,null,null,null,null,null,null,null,null,null,null,null,null,null,null,null,null,null,null,{"$f":"SUM(N671:R671)","v":0},{"$f":"SUM(N671:X671)","v":0},null,null,null,null,null,null,null,null,null,null,null,null,null,null,null,null,null,null,null,null,null,null,null,null,null,null,null,null,null,null,null,{"$f":"IF(SUM(AI671:BD671)=0,0,(Y671/SUMIF($AI$20:$BD$20,\"1\",AI671:BD671)))","v":0}]
["tot"]
[null,"TOTAL DES DÉPENSES DE PROJET ($)",null,null,null,null,null,null,null,{"$f":"SUM(J25:J672)","v":78114593.440000013},null,null,null,{"$f":"SUM(N25:N672)","v":0},3755699.8100000005,6942617.8700000001,8595713.8299999926,15944180.059999986,33134824.739999998,6439527.2399999993,2445644.7200000002,509071.89999999997,0,0,31485204.180000041,77118386.099999994,null,"TOTAL (tonnes CO2 éq.)",null,null,null,null,null,null,{"$f":"SUM(AI25:AI672)","v":4.1871378200000002},0,1225.1410001600002,0,9079.8710264300007,0,15723.077225640001,0,19394.727817339997,0,0,0,0,0,0,0,0,0,0,0,0,0,0,{"$error":"#DIV/0!"}]
[null,"TOTAL CONTRATS FONCTIONNEMENT ($)",null,null,null,null,null,null,null,{"$f":"SUMIF($I$25:$I672,\"CF-Contrat fonctionnement\",J25:J672)+SUMIF($I$25:$I672,\"CP-Contrat service professionnel\",J25:J672)+SUMIF($I$25:$I672,\"CT-Contrat service technique\",J25:J672)","v":0},null,null,null,{"$f":"SUMIF($I$25:$I672,\"CF-Contrat fonctionnement\",N25:N672)+SUMIF($I$25:$I672,\"CP-Contrat service professionnel\",N25:N672)+SUMIF($I$25:$I672,\"CT-Contrat service technique\",N25:N672)","v":0},{"$f":"SUMIF($I$25:$I672,\"CF-Contrat fonctionnement\",O25:O672)+SUMIF($I$25:$I672,\"CP-Contrat service professionnel\",O25:O672)+SUMIF($I$25:$I672,\"CT-Contrat service technique\",O25:O672)","v":0},{"$f":"SUMIF($I$25:$I672,\"CF-Contrat fonctionnement\",P25:P672)+SUMIF($I$25:$I672,\"CP-Contrat service professionnel\",P25:P672)+SUMIF($I$25:$I672,\"CT-Contrat service technique\",P25:P672)","v":0},{"$f":"SUMIF($I$25:$I672,\"CF-Contrat fonctionnement\",Q25:Q672)+SUMIF($I$25:$I672,\"CP-Contrat service professionnel\",Q25:Q672)+SUMIF($I$25:$I672,\"CT-Contrat service technique\",Q25:Q672)","v":0},{"$f":"SUMIF($I$25:$I672,\"CF-Contrat fonctionnement\",R25:R672)+SUMIF($I$25:$I672,\"CP-Contrat service professionnel\",R25:R672)+SUMIF($I$25:$I672,\"CT-Contrat service technique\",R25:R672)","v":0},{"$f":"SUMIF($I$25:$I672,\"CF-Contrat fonctionnement\",S25:S672)+SUMIF($I$25:$I672,\"CP-Contrat service professionnel\",S25:S672)+SUMIF($I$25:$I672,\"CT-Contrat service technique\",S25:S672)","v":0},{"$f":"SUMIF($I$25:$I672,\"CF-Contrat fonctionnement\",T25:T672)+SUMIF($I$25:$I672,\"CP-Contrat service professionnel\",T25:T672)+SUMIF($I$25:$I672,\"CT-Contrat service technique\",T25:T672)","v":0},{"$f":"SUMIF($I$25:$I672,\"CF-Contrat fonctionnement\",U25:U672)+SUMIF($I$25:$I672,\"CP-Contrat service professionnel\",U25:U672)+SUMIF($I$25:$I672,\"CT-Contrat service technique\",U25:U672)","v":0},{"$f":"SUMIF($I$25:$I672,\"CF-Contrat fonctionnement\",V25:V672)+SUMIF($I$25:$I672,\"CP-Contrat service professionnel\",V25:V672)+SUMIF($I$25:$I672,\"CT-Contrat service technique\",V25:V672)","v":0},{"$f":"SUMIF($I$25:$I672,\"CF-Contrat fonctionnement\",W25:W672)+SUMIF($I$25:$I672,\"CP-Contrat service professionnel\",W25:W672)+SUMIF($I$25:$I672,\"CT-Contrat service technique\",W25:W672)","v":0},{"$f":"SUMIF($I$25:$I672,\"CF-Contrat fonctionnement\",X25:X672)+SUMIF($I$25:$I672,\"CP-Contrat service professionnel\",X25:X672)+SUMIF($I$25:$I672,\"CT-Contrat service technique\",X25:X672)","v":0},{"$f":"SUMIF($I$25:$I672,\"CF-Contrat fonctionnement\",Y25:Y672)+SUMIF($I$25:$I672,\"CP-Contrat service professionnel\",Y25:Y672)+SUMIF($I$25:$I672,\"CT-Contrat service technique\",Y25:Y672)","v":0},{"$f":"SUMIF($I$25:$I672,\"CF-Contrat fonctionnement\",Z25:Z672)+SUMIF($I$25:$I672,\"CP-Contrat service professionnel\",Z25:Z672)+SUMIF($I$25:$I672,\"CT-Contrat service technique\",Z25:Z672)","v":0}]
[null,"TOTAL CONTRATS IMMOBILISATION ($)",null,null,null,null,null,null,null,{"$f":"SUMIF(I25:I672,\"CI-Contrat immobilisation\",J25:J672)","v":0},null,null,null,{"$f":"SUMIF($I$25:$I672,\"CI-Contrat immobilisation\",N25:N672)","v":0},{"$f":"SUMIF($I$25:$I672,\"CI-Contrat immobilisation\",O25:O672)","v":0},{"$f":"SUMIF($I$25:$I672,\"CI-Contrat immobilisation\",P25:P672)","v":0},{"$f":"SUMIF($I$25:$I672,\"CI-Contrat immobilisation\",Q25:Q672)","v":0},{"$f":"SUMIF($I$25:$I672,\"CI-Contrat immobilisation\",R25:R672)","v":0},{"$f":"SUMIF($I$25:$I672,\"CI-Contrat immobilisation\",S25:S672)","v":0},{"$f":"SUMIF($I$25:$I672,\"CI-Contrat immobilisation\",T25:T672)","v":0},{"$f":"SUMIF($I$25:$I672,\"CI-Contrat immobilisation\",U25:U672)","v":0},{"$f":"SUMIF($I$25:$I672,\"CI-Contrat immobilisation\",V25:V672)","v":0},{"$f":"SUMIF($I$25:$I672,\"CI-Contrat immobilisation\",W25:W672)","v":0},{"$f":"SUMIF($I$25:$I672,\"CI-Contrat immobilisation\",X25:X672)","v":0},{"$f":"SUMIF($I$25:$I672,\"CI-Contrat immobilisation\",Y25:Y672)","v":0},{"$f":"SUMIF($I$25:$I672,\"CI-Contrat immobilisation\",Z25:Z672)","v":0}]
[null,"TOTAL DES SUBVENTIONS ($)",null,null,null,null,null,null,null,{"$f":"SUMIF(I25:I672,\"SU-Subvention\",J25:J672)","v":0},null,null,null,{"$f":"SUMIF($I$25:$I675,\"SU-Subvention\",N25:N36)","v":0},{"$f":"SUMIF($I$25:$I675,\"SU-Subvention\",O25:O36)","v":0},{"$f":"SUMIF($I$25:$I675,\"SU-Subvention\",P25:P36)","v":0},{"$f":"SUMIF($I$25:$I675,\"SU-Subvention\",Q25:Q36)","v":0},{"$f":"SUMIF($I$25:$I675,\"SU-Subvention\",R25:R36)","v":0},{"$f":"SUMIF($I$25:$I675,\"SU-Subvention\",S25:S36)","v":0},{"$f":"SUMIF($I$25:$I675,\"SU-Subvention\",T25:T36)","v":0},{"$f":"SUMIF($I$25:$I675,\"SU-Subvention\",U25:U36)","v":0},{"$f":"SUMIF($I$25:$I675,\"SU-Subvention\",V25:V36)","v":0},{"$f":"SUMIF($I$25:$I675,\"SU-Subvention\",W25:W36)","v":0},{"$f":"SUMIF($I$25:$I675,\"SU-Subvention\",X25:X36)","v":0},{"$f":"SUMIF($I$25:$I675,\"SU-Subvention\",Y25:Y36)","v":0},{"$f":"SUMIF($I$25:$I675,\"SU-Subvention\",Z25:Z36)","v":0}]

{"sheet":"indicateurs quantitatifs","index":6,"n_rows":45,"n_cols":44,"rows_kept":45,"cut":false,"hidden":false,"merged":[[37,4,37,5],[29,6,29,7],[37,6,37,7],[32,6,32,7],[33,6,33,7],[34,6,34,7],[35,6,35,7],[31,4,31,5],[34,4,34,5],[32,4,32,5],[36,4,36,5],[36,6,36,7],[35,4,35,5],[31,6,31,7],[33,4,33,5],[29,4,29,5],[38,4,38,5],[38,6,38,7],[39,4,39,5],[40,4,40,5],[40,6,40,7],[39,6,39,7],[43,4,43,5],[43,6,43,7],[41,4,41,5],[41,6,41,7],[42,4,42,5],[42,6,42,7],[24,6,24,7],[22,6,23,7],[5,1,5,6],[24,4,24,5],[30,4,30,5],[28,4,28,5],[25,4,25,5],[27,4,27,5],[26,4,26,5],[25,6,25,7],[30,6,30,7],[28,6,28,7],[26,6,26,7],[27,6,27,7],[1,1,1,4],[2,1,2,3],[3,3,3,6],[4,1,4,3],[22,19,23,19],[22,3,23,3],[22,4,23,5],[21,1,21,7],[22,1,23,1],[22,2,23,2],[1,8,5,12]]}
[]
[null,"PLAN D'ACTION 2013-2020 SUR LES CHANGEMENTS CLIMATIQUES",null,null,null,null,null,null,{"$f":"IF(Utilitaire!C10=0,\"Les nouveaux indicateurs inscrits devront être soumis pour approbation au Conseil de gestion du Fonds vert.\",IF(Utilitaire!C10=1,\"Le premier indicateur présenté dans cette page a été convenu au préalable par des annexes 3 ou 4 de l’entente administrative. \n\nLes nouveaux indicateurs inscrits devront être soumis pour approbation au Conseil de gestion du Fonds vert.\",\"Les \"&Utilitaire!C10&\" premiers indicateurs présentés dans cette page ont été convenus au préalable par des annexes 3 ou 4 de l’entente administrative. \n\nLes nouveaux indicateurs inscrits  devront être soumis pour approbation au Conseil de gestion du Fonds vert.\"))","v":"Les 6 premiers indicateurs présentés dans cette page ont été convenus au préalable par des annexes 3 ou 4 de l’entente administrative. \n\nLes nouveaux indicateurs inscrits  devront être soumis pour approbation au Conseil de gestion du Fonds vert."}]
[null,{"$f":"\"Action \" & Accueil!D58","v":"Action en cours"}]
[null,{"$f":"Accueil!D55","v":"20.1"},null,{"$f":"Accueil!E55","v":"Conversion et efficacité énergétique dans les bâtiments commerciaux et institutionnels (Écoperformance)"}]
[null,"Ministère porteur:",null,null,{"$f":"Accueil!$D$66","v":"TEQ"}]
[null,"Indicateurs quantitatifs"]
[]
[]
[]
[]
[]
[]
[]
[]
[]
[]
[]
[]
[]
[]
[]
[null,"SECTION 9 - INDICATEURS DE PERFORMANCE QUANTITATIFS ",null,null,null,null,null,null,{"$f":"IF(OR(AND(MONTH(#REF!)>6,YEAR(#REF!)=VALUE(MID(I23,1,4))),YEAR(#REF!)>VALUE(MID(I23,1,4))),\"Réel\",\"Prévu\")","v":{"$error":"#REF!"}},{"$f":"IF(OR(AND(MONTH(#REF!)>6,YEAR(#REF!)=VALUE(MID(J23,1,4))),YEAR(#REF!)>VALUE(MID(J23,1,4))),\"Réel\",\"Prévu\")","v":{"$error":"#REF!"}},{"$f":"IF(OR(AND(MONTH(#REF!)>6,YEAR(#REF!)=VALUE(MID(K23,1,4))),YEAR(#REF!)>VALUE(MID(K23,1,4))),\"Réel\",\"Prévu\")","v":{"$error":"#REF!"}},{"$f":"IF(OR(AND(MONTH(#REF!)>6,YEAR(#REF!)=VALUE(MID(L23,1,4))),YEAR(#REF!)>VALUE(MID(L23,1,4))),\"Réel\",\"Prévu\")","v":{"$error":"#REF!"}},{"$f":"IF(OR(AND(MONTH(#REF!)>6,YEAR(#REF!)=VALUE(MID(M23,1,4))),YEAR(#REF!)>VALUE(MID(M23,1,4))),\"Réel\",\"Prévu\")","v":{"$error":"#REF!"}},{"$f":"IF(OR(AND(MONTH(#REF!)>6,YEAR(#REF!)=VALUE(MID(N23,1,4))),YEAR(#REF!)>VALUE(MID(N23,1,4))),\"Réel\",\"Prévu\")","v":{"$error":"#REF!"}},{"$f":"IF(OR(AND(MONTH(#REF!)>6,YEAR(#REF!)=VALUE(MID(O23,1,4))),YEAR(#REF!)>VALUE(MID(O23,1,4))),\"Réel\",\"Prévu\")","v":{"$error":"#REF!"}},{"$f":"IF(OR(AND(MONTH(#REF!)>6,YEAR(#REF!)=VALUE(MID(P23,1,4))),YEAR(#REF!)>VALUE(MID(P23,1,4))),\"Réel\",\"Prévu\")","v":{"$error":"#REF!"}},{"$f":"IF(OR(AND(MONTH(#REF!)>6,YEAR(#REF!)=VALUE(MID(Q23,1,4))),YEAR(#REF!)>VALUE(MID(Q23,1,4))),\"Réel\",\"Prévu\")","v":{"$error":"#REF!"}},{"$f":"IF(OR(AND(MONTH(#REF!)>6,YEAR(#REF!)=VALUE(MID(R23,1,4))),YEAR(#REF!)>VALUE(MID(R23,1,4))),\"Réel\",\"Prévu\")","v":{"$error":"#REF!"}},{"$f":"IF(OR(AND(MONTH(#REF!)>6,YEAR(#REF!)=VALUE(MID(S23,1,4))),YEAR(#REF!)>VALUE(MID(S23,1,4))),\"Réel\",\"Prévu\")","v":{"$error":"#REF!"}},{"$f":"MONTH(#REF!)","v":{"$error":"#REF!"}}]
[null,"ANNÉE PRÉVUE D'ATTEINTE DE LA CIBLE","CIBLE","UNITÉ DE MESURE","DESCRIPTION DE L'INDICATEUR",null,"TYPE D'INDICATEUR",null,"2013-2014","2014-2015","2015-2016","2016-2017","2017-2018","2018-2019","2019-2020","2020-2021","2021-2022","2022-2023","2023-2024","RÉSULTAT À COMPARER AVEC LA CIBLE"]
[null,null,null,null,null,null,null,null,"Réel","Réel","Réel","Réel","Réel","Réel","Réel","Réel","Réel","Réel","Réel"]
[1,2020,null,"emplois","Emplois créés (aucune cible)",null,null,null,null,null,null,null,null,null,null,null,null,null,null,1964]
[2,2020,null,"dossiers","Nombre de dossiers acceptés (aucune cible)",null,null,null,null,null,null,null,null,null,null,null,null,null,null,304]
[3,2020,51000,"t CO2","Réduction annuelle des émissions de gaz à effet de serre (GES)",null,"minimum à atteindre",null,4.1900000000000004,1225.1400000000001,9079.6299999999992,15718.73,19390.41,null,null,null,null,null,null,19390.41]
[4,2020,51000,"t CO2","Réduction annuelle des émissions de gaz à effet de serre (GES) pour les dossiers en cours",null,"minimum à atteindre",null,null,null,null,null,null,null,null,null,null,null,null,30812.57]
[5,2020,51000,"t CO2","Réduction annuelle des émissions de gaz à effet de serre (GES) pour les dossiers en traitement",null,"minimum à atteindre",null,null,null,null,null,null,null,null,null,null,null,null,8852.1970000000001]
[6,2020,null,"$/tonne","VAN/t"]
[7]
[8]
[9]
[10]
[11]
[12]
[13]
[14]
[15]
[16]
[17]
[18]
[19]
[20]
["tot",null,null,null,null,null,null,null,null,null,null,null,null,null,null,null,null,null,null,null,null,null,null,null,null,null,null,null,null,null,null,null,null,null,null,null,null,null,null,null,null,null,null,false]

{"sheet":"Commentaires","index":7,"n_rows":33,"n_cols":20,"rows_kept":33,"cut":false,"hidden":false,"merged":[[4,1,4,2],[26,1,26,11],[23,14,23,15],[25,14,25,15],[2,1,2,2],[23,16,23,17],[23,1,23,11],[23,12,23,13],[29,1,29,11],[27,1,27,11],[28,12,28,13],[28,1,28,11],[28,14,28,15],[25,16,25,17],[26,14,26,15],[26,16,26,17],[27,14,27,15],[27,16,27,17],[24,16,24,17],[24,14,24,15],[24,1,24,11],[34,1,34,11],[24,12,24,13],[25,12,25,13],[26,12,26,13],[27,12,27,13],[29,12,29,13],[34,12,34,13],[25,1,25,11],[31,1,31,11],[32,1,32,11],[30,1,30,11],[30,12,30,13],[33,12,33,13],[33,1,33,11],[31,12,31,13],[32,12,32,13],[1,1,1,3],[3,2,3,5],[5,1,5,5],[34,14,34,15],[34,16,34,17],[29,14,29,15],[29,16,29,17],[28,16,28,17],[31,16,31,17],[32,16,32,17],[31,14,31,15],[32,14,32,15],[30,14,30,15],[30,16,30,17],[33,14,33,15],[33,16,33,17]]}
[]
[null,{"$f":"Utilitaire!E8","v":"PLAN D'ACTION 2013-2020 SUR LES CHANGEMENTS CLIMATIQUES"},null,null,null,null,null,null,null,null,null,null,null,null,null,null,null,null,null,"COF"]
[null,{"$f":"\"Action \" & Accueil!D58","v":"Action en cours"},null,null,null,null,null,null,null,null,null,null,null,null,null,null,null,null,null,"frais"]
[null,{"$f":"Accueil!D55","v":"20.1"},{"$f":"Accueil!E55","v":"Conversion et efficacité énergétique dans les bâtiments commerciaux et institutionnels (Écoperformance)"},null,null,null,null,null,null,null,null,null,null,null,null,null,null,null,null,"ETC"]
[null,"Ministère porteur:",null,{"$f":"Accueil!$D$66","v":"TEQ"},null,null,null,null,null,null,null,null,null,null,null,null,null,null,null,"détail des projets"]
[null,"Commentaires",null,null,null,null,null,null,null,null,null,null,null,null,null,null,null,null,null,"détail des projets (GES)"]
[null,null,null,null,null,null,null,null,null,null,null,null,null,null,null,null,null,null,null,"bilan GES"]
[null,null,null,null,null,null,null,null,null,null,null,null,null,null,null,null,null,null,null,"Indicateurs"]
[null,null,null,null,null,null,null,null,null,null,null,null,null,null,null,null,null,null,null,"Toutes-Autre"]
[]
[]
[null,null,null,null,null,null,null,null,null,null,null,null,null,null,null,null,null,null,null,"2013-2014"]
[null,null,null,null,null,null,null,null,null,null,null,null,null,null,null,null,null,null,null,"2014-2015"]
[null,null,null,null,null,null,null,null,null,null,null,null,null,null,null,null,null,null,null,"2015-2016"]
[null,null,null,null,null,null,null,null,null,null,null,null,null,null,null,null,null,null,null,"2016-2017"]
[null,null,null,null,null,null,null,null,null,null,null,null,null,null,null,null,null,null,null,"2017-2018"]
[]
[]
[]
[]
[]
[]
[null,null,null,null,null,null,null,null,null,null,null,null,null,null,null,null,null,null,null,"2018-2019"]
[null,"COMMENTAIRES ",null,null,null,null,null,null,null,null,null,null,"Section concernée",null,"Année",null,"Exercice",null,null,"2019-2020"]
[null,null,null,null,null,null,null,null,null,null,null,null,null,null,null,null,null,null,null,"2020-2021"]
[null,null,null,null,null,null,null,null,null,null,null,null,null,null,null,null,null,null,null,"2021-2022"]
[null,null,null,null,null,null,null,null,null,null,null,null,null,null,null,null,null,null,null,"2022-2023"]
[null,null,null,null,null,null,null,null,null,null,null,null,null,null,null,null,null,null,null,"2023-2024"]
[]
[]
[]
[null,null,null,null,null,null,null,null,null,null,null,null,null,null,null,null,null,null,null,"juin"]
[null,null,null,null,null,null,null,null,null,null,null,null,null,null,null,null,null,null,null,"décembre"]